{"text_format":"1","workbook":"xlsx","n_sheets":4,"sheets":["Реестр","Данные","Сводная","Технический"],"not_rendered":{"charts":0,"images":0,"macros":1,"external_links":0,"defined_names":2,"comments":0,"pivot_tables":5},"unopened":[],"bounds":{"document_bytes":16777216,"sheet_cells":100000,"rows_first":2000,"rows_last":500,"rows_between":2000,"halvings":0,"cell_chars":16384,"cell_head_chars":4096},"cells_cut":0,"cells_raw":0,"read":"whole","date_system":"1900"}

{"sheet":"Реестр","index":0,"n_rows":232,"n_cols":28,"rows_kept":232,"cut":false,"hidden":false,"merged":[]}
["Контрагент","Статья расходов","Подкатегория","ДОПЫ","20\n21","Оплачен","Счет (№, дата)","Предмет закупки","Пункт 44 ФЗ","Сумма","БО","входящий (дата)","Срок оплаты (дней)","С даты подписания (акта/договора) и предоставления документов на оплату","Плановая дата оплаты","Факт. дата оплаты","Оплата","Способ оплаты","Документы переданы в бухгалтерию","Основание",null,null,null,null,null,null,null,{"$f":"TODAY()","v":"2022-02-03"}]
["АО \" СахалинСельхозИнвест\"","Питание (областной бюджет) (молоко, 5-11,многодетные, ОВЗ)","молоко",{"$f":"IFERROR(VLOOKUP(Реестр_tb[[#This Row],[Подкатегория]],IF({1,0},Данные_tb[ЕД],Данные_tb[доп. код.]),2,0),\" \")","v":"Д62190"},{"$f":"IFERROR(VLOOKUP(Реестр_tb[[#This Row],[ДОПЫ]],IF({1,0},Данные_tb[доп. код.],Данные_tb[Источник]),2,0),\" \")","v":20},"Нет","818 от 27.12.21","Молоко","аукцион и т.п.",161959.67999999999,null,"2022-01-14",15,"Акта",{"$f":"IF(Реестр_tb[[#This Row],[Срок оплаты (дней)]]=\"\",\"\",WORKDAY(Реестр_tb[[#This Row],[входящий (дата)]],Реестр_tb[[#This Row],[Срок оплаты (дней)]]+1,Выходные_tb[Выходные]))","v":"2022-02-07"},null,{"$f":"IF(AND(Реестр_tb[[#This Row],[Оплачен]]=\"Да\",Реестр_tb[[#This Row],[Факт. дата оплаты]]<=Реестр_tb[[#This Row],[Плановая дата оплаты]]),\"Оплачено вовремя\",IF(AND(Реестр_tb[[#This Row],[Оплачен]]=\"Да\",Реестр_tb[[#This Row],[Факт. дата оплаты]]>Реестр_tb[[#This Row],[Плановая дата оплаты]]),\"Просрочено\",IF(AND(Реестр_tb[[#This Row],[Оплачен]]=\"Нет\",Реестр_tb[[#This Row],[Факт. дата оплаты]]=\"\",Реестр_tb[[#This Row],[Плановая дата оплаты]]<$AB$1),\"Просрочено\",IF(Реестр_tb[[#This Row],[Плановая дата оплаты]]=$AB$1,\"Сегодня\",IF(Реестр_tb[[#This Row],[Плановая дата оплаты]]<=$AB$1+7,\"В течении недели\",\"Через неделю и более\")))))","v":"В течении недели"},"Полный расчет","Копии","Контракт № 2/2022 от 06.12.2021 г. на сумму 1 757 341,92 руб."]
["АО \" СахалинСельхозИнвест\"","Питание (областной бюджет) (молоко, 5-11,многодетные, ОВЗ)","молоко",{"$f":"IFERROR(VLOOKUP(Реестр_tb[[#This Row],[Подкатегория]],IF({1,0},Данные_tb[ЕД],Данные_tb[доп. код.]),2,0),\" \")","v":"Д62190"},{"$f":"IFERROR(VLOOKUP(Реестр_tb[[#This Row],[ДОПЫ]],IF({1,0},Данные_tb[доп. код.],Данные_tb[Источник]),2,0),\" \")","v":20},"Нет","1-10/02 - 1938 л","Молоко","аукцион и т.п.",192327.12,null,null,null,null,{"$f":"IF(Реестр_tb[[#This Row],[Срок оплаты (дней)]]=\"\",\"\",WORKDAY(Реестр_tb[[#This Row],[входящий (дата)]],Реестр_tb[[#This Row],[Срок оплаты (дней)]]+1,Выходные_tb[Выходные]))","v":""},null,{"$f":"IF(AND(Реестр_tb[[#This Row],[Оплачен]]=\"Да\",Реестр_tb[[#This Row],[Факт. дата оплаты]]<=Реестр_tb[[#This Row],[Плановая дата оплаты]]),\"Оплачено вовремя\",IF(AND(Реестр_tb[[#This Row],[Оплачен]]=\"Да\",Реестр_tb[[#This Row],[Факт. дата оплаты]]>Реестр_tb[[#This Row],[Плановая дата оплаты]]),\"Просрочено\",IF(AND(Реестр_tb[[#This Row],[Оплачен]]=\"Нет\",Реестр_tb[[#This Row],[Факт. дата оплаты]]=\"\",Реестр_tb[[#This Row],[Плановая дата оплаты]]<$AB$1),\"Просрочено\",IF(Реестр_tb[[#This Row],[Плановая дата оплаты]]=$AB$1,\"Сегодня\",IF(Реестр_tb[[#This Row],[Плановая дата оплаты]]<=$AB$1+7,\"В течении недели\",\"Через неделю и более\")))))","v":"Через неделю и более"},null,null,"Контракт № 2/2022 от 06.12.2021 г. на сумму 1 757 341,92 руб."]
["АО \" СахалинСельхозИнвест\"","Питание (областной бюджет) (молоко, 5-11,многодетные, ОВЗ)","молоко",{"$f":"IFERROR(VLOOKUP(Реестр_tb[[#This Row],[Подкатегория]],IF({1,0},Данные_tb[ЕД],Данные_tb[доп. код.]),2,0),\" \")","v":"Д62190"},{"$f":"IFERROR(VLOOKUP(Реестр_tb[[#This Row],[ДОПЫ]],IF({1,0},Данные_tb[доп. код.],Данные_tb[Источник]),2,0),\" \")","v":20},"Нет","1-10/03 - 1734 л","Молоко","аукцион и т.п.",172082.16,null,null,null,null,{"$f":"IF(Реестр_tb[[#This Row],[Срок оплаты (дней)]]=\"\",\"\",WORKDAY(Реестр_tb[[#This Row],[входящий (дата)]],Реестр_tb[[#This Row],[Срок оплаты (дней)]]+1,Выходные_tb[Выходные]))","v":""},null,{"$f":"IF(AND(Реестр_tb[[#This Row],[Оплачен]]=\"Да\",Реестр_tb[[#This Row],[Факт. дата оплаты]]<=Реестр_tb[[#This Row],[Плановая дата оплаты]]),\"Оплачено вовремя\",IF(AND(Реестр_tb[[#This Row],[Оплачен]]=\"Да\",Реестр_tb[[#This Row],[Факт. дата оплаты]]>Реестр_tb[[#This Row],[Плановая дата оплаты]]),\"Просрочено\",IF(AND(Реестр_tb[[#This Row],[Оплачен]]=\"Нет\",Реестр_tb[[#This Row],[Факт. дата оплаты]]=\"\",Реестр_tb[[#This Row],[Плановая дата оплаты]]<$AB$1),\"Просрочено\",IF(Реестр_tb[[#This Row],[Плановая дата оплаты]]=$AB$1,\"Сегодня\",IF(Реестр_tb[[#This Row],[Плановая дата оплаты]]<=$AB$1+7,\"В течении недели\",\"Через неделю и более\")))))","v":"Через неделю и более"},null,null,"Контракт № 2/2022 от 06.12.2021 г. на сумму 1 757 341,92 руб."]
["АО \" СахалинСельхозИнвест\"","Питание (областной бюджет) (молоко, 5-11,многодетные, ОВЗ)","молоко",{"$f":"IFERROR(VLOOKUP(Реестр_tb[[#This Row],[Подкатегория]],IF({1,0},Данные_tb[ЕД],Данные_tb[доп. код.]),2,0),\" \")","v":"Д62190"},{"$f":"IFERROR(VLOOKUP(Реестр_tb[[#This Row],[ДОПЫ]],IF({1,0},Данные_tb[доп. код.],Данные_tb[Источник]),2,0),\" \")","v":20},"Нет","1-10/04 - 2142","Молоко","аукцион и т.п.",212572.08,null,null,null,null,{"$f":"IF(Реестр_tb[[#This Row],[Срок оплаты (дней)]]=\"\",\"\",WORKDAY(Реестр_tb[[#This Row],[входящий (дата)]],Реестр_tb[[#This Row],[Срок оплаты (дней)]]+1,Выходные_tb[Выходные]))","v":""},null,{"$f":"IF(AND(Реестр_tb[[#This Row],[Оплачен]]=\"Да\",Реестр_tb[[#This Row],[Факт. дата оплаты]]<=Реестр_tb[[#This Row],[Плановая дата оплаты]]),\"Оплачено вовремя\",IF(AND(Реестр_tb[[#This Row],[Оплачен]]=\"Да\",Реестр_tb[[#This Row],[Факт. дата оплаты]]>Реестр_tb[[#This Row],[Плановая дата оплаты]]),\"Просрочено\",IF(AND(Реестр_tb[[#This Row],[Оплачен]]=\"Нет\",Реестр_tb[[#This Row],[Факт. дата оплаты]]=\"\",Реестр_tb[[#This Row],[Плановая дата оплаты]]<$AB$1),\"Просрочено\",IF(Реестр_tb[[#This Row],[Плановая дата оплаты]]=$AB$1,\"Сегодня\",IF(Реестр_tb[[#This Row],[Плановая дата оплаты]]<=$AB$1+7,\"В течении недели\",\"Через неделю и более\")))))","v":"Через неделю и более"},null,null,"Контракт № 2/2022 от 06.12.2021 г. на сумму 1 757 341,92 руб."]
["АО \" СахалинСельхозИнвест\"","Питание (областной бюджет) (молоко, 5-11,многодетные, ОВЗ)","молоко",{"$f":"IFERROR(VLOOKUP(Реестр_tb[[#This Row],[Подкатегория]],IF({1,0},Данные_tb[ЕД],Данные_tb[доп. код.]),2,0),\" \")","v":"Д62190"},{"$f":"IFERROR(VLOOKUP(Реестр_tb[[#This Row],[ДОПЫ]],IF({1,0},Данные_tb[доп. код.],Данные_tb[Источник]),2,0),\" \")","v":20},"Нет","1-10/05 - 1734 л","Молоко","аукцион и т.п.",172082.16,null,null,null,null,{"$f":"IF(Реестр_tb[[#This Row],[Срок оплаты (дней)]]=\"\",\"\",WORKDAY(Реестр_tb[[#This Row],[входящий (дата)]],Реестр_tb[[#This Row],[Срок оплаты (дней)]]+1,Выходные_tb[Выходные]))","v":""},null,{"$f":"IF(AND(Реестр_tb[[#This Row],[Оплачен]]=\"Да\",Реестр_tb[[#This Row],[Факт. дата оплаты]]<=Реестр_tb[[#This Row],[Плановая дата оплаты]]),\"Оплачено вовремя\",IF(AND(Реестр_tb[[#This Row],[Оплачен]]=\"Да\",Реестр_tb[[#This Row],[Факт. дата оплаты]]>Реестр_tb[[#This Row],[Плановая дата оплаты]]),\"Просрочено\",IF(AND(Реестр_tb[[#This Row],[Оплачен]]=\"Нет\",Реестр_tb[[#This Row],[Факт. дата оплаты]]=\"\",Реестр_tb[[#This Row],[Плановая дата оплаты]]<$AB$1),\"Просрочено\",IF(Реестр_tb[[#This Row],[Плановая дата оплаты]]=$AB$1,\"Сегодня\",IF(Реестр_tb[[#This Row],[Плановая дата оплаты]]<=$AB$1+7,\"В течении недели\",\"Через неделю и более\")))))","v":"Через неделю и более"},null,null,"Контракт № 2/2022 от 06.12.2021 г. на сумму 1 757 341,92 руб."]
["АО \" СахалинСельхозИнвест\"","Питание (областной бюджет) (молоко, 5-11,многодетные, ОВЗ)","молоко",{"$f":"IFERROR(VLOOKUP(Реестр_tb[[#This Row],[Подкатегория]],IF({1,0},Данные_tb[ЕД],Данные_tb[доп. код.]),2,0),\" \")","v":"Д62190"},{"$f":"IFERROR(VLOOKUP(Реестр_tb[[#This Row],[ДОПЫ]],IF({1,0},Данные_tb[доп. код.],Данные_tb[Источник]),2,0),\" \")","v":20},"Нет","20-30/08 - 2288 л","Молоко","аукцион и т.п.",227061.12,null,null,null,null,{"$f":"IF(Реестр_tb[[#This Row],[Срок оплаты (дней)]]=\"\",\"\",WORKDAY(Реестр_tb[[#This Row],[входящий (дата)]],Реестр_tb[[#This Row],[Срок оплаты (дней)]]+1,Выходные_tb[Выходные]))","v":""},null,{"$f":"IF(AND(Реестр_tb[[#This Row],[Оплачен]]=\"Да\",Реестр_tb[[#This Row],[Факт. дата оплаты]]<=Реестр_tb[[#This Row],[Плановая дата оплаты]]),\"Оплачено вовремя\",IF(AND(Реестр_tb[[#This Row],[Оплачен]]=\"Да\",Реестр_tb[[#This Row],[Факт. дата оплаты]]>Реестр_tb[[#This Row],[Плановая дата оплаты]]),\"Просрочено\",IF(AND(Реестр_tb[[#This Row],[Оплачен]]=\"Нет\",Реестр_tb[[#This Row],[Факт. дата оплаты]]=\"\",Реестр_tb[[#This Row],[Плановая дата оплаты]]<$AB$1),\"Просрочено\",IF(Реестр_tb[[#This Row],[Плановая дата оплаты]]=$AB$1,\"Сегодня\",IF(Реестр_tb[[#This Row],[Плановая дата оплаты]]<=$AB$1+7,\"В течении недели\",\"Через неделю и более\")))))","v":"Через неделю и более"},null,null,"Контракт № 2/2022 от 06.12.2021 г. на сумму 1 757 341,92 руб."]
["АО \" СахалинСельхозИнвест\"","Питание (областной бюджет) (молоко, 5-11,многодетные, ОВЗ)","молоко",{"$f":"IFERROR(VLOOKUP(Реестр_tb[[#This Row],[Подкатегория]],IF({1,0},Данные_tb[ЕД],Данные_tb[доп. код.]),2,0),\" \")","v":"Д62190"},{"$f":"IFERROR(VLOOKUP(Реестр_tb[[#This Row],[ДОПЫ]],IF({1,0},Данные_tb[доп. код.],Данные_tb[Источник]),2,0),\" \")","v":20},"Нет","1-10/10 - 2080 л","Молоко","аукцион и т.п.",206419.20000000001,null,null,null,null,{"$f":"IF(Реестр_tb[[#This Row],[Срок оплаты (дней)]]=\"\",\"\",WORKDAY(Реестр_tb[[#This Row],[входящий (дата)]],Реестр_tb[[#This Row],[Срок оплаты (дней)]]+1,Выходные_tb[Выходные]))","v":""},null,{"$f":"IF(AND(Реестр_tb[[#This Row],[Оплачен]]=\"Да\",Реестр_tb[[#This Row],[Факт. дата оплаты]]<=Реестр_tb[[#This Row],[Плановая дата оплаты]]),\"Оплачено вовремя\",IF(AND(Реестр_tb[[#This Row],[Оплачен]]=\"Да\",Реестр_tb[[#This Row],[Факт. дата оплаты]]>Реестр_tb[[#This Row],[Плановая дата оплаты]]),\"Просрочено\",IF(AND(Реестр_tb[[#This Row],[Оплачен]]=\"Нет\",Реестр_tb[[#This Row],[Факт. дата оплаты]]=\"\",Реестр_tb[[#This Row],[Плановая дата оплаты]]<$AB$1),\"Просрочено\",IF(Реестр_tb[[#This Row],[Плановая дата оплаты]]=$AB$1,\"Сегодня\",IF(Реестр_tb[[#This Row],[Плановая дата оплаты]]<=$AB$1+7,\"В течении недели\",\"Через неделю и более\")))))","v":"Через неделю и более"},null,null,"Контракт № 2/2022 от 06.12.2021 г. на сумму 1 757 341,92 руб."]
["АО \" СахалинСельхозИнвест\"","Питание (областной бюджет) (молоко, 5-11,многодетные, ОВЗ)","молоко",{"$f":"IFERROR(VLOOKUP(Реестр_tb[[#This Row],[Подкатегория]],IF({1,0},Данные_tb[ЕД],Данные_tb[доп. код.]),2,0),\" \")","v":"Д62190"},{"$f":"IFERROR(VLOOKUP(Реестр_tb[[#This Row],[ДОПЫ]],IF({1,0},Данные_tb[доп. код.],Данные_tb[Источник]),2,0),\" \")","v":20},"Нет","1-10/11 - 1872 л","Молоко","аукцион и т.п.",185777.28,null,null,null,null,{"$f":"IF(Реестр_tb[[#This Row],[Срок оплаты (дней)]]=\"\",\"\",WORKDAY(Реестр_tb[[#This Row],[входящий (дата)]],Реестр_tb[[#This Row],[Срок оплаты (дней)]]+1,Выходные_tb[Выходные]))","v":""},null,{"$f":"IF(AND(Реестр_tb[[#This Row],[Оплачен]]=\"Да\",Реестр_tb[[#This Row],[Факт. дата оплаты]]<=Реестр_tb[[#This Row],[Плановая дата оплаты]]),\"Оплачено вовремя\",IF(AND(Реестр_tb[[#This Row],[Оплачен]]=\"Да\",Реестр_tb[[#This Row],[Факт. дата оплаты]]>Реестр_tb[[#This Row],[Плановая дата оплаты]]),\"Просрочено\",IF(AND(Реестр_tb[[#This Row],[Оплачен]]=\"Нет\",Реестр_tb[[#This Row],[Факт. дата оплаты]]=\"\",Реестр_tb[[#This Row],[Плановая дата оплаты]]<$AB$1),\"Просрочено\",IF(Реестр_tb[[#This Row],[Плановая дата оплаты]]=$AB$1,\"Сегодня\",IF(Реестр_tb[[#This Row],[Плановая дата оплаты]]<=$AB$1+7,\"В течении недели\",\"Через неделю и более\")))))","v":"Через неделю и более"},null,null,"Контракт № 2/2022 от 06.12.2021 г. на сумму 1 757 341,92 руб."]
["АО \" СахалинСельхозИнвест\"","Питание (областной бюджет) (молоко, 5-11,многодетные, ОВЗ)","молоко",{"$f":"IFERROR(VLOOKUP(Реестр_tb[[#This Row],[Подкатегория]],IF({1,0},Данные_tb[ЕД],Данные_tb[доп. код.]),2,0),\" \")","v":"Д62190"},{"$f":"IFERROR(VLOOKUP(Реестр_tb[[#This Row],[ДОПЫ]],IF({1,0},Данные_tb[доп. код.],Данные_tb[Источник]),2,0),\" \")","v":20},"Нет","1-10/12 - 2288 л","Молоко","аукцион и т.п.",227061.12,null,null,null,null,{"$f":"IF(Реестр_tb[[#This Row],[Срок оплаты (дней)]]=\"\",\"\",WORKDAY(Реестр_tb[[#This Row],[входящий (дата)]],Реестр_tb[[#This Row],[Срок оплаты (дней)]]+1,Выходные_tb[Выходные]))","v":""},null,{"$f":"IF(AND(Реестр_tb[[#This Row],[Оплачен]]=\"Да\",Реестр_tb[[#This Row],[Факт. дата оплаты]]<=Реестр_tb[[#This Row],[Плановая дата оплаты]]),\"Оплачено вовремя\",IF(AND(Реестр_tb[[#This Row],[Оплачен]]=\"Да\",Реестр_tb[[#This Row],[Факт. дата оплаты]]>Реестр_tb[[#This Row],[Плановая дата оплаты]]),\"Просрочено\",IF(AND(Реестр_tb[[#This Row],[Оплачен]]=\"Нет\",Реестр_tb[[#This Row],[Факт. дата оплаты]]=\"\",Реестр_tb[[#This Row],[Плановая дата оплаты]]<$AB$1),\"Просрочено\",IF(Реестр_tb[[#This Row],[Плановая дата оплаты]]=$AB$1,\"Сегодня\",IF(Реестр_tb[[#This Row],[Плановая дата оплаты]]<=$AB$1+7,\"В течении недели\",\"Через неделю и более\")))))","v":"Через неделю и более"},null,null,"Контракт № 2/2022 от 06.12.2021 г. на сумму 1 757 341,92 руб."]
["ООО \"ОА \"Форт\"","охрана аукцион, ППБ, предписания","физическая охрана ",{"$f":"IFERROR(VLOOKUP(Реестр_tb[[#This Row],[Подкатегория]],IF({1,0},Данные_tb[ЕД],Данные_tb[доп. код.]),2,0),\" \")","v":"М0026"},{"$f":"IFERROR(VLOOKUP(Реестр_tb[[#This Row],[ДОПЫ]],IF({1,0},Данные_tb[доп. код.],Данные_tb[Источник]),2,0),\" \")","v":21},"Нет","744 ч / 199,47","Физическая охрана","аукцион и т.п.",148405.68,null,"31.01.22",15,"Акта",{"$f":"IF(Реестр_tb[[#This Row],[Срок оплаты (дней)]]=\"\",\"\",WORKDAY(Реестр_tb[[#This Row],[входящий (дата)]],Реестр_tb[[#This Row],[Срок оплаты (дней)]]+1,Выходные_tb[Выходные]))","v":"2022-02-22"},null,{"$f":"IF(AND(Реестр_tb[[#This Row],[Оплачен]]=\"Да\",Реестр_tb[[#This Row],[Факт. дата оплаты]]<=Реестр_tb[[#This Row],[Плановая дата оплаты]]),\"Оплачено вовремя\",IF(AND(Реестр_tb[[#This Row],[Оплачен]]=\"Да\",Реестр_tb[[#This Row],[Факт. дата оплаты]]>Реестр_tb[[#This Row],[Плановая дата оплаты]]),\"Просрочено\",IF(AND(Реестр_tb[[#This Row],[Оплачен]]=\"Нет\",Реестр_tb[[#This Row],[Факт. дата оплаты]]=\"\",Реестр_tb[[#This Row],[Плановая дата оплаты]]<$AB$1),\"Просрочено\",IF(Реестр_tb[[#This Row],[Плановая дата оплаты]]=$AB$1,\"Сегодня\",IF(Реестр_tb[[#This Row],[Плановая дата оплаты]]<=$AB$1+7,\"В течении недели\",\"Через неделю и более\")))))","v":"Через неделю и более"},"Полный расчет","Оригиналы","Контракт № 1/2022 от 22.11.2021 г. на сумму 1 747 334,91 руб."]
["ООО \"ОА \"Форт\"","охрана аукцион, ППБ, предписания","физическая охрана ",{"$f":"IFERROR(VLOOKUP(Реестр_tb[[#This Row],[Подкатегория]],IF({1,0},Данные_tb[ЕД],Данные_tb[доп. код.]),2,0),\" \")","v":"М0026"},{"$f":"IFERROR(VLOOKUP(Реестр_tb[[#This Row],[ДОПЫ]],IF({1,0},Данные_tb[доп. код.],Данные_tb[Источник]),2,0),\" \")","v":21},"Нет","672 ч / 199,47","Физическая охрана","аукцион и т.п.",134043.84,null,null,null,null,{"$f":"IF(Реестр_tb[[#This Row],[Срок оплаты (дней)]]=\"\",\"\",WORKDAY(Реестр_tb[[#This Row],[входящий (дата)]],Реестр_tb[[#This Row],[Срок оплаты (дней)]]+1,Выходные_tb[Выходные]))","v":""},null,{"$f":"IF(AND(Реестр_tb[[#This Row],[Оплачен]]=\"Да\",Реестр_tb[[#This Row],[Факт. дата оплаты]]<=Реестр_tb[[#This Row],[Плановая дата оплаты]]),\"Оплачено вовремя\",IF(AND(Реестр_tb[[#This Row],[Оплачен]]=\"Да\",Реестр_tb[[#This Row],[Факт. дата оплаты]]>Реестр_tb[[#This Row],[Плановая дата оплаты]]),\"Просрочено\",IF(AND(Реестр_tb[[#This Row],[Оплачен]]=\"Нет\",Реестр_tb[[#This Row],[Факт. дата оплаты]]=\"\",Реестр_tb[[#This Row],[Плановая дата оплаты]]<$AB$1),\"Просрочено\",IF(Реестр_tb[[#This Row],[Плановая дата оплаты]]=$AB$1,\"Сегодня\",IF(Реестр_tb[[#This Row],[Плановая дата оплаты]]<=$AB$1+7,\"В течении недели\",\"Через неделю и более\")))))","v":"Через неделю и более"},null,null,"Контракт № 1/2022 от 22.11.2021 г. на сумму 1 747 334,91 руб."]
["ООО \"ОА \"Форт\"","охрана аукцион, ППБ, предписания","физическая охрана ",{"$f":"IFERROR(VLOOKUP(Реестр_tb[[#This Row],[Подкатегория]],IF({1,0},Данные_tb[ЕД],Данные_tb[доп. код.]),2,0),\" \")","v":"М0026"},{"$f":"IFERROR(VLOOKUP(Реестр_tb[[#This Row],[ДОПЫ]],IF({1,0},Данные_tb[доп. код.],Данные_tb[Источник]),2,0),\" \")","v":21},"Нет","744 ч / 199,47","Физическая охрана","аукцион и т.п.",148405.68,null,null,null,null,{"$f":"IF(Реестр_tb[[#This Row],[Срок оплаты (дней)]]=\"\",\"\",WORKDAY(Реестр_tb[[#This Row],[входящий (дата)]],Реестр_tb[[#This Row],[Срок оплаты (дней)]]+1,Выходные_tb[Выходные]))","v":""},null,{"$f":"IF(AND(Реестр_tb[[#This Row],[Оплачен]]=\"Да\",Реестр_tb[[#This Row],[Факт. дата оплаты]]<=Реестр_tb[[#This Row],[Плановая дата оплаты]]),\"Оплачено вовремя\",IF(AND(Реестр_tb[[#This Row],[Оплачен]]=\"Да\",Реестр_tb[[#This Row],[Факт. дата оплаты]]>Реестр_tb[[#This Row],[Плановая дата оплаты]]),\"Просрочено\",IF(AND(Реестр_tb[[#This Row],[Оплачен]]=\"Нет\",Реестр_tb[[#This Row],[Факт. дата оплаты]]=\"\",Реестр_tb[[#This Row],[Плановая дата оплаты]]<$AB$1),\"Просрочено\",IF(Реестр_tb[[#This Row],[Плановая дата оплаты]]=$AB$1,\"Сегодня\",IF(Реестр_tb[[#This Row],[Плановая дата оплаты]]<=$AB$1+7,\"В течении недели\",\"Через неделю и более\")))))","v":"Через неделю и более"},null,null,"Контракт № 1/2022 от 22.11.2021 г. на сумму 1 747 334,91 руб."]
["ООО \"ОА \"Форт\"","охрана аукцион, ППБ, предписания","физическая охрана ",{"$f":"IFERROR(VLOOKUP(Реестр_tb[[#This Row],[Подкатегория]],IF({1,0},Данные_tb[ЕД],Данные_tb[доп. код.]),2,0),\" \")","v":"М0026"},{"$f":"IFERROR(VLOOKUP(Реестр_tb[[#This Row],[ДОПЫ]],IF({1,0},Данные_tb[доп. код.],Данные_tb[Источник]),2,0),\" \")","v":21},"Нет","720 ч / 199,47","Физическая охрана","аукцион и т.п.",143618.4,null,null,null,null,{"$f":"IF(Реестр_tb[[#This Row],[Срок оплаты (дней)]]=\"\",\"\",WORKDAY(Реестр_tb[[#This Row],[входящий (дата)]],Реестр_tb[[#This Row],[Срок оплаты (дней)]]+1,Выходные_tb[Выходные]))","v":""},null,{"$f":"IF(AND(Реестр_tb[[#This Row],[Оплачен]]=\"Да\",Реестр_tb[[#This Row],[Факт. дата оплаты]]<=Реестр_tb[[#This Row],[Плановая дата оплаты]]),\"Оплачено вовремя\",IF(AND(Реестр_tb[[#This Row],[Оплачен]]=\"Да\",Реестр_tb[[#This Row],[Факт. дата оплаты]]>Реестр_tb[[#This Row],[Плановая дата оплаты]]),\"Просрочено\",IF(AND(Реестр_tb[[#This Row],[Оплачен]]=\"Нет\",Реестр_tb[[#This Row],[Факт. дата оплаты]]=\"\",Реестр_tb[[#This Row],[Плановая дата оплаты]]<$AB$1),\"Просрочено\",IF(Реестр_tb[[#This Row],[Плановая дата оплаты]]=$AB$1,\"Сегодня\",IF(Реестр_tb[[#This Row],[Плановая дата оплаты]]<=$AB$1+7,\"В течении недели\",\"Через неделю и более\")))))","v":"Через неделю и более"},null,null,"Контракт № 1/2022 от 22.11.2021 г. на сумму 1 747 334,91 руб."]
["ООО \"ОА \"Форт\"","охрана аукцион, ППБ, предписания","физическая охрана ",{"$f":"IFERROR(VLOOKUP(Реестр_tb[[#This Row],[Подкатегория]],IF({1,0},Данные_tb[ЕД],Данные_tb[доп. код.]),2,0),\" \")","v":"М0026"},{"$f":"IFERROR(VLOOKUP(Реестр_tb[[#This Row],[ДОПЫ]],IF({1,0},Данные_tb[доп. код.],Данные_tb[Источник]),2,0),\" \")","v":21},"Нет","744 ч / 199,47","Физическая охрана","аукцион и т.п.",148405.68,null,null,null,null,{"$f":"IF(Реестр_tb[[#This Row],[Срок оплаты (дней)]]=\"\",\"\",WORKDAY(Реестр_tb[[#This Row],[входящий (дата)]],Реестр_tb[[#This Row],[Срок оплаты (дней)]]+1,Выходные_tb[Выходные]))","v":""},null,{"$f":"IF(AND(Реестр_tb[[#This Row],[Оплачен]]=\"Да\",Реестр_tb[[#This Row],[Факт. дата оплаты]]<=Реестр_tb[[#This Row],[Плановая дата оплаты]]),\"Оплачено вовремя\",IF(AND(Реестр_tb[[#This Row],[Оплачен]]=\"Да\",Реестр_tb[[#This Row],[Факт. дата оплаты]]>Реестр_tb[[#This Row],[Плановая дата оплаты]]),\"Просрочено\",IF(AND(Реестр_tb[[#This Row],[Оплачен]]=\"Нет\",Реестр_tb[[#This Row],[Факт. дата оплаты]]=\"\",Реестр_tb[[#This Row],[Плановая дата оплаты]]<$AB$1),\"Просрочено\",IF(Реестр_tb[[#This Row],[Плановая дата оплаты]]=$AB$1,\"Сегодня\",IF(Реестр_tb[[#This Row],[Плановая дата оплаты]]<=$AB$1+7,\"В течении недели\",\"Через неделю и более\")))))","v":"Через неделю и более"},null,null,"Контракт № 1/2022 от 22.11.2021 г. на сумму 1 747 334,91 руб."]
["ООО \"ОА \"Форт\"","охрана аукцион, ППБ, предписания","физическая охрана ",{"$f":"IFERROR(VLOOKUP(Реестр_tb[[#This Row],[Подкатегория]],IF({1,0},Данные_tb[ЕД],Данные_tb[доп. код.]),2,0),\" \")","v":"М0026"},{"$f":"IFERROR(VLOOKUP(Реестр_tb[[#This Row],[ДОПЫ]],IF({1,0},Данные_tb[доп. код.],Данные_tb[Источник]),2,0),\" \")","v":21},"Нет","720 ч / 199,47","Физическая охрана","аукцион и т.п.",143618.4,null,null,null,null,{"$f":"IF(Реестр_tb[[#This Row],[Срок оплаты (дней)]]=\"\",\"\",WORKDAY(Реестр_tb[[#This Row],[входящий (дата)]],Реестр_tb[[#This Row],[Срок оплаты (дней)]]+1,Выходные_tb[Выходные]))","v":""},null,{"$f":"IF(AND(Реестр_tb[[#This Row],[Оплачен]]=\"Да\",Реестр_tb[[#This Row],[Факт. дата оплаты]]<=Реестр_tb[[#This Row],[Плановая дата оплаты]]),\"Оплачено вовремя\",IF(AND(Реестр_tb[[#This Row],[Оплачен]]=\"Да\",Реестр_tb[[#This Row],[Факт. дата оплаты]]>Реестр_tb[[#This Row],[Плановая дата оплаты]]),\"Просрочено\",IF(AND(Реестр_tb[[#This Row],[Оплачен]]=\"Нет\",Реестр_tb[[#This Row],[Факт. дата оплаты]]=\"\",Реестр_tb[[#This Row],[Плановая дата оплаты]]<$AB$1),\"Просрочено\",IF(Реестр_tb[[#This Row],[Плановая дата оплаты]]=$AB$1,\"Сегодня\",IF(Реестр_tb[[#This Row],[Плановая дата оплаты]]<=$AB$1+7,\"В течении недели\",\"Через неделю и более\")))))","v":"Через неделю и более"},null,null,"Контракт № 1/2022 от 22.11.2021 г. на сумму 1 747 334,91 руб."]
["ООО \"ОА \"Форт\"","охрана аукцион, ППБ, предписания","физическая охрана ",{"$f":"IFERROR(VLOOKUP(Реестр_tb[[#This Row],[Подкатегория]],IF({1,0},Данные_tb[ЕД],Данные_tb[доп. код.]),2,0),\" \")","v":"М0026"},{"$f":"IFERROR(VLOOKUP(Реестр_tb[[#This Row],[ДОПЫ]],IF({1,0},Данные_tb[доп. код.],Данные_tb[Источник]),2,0),\" \")","v":21},"Нет","744 ч / 199,47","Физическая охрана","аукцион и т.п.",148405.68,null,null,null,null,{"$f":"IF(Реестр_tb[[#This Row],[Срок оплаты (дней)]]=\"\",\"\",WORKDAY(Реестр_tb[[#This Row],[входящий (дата)]],Реестр_tb[[#This Row],[Срок оплаты (дней)]]+1,Выходные_tb[Выходные]))","v":""},null,{"$f":"IF(AND(Реестр_tb[[#This Row],[Оплачен]]=\"Да\",Реестр_tb[[#This Row],[Факт. дата оплаты]]<=Реестр_tb[[#This Row],[Плановая дата оплаты]]),\"Оплачено вовремя\",IF(AND(Реестр_tb[[#This Row],[Оплачен]]=\"Да\",Реестр_tb[[#This Row],[Факт. дата оплаты]]>Реестр_tb[[#This Row],[Плановая дата оплаты]]),\"Просрочено\",IF(AND(Реестр_tb[[#This Row],[Оплачен]]=\"Нет\",Реестр_tb[[#This Row],[Факт. дата оплаты]]=\"\",Реестр_tb[[#This Row],[Плановая дата оплаты]]<$AB$1),\"Просрочено\",IF(Реестр_tb[[#This Row],[Плановая дата оплаты]]=$AB$1,\"Сегодня\",IF(Реестр_tb[[#This Row],[Плановая дата оплаты]]<=$AB$1+7,\"В течении недели\",\"Через неделю и более\")))))","v":"Через неделю и более"},null,null,"Контракт № 1/2022 от 22.11.2021 г. на сумму 1 747 334,91 руб."]
["ООО \"ОА \"Форт\"","охрана аукцион, ППБ, предписания","физическая охрана ",{"$f":"IFERROR(VLOOKUP(Реестр_tb[[#This Row],[Подкатегория]],IF({1,0},Данные_tb[ЕД],Данные_tb[доп. код.]),2,0),\" \")","v":"М0026"},{"$f":"IFERROR(VLOOKUP(Реестр_tb[[#This Row],[ДОПЫ]],IF({1,0},Данные_tb[доп. код.],Данные_tb[Источник]),2,0),\" \")","v":21},"Нет","744 ч / 199,47","Физическая охрана","аукцион и т.п.",148405.68,null,null,null,null,{"$f":"IF(Реестр_tb[[#This Row],[Срок оплаты (дней)]]=\"\",\"\",WORKDAY(Реестр_tb[[#This Row],[входящий (дата)]],Реестр_tb[[#This Row],[Срок оплаты (дней)]]+1,Выходные_tb[Выходные]))","v":""},null,{"$f":"IF(AND(Реестр_tb[[#This Row],[Оплачен]]=\"Да\",Реестр_tb[[#This Row],[Факт. дата оплаты]]<=Реестр_tb[[#This Row],[Плановая дата оплаты]]),\"Оплачено вовремя\",IF(AND(Реестр_tb[[#This Row],[Оплачен]]=\"Да\",Реестр_tb[[#This Row],[Факт. дата оплаты]]>Реестр_tb[[#This Row],[Плановая дата оплаты]]),\"Просрочено\",IF(AND(Реестр_tb[[#This Row],[Оплачен]]=\"Нет\",Реестр_tb[[#This Row],[Факт. дата оплаты]]=\"\",Реестр_tb[[#This Row],[Плановая дата оплаты]]<$AB$1),\"Просрочено\",IF(Реестр_tb[[#This Row],[Плановая дата оплаты]]=$AB$1,\"Сегодня\",IF(Реестр_tb[[#This Row],[Плановая дата оплаты]]<=$AB$1+7,\"В течении недели\",\"Через неделю и более\")))))","v":"Через неделю и более"},null,null,"Контракт № 1/2022 от 22.11.2021 г. на сумму 1 747 334,91 руб."]
["ООО \"ОА \"Форт\"","охрана аукцион, ППБ, предписания","физическая охрана ",{"$f":"IFERROR(VLOOKUP(Реестр_tb[[#This Row],[Подкатегория]],IF({1,0},Данные_tb[ЕД],Данные_tb[доп. код.]),2,0),\" \")","v":"М0026"},{"$f":"IFERROR(VLOOKUP(Реестр_tb[[#This Row],[ДОПЫ]],IF({1,0},Данные_tb[доп. код.],Данные_tb[Источник]),2,0),\" \")","v":21},"Нет","720 ч / 199,47","Физическая охрана","аукцион и т.п.",143618.4,null,null,null,null,{"$f":"IF(Реестр_tb[[#This Row],[Срок оплаты (дней)]]=\"\",\"\",WORKDAY(Реестр_tb[[#This Row],[входящий (дата)]],Реестр_tb[[#This Row],[Срок оплаты (дней)]]+1,Выходные_tb[Выходные]))","v":""},null,{"$f":"IF(AND(Реестр_tb[[#This Row],[Оплачен]]=\"Да\",Реестр_tb[[#This Row],[Факт. дата оплаты]]<=Реестр_tb[[#This Row],[Плановая дата оплаты]]),\"Оплачено вовремя\",IF(AND(Реестр_tb[[#This Row],[Оплачен]]=\"Да\",Реестр_tb[[#This Row],[Факт. дата оплаты]]>Реестр_tb[[#This Row],[Плановая дата оплаты]]),\"Просрочено\",IF(AND(Реестр_tb[[#This Row],[Оплачен]]=\"Нет\",Реестр_tb[[#This Row],[Факт. дата оплаты]]=\"\",Реестр_tb[[#This Row],[Плановая дата оплаты]]<$AB$1),\"Просрочено\",IF(Реестр_tb[[#This Row],[Плановая дата оплаты]]=$AB$1,\"Сегодня\",IF(Реестр_tb[[#This Row],[Плановая дата оплаты]]<=$AB$1+7,\"В течении недели\",\"Через неделю и более\")))))","v":"Через неделю и более"},null,null,"Контракт № 1/2022 от 22.11.2021 г. на сумму 1 747 334,91 руб."]
["ООО \"ОА \"Форт\"","охрана аукцион, ППБ, предписания","физическая охрана ",{"$f":"IFERROR(VLOOKUP(Реестр_tb[[#This Row],[Подкатегория]],IF({1,0},Данные_tb[ЕД],Данные_tb[доп. код.]),2,0),\" \")","v":"М0026"},{"$f":"IFERROR(VLOOKUP(Реестр_tb[[#This Row],[ДОПЫ]],IF({1,0},Данные_tb[доп. код.],Данные_tb[Источник]),2,0),\" \")","v":21},"Нет","744 ч / 199,47","Физическая охрана","аукцион и т.п.",148405.68,null,null,null,null,{"$f":"IF(Реестр_tb[[#This Row],[Срок оплаты (дней)]]=\"\",\"\",WORKDAY(Реестр_tb[[#This Row],[входящий (дата)]],Реестр_tb[[#This Row],[Срок оплаты (дней)]]+1,Выходные_tb[Выходные]))","v":""},null,{"$f":"IF(AND(Реестр_tb[[#This Row],[Оплачен]]=\"Да\",Реестр_tb[[#This Row],[Факт. дата оплаты]]<=Реестр_tb[[#This Row],[Плановая дата оплаты]]),\"Оплачено вовремя\",IF(AND(Реестр_tb[[#This Row],[Оплачен]]=\"Да\",Реестр_tb[[#This Row],[Факт. дата оплаты]]>Реестр_tb[[#This Row],[Плановая дата оплаты]]),\"Просрочено\",IF(AND(Реестр_tb[[#This Row],[Оплачен]]=\"Нет\",Реестр_tb[[#This Row],[Факт. дата оплаты]]=\"\",Реестр_tb[[#This Row],[Плановая дата оплаты]]<$AB$1),\"Просрочено\",IF(Реестр_tb[[#This Row],[Плановая дата оплаты]]=$AB$1,\"Сегодня\",IF(Реестр_tb[[#This Row],[Плановая дата оплаты]]<=$AB$1+7,\"В течении недели\",\"Через неделю и более\")))))","v":"Через неделю и более"},null,null,"Контракт № 1/2022 от 22.11.2021 г. на сумму 1 747 334,91 руб."]
["ООО \"ОА \"Форт\"","охрана аукцион, ППБ, предписания","физическая охрана ",{"$f":"IFERROR(VLOOKUP(Реестр_tb[[#This Row],[Подкатегория]],IF({1,0},Данные_tb[ЕД],Данные_tb[доп. код.]),2,0),\" \")","v":"М0026"},{"$f":"IFERROR(VLOOKUP(Реестр_tb[[#This Row],[ДОПЫ]],IF({1,0},Данные_tb[доп. код.],Данные_tb[Источник]),2,0),\" \")","v":21},"Нет","720 ч / 199,47","Физическая охрана","аукцион и т.п.",143596.10999999999,null,null,null,null,{"$f":"IF(Реестр_tb[[#This Row],[Срок оплаты (дней)]]=\"\",\"\",WORKDAY(Реестр_tb[[#This Row],[входящий (дата)]],Реестр_tb[[#This Row],[Срок оплаты (дней)]]+1,Выходные_tb[Выходные]))","v":""},null,{"$f":"IF(AND(Реестр_tb[[#This Row],[Оплачен]]=\"Да\",Реестр_tb[[#This Row],[Факт. дата оплаты]]<=Реестр_tb[[#This Row],[Плановая дата оплаты]]),\"Оплачено вовремя\",IF(AND(Реестр_tb[[#This Row],[Оплачен]]=\"Да\",Реестр_tb[[#This Row],[Факт. дата оплаты]]>Реестр_tb[[#This Row],[Плановая дата оплаты]]),\"Просрочено\",IF(AND(Реестр_tb[[#This Row],[Оплачен]]=\"Нет\",Реестр_tb[[#This Row],[Факт. дата оплаты]]=\"\",Реестр_tb[[#This Row],[Плановая дата оплаты]]<$AB$1),\"Просрочено\",IF(Реестр_tb[[#This Row],[Плановая дата оплаты]]=$AB$1,\"Сегодня\",IF(Реестр_tb[[#This Row],[Плановая дата оплаты]]<=$AB$1+7,\"В течении недели\",\"Через неделю и более\")))))","v":"Через неделю и более"},null,null,"Контракт № 1/2022 от 22.11.2021 г. на сумму 1 747 334,91 руб."]
["ООО \"ОА \"Форт\"","охрана аукцион, ППБ, предписания","физическая охрана ",{"$f":"IFERROR(VLOOKUP(Реестр_tb[[#This Row],[Подкатегория]],IF({1,0},Данные_tb[ЕД],Данные_tb[доп. код.]),2,0),\" \")","v":"М0026"},{"$f":"IFERROR(VLOOKUP(Реестр_tb[[#This Row],[ДОПЫ]],IF({1,0},Данные_tb[доп. код.],Данные_tb[Источник]),2,0),\" \")","v":21},"Нет","744 ч / 199,47","Физическая охрана","аукцион и т.п.",148405.68,null,null,null,null,{"$f":"IF(Реестр_tb[[#This Row],[Срок оплаты (дней)]]=\"\",\"\",WORKDAY(Реестр_tb[[#This Row],[входящий (дата)]],Реестр_tb[[#This Row],[Срок оплаты (дней)]]+1,Выходные_tb[Выходные]))","v":""},null,{"$f":"IF(AND(Реестр_tb[[#This Row],[Оплачен]]=\"Да\",Реестр_tb[[#This Row],[Факт. дата оплаты]]<=Реестр_tb[[#This Row],[Плановая дата оплаты]]),\"Оплачено вовремя\",IF(AND(Реестр_tb[[#This Row],[Оплачен]]=\"Да\",Реестр_tb[[#This Row],[Факт. дата оплаты]]>Реестр_tb[[#This Row],[Плановая дата оплаты]]),\"Просрочено\",IF(AND(Реестр_tb[[#This Row],[Оплачен]]=\"Нет\",Реестр_tb[[#This Row],[Факт. дата оплаты]]=\"\",Реестр_tb[[#This Row],[Плановая дата оплаты]]<$AB$1),\"Просрочено\",IF(Реестр_tb[[#This Row],[Плановая дата оплаты]]=$AB$1,\"Сегодня\",IF(Реестр_tb[[#This Row],[Плановая дата оплаты]]<=$AB$1+7,\"В течении недели\",\"Через неделю и более\")))))","v":"Через неделю и более"},null,null,"Контракт № 1/2022 от 22.11.2021 г. на сумму 1 747 334,91 руб."]
["ООО \"Координата\"","Муниципальное задание","мониторинг системы пожарной безопасности (Координата)",{"$f":"IFERROR(VLOOKUP(Реестр_tb[[#This Row],[Подкатегория]],IF({1,0},Данные_tb[ЕД],Данные_tb[доп. код.]),2,0),\" \")","v":4},{"$f":"IFERROR(VLOOKUP(Реестр_tb[[#This Row],[ДОПЫ]],IF({1,0},Данные_tb[доп. код.],Данные_tb[Источник]),2,0),\" \")","v":20},"Нет","139 от 31.01.22","Координата (мониторинг)",5,2500,null,null,null,null,{"$f":"IF(Реестр_tb[[#This Row],[Срок оплаты (дней)]]=\"\",\"\",WORKDAY(Реестр_tb[[#This Row],[входящий (дата)]],Реестр_tb[[#This Row],[Срок оплаты (дней)]]+1,Выходные_tb[Выходные]))","v":""},null,{"$f":"IF(AND(Реестр_tb[[#This Row],[Оплачен]]=\"Да\",Реестр_tb[[#This Row],[Факт. дата оплаты]]<=Реестр_tb[[#This Row],[Плановая дата оплаты]]),\"Оплачено вовремя\",IF(AND(Реестр_tb[[#This Row],[Оплачен]]=\"Да\",Реестр_tb[[#This Row],[Факт. дата оплаты]]>Реестр_tb[[#This Row],[Плановая дата оплаты]]),\"Просрочено\",IF(AND(Реестр_tb[[#This Row],[Оплачен]]=\"Нет\",Реестр_tb[[#This Row],[Факт. дата оплаты]]=\"\",Реестр_tb[[#This Row],[Плановая дата оплаты]]<$AB$1),\"Просрочено\",IF(Реестр_tb[[#This Row],[Плановая дата оплаты]]=$AB$1,\"Сегодня\",IF(Реестр_tb[[#This Row],[Плановая дата оплаты]]<=$AB$1+7,\"В течении недели\",\"Через неделю и более\")))))","v":"Через неделю и более"},"Полный расчет","Оригиналы","Контракт № 85/22 от ххх на сумму 30 000,00 рублей (БО на сумму 30 000,00 руб.)"]
["ООО \"Координата\"","Муниципальное задание","мониторинг системы пожарной безопасности (Координата)",{"$f":"IFERROR(VLOOKUP(Реестр_tb[[#This Row],[Подкатегория]],IF({1,0},Данные_tb[ЕД],Данные_tb[доп. код.]),2,0),\" \")","v":4},{"$f":"IFERROR(VLOOKUP(Реестр_tb[[#This Row],[ДОПЫ]],IF({1,0},Данные_tb[доп. код.],Данные_tb[Источник]),2,0),\" \")","v":20},"Нет","февраль","Координата (мониторинг)",5,2500,null,null,null,null,{"$f":"IF(Реестр_tb[[#This Row],[Срок оплаты (дней)]]=\"\",\"\",WORKDAY(Реестр_tb[[#This Row],[входящий (дата)]],Реестр_tb[[#This Row],[Срок оплаты (дней)]]+1,Выходные_tb[Выходные]))","v":""},null,{"$f":"IF(AND(Реестр_tb[[#This Row],[Оплачен]]=\"Да\",Реестр_tb[[#This Row],[Факт. дата оплаты]]<=Реестр_tb[[#This Row],[Плановая дата оплаты]]),\"Оплачено вовремя\",IF(AND(Реестр_tb[[#This Row],[Оплачен]]=\"Да\",Реестр_tb[[#This Row],[Факт. дата оплаты]]>Реестр_tb[[#This Row],[Плановая дата оплаты]]),\"Просрочено\",IF(AND(Реестр_tb[[#This Row],[Оплачен]]=\"Нет\",Реестр_tb[[#This Row],[Факт. дата оплаты]]=\"\",Реестр_tb[[#This Row],[Плановая дата оплаты]]<$AB$1),\"Просрочено\",IF(Реестр_tb[[#This Row],[Плановая дата оплаты]]=$AB$1,\"Сегодня\",IF(Реестр_tb[[#This Row],[Плановая дата оплаты]]<=$AB$1+7,\"В течении недели\",\"Через неделю и более\")))))","v":"Через неделю и более"},null,null,"Контракт № 85/22 от ххх на сумму 30 000,00 рублей (БО на сумму 30 000,00 руб.)"]
["ООО \"Координата\"","Муниципальное задание","мониторинг системы пожарной безопасности (Координата)",{"$f":"IFERROR(VLOOKUP(Реестр_tb[[#This Row],[Подкатегория]],IF({1,0},Данные_tb[ЕД],Данные_tb[доп. код.]),2,0),\" \")","v":4},{"$f":"IFERROR(VLOOKUP(Реестр_tb[[#This Row],[ДОПЫ]],IF({1,0},Данные_tb[доп. код.],Данные_tb[Источник]),2,0),\" \")","v":20},"Нет","март","Координата (мониторинг)",5,2500,null,null,null,null,{"$f":"IF(Реестр_tb[[#This Row],[Срок оплаты (дней)]]=\"\",\"\",WORKDAY(Реестр_tb[[#This Row],[входящий (дата)]],Реестр_tb[[#This Row],[Срок оплаты (дней)]]+1,Выходные_tb[Выходные]))","v":""},null,{"$f":"IF(AND(Реестр_tb[[#This Row],[Оплачен]]=\"Да\",Реестр_tb[[#This Row],[Факт. дата оплаты]]<=Реестр_tb[[#This Row],[Плановая дата оплаты]]),\"Оплачено вовремя\",IF(AND(Реестр_tb[[#This Row],[Оплачен]]=\"Да\",Реестр_tb[[#This Row],[Факт. дата оплаты]]>Реестр_tb[[#This Row],[Плановая дата оплаты]]),\"Просрочено\",IF(AND(Реестр_tb[[#This Row],[Оплачен]]=\"Нет\",Реестр_tb[[#This Row],[Факт. дата оплаты]]=\"\",Реестр_tb[[#This Row],[Плановая дата оплаты]]<$AB$1),\"Просрочено\",IF(Реестр_tb[[#This Row],[Плановая дата оплаты]]=$AB$1,\"Сегодня\",IF(Реестр_tb[[#This Row],[Плановая дата оплаты]]<=$AB$1+7,\"В течении недели\",\"Через неделю и более\")))))","v":"Через неделю и более"},null,null,"Контракт № 85/22 от ххх на сумму 30 000,00 рублей (БО на сумму 30 000,00 руб.)"]
["ООО \"Координата\"","Муниципальное задание","мониторинг системы пожарной безопасности (Координата)",{"$f":"IFERROR(VLOOKUP(Реестр_tb[[#This Row],[Подкатегория]],IF({1,0},Данные_tb[ЕД],Данные_tb[доп. код.]),2,0),\" \")","v":4},{"$f":"IFERROR(VLOOKUP(Реестр_tb[[#This Row],[ДОПЫ]],IF({1,0},Данные_tb[доп. код.],Данные_tb[Источник]),2,0),\" \")","v":20},"Нет","апрель","Координата (мониторинг)",5,2500,null,null,null,null,{"$f":"IF(Реестр_tb[[#This Row],[Срок оплаты (дней)]]=\"\",\"\",WORKDAY(Реестр_tb[[#This Row],[входящий (дата)]],Реестр_tb[[#This Row],[Срок оплаты (дней)]]+1,Выходные_tb[Выходные]))","v":""},null,{"$f":"IF(AND(Реестр_tb[[#This Row],[Оплачен]]=\"Да\",Реестр_tb[[#This Row],[Факт. дата оплаты]]<=Реестр_tb[[#This Row],[Плановая дата оплаты]]),\"Оплачено вовремя\",IF(AND(Реестр_tb[[#This Row],[Оплачен]]=\"Да\",Реестр_tb[[#This Row],[Факт. дата оплаты]]>Реестр_tb[[#This Row],[Плановая дата оплаты]]),\"Просрочено\",IF(AND(Реестр_tb[[#This Row],[Оплачен]]=\"Нет\",Реестр_tb[[#This Row],[Факт. дата оплаты]]=\"\",Реестр_tb[[#This Row],[Плановая дата оплаты]]<$AB$1),\"Просрочено\",IF(Реестр_tb[[#This Row],[Плановая дата оплаты]]=$AB$1,\"Сегодня\",IF(Реестр_tb[[#This Row],[Плановая дата оплаты]]<=$AB$1+7,\"В течении недели\",\"Через неделю и более\")))))","v":"Через неделю и более"},null,null,"Контракт № 85/22 от ххх на сумму 30 000,00 рублей (БО на сумму 30 000,00 руб.)"]
["ООО \"Координата\"","Муниципальное задание","мониторинг системы пожарной безопасности (Координата)",{"$f":"IFERROR(VLOOKUP(Реестр_tb[[#This Row],[Подкатегория]],IF({1,0},Данные_tb[ЕД],Данные_tb[доп. код.]),2,0),\" \")","v":4},{"$f":"IFERROR(VLOOKUP(Реестр_tb[[#This Row],[ДОПЫ]],IF({1,0},Данные_tb[доп. код.],Данные_tb[Источник]),2,0),\" \")","v":20},"Нет","май","Координата (мониторинг)",5,2500,null,null,null,null,{"$f":"IF(Реестр_tb[[#This Row],[Срок оплаты (дней)]]=\"\",\"\",WORKDAY(Реестр_tb[[#This Row],[входящий (дата)]],Реестр_tb[[#This Row],[Срок оплаты (дней)]]+1,Выходные_tb[Выходные]))","v":""},null,{"$f":"IF(AND(Реестр_tb[[#This Row],[Оплачен]]=\"Да\",Реестр_tb[[#This Row],[Факт. дата оплаты]]<=Реестр_tb[[#This Row],[Плановая дата оплаты]]),\"Оплачено вовремя\",IF(AND(Реестр_tb[[#This Row],[Оплачен]]=\"Да\",Реестр_tb[[#This Row],[Факт. дата оплаты]]>Реестр_tb[[#This Row],[Плановая дата оплаты]]),\"Просрочено\",IF(AND(Реестр_tb[[#This Row],[Оплачен]]=\"Нет\",Реестр_tb[[#This Row],[Факт. дата оплаты]]=\"\",Реестр_tb[[#This Row],[Плановая дата оплаты]]<$AB$1),\"Просрочено\",IF(Реестр_tb[[#This Row],[Плановая дата оплаты]]=$AB$1,\"Сегодня\",IF(Реестр_tb[[#This Row],[Плановая дата оплаты]]<=$AB$1+7,\"В течении недели\",\"Через неделю и более\")))))","v":"Через неделю и более"},null,null,"Контракт № 85/22 от ххх на сумму 30 000,00 рублей (БО на сумму 30 000,00 руб.)"]
["ООО \"Координата\"","Муниципальное задание","мониторинг системы пожарной безопасности (Координата)",{"$f":"IFERROR(VLOOKUP(Реестр_tb[[#This Row],[Подкатегория]],IF({1,0},Данные_tb[ЕД],Данные_tb[доп. код.]),2,0),\" \")","v":4},{"$f":"IFERROR(VLOOKUP(Реестр_tb[[#This Row],[ДОПЫ]],IF({1,0},Данные_tb[доп. код.],Данные_tb[Источник]),2,0),\" \")","v":20},"Нет","июнь","Координата (мониторинг)",5,2500,null,null,null,null,{"$f":"IF(Реестр_tb[[#This Row],[Срок оплаты (дней)]]=\"\",\"\",WORKDAY(Реестр_tb[[#This Row],[входящий (дата)]],Реестр_tb[[#This Row],[Срок оплаты (дней)]]+1,Выходные_tb[Выходные]))","v":""},null,{"$f":"IF(AND(Реестр_tb[[#This Row],[Оплачен]]=\"Да\",Реестр_tb[[#This Row],[Факт. дата оплаты]]<=Реестр_tb[[#This Row],[Плановая дата оплаты]]),\"Оплачено вовремя\",IF(AND(Реестр_tb[[#This Row],[Оплачен]]=\"Да\",Реестр_tb[[#This Row],[Факт. дата оплаты]]>Реестр_tb[[#This Row],[Плановая дата оплаты]]),\"Просрочено\",IF(AND(Реестр_tb[[#This Row],[Оплачен]]=\"Нет\",Реестр_tb[[#This Row],[Факт. дата оплаты]]=\"\",Реестр_tb[[#This Row],[Плановая дата оплаты]]<$AB$1),\"Просрочено\",IF(Реестр_tb[[#This Row],[Плановая дата оплаты]]=$AB$1,\"Сегодня\",IF(Реестр_tb[[#This Row],[Плановая дата оплаты]]<=$AB$1+7,\"В течении недели\",\"Через неделю и более\")))))","v":"Через неделю и более"},null,null,"Контракт № 85/22 от ххх на сумму 30 000,00 рублей (БО на сумму 30 000,00 руб.)"]
["ООО \"Координата\"","Муниципальное задание","мониторинг системы пожарной безопасности (Координата)",{"$f":"IFERROR(VLOOKUP(Реестр_tb[[#This Row],[Подкатегория]],IF({1,0},Данные_tb[ЕД],Данные_tb[доп. код.]),2,0),\" \")","v":4},{"$f":"IFERROR(VLOOKUP(Реестр_tb[[#This Row],[ДОПЫ]],IF({1,0},Данные_tb[доп. код.],Данные_tb[Источник]),2,0),\" \")","v":20},"Нет","июль","Координата (мониторинг)",5,2500,null,null,null,null,{"$f":"IF(Реестр_tb[[#This Row],[Срок оплаты (дней)]]=\"\",\"\",WORKDAY(Реестр_tb[[#This Row],[входящий (дата)]],Реестр_tb[[#This Row],[Срок оплаты (дней)]]+1,Выходные_tb[Выходные]))","v":""},null,{"$f":"IF(AND(Реестр_tb[[#This Row],[Оплачен]]=\"Да\",Реестр_tb[[#This Row],[Факт. дата оплаты]]<=Реестр_tb[[#This Row],[Плановая дата оплаты]]),\"Оплачено вовремя\",IF(AND(Реестр_tb[[#This Row],[Оплачен]]=\"Да\",Реестр_tb[[#This Row],[Факт. дата оплаты]]>Реестр_tb[[#This Row],[Плановая дата оплаты]]),\"Просрочено\",IF(AND(Реестр_tb[[#This Row],[Оплачен]]=\"Нет\",Реестр_tb[[#This Row],[Факт. дата оплаты]]=\"\",Реестр_tb[[#This Row],[Плановая дата оплаты]]<$AB$1),\"Просрочено\",IF(Реестр_tb[[#This Row],[Плановая дата оплаты]]=$AB$1,\"Сегодня\",IF(Реестр_tb[[#This Row],[Плановая дата оплаты]]<=$AB$1+7,\"В течении недели\",\"Через неделю и более\")))))","v":"Через неделю и более"},null,null,"Контракт № 85/22 от ххх на сумму 30 000,00 рублей (БО на сумму 30 000,00 руб.)"]
["ООО \"Координата\"","Муниципальное задание","мониторинг системы пожарной безопасности (Координата)",{"$f":"IFERROR(VLOOKUP(Реестр_tb[[#This Row],[Подкатегория]],IF({1,0},Данные_tb[ЕД],Данные_tb[доп. код.]),2,0),\" \")","v":4},{"$f":"IFERROR(VLOOKUP(Реестр_tb[[#This Row],[ДОПЫ]],IF({1,0},Данные_tb[доп. код.],Данные_tb[Источник]),2,0),\" \")","v":20},"Нет","август","Координата (мониторинг)",5,2500,null,null,null,null,{"$f":"IF(Реестр_tb[[#This Row],[Срок оплаты (дней)]]=\"\",\"\",WORKDAY(Реестр_tb[[#This Row],[входящий (дата)]],Реестр_tb[[#This Row],[Срок оплаты (дней)]]+1,Выходные_tb[Выходные]))","v":""},null,{"$f":"IF(AND(Реестр_tb[[#This Row],[Оплачен]]=\"Да\",Реестр_tb[[#This Row],[Факт. дата оплаты]]<=Реестр_tb[[#This Row],[Плановая дата оплаты]]),\"Оплачено вовремя\",IF(AND(Реестр_tb[[#This Row],[Оплачен]]=\"Да\",Реестр_tb[[#This Row],[Факт. дата оплаты]]>Реестр_tb[[#This Row],[Плановая дата оплаты]]),\"Просрочено\",IF(AND(Реестр_tb[[#This Row],[Оплачен]]=\"Нет\",Реестр_tb[[#This Row],[Факт. дата оплаты]]=\"\",Реестр_tb[[#This Row],[Плановая дата оплаты]]<$AB$1),\"Просрочено\",IF(Реестр_tb[[#This Row],[Плановая дата оплаты]]=$AB$1,\"Сегодня\",IF(Реестр_tb[[#This Row],[Плановая дата оплаты]]<=$AB$1+7,\"В течении недели\",\"Через неделю и более\")))))","v":"Через неделю и более"},null,null,"Контракт № 85/22 от ххх на сумму 30 000,00 рублей (БО на сумму 30 000,00 руб.)"]
["ООО \"Координата\"","Муниципальное задание","мониторинг системы пожарной безопасности (Координата)",{"$f":"IFERROR(VLOOKUP(Реестр_tb[[#This Row],[Подкатегория]],IF({1,0},Данные_tb[ЕД],Данные_tb[доп. код.]),2,0),\" \")","v":4},{"$f":"IFERROR(VLOOKUP(Реестр_tb[[#This Row],[ДОПЫ]],IF({1,0},Данные_tb[доп. код.],Данные_tb[Источник]),2,0),\" \")","v":20},"Нет","сентябрь","Координата (мониторинг)",5,2500,null,null,null,null,{"$f":"IF(Реестр_tb[[#This Row],[Срок оплаты (дней)]]=\"\",\"\",WORKDAY(Реестр_tb[[#This Row],[входящий (дата)]],Реестр_tb[[#This Row],[Срок оплаты (дней)]]+1,Выходные_tb[Выходные]))","v":""},null,{"$f":"IF(AND(Реестр_tb[[#This Row],[Оплачен]]=\"Да\",Реестр_tb[[#This Row],[Факт. дата оплаты]]<=Реестр_tb[[#This Row],[Плановая дата оплаты]]),\"Оплачено вовремя\",IF(AND(Реестр_tb[[#This Row],[Оплачен]]=\"Да\",Реестр_tb[[#This Row],[Факт. дата оплаты]]>Реестр_tb[[#This Row],[Плановая дата оплаты]]),\"Просрочено\",IF(AND(Реестр_tb[[#This Row],[Оплачен]]=\"Нет\",Реестр_tb[[#This Row],[Факт. дата оплаты]]=\"\",Реестр_tb[[#This Row],[Плановая дата оплаты]]<$AB$1),\"Просрочено\",IF(Реестр_tb[[#This Row],[Плановая дата оплаты]]=$AB$1,\"Сегодня\",IF(Реестр_tb[[#This Row],[Плановая дата оплаты]]<=$AB$1+7,\"В течении недели\",\"Через неделю и более\")))))","v":"Через неделю и более"},null,null,"Контракт № 85/22 от ххх на сумму 30 000,00 рублей (БО на сумму 30 000,00 руб.)"]
["ООО \"Координата\"","Муниципальное задание","мониторинг системы пожарной безопасности (Координата)",{"$f":"IFERROR(VLOOKUP(Реестр_tb[[#This Row],[Подкатегория]],IF({1,0},Данные_tb[ЕД],Данные_tb[доп. код.]),2,0),\" \")","v":4},{"$f":"IFERROR(VLOOKUP(Реестр_tb[[#This Row],[ДОПЫ]],IF({1,0},Данные_tb[доп. код.],Данные_tb[Источник]),2,0),\" \")","v":20},"Нет","октябрь","Координата (мониторинг)",5,2500,null,null,null,null,{"$f":"IF(Реестр_tb[[#This Row],[Срок оплаты (дней)]]=\"\",\"\",WORKDAY(Реестр_tb[[#This Row],[входящий (дата)]],Реестр_tb[[#This Row],[Срок оплаты (дней)]]+1,Выходные_tb[Выходные]))","v":""},null,{"$f":"IF(AND(Реестр_tb[[#This Row],[Оплачен]]=\"Да\",Реестр_tb[[#This Row],[Факт. дата оплаты]]<=Реестр_tb[[#This Row],[Плановая дата оплаты]]),\"Оплачено вовремя\",IF(AND(Реестр_tb[[#This Row],[Оплачен]]=\"Да\",Реестр_tb[[#This Row],[Факт. дата оплаты]]>Реестр_tb[[#This Row],[Плановая дата оплаты]]),\"Просрочено\",IF(AND(Реестр_tb[[#This Row],[Оплачен]]=\"Нет\",Реестр_tb[[#This Row],[Факт. дата оплаты]]=\"\",Реестр_tb[[#This Row],[Плановая дата оплаты]]<$AB$1),\"Просрочено\",IF(Реестр_tb[[#This Row],[Плановая дата оплаты]]=$AB$1,\"Сегодня\",IF(Реестр_tb[[#This Row],[Плановая дата оплаты]]<=$AB$1+7,\"В течении недели\",\"Через неделю и более\")))))","v":"Через неделю и более"},null,null,"Контракт № 85/22 от ххх на сумму 30 000,00 рублей (БО на сумму 30 000,00 руб.)"]
["ООО \"Координата\"","Муниципальное задание","мониторинг системы пожарной безопасности (Координата)",{"$f":"IFERROR(VLOOKUP(Реестр_tb[[#This Row],[Подкатегория]],IF({1,0},Данные_tb[ЕД],Данные_tb[доп. код.]),2,0),\" \")","v":4},{"$f":"IFERROR(VLOOKUP(Реестр_tb[[#This Row],[ДОПЫ]],IF({1,0},Данные_tb[доп. код.],Данные_tb[Источник]),2,0),\" \")","v":20},"Нет","ноябрь","Координата (мониторинг)",5,2500,null,null,null,null,{"$f":"IF(Реестр_tb[[#This Row],[Срок оплаты (дней)]]=\"\",\"\",WORKDAY(Реестр_tb[[#This Row],[входящий (дата)]],Реестр_tb[[#This Row],[Срок оплаты (дней)]]+1,Выходные_tb[Выходные]))","v":""},null,{"$f":"IF(AND(Реестр_tb[[#This Row],[Оплачен]]=\"Да\",Реестр_tb[[#This Row],[Факт. дата оплаты]]<=Реестр_tb[[#This Row],[Плановая дата оплаты]]),\"Оплачено вовремя\",IF(AND(Реестр_tb[[#This Row],[Оплачен]]=\"Да\",Реестр_tb[[#This Row],[Факт. дата оплаты]]>Реестр_tb[[#This Row],[Плановая дата оплаты]]),\"Просрочено\",IF(AND(Реестр_tb[[#This Row],[Оплачен]]=\"Нет\",Реестр_tb[[#This Row],[Факт. дата оплаты]]=\"\",Реестр_tb[[#This Row],[Плановая дата оплаты]]<$AB$1),\"Просрочено\",IF(Реестр_tb[[#This Row],[Плановая дата оплаты]]=$AB$1,\"Сегодня\",IF(Реестр_tb[[#This Row],[Плановая дата оплаты]]<=$AB$1+7,\"В течении недели\",\"Через неделю и более\")))))","v":"Через неделю и более"},null,null,"Контракт № 85/22 от ххх на сумму 30 000,00 рублей (БО на сумму 30 000,00 руб.)"]
["ООО \"Координата\"","Муниципальное задание","мониторинг системы пожарной безопасности (Координата)",{"$f":"IFERROR(VLOOKUP(Реестр_tb[[#This Row],[Подкатегория]],IF({1,0},Данные_tb[ЕД],Данные_tb[доп. код.]),2,0),\" \")","v":4},{"$f":"IFERROR(VLOOKUP(Реестр_tb[[#This Row],[ДОПЫ]],IF({1,0},Данные_tb[доп. код.],Данные_tb[Источник]),2,0),\" \")","v":20},"Нет","декабрь","Координата (мониторинг)",5,2500,null,null,null,null,{"$f":"IF(Реестр_tb[[#This Row],[Срок оплаты (дней)]]=\"\",\"\",WORKDAY(Реестр_tb[[#This Row],[входящий (дата)]],Реестр_tb[[#This Row],[Срок оплаты (дней)]]+1,Выходные_tb[Выходные]))","v":""},null,{"$f":"IF(AND(Реестр_tb[[#This Row],[Оплачен]]=\"Да\",Реестр_tb[[#This Row],[Факт. дата оплаты]]<=Реестр_tb[[#This Row],[Плановая дата оплаты]]),\"Оплачено вовремя\",IF(AND(Реестр_tb[[#This Row],[Оплачен]]=\"Да\",Реестр_tb[[#This Row],[Факт. дата оплаты]]>Реестр_tb[[#This Row],[Плановая дата оплаты]]),\"Просрочено\",IF(AND(Реестр_tb[[#This Row],[Оплачен]]=\"Нет\",Реестр_tb[[#This Row],[Факт. дата оплаты]]=\"\",Реестр_tb[[#This Row],[Плановая дата оплаты]]<$AB$1),\"Просрочено\",IF(Реестр_tb[[#This Row],[Плановая дата оплаты]]=$AB$1,\"Сегодня\",IF(Реестр_tb[[#This Row],[Плановая дата оплаты]]<=$AB$1+7,\"В течении недели\",\"Через неделю и более\")))))","v":"Через неделю и более"},null,null,"Контракт № 85/22 от ххх на сумму 30 000,00 рублей (БО на сумму 30 000,00 руб.)"]
["ООО \"ОА \"Форт\"","Муниципальное задание","ТО охранная сигнализация и реагирование (мастерские)",{"$f":"IFERROR(VLOOKUP(Реестр_tb[[#This Row],[Подкатегория]],IF({1,0},Данные_tb[ЕД],Данные_tb[доп. код.]),2,0),\" \")","v":4},{"$f":"IFERROR(VLOOKUP(Реестр_tb[[#This Row],[ДОПЫ]],IF({1,0},Данные_tb[доп. код.],Данные_tb[Источник]),2,0),\" \")","v":20},"Нет","январь","ТО охранная сигнализация и реагирование (мастерские)",5,26680,null,null,null,null,{"$f":"IF(Реестр_tb[[#This Row],[Срок оплаты (дней)]]=\"\",\"\",WORKDAY(Реестр_tb[[#This Row],[входящий (дата)]],Реестр_tb[[#This Row],[Срок оплаты (дней)]]+1,Выходные_tb[Выходные]))","v":""},null,{"$f":"IF(AND(Реестр_tb[[#This Row],[Оплачен]]=\"Да\",Реестр_tb[[#This Row],[Факт. дата оплаты]]<=Реестр_tb[[#This Row],[Плановая дата оплаты]]),\"Оплачено вовремя\",IF(AND(Реестр_tb[[#This Row],[Оплачен]]=\"Да\",Реестр_tb[[#This Row],[Факт. дата оплаты]]>Реестр_tb[[#This Row],[Плановая дата оплаты]]),\"Просрочено\",IF(AND(Реестр_tb[[#This Row],[Оплачен]]=\"Нет\",Реестр_tb[[#This Row],[Факт. дата оплаты]]=\"\",Реестр_tb[[#This Row],[Плановая дата оплаты]]<$AB$1),\"Просрочено\",IF(Реестр_tb[[#This Row],[Плановая дата оплаты]]=$AB$1,\"Сегодня\",IF(Реестр_tb[[#This Row],[Плановая дата оплаты]]<=$AB$1+7,\"В течении недели\",\"Через неделю и более\")))))","v":"Через неделю и более"},null,null,"Контракт № 4 от ххх на сумму 320 160,00 руб. (БО на сумму 320 160,00 руб.)"]
["ООО \"ОА \"Форт\"","Муниципальное задание","ТО охранная сигнализация и реагирование (мастерские)",{"$f":"IFERROR(VLOOKUP(Реестр_tb[[#This Row],[Подкатегория]],IF({1,0},Данные_tb[ЕД],Данные_tb[доп. код.]),2,0),\" \")","v":4},{"$f":"IFERROR(VLOOKUP(Реестр_tb[[#This Row],[ДОПЫ]],IF({1,0},Данные_tb[доп. код.],Данные_tb[Источник]),2,0),\" \")","v":20},"Нет","февраль","ТО охранная сигнализация и реагирование (мастерские)",5,26680,null,null,null,null,{"$f":"IF(Реестр_tb[[#This Row],[Срок оплаты (дней)]]=\"\",\"\",WORKDAY(Реестр_tb[[#This Row],[входящий (дата)]],Реестр_tb[[#This Row],[Срок оплаты (дней)]]+1,Выходные_tb[Выходные]))","v":""},null,{"$f":"IF(AND(Реестр_tb[[#This Row],[Оплачен]]=\"Да\",Реестр_tb[[#This Row],[Факт. дата оплаты]]<=Реестр_tb[[#This Row],[Плановая дата оплаты]]),\"Оплачено вовремя\",IF(AND(Реестр_tb[[#This Row],[Оплачен]]=\"Да\",Реестр_tb[[#This Row],[Факт. дата оплаты]]>Реестр_tb[[#This Row],[Плановая дата оплаты]]),\"Просрочено\",IF(AND(Реестр_tb[[#This Row],[Оплачен]]=\"Нет\",Реестр_tb[[#This Row],[Факт. дата оплаты]]=\"\",Реестр_tb[[#This Row],[Плановая дата оплаты]]<$AB$1),\"Просрочено\",IF(Реестр_tb[[#This Row],[Плановая дата оплаты]]=$AB$1,\"Сегодня\",IF(Реестр_tb[[#This Row],[Плановая дата оплаты]]<=$AB$1+7,\"В течении недели\",\"Через неделю и более\")))))","v":"Через неделю и более"},null,null,"Контракт № 4 от ххх на сумму 320 160,00 руб. (БО на сумму 320 160,00 руб.)"]
["ООО \"ОА \"Форт\"","Муниципальное задание","ТО охранная сигнализация и реагирование (мастерские)",{"$f":"IFERROR(VLOOKUP(Реестр_tb[[#This Row],[Подкатегория]],IF({1,0},Данные_tb[ЕД],Данные_tb[доп. код.]),2,0),\" \")","v":4},{"$f":"IFERROR(VLOOKUP(Реестр_tb[[#This Row],[ДОПЫ]],IF({1,0},Данные_tb[доп. код.],Данные_tb[Источник]),2,0),\" \")","v":20},"Нет","март","ТО охранная сигнализация и реагирование (мастерские)",5,26680,null,null,null,null,{"$f":"IF(Реестр_tb[[#This Row],[Срок оплаты (дней)]]=\"\",\"\",WORKDAY(Реестр_tb[[#This Row],[входящий (дата)]],Реестр_tb[[#This Row],[Срок оплаты (дней)]]+1,Выходные_tb[Выходные]))","v":""},null,{"$f":"IF(AND(Реестр_tb[[#This Row],[Оплачен]]=\"Да\",Реестр_tb[[#This Row],[Факт. дата оплаты]]<=Реестр_tb[[#This Row],[Плановая дата оплаты]]),\"Оплачено вовремя\",IF(AND(Реестр_tb[[#This Row],[Оплачен]]=\"Да\",Реестр_tb[[#This Row],[Факт. дата оплаты]]>Реестр_tb[[#This Row],[Плановая дата оплаты]]),\"Просрочено\",IF(AND(Реестр_tb[[#This Row],[Оплачен]]=\"Нет\",Реестр_tb[[#This Row],[Факт. дата оплаты]]=\"\",Реестр_tb[[#This Row],[Плановая дата оплаты]]<$AB$1),\"Просрочено\",IF(Реестр_tb[[#This Row],[Плановая дата оплаты]]=$AB$1,\"Сегодня\",IF(Реестр_tb[[#This Row],[Плановая дата оплаты]]<=$AB$1+7,\"В течении недели\",\"Через неделю и более\")))))","v":"Через неделю и более"},null,null,"Контракт № 4 от ххх на сумму 320 160,00 руб. (БО на сумму 320 160,00 руб.)"]
["ООО \"ОА \"Форт\"","Муниципальное задание","ТО охранная сигнализация и реагирование (мастерские)",{"$f":"IFERROR(VLOOKUP(Реестр_tb[[#This Row],[Подкатегория]],IF({1,0},Данные_tb[ЕД],Данные_tb[доп. код.]),2,0),\" \")","v":4},{"$f":"IFERROR(VLOOKUP(Реестр_tb[[#This Row],[ДОПЫ]],IF({1,0},Данные_tb[доп. код.],Данные_tb[Источник]),2,0),\" \")","v":20},"Нет","апрель","ТО охранная сигнализация и реагирование (мастерские)",5,26680,null,null,null,null,{"$f":"IF(Реестр_tb[[#This Row],[Срок оплаты (дней)]]=\"\",\"\",WORKDAY(Реестр_tb[[#This Row],[входящий (дата)]],Реестр_tb[[#This Row],[Срок оплаты (дней)]]+1,Выходные_tb[Выходные]))","v":""},null,{"$f":"IF(AND(Реестр_tb[[#This Row],[Оплачен]]=\"Да\",Реестр_tb[[#This Row],[Факт. дата оплаты]]<=Реестр_tb[[#This Row],[Плановая дата оплаты]]),\"Оплачено вовремя\",IF(AND(Реестр_tb[[#This Row],[Оплачен]]=\"Да\",Реестр_tb[[#This Row],[Факт. дата оплаты]]>Реестр_tb[[#This Row],[Плановая дата оплаты]]),\"Просрочено\",IF(AND(Реестр_tb[[#This Row],[Оплачен]]=\"Нет\",Реестр_tb[[#This Row],[Факт. дата оплаты]]=\"\",Реестр_tb[[#This Row],[Плановая дата оплаты]]<$AB$1),\"Просрочено\",IF(Реестр_tb[[#This Row],[Плановая дата оплаты]]=$AB$1,\"Сегодня\",IF(Реестр_tb[[#This Row],[Плановая дата оплаты]]<=$AB$1+7,\"В течении недели\",\"Через неделю и более\")))))","v":"Через неделю и более"},null,null,"Контракт № 4 от ххх на сумму 320 160,00 руб. (БО на сумму 320 160,00 руб.)"]
["ООО \"ОА \"Форт\"","Муниципальное задание","ТО охранная сигнализация и реагирование (мастерские)",{"$f":"IFERROR(VLOOKUP(Реестр_tb[[#This Row],[Подкатегория]],IF({1,0},Данные_tb[ЕД],Данные_tb[доп. код.]),2,0),\" \")","v":4},{"$f":"IFERROR(VLOOKUP(Реестр_tb[[#This Row],[ДОПЫ]],IF({1,0},Данные_tb[доп. код.],Данные_tb[Источник]),2,0),\" \")","v":20},"Нет","май","ТО охранная сигнализация и реагирование (мастерские)",5,26680,null,null,null,null,{"$f":"IF(Реестр_tb[[#This Row],[Срок оплаты (дней)]]=\"\",\"\",WORKDAY(Реестр_tb[[#This Row],[входящий (дата)]],Реестр_tb[[#This Row],[Срок оплаты (дней)]]+1,Выходные_tb[Выходные]))","v":""},null,{"$f":"IF(AND(Реестр_tb[[#This Row],[Оплачен]]=\"Да\",Реестр_tb[[#This Row],[Факт. дата оплаты]]<=Реестр_tb[[#This Row],[Плановая дата оплаты]]),\"Оплачено вовремя\",IF(AND(Реестр_tb[[#This Row],[Оплачен]]=\"Да\",Реестр_tb[[#This Row],[Факт. дата оплаты]]>Реестр_tb[[#This Row],[Плановая дата оплаты]]),\"Просрочено\",IF(AND(Реестр_tb[[#This Row],[Оплачен]]=\"Нет\",Реестр_tb[[#This Row],[Факт. дата оплаты]]=\"\",Реестр_tb[[#This Row],[Плановая дата оплаты]]<$AB$1),\"Просрочено\",IF(Реестр_tb[[#This Row],[Плановая дата оплаты]]=$AB$1,\"Сегодня\",IF(Реестр_tb[[#This Row],[Плановая дата оплаты]]<=$AB$1+7,\"В течении недели\",\"Через неделю и более\")))))","v":"Через неделю и более"},null,null,"Контракт № 4 от ххх на сумму 320 160,00 руб. (БО на сумму 320 160,00 руб.)"]
["ООО \"ОА \"Форт\"","Муниципальное задание","ТО охранная сигнализация и реагирование (мастерские)",{"$f":"IFERROR(VLOOKUP(Реестр_tb[[#This Row],[Подкатегория]],IF({1,0},Данные_tb[ЕД],Данные_tb[доп. код.]),2,0),\" \")","v":4},{"$f":"IFERROR(VLOOKUP(Реестр_tb[[#This Row],[ДОПЫ]],IF({1,0},Данные_tb[доп. код.],Данные_tb[Источник]),2,0),\" \")","v":20},"Нет","июнь","ТО охранная сигнализация и реагирование (мастерские)",5,26680,null,null,null,null,{"$f":"IF(Реестр_tb[[#This Row],[Срок оплаты (дней)]]=\"\",\"\",WORKDAY(Реестр_tb[[#This Row],[входящий (дата)]],Реестр_tb[[#This Row],[Срок оплаты (дней)]]+1,Выходные_tb[Выходные]))","v":""},null,{"$f":"IF(AND(Реестр_tb[[#This Row],[Оплачен]]=\"Да\",Реестр_tb[[#This Row],[Факт. дата оплаты]]<=Реестр_tb[[#This Row],[Плановая дата оплаты]]),\"Оплачено вовремя\",IF(AND(Реестр_tb[[#This Row],[Оплачен]]=\"Да\",Реестр_tb[[#This Row],[Факт. дата оплаты]]>Реестр_tb[[#This Row],[Плановая дата оплаты]]),\"Просрочено\",IF(AND(Реестр_tb[[#This Row],[Оплачен]]=\"Нет\",Реестр_tb[[#This Row],[Факт. дата оплаты]]=\"\",Реестр_tb[[#This Row],[Плановая дата оплаты]]<$AB$1),\"Просрочено\",IF(Реестр_tb[[#This Row],[Плановая дата оплаты]]=$AB$1,\"Сегодня\",IF(Реестр_tb[[#This Row],[Плановая дата оплаты]]<=$AB$1+7,\"В течении недели\",\"Через неделю и более\")))))","v":"Через неделю и более"},null,null,"Контракт № 4 от ххх на сумму 320 160,00 руб. (БО на сумму 320 160,00 руб.)"]
["ООО \"ОА \"Форт\"","Муниципальное задание","ТО охранная сигнализация и реагирование (мастерские)",{"$f":"IFERROR(VLOOKUP(Реестр_tb[[#This Row],[Подкатегория]],IF({1,0},Данные_tb[ЕД],Данные_tb[доп. код.]),2,0),\" \")","v":4},{"$f":"IFERROR(VLOOKUP(Реестр_tb[[#This Row],[ДОПЫ]],IF({1,0},Данные_tb[доп. код.],Данные_tb[Источник]),2,0),\" \")","v":20},"Нет","июль","ТО охранная сигнализация и реагирование (мастерские)",5,26680,null,null,null,null,{"$f":"IF(Реестр_tb[[#This Row],[Срок оплаты (дней)]]=\"\",\"\",WORKDAY(Реестр_tb[[#This Row],[входящий (дата)]],Реестр_tb[[#This Row],[Срок оплаты (дней)]]+1,Выходные_tb[Выходные]))","v":""},null,{"$f":"IF(AND(Реестр_tb[[#This Row],[Оплачен]]=\"Да\",Реестр_tb[[#This Row],[Факт. дата оплаты]]<=Реестр_tb[[#This Row],[Плановая дата оплаты]]),\"Оплачено вовремя\",IF(AND(Реестр_tb[[#This Row],[Оплачен]]=\"Да\",Реестр_tb[[#This Row],[Факт. дата оплаты]]>Реестр_tb[[#This Row],[Плановая дата оплаты]]),\"Просрочено\",IF(AND(Реестр_tb[[#This Row],[Оплачен]]=\"Нет\",Реестр_tb[[#This Row],[Факт. дата оплаты]]=\"\",Реестр_tb[[#This Row],[Плановая дата оплаты]]<$AB$1),\"Просрочено\",IF(Реестр_tb[[#This Row],[Плановая дата оплаты]]=$AB$1,\"Сегодня\",IF(Реестр_tb[[#This Row],[Плановая дата оплаты]]<=$AB$1+7,\"В течении недели\",\"Через неделю и более\")))))","v":"Через неделю и более"},null,null,"Контракт № 4 от ххх на сумму 320 160,00 руб. (БО на сумму 320 160,00 руб.)"]
["ООО \"ОА \"Форт\"","Муниципальное задание","ТО охранная сигнализация и реагирование (мастерские)",{"$f":"IFERROR(VLOOKUP(Реестр_tb[[#This Row],[Подкатегория]],IF({1,0},Данные_tb[ЕД],Данные_tb[доп. код.]),2,0),\" \")","v":4},{"$f":"IFERROR(VLOOKUP(Реестр_tb[[#This Row],[ДОПЫ]],IF({1,0},Данные_tb[доп. код.],Данные_tb[Источник]),2,0),\" \")","v":20},"Нет","август","ТО охранная сигнализация и реагирование (мастерские)",5,26680,null,null,null,null,{"$f":"IF(Реестр_tb[[#This Row],[Срок оплаты (дней)]]=\"\",\"\",WORKDAY(Реестр_tb[[#This Row],[входящий (дата)]],Реестр_tb[[#This Row],[Срок оплаты (дней)]]+1,Выходные_tb[Выходные]))","v":""},null,{"$f":"IF(AND(Реестр_tb[[#This Row],[Оплачен]]=\"Да\",Реестр_tb[[#This Row],[Факт. дата оплаты]]<=Реестр_tb[[#This Row],[Плановая дата оплаты]]),\"Оплачено вовремя\",IF(AND(Реестр_tb[[#This Row],[Оплачен]]=\"Да\",Реестр_tb[[#This Row],[Факт. дата оплаты]]>Реестр_tb[[#This Row],[Плановая дата оплаты]]),\"Просрочено\",IF(AND(Реестр_tb[[#This Row],[Оплачен]]=\"Нет\",Реестр_tb[[#This Row],[Факт. дата оплаты]]=\"\",Реестр_tb[[#This Row],[Плановая дата оплаты]]<$AB$1),\"Просрочено\",IF(Реестр_tb[[#This Row],[Плановая дата оплаты]]=$AB$1,\"Сегодня\",IF(Реестр_tb[[#This Row],[Плановая дата оплаты]]<=$AB$1+7,\"В течении недели\",\"Через неделю и более\")))))","v":"Через неделю и более"},null,null,"Контракт № 4 от ххх на сумму 320 160,00 руб. (БО на сумму 320 160,00 руб.)"]
["ООО \"ОА \"Форт\"","Муниципальное задание","ТО охранная сигнализация и реагирование (мастерские)",{"$f":"IFERROR(VLOOKUP(Реестр_tb[[#This Row],[Подкатегория]],IF({1,0},Данные_tb[ЕД],Данные_tb[доп. код.]),2,0),\" \")","v":4},{"$f":"IFERROR(VLOOKUP(Реестр_tb[[#This Row],[ДОПЫ]],IF({1,0},Данные_tb[доп. код.],Данные_tb[Источник]),2,0),\" \")","v":20},"Нет","сентябрь","ТО охранная сигнализация и реагирование (мастерские)",5,26680,null,null,null,null,{"$f":"IF(Реестр_tb[[#This Row],[Срок оплаты (дней)]]=\"\",\"\",WORKDAY(Реестр_tb[[#This Row],[входящий (дата)]],Реестр_tb[[#This Row],[Срок оплаты (дней)]]+1,Выходные_tb[Выходные]))","v":""},null,{"$f":"IF(AND(Реестр_tb[[#This Row],[Оплачен]]=\"Да\",Реестр_tb[[#This Row],[Факт. дата оплаты]]<=Реестр_tb[[#This Row],[Плановая дата оплаты]]),\"Оплачено вовремя\",IF(AND(Реестр_tb[[#This Row],[Оплачен]]=\"Да\",Реестр_tb[[#This Row],[Факт. дата оплаты]]>Реестр_tb[[#This Row],[Плановая дата оплаты]]),\"Просрочено\",IF(AND(Реестр_tb[[#This Row],[Оплачен]]=\"Нет\",Реестр_tb[[#This Row],[Факт. дата оплаты]]=\"\",Реестр_tb[[#This Row],[Плановая дата оплаты]]<$AB$1),\"Просрочено\",IF(Реестр_tb[[#This Row],[Плановая дата оплаты]]=$AB$1,\"Сегодня\",IF(Реестр_tb[[#This Row],[Плановая дата оплаты]]<=$AB$1+7,\"В течении недели\",\"Через неделю и более\")))))","v":"Через неделю и более"},null,null,"Контракт № 4 от ххх на сумму 320 160,00 руб. (БО на сумму 320 160,00 руб.)"]
["ООО \"ОА \"Форт\"","Муниципальное задание","ТО охранная сигнализация и реагирование (мастерские)",{"$f":"IFERROR(VLOOKUP(Реестр_tb[[#This Row],[Подкатегория]],IF({1,0},Данные_tb[ЕД],Данные_tb[доп. код.]),2,0),\" \")","v":4},{"$f":"IFERROR(VLOOKUP(Реестр_tb[[#This Row],[ДОПЫ]],IF({1,0},Данные_tb[доп. код.],Данные_tb[Источник]),2,0),\" \")","v":20},"Нет","октябрь","ТО охранная сигнализация и реагирование (мастерские)",5,26680,null,null,null,null,{"$f":"IF(Реестр_tb[[#This Row],[Срок оплаты (дней)]]=\"\",\"\",WORKDAY(Реестр_tb[[#This Row],[входящий (дата)]],Реестр_tb[[#This Row],[Срок оплаты (дней)]]+1,Выходные_tb[Выходные]))","v":""},null,{"$f":"IF(AND(Реестр_tb[[#This Row],[Оплачен]]=\"Да\",Реестр_tb[[#This Row],[Факт. дата оплаты]]<=Реестр_tb[[#This Row],[Плановая дата оплаты]]),\"Оплачено вовремя\",IF(AND(Реестр_tb[[#This Row],[Оплачен]]=\"Да\",Реестр_tb[[#This Row],[Факт. дата оплаты]]>Реестр_tb[[#This Row],[Плановая дата оплаты]]),\"Просрочено\",IF(AND(Реестр_tb[[#This Row],[Оплачен]]=\"Нет\",Реестр_tb[[#This Row],[Факт. дата оплаты]]=\"\",Реестр_tb[[#This Row],[Плановая дата оплаты]]<$AB$1),\"Просрочено\",IF(Реестр_tb[[#This Row],[Плановая дата оплаты]]=$AB$1,\"Сегодня\",IF(Реестр_tb[[#This Row],[Плановая дата оплаты]]<=$AB$1+7,\"В течении недели\",\"Через неделю и более\")))))","v":"Через неделю и более"},null,null,"Контракт № 4 от ххх на сумму 320 160,00 руб. (БО на сумму 320 160,00 руб.)"]
["ООО \"ОА \"Форт\"","Муниципальное задание","ТО охранная сигнализация и реагирование (мастерские)",{"$f":"IFERROR(VLOOKUP(Реестр_tb[[#This Row],[Подкатегория]],IF({1,0},Данные_tb[ЕД],Данные_tb[доп. код.]),2,0),\" \")","v":4},{"$f":"IFERROR(VLOOKUP(Реестр_tb[[#This Row],[ДОПЫ]],IF({1,0},Данные_tb[доп. код.],Данные_tb[Источник]),2,0),\" \")","v":20},"Нет","ноябрь","ТО охранная сигнализация и реагирование (мастерские)",5,26680,null,null,null,null,{"$f":"IF(Реестр_tb[[#This Row],[Срок оплаты (дней)]]=\"\",\"\",WORKDAY(Реестр_tb[[#This Row],[входящий (дата)]],Реестр_tb[[#This Row],[Срок оплаты (дней)]]+1,Выходные_tb[Выходные]))","v":""},null,{"$f":"IF(AND(Реестр_tb[[#This Row],[Оплачен]]=\"Да\",Реестр_tb[[#This Row],[Факт. дата оплаты]]<=Реестр_tb[[#This Row],[Плановая дата оплаты]]),\"Оплачено вовремя\",IF(AND(Реестр_tb[[#This Row],[Оплачен]]=\"Да\",Реестр_tb[[#This Row],[Факт. дата оплаты]]>Реестр_tb[[#This Row],[Плановая дата оплаты]]),\"Просрочено\",IF(AND(Реестр_tb[[#This Row],[Оплачен]]=\"Нет\",Реестр_tb[[#This Row],[Факт. дата оплаты]]=\"\",Реестр_tb[[#This Row],[Плановая дата оплаты]]<$AB$1),\"Просрочено\",IF(Реестр_tb[[#This Row],[Плановая дата оплаты]]=$AB$1,\"Сегодня\",IF(Реестр_tb[[#This Row],[Плановая дата оплаты]]<=$AB$1+7,\"В течении недели\",\"Через неделю и более\")))))","v":"Через неделю и более"},null,null,"Контракт № 4 от ххх на сумму 320 160,00 руб. (БО на сумму 320 160,00 руб.)"]
["ООО \"ОА \"Форт\"","Муниципальное задание","ТО охранная сигнализация и реагирование (мастерские)",{"$f":"IFERROR(VLOOKUP(Реестр_tb[[#This Row],[Подкатегория]],IF({1,0},Данные_tb[ЕД],Данные_tb[доп. код.]),2,0),\" \")","v":4},{"$f":"IFERROR(VLOOKUP(Реестр_tb[[#This Row],[ДОПЫ]],IF({1,0},Данные_tb[доп. код.],Данные_tb[Источник]),2,0),\" \")","v":20},"Нет","декабрь","ТО охранная сигнализация и реагирование (мастерские)",5,26680,null,null,null,null,{"$f":"IF(Реестр_tb[[#This Row],[Срок оплаты (дней)]]=\"\",\"\",WORKDAY(Реестр_tb[[#This Row],[входящий (дата)]],Реестр_tb[[#This Row],[Срок оплаты (дней)]]+1,Выходные_tb[Выходные]))","v":""},null,{"$f":"IF(AND(Реестр_tb[[#This Row],[Оплачен]]=\"Да\",Реестр_tb[[#This Row],[Факт. дата оплаты]]<=Реестр_tb[[#This Row],[Плановая дата оплаты]]),\"Оплачено вовремя\",IF(AND(Реестр_tb[[#This Row],[Оплачен]]=\"Да\",Реестр_tb[[#This Row],[Факт. дата оплаты]]>Реестр_tb[[#This Row],[Плановая дата оплаты]]),\"Просрочено\",IF(AND(Реестр_tb[[#This Row],[Оплачен]]=\"Нет\",Реестр_tb[[#This Row],[Факт. дата оплаты]]=\"\",Реестр_tb[[#This Row],[Плановая дата оплаты]]<$AB$1),\"Просрочено\",IF(Реестр_tb[[#This Row],[Плановая дата оплаты]]=$AB$1,\"Сегодня\",IF(Реестр_tb[[#This Row],[Плановая дата оплаты]]<=$AB$1+7,\"В течении недели\",\"Через неделю и более\")))))","v":"Через неделю и более"},null,null,"Контракт № 4 от ххх на сумму 320 160,00 руб. (БО на сумму 320 160,00 руб.)"]
["ООО \"Фортуна-С\"","Муниципальное задание","обслуживание тревожной кнопки",{"$f":"IFERROR(VLOOKUP(Реестр_tb[[#This Row],[Подкатегория]],IF({1,0},Данные_tb[ЕД],Данные_tb[доп. код.]),2,0),\" \")","v":4},{"$f":"IFERROR(VLOOKUP(Реестр_tb[[#This Row],[ДОПЫ]],IF({1,0},Данные_tb[доп. код.],Данные_tb[Источник]),2,0),\" \")","v":20},"Нет","январь","обслуживание тревожной кнопки Росгвардии",5,3500,null,null,null,null,{"$f":"IF(Реестр_tb[[#This Row],[Срок оплаты (дней)]]=\"\",\"\",WORKDAY(Реестр_tb[[#This Row],[входящий (дата)]],Реестр_tb[[#This Row],[Срок оплаты (дней)]]+1,Выходные_tb[Выходные]))","v":""},null,{"$f":"IF(AND(Реестр_tb[[#This Row],[Оплачен]]=\"Да\",Реестр_tb[[#This Row],[Факт. дата оплаты]]<=Реестр_tb[[#This Row],[Плановая дата оплаты]]),\"Оплачено вовремя\",IF(AND(Реестр_tb[[#This Row],[Оплачен]]=\"Да\",Реестр_tb[[#This Row],[Факт. дата оплаты]]>Реестр_tb[[#This Row],[Плановая дата оплаты]]),\"Просрочено\",IF(AND(Реестр_tb[[#This Row],[Оплачен]]=\"Нет\",Реестр_tb[[#This Row],[Факт. дата оплаты]]=\"\",Реестр_tb[[#This Row],[Плановая дата оплаты]]<$AB$1),\"Просрочено\",IF(Реестр_tb[[#This Row],[Плановая дата оплаты]]=$AB$1,\"Сегодня\",IF(Реестр_tb[[#This Row],[Плановая дата оплаты]]<=$AB$1+7,\"В течении недели\",\"Через неделю и более\")))))","v":"Через неделю и более"},null,null,"Контракт № 571 от ххх на сумму 42 000,00 руб. (БО на сумму 42 000,00 руб.)"]
["ООО \"Фортуна-С\"","Муниципальное задание","обслуживание тревожной кнопки",{"$f":"IFERROR(VLOOKUP(Реестр_tb[[#This Row],[Подкатегория]],IF({1,0},Данные_tb[ЕД],Данные_tb[доп. код.]),2,0),\" \")","v":4},{"$f":"IFERROR(VLOOKUP(Реестр_tb[[#This Row],[ДОПЫ]],IF({1,0},Данные_tb[доп. код.],Данные_tb[Источник]),2,0),\" \")","v":20},"Нет","февраль","обслуживание тревожной кнопки Росгвардии",5,3500,null,null,null,null,{"$f":"IF(Реестр_tb[[#This Row],[Срок оплаты (дней)]]=\"\",\"\",WORKDAY(Реестр_tb[[#This Row],[входящий (дата)]],Реестр_tb[[#This Row],[Срок оплаты (дней)]]+1,Выходные_tb[Выходные]))","v":""},null,{"$f":"IF(AND(Реестр_tb[[#This Row],[Оплачен]]=\"Да\",Реестр_tb[[#This Row],[Факт. дата оплаты]]<=Реестр_tb[[#This Row],[Плановая дата оплаты]]),\"Оплачено вовремя\",IF(AND(Реестр_tb[[#This Row],[Оплачен]]=\"Да\",Реестр_tb[[#This Row],[Факт. дата оплаты]]>Реестр_tb[[#This Row],[Плановая дата оплаты]]),\"Просрочено\",IF(AND(Реестр_tb[[#This Row],[Оплачен]]=\"Нет\",Реестр_tb[[#This Row],[Факт. дата оплаты]]=\"\",Реестр_tb[[#This Row],[Плановая дата оплаты]]<$AB$1),\"Просрочено\",IF(Реестр_tb[[#This Row],[Плановая дата оплаты]]=$AB$1,\"Сегодня\",IF(Реестр_tb[[#This Row],[Плановая дата оплаты]]<=$AB$1+7,\"В течении недели\",\"Через неделю и более\")))))","v":"Через неделю и более"},null,null,"Контракт № 571 от ххх на сумму 42 000,00 руб. (БО на сумму 42 000,00 руб.)"]
["ООО \"Фортуна-С\"","Муниципальное задание","обслуживание тревожной кнопки",{"$f":"IFERROR(VLOOKUP(Реестр_tb[[#This Row],[Подкатегория]],IF({1,0},Данные_tb[ЕД],Данные_tb[доп. код.]),2,0),\" \")","v":4},{"$f":"IFERROR(VLOOKUP(Реестр_tb[[#This Row],[ДОПЫ]],IF({1,0},Данные_tb[доп. код.],Данные_tb[Источник]),2,0),\" \")","v":20},"Нет","март","обслуживание тревожной кнопки Росгвардии",5,3500,null,null,null,null,{"$f":"IF(Реестр_tb[[#This Row],[Срок оплаты (дней)]]=\"\",\"\",WORKDAY(Реестр_tb[[#This Row],[входящий (дата)]],Реестр_tb[[#This Row],[Срок оплаты (дней)]]+1,Выходные_tb[Выходные]))","v":""},null,{"$f":"IF(AND(Реестр_tb[[#This Row],[Оплачен]]=\"Да\",Реестр_tb[[#This Row],[Факт. дата оплаты]]<=Реестр_tb[[#This Row],[Плановая дата оплаты]]),\"Оплачено вовремя\",IF(AND(Реестр_tb[[#This Row],[Оплачен]]=\"Да\",Реестр_tb[[#This Row],[Факт. дата оплаты]]>Реестр_tb[[#This Row],[Плановая дата оплаты]]),\"Просрочено\",IF(AND(Реестр_tb[[#This Row],[Оплачен]]=\"Нет\",Реестр_tb[[#This Row],[Факт. дата оплаты]]=\"\",Реестр_tb[[#This Row],[Плановая дата оплаты]]<$AB$1),\"Просрочено\",IF(Реестр_tb[[#This Row],[Плановая дата оплаты]]=$AB$1,\"Сегодня\",IF(Реестр_tb[[#This Row],[Плановая дата оплаты]]<=$AB$1+7,\"В течении недели\",\"Через неделю и более\")))))","v":"Через неделю и более"},null,null,"Контракт № 571 от ххх на сумму 42 000,00 руб. (БО на сумму 42 000,00 руб.)"]
["ООО \"Фортуна-С\"","Муниципальное задание","обслуживание тревожной кнопки",{"$f":"IFERROR(VLOOKUP(Реестр_tb[[#This Row],[Подкатегория]],IF({1,0},Данные_tb[ЕД],Данные_tb[доп. код.]),2,0),\" \")","v":4},{"$f":"IFERROR(VLOOKUP(Реестр_tb[[#This Row],[ДОПЫ]],IF({1,0},Данные_tb[доп. код.],Данные_tb[Источник]),2,0),\" \")","v":20},"Нет","апрель","обслуживание тревожной кнопки Росгвардии",5,3500,null,null,null,null,{"$f":"IF(Реестр_tb[[#This Row],[Срок оплаты (дней)]]=\"\",\"\",WORKDAY(Реестр_tb[[#This Row],[входящий (дата)]],Реестр_tb[[#This Row],[Срок оплаты (дней)]]+1,Выходные_tb[Выходные]))","v":""},null,{"$f":"IF(AND(Реестр_tb[[#This Row],[Оплачен]]=\"Да\",Реестр_tb[[#This Row],[Факт. дата оплаты]]<=Реестр_tb[[#This Row],[Плановая дата оплаты]]),\"Оплачено вовремя\",IF(AND(Реестр_tb[[#This Row],[Оплачен]]=\"Да\",Реестр_tb[[#This Row],[Факт. дата оплаты]]>Реестр_tb[[#This Row],[Плановая дата оплаты]]),\"Просрочено\",IF(AND(Реестр_tb[[#This Row],[Оплачен]]=\"Нет\",Реестр_tb[[#This Row],[Факт. дата оплаты]]=\"\",Реестр_tb[[#This Row],[Плановая дата оплаты]]<$AB$1),\"Просрочено\",IF(Реестр_tb[[#This Row],[Плановая дата оплаты]]=$AB$1,\"Сегодня\",IF(Реестр_tb[[#This Row],[Плановая дата оплаты]]<=$AB$1+7,\"В течении недели\",\"Через неделю и более\")))))","v":"Через неделю и более"},null,null,"Контракт № 571 от ххх на сумму 42 000,00 руб. (БО на сумму 42 000,00 руб.)"]
["ООО \"Фортуна-С\"","Муниципальное задание","обслуживание тревожной кнопки",{"$f":"IFERROR(VLOOKUP(Реестр_tb[[#This Row],[Подкатегория]],IF({1,0},Данные_tb[ЕД],Данные_tb[доп. код.]),2,0),\" \")","v":4},{"$f":"IFERROR(VLOOKUP(Реестр_tb[[#This Row],[ДОПЫ]],IF({1,0},Данные_tb[доп. код.],Данные_tb[Источник]),2,0),\" \")","v":20},"Нет","май","обслуживание тревожной кнопки Росгвардии",5,3500,null,null,null,null,{"$f":"IF(Реестр_tb[[#This Row],[Срок оплаты (дней)]]=\"\",\"\",WORKDAY(Реестр_tb[[#This Row],[входящий (дата)]],Реестр_tb[[#This Row],[Срок оплаты (дней)]]+1,Выходные_tb[Выходные]))","v":""},null,{"$f":"IF(AND(Реестр_tb[[#This Row],[Оплачен]]=\"Да\",Реестр_tb[[#This Row],[Факт. дата оплаты]]<=Реестр_tb[[#This Row],[Плановая дата оплаты]]),\"Оплачено вовремя\",IF(AND(Реестр_tb[[#This Row],[Оплачен]]=\"Да\",Реестр_tb[[#This Row],[Факт. дата оплаты]]>Реестр_tb[[#This Row],[Плановая дата оплаты]]),\"Просрочено\",IF(AND(Реестр_tb[[#This Row],[Оплачен]]=\"Нет\",Реестр_tb[[#This Row],[Факт. дата оплаты]]=\"\",Реестр_tb[[#This Row],[Плановая дата оплаты]]<$AB$1),\"Просрочено\",IF(Реестр_tb[[#This Row],[Плановая дата оплаты]]=$AB$1,\"Сегодня\",IF(Реестр_tb[[#This Row],[Плановая дата оплаты]]<=$AB$1+7,\"В течении недели\",\"Через неделю и более\")))))","v":"Через неделю и более"},null,null,"Контракт № 571 от ххх на сумму 42 000,00 руб. (БО на сумму 42 000,00 руб.)"]
["ООО \"Фортуна-С\"","Муниципальное задание","обслуживание тревожной кнопки",{"$f":"IFERROR(VLOOKUP(Реестр_tb[[#This Row],[Подкатегория]],IF({1,0},Данные_tb[ЕД],Данные_tb[доп. код.]),2,0),\" \")","v":4},{"$f":"IFERROR(VLOOKUP(Реестр_tb[[#This Row],[ДОПЫ]],IF({1,0},Данные_tb[доп. код.],Данные_tb[Источник]),2,0),\" \")","v":20},"Нет","июнь","обслуживание тревожной кнопки Росгвардии",5,3500,null,null,null,null,{"$f":"IF(Реестр_tb[[#This Row],[Срок оплаты (дней)]]=\"\",\"\",WORKDAY(Реестр_tb[[#This Row],[входящий (дата)]],Реестр_tb[[#This Row],[Срок оплаты (дней)]]+1,Выходные_tb[Выходные]))","v":""},null,{"$f":"IF(AND(Реестр_tb[[#This Row],[Оплачен]]=\"Да\",Реестр_tb[[#This Row],[Факт. дата оплаты]]<=Реестр_tb[[#This Row],[Плановая дата оплаты]]),\"Оплачено вовремя\",IF(AND(Реестр_tb[[#This Row],[Оплачен]]=\"Да\",Реестр_tb[[#This Row],[Факт. дата оплаты]]>Реестр_tb[[#This Row],[Плановая дата оплаты]]),\"Просрочено\",IF(AND(Реестр_tb[[#This Row],[Оплачен]]=\"Нет\",Реестр_tb[[#This Row],[Факт. дата оплаты]]=\"\",Реестр_tb[[#This Row],[Плановая дата оплаты]]<$AB$1),\"Просрочено\",IF(Реестр_tb[[#This Row],[Плановая дата оплаты]]=$AB$1,\"Сегодня\",IF(Реестр_tb[[#This Row],[Плановая дата оплаты]]<=$AB$1+7,\"В течении недели\",\"Через неделю и более\")))))","v":"Через неделю и более"},null,null,"Контракт № 571 от ххх на сумму 42 000,00 руб. (БО на сумму 42 000,00 руб.)"]
["ООО \"Фортуна-С\"","Муниципальное задание","обслуживание тревожной кнопки",{"$f":"IFERROR(VLOOKUP(Реестр_tb[[#This Row],[Подкатегория]],IF({1,0},Данные_tb[ЕД],Данные_tb[доп. код.]),2,0),\" \")","v":4},{"$f":"IFERROR(VLOOKUP(Реестр_tb[[#This Row],[ДОПЫ]],IF({1,0},Данные_tb[доп. код.],Данные_tb[Источник]),2,0),\" \")","v":20},"Нет","июль","обслуживание тревожной кнопки Росгвардии",5,3500,null,null,null,null,{"$f":"IF(Реестр_tb[[#This Row],[Срок оплаты (дней)]]=\"\",\"\",WORKDAY(Реестр_tb[[#This Row],[входящий (дата)]],Реестр_tb[[#This Row],[Срок оплаты (дней)]]+1,Выходные_tb[Выходные]))","v":""},null,{"$f":"IF(AND(Реестр_tb[[#This Row],[Оплачен]]=\"Да\",Реестр_tb[[#This Row],[Факт. дата оплаты]]<=Реестр_tb[[#This Row],[Плановая дата оплаты]]),\"Оплачено вовремя\",IF(AND(Реестр_tb[[#This Row],[Оплачен]]=\"Да\",Реестр_tb[[#This Row],[Факт. дата оплаты]]>Реестр_tb[[#This Row],[Плановая дата оплаты]]),\"Просрочено\",IF(AND(Реестр_tb[[#This Row],[Оплачен]]=\"Нет\",Реестр_tb[[#This Row],[Факт. дата оплаты]]=\"\",Реестр_tb[[#This Row],[Плановая дата оплаты]]<$AB$1),\"Просрочено\",IF(Реестр_tb[[#This Row],[Плановая дата оплаты]]=$AB$1,\"Сегодня\",IF(Реестр_tb[[#This Row],[Плановая дата оплаты]]<=$AB$1+7,\"В течении недели\",\"Через неделю и более\")))))","v":"Через неделю и более"},null,null,"Контракт № 571 от ххх на сумму 42 000,00 руб. (БО на сумму 42 000,00 руб.)"]
["ООО \"Фортуна-С\"","Муниципальное задание","обслуживание тревожной кнопки",{"$f":"IFERROR(VLOOKUP(Реестр_tb[[#This Row],[Подкатегория]],IF({1,0},Данные_tb[ЕД],Данные_tb[доп. код.]),2,0),\" \")","v":4},{"$f":"IFERROR(VLOOKUP(Реестр_tb[[#This Row],[ДОПЫ]],IF({1,0},Данные_tb[доп. код.],Данные_tb[Источник]),2,0),\" \")","v":20},"Нет","август","обслуживание тревожной кнопки Росгвардии",5,3500,null,null,null,null,{"$f":"IF(Реестр_tb[[#This Row],[Срок оплаты (дней)]]=\"\",\"\",WORKDAY(Реестр_tb[[#This Row],[входящий (дата)]],Реестр_tb[[#This Row],[Срок оплаты (дней)]]+1,Выходные_tb[Выходные]))","v":""},null,{"$f":"IF(AND(Реестр_tb[[#This Row],[Оплачен]]=\"Да\",Реестр_tb[[#This Row],[Факт. дата оплаты]]<=Реестр_tb[[#This Row],[Плановая дата оплаты]]),\"Оплачено вовремя\",IF(AND(Реестр_tb[[#This Row],[Оплачен]]=\"Да\",Реестр_tb[[#This Row],[Факт. дата оплаты]]>Реестр_tb[[#This Row],[Плановая дата оплаты]]),\"Просрочено\",IF(AND(Реестр_tb[[#This Row],[Оплачен]]=\"Нет\",Реестр_tb[[#This Row],[Факт. дата оплаты]]=\"\",Реестр_tb[[#This Row],[Плановая дата оплаты]]<$AB$1),\"Просрочено\",IF(Реестр_tb[[#This Row],[Плановая дата оплаты]]=$AB$1,\"Сегодня\",IF(Реестр_tb[[#This Row],[Плановая дата оплаты]]<=$AB$1+7,\"В течении недели\",\"Через неделю и более\")))))","v":"Через неделю и более"},null,null,"Контракт № 571 от ххх на сумму 42 000,00 руб. (БО на сумму 42 000,00 руб.)"]
["ООО \"Фортуна-С\"","Муниципальное задание","обслуживание тревожной кнопки",{"$f":"IFERROR(VLOOKUP(Реестр_tb[[#This Row],[Подкатегория]],IF({1,0},Данные_tb[ЕД],Данные_tb[доп. код.]),2,0),\" \")","v":4},{"$f":"IFERROR(VLOOKUP(Реестр_tb[[#This Row],[ДОПЫ]],IF({1,0},Данные_tb[доп. код.],Данные_tb[Источник]),2,0),\" \")","v":20},"Нет","сентябрь","обслуживание тревожной кнопки Росгвардии",5,3500,null,null,null,null,{"$f":"IF(Реестр_tb[[#This Row],[Срок оплаты (дней)]]=\"\",\"\",WORKDAY(Реестр_tb[[#This Row],[входящий (дата)]],Реестр_tb[[#This Row],[Срок оплаты (дней)]]+1,Выходные_tb[Выходные]))","v":""},null,{"$f":"IF(AND(Реестр_tb[[#This Row],[Оплачен]]=\"Да\",Реестр_tb[[#This Row],[Факт. дата оплаты]]<=Реестр_tb[[#This Row],[Плановая дата оплаты]]),\"Оплачено вовремя\",IF(AND(Реестр_tb[[#This Row],[Оплачен]]=\"Да\",Реестр_tb[[#This Row],[Факт. дата оплаты]]>Реестр_tb[[#This Row],[Плановая дата оплаты]]),\"Просрочено\",IF(AND(Реестр_tb[[#This Row],[Оплачен]]=\"Нет\",Реестр_tb[[#This Row],[Факт. дата оплаты]]=\"\",Реестр_tb[[#This Row],[Плановая дата оплаты]]<$AB$1),\"Просрочено\",IF(Реестр_tb[[#This Row],[Плановая дата оплаты]]=$AB$1,\"Сегодня\",IF(Реестр_tb[[#This Row],[Плановая дата оплаты]]<=$AB$1+7,\"В течении недели\",\"Через неделю и более\")))))","v":"Через неделю и более"},null,null,"Контракт № 571 от ххх на сумму 42 000,00 руб. (БО на сумму 42 000,00 руб.)"]
["ООО \"Фортуна-С\"","Муниципальное задание","обслуживание тревожной кнопки",{"$f":"IFERROR(VLOOKUP(Реестр_tb[[#This Row],[Подкатегория]],IF({1,0},Данные_tb[ЕД],Данные_tb[доп. код.]),2,0),\" \")","v":4},{"$f":"IFERROR(VLOOKUP(Реестр_tb[[#This Row],[ДОПЫ]],IF({1,0},Данные_tb[доп. код.],Данные_tb[Источник]),2,0),\" \")","v":20},"Нет","октябрь","обслуживание тревожной кнопки Росгвардии",5,3500,null,null,null,null,{"$f":"IF(Реестр_tb[[#This Row],[Срок оплаты (дней)]]=\"\",\"\",WORKDAY(Реестр_tb[[#This Row],[входящий (дата)]],Реестр_tb[[#This Row],[Срок оплаты (дней)]]+1,Выходные_tb[Выходные]))","v":""},null,{"$f":"IF(AND(Реестр_tb[[#This Row],[Оплачен]]=\"Да\",Реестр_tb[[#This Row],[Факт. дата оплаты]]<=Реестр_tb[[#This Row],[Плановая дата оплаты]]),\"Оплачено вовремя\",IF(AND(Реестр_tb[[#This Row],[Оплачен]]=\"Да\",Реестр_tb[[#This Row],[Факт. дата оплаты]]>Реестр_tb[[#This Row],[Плановая дата оплаты]]),\"Просрочено\",IF(AND(Реестр_tb[[#This Row],[Оплачен]]=\"Нет\",Реестр_tb[[#This Row],[Факт. дата оплаты]]=\"\",Реестр_tb[[#This Row],[Плановая дата оплаты]]<$AB$1),\"Просрочено\",IF(Реестр_tb[[#This Row],[Плановая дата оплаты]]=$AB$1,\"Сегодня\",IF(Реестр_tb[[#This Row],[Плановая дата оплаты]]<=$AB$1+7,\"В течении недели\",\"Через неделю и более\")))))","v":"Через неделю и более"},null,null,"Контракт № 571 от ххх на сумму 42 000,00 руб. (БО на сумму 42 000,00 руб.)"]
["ООО \"Фортуна-С\"","Муниципальное задание","обслуживание тревожной кнопки",{"$f":"IFERROR(VLOOKUP(Реестр_tb[[#This Row],[Подкатегория]],IF({1,0},Данные_tb[ЕД],Данные_tb[доп. код.]),2,0),\" \")","v":4},{"$f":"IFERROR(VLOOKUP(Реестр_tb[[#This Row],[ДОПЫ]],IF({1,0},Данные_tb[доп. код.],Данные_tb[Источник]),2,0),\" \")","v":20},"Нет","ноябрь","обслуживание тревожной кнопки Росгвардии",5,3500,null,null,null,null,{"$f":"IF(Реестр_tb[[#This Row],[Срок оплаты (дней)]]=\"\",\"\",WORKDAY(Реестр_tb[[#This Row],[входящий (дата)]],Реестр_tb[[#This Row],[Срок оплаты (дней)]]+1,Выходные_tb[Выходные]))","v":""},null,{"$f":"IF(AND(Реестр_tb[[#This Row],[Оплачен]]=\"Да\",Реестр_tb[[#This Row],[Факт. дата оплаты]]<=Реестр_tb[[#This Row],[Плановая дата оплаты]]),\"Оплачено вовремя\",IF(AND(Реестр_tb[[#This Row],[Оплачен]]=\"Да\",Реестр_tb[[#This Row],[Факт. дата оплаты]]>Реестр_tb[[#This Row],[Плановая дата оплаты]]),\"Просрочено\",IF(AND(Реестр_tb[[#This Row],[Оплачен]]=\"Нет\",Реестр_tb[[#This Row],[Факт. дата оплаты]]=\"\",Реестр_tb[[#This Row],[Плановая дата оплаты]]<$AB$1),\"Просрочено\",IF(Реестр_tb[[#This Row],[Плановая дата оплаты]]=$AB$1,\"Сегодня\",IF(Реестр_tb[[#This Row],[Плановая дата оплаты]]<=$AB$1+7,\"В течении недели\",\"Через неделю и более\")))))","v":"Через неделю и более"},null,null,"Контракт № 571 от ххх на сумму 42 000,00 руб. (БО на сумму 42 000,00 руб.)"]
["ООО \"Фортуна-С\"","Муниципальное задание","обслуживание тревожной кнопки",{"$f":"IFERROR(VLOOKUP(Реестр_tb[[#This Row],[Подкатегория]],IF({1,0},Данные_tb[ЕД],Данные_tb[доп. код.]),2,0),\" \")","v":4},{"$f":"IFERROR(VLOOKUP(Реестр_tb[[#This Row],[ДОПЫ]],IF({1,0},Данные_tb[доп. код.],Данные_tb[Источник]),2,0),\" \")","v":20},"Нет","декабрь","обслуживание тревожной кнопки Росгвардии",5,3500,null,null,null,null,{"$f":"IF(Реестр_tb[[#This Row],[Срок оплаты (дней)]]=\"\",\"\",WORKDAY(Реестр_tb[[#This Row],[входящий (дата)]],Реестр_tb[[#This Row],[Срок оплаты (дней)]]+1,Выходные_tb[Выходные]))","v":""},null,{"$f":"IF(AND(Реестр_tb[[#This Row],[Оплачен]]=\"Да\",Реестр_tb[[#This Row],[Факт. дата оплаты]]<=Реестр_tb[[#This Row],[Плановая дата оплаты]]),\"Оплачено вовремя\",IF(AND(Реестр_tb[[#This Row],[Оплачен]]=\"Да\",Реестр_tb[[#This Row],[Факт. дата оплаты]]>Реестр_tb[[#This Row],[Плановая дата оплаты]]),\"Просрочено\",IF(AND(Реестр_tb[[#This Row],[Оплачен]]=\"Нет\",Реестр_tb[[#This Row],[Факт. дата оплаты]]=\"\",Реестр_tb[[#This Row],[Плановая дата оплаты]]<$AB$1),\"Просрочено\",IF(Реестр_tb[[#This Row],[Плановая дата оплаты]]=$AB$1,\"Сегодня\",IF(Реестр_tb[[#This Row],[Плановая дата оплаты]]<=$AB$1+7,\"В течении недели\",\"Через неделю и более\")))))","v":"Через неделю и более"},null,null,"Контракт № 571 от ххх на сумму 42 000,00 руб. (БО на сумму 42 000,00 руб.)"]
["ООО \"Южно-Курильский водоканал\"","Коммунальные услуги","вода",{"$f":"IFERROR(VLOOKUP(Реестр_tb[[#This Row],[Подкатегория]],IF({1,0},Данные_tb[ЕД],Данные_tb[доп. код.]),2,0),\" \")","v":23},{"$f":"IFERROR(VLOOKUP(Реестр_tb[[#This Row],[ДОПЫ]],IF({1,0},Данные_tb[доп. код.],Данные_tb[Источник]),2,0),\" \")","v":20},"Нет","январь","Водоснабжение","аукцион и т.п.",134654,null,null,null,null,{"$f":"IF(Реестр_tb[[#This Row],[Срок оплаты (дней)]]=\"\",\"\",WORKDAY(Реестр_tb[[#This Row],[входящий (дата)]],Реестр_tb[[#This Row],[Срок оплаты (дней)]]+1,Выходные_tb[Выходные]))","v":""},null,{"$f":"IF(AND(Реестр_tb[[#This Row],[Оплачен]]=\"Да\",Реестр_tb[[#This Row],[Факт. дата оплаты]]<=Реестр_tb[[#This Row],[Плановая дата оплаты]]),\"Оплачено вовремя\",IF(AND(Реестр_tb[[#This Row],[Оплачен]]=\"Да\",Реестр_tb[[#This Row],[Факт. дата оплаты]]>Реестр_tb[[#This Row],[Плановая дата оплаты]]),\"Просрочено\",IF(AND(Реестр_tb[[#This Row],[Оплачен]]=\"Нет\",Реестр_tb[[#This Row],[Факт. дата оплаты]]=\"\",Реестр_tb[[#This Row],[Плановая дата оплаты]]<$AB$1),\"Просрочено\",IF(Реестр_tb[[#This Row],[Плановая дата оплаты]]=$AB$1,\"Сегодня\",IF(Реестр_tb[[#This Row],[Плановая дата оплаты]]<=$AB$1+7,\"В течении недели\",\"Через неделю и более\")))))","v":"Через неделю и более"},null,null,"Договор № 1 от 26.11.2021 г. на сумму 672 303,52 руб."]
["ООО \"Южно-Курильский водоканал\"","Коммунальные услуги","вода",{"$f":"IFERROR(VLOOKUP(Реестр_tb[[#This Row],[Подкатегория]],IF({1,0},Данные_tb[ЕД],Данные_tb[доп. код.]),2,0),\" \")","v":23},{"$f":"IFERROR(VLOOKUP(Реестр_tb[[#This Row],[ДОПЫ]],IF({1,0},Данные_tb[доп. код.],Данные_tb[Источник]),2,0),\" \")","v":20},"Нет","февраль","Водоснабжение","аукцион и т.п.",135655,null,null,null,null,{"$f":"IF(Реестр_tb[[#This Row],[Срок оплаты (дней)]]=\"\",\"\",WORKDAY(Реестр_tb[[#This Row],[входящий (дата)]],Реестр_tb[[#This Row],[Срок оплаты (дней)]]+1,Выходные_tb[Выходные]))","v":""},null,{"$f":"IF(AND(Реестр_tb[[#This Row],[Оплачен]]=\"Да\",Реестр_tb[[#This Row],[Факт. дата оплаты]]<=Реестр_tb[[#This Row],[Плановая дата оплаты]]),\"Оплачено вовремя\",IF(AND(Реестр_tb[[#This Row],[Оплачен]]=\"Да\",Реестр_tb[[#This Row],[Факт. дата оплаты]]>Реестр_tb[[#This Row],[Плановая дата оплаты]]),\"Просрочено\",IF(AND(Реестр_tb[[#This Row],[Оплачен]]=\"Нет\",Реестр_tb[[#This Row],[Факт. дата оплаты]]=\"\",Реестр_tb[[#This Row],[Плановая дата оплаты]]<$AB$1),\"Просрочено\",IF(Реестр_tb[[#This Row],[Плановая дата оплаты]]=$AB$1,\"Сегодня\",IF(Реестр_tb[[#This Row],[Плановая дата оплаты]]<=$AB$1+7,\"В течении недели\",\"Через неделю и более\")))))","v":"Через неделю и более"},null,null,"Договор № 1 от 26.11.2021 г. на сумму 672 303,52 руб."]
["ООО \"Южно-Курильский водоканал\"","Коммунальные услуги","вода",{"$f":"IFERROR(VLOOKUP(Реестр_tb[[#This Row],[Подкатегория]],IF({1,0},Данные_tb[ЕД],Данные_tb[доп. код.]),2,0),\" \")","v":23},{"$f":"IFERROR(VLOOKUP(Реестр_tb[[#This Row],[ДОПЫ]],IF({1,0},Данные_tb[доп. код.],Данные_tb[Источник]),2,0),\" \")","v":20},"Нет","март","Водоснабжение","аукцион и т.п.",136656,null,null,null,null,{"$f":"IF(Реестр_tb[[#This Row],[Срок оплаты (дней)]]=\"\",\"\",WORKDAY(Реестр_tb[[#This Row],[входящий (дата)]],Реестр_tb[[#This Row],[Срок оплаты (дней)]]+1,Выходные_tb[Выходные]))","v":""},null,{"$f":"IF(AND(Реестр_tb[[#This Row],[Оплачен]]=\"Да\",Реестр_tb[[#This Row],[Факт. дата оплаты]]<=Реестр_tb[[#This Row],[Плановая дата оплаты]]),\"Оплачено вовремя\",IF(AND(Реестр_tb[[#This Row],[Оплачен]]=\"Да\",Реестр_tb[[#This Row],[Факт. дата оплаты]]>Реестр_tb[[#This Row],[Плановая дата оплаты]]),\"Просрочено\",IF(AND(Реестр_tb[[#This Row],[Оплачен]]=\"Нет\",Реестр_tb[[#This Row],[Факт. дата оплаты]]=\"\",Реестр_tb[[#This Row],[Плановая дата оплаты]]<$AB$1),\"Просрочено\",IF(Реестр_tb[[#This Row],[Плановая дата оплаты]]=$AB$1,\"Сегодня\",IF(Реестр_tb[[#This Row],[Плановая дата оплаты]]<=$AB$1+7,\"В течении недели\",\"Через неделю и более\")))))","v":"Через неделю и более"},null,null,"Договор № 1 от 26.11.2021 г. на сумму 672 303,52 руб."]
["ООО \"Южно-Курильский водоканал\"","Коммунальные услуги","вода",{"$f":"IFERROR(VLOOKUP(Реестр_tb[[#This Row],[Подкатегория]],IF({1,0},Данные_tb[ЕД],Данные_tb[доп. код.]),2,0),\" \")","v":23},{"$f":"IFERROR(VLOOKUP(Реестр_tb[[#This Row],[ДОПЫ]],IF({1,0},Данные_tb[доп. код.],Данные_tb[Источник]),2,0),\" \")","v":20},"Нет","апрель","Водоснабжение","аукцион и т.п.",137657,null,null,null,null,{"$f":"IF(Реестр_tb[[#This Row],[Срок оплаты (дней)]]=\"\",\"\",WORKDAY(Реестр_tb[[#This Row],[входящий (дата)]],Реестр_tb[[#This Row],[Срок оплаты (дней)]]+1,Выходные_tb[Выходные]))","v":""},null,{"$f":"IF(AND(Реестр_tb[[#This Row],[Оплачен]]=\"Да\",Реестр_tb[[#This Row],[Факт. дата оплаты]]<=Реестр_tb[[#This Row],[Плановая дата оплаты]]),\"Оплачено вовремя\",IF(AND(Реестр_tb[[#This Row],[Оплачен]]=\"Да\",Реестр_tb[[#This Row],[Факт. дата оплаты]]>Реестр_tb[[#This Row],[Плановая дата оплаты]]),\"Просрочено\",IF(AND(Реестр_tb[[#This Row],[Оплачен]]=\"Нет\",Реестр_tb[[#This Row],[Факт. дата оплаты]]=\"\",Реестр_tb[[#This Row],[Плановая дата оплаты]]<$AB$1),\"Просрочено\",IF(Реестр_tb[[#This Row],[Плановая дата оплаты]]=$AB$1,\"Сегодня\",IF(Реестр_tb[[#This Row],[Плановая дата оплаты]]<=$AB$1+7,\"В течении недели\",\"Через неделю и более\")))))","v":"Через неделю и более"},null,null,"Договор № 1 от 26.11.2021 г. на сумму 672 303,52 руб."]
["ООО \"Южно-Курильский водоканал\"","Коммунальные услуги","вода",{"$f":"IFERROR(VLOOKUP(Реестр_tb[[#This Row],[Подкатегория]],IF({1,0},Данные_tb[ЕД],Данные_tb[доп. код.]),2,0),\" \")","v":23},{"$f":"IFERROR(VLOOKUP(Реестр_tb[[#This Row],[ДОПЫ]],IF({1,0},Данные_tb[доп. код.],Данные_tb[Источник]),2,0),\" \")","v":20},"Нет","май","Водоснабжение","аукцион и т.п.",138658,null,null,null,null,{"$f":"IF(Реестр_tb[[#This Row],[Срок оплаты (дней)]]=\"\",\"\",WORKDAY(Реестр_tb[[#This Row],[входящий (дата)]],Реестр_tb[[#This Row],[Срок оплаты (дней)]]+1,Выходные_tb[Выходные]))","v":""},null,{"$f":"IF(AND(Реестр_tb[[#This Row],[Оплачен]]=\"Да\",Реестр_tb[[#This Row],[Факт. дата оплаты]]<=Реестр_tb[[#This Row],[Плановая дата оплаты]]),\"Оплачено вовремя\",IF(AND(Реестр_tb[[#This Row],[Оплачен]]=\"Да\",Реестр_tb[[#This Row],[Факт. дата оплаты]]>Реестр_tb[[#This Row],[Плановая дата оплаты]]),\"Просрочено\",IF(AND(Реестр_tb[[#This Row],[Оплачен]]=\"Нет\",Реестр_tb[[#This Row],[Факт. дата оплаты]]=\"\",Реестр_tb[[#This Row],[Плановая дата оплаты]]<$AB$1),\"Просрочено\",IF(Реестр_tb[[#This Row],[Плановая дата оплаты]]=$AB$1,\"Сегодня\",IF(Реестр_tb[[#This Row],[Плановая дата оплаты]]<=$AB$1+7,\"В течении недели\",\"Через неделю и более\")))))","v":"Через неделю и более"},null,null,"Договор № 1 от 26.11.2021 г. на сумму 672 303,52 руб."]
["ООО \"Южно-Курильский водоканал\"","Коммунальные услуги","вода",{"$f":"IFERROR(VLOOKUP(Реестр_tb[[#This Row],[Подкатегория]],IF({1,0},Данные_tb[ЕД],Данные_tb[доп. код.]),2,0),\" \")","v":23},{"$f":"IFERROR(VLOOKUP(Реестр_tb[[#This Row],[ДОПЫ]],IF({1,0},Данные_tb[доп. код.],Данные_tb[Источник]),2,0),\" \")","v":20},"Нет","июнь","Водоснабжение","аукцион и т.п.",139659,null,null,null,null,{"$f":"IF(Реестр_tb[[#This Row],[Срок оплаты (дней)]]=\"\",\"\",WORKDAY(Реестр_tb[[#This Row],[входящий (дата)]],Реестр_tb[[#This Row],[Срок оплаты (дней)]]+1,Выходные_tb[Выходные]))","v":""},null,{"$f":"IF(AND(Реестр_tb[[#This Row],[Оплачен]]=\"Да\",Реестр_tb[[#This Row],[Факт. дата оплаты]]<=Реестр_tb[[#This Row],[Плановая дата оплаты]]),\"Оплачено вовремя\",IF(AND(Реестр_tb[[#This Row],[Оплачен]]=\"Да\",Реестр_tb[[#This Row],[Факт. дата оплаты]]>Реестр_tb[[#This Row],[Плановая дата оплаты]]),\"Просрочено\",IF(AND(Реестр_tb[[#This Row],[Оплачен]]=\"Нет\",Реестр_tb[[#This Row],[Факт. дата оплаты]]=\"\",Реестр_tb[[#This Row],[Плановая дата оплаты]]<$AB$1),\"Просрочено\",IF(Реестр_tb[[#This Row],[Плановая дата оплаты]]=$AB$1,\"Сегодня\",IF(Реестр_tb[[#This Row],[Плановая дата оплаты]]<=$AB$1+7,\"В течении недели\",\"Через неделю и более\")))))","v":"Через неделю и более"},null,null,"Договор № 1 от 26.11.2021 г. на сумму 672 303,52 руб."]
["ООО \"Южно-Курильский водоканал\"","Коммунальные услуги","вода",{"$f":"IFERROR(VLOOKUP(Реестр_tb[[#This Row],[Подкатегория]],IF({1,0},Данные_tb[ЕД],Данные_tb[доп. код.]),2,0),\" \")","v":23},{"$f":"IFERROR(VLOOKUP(Реестр_tb[[#This Row],[ДОПЫ]],IF({1,0},Данные_tb[доп. код.],Данные_tb[Источник]),2,0),\" \")","v":20},"Нет","июль","Водоснабжение","аукцион и т.п.",140660,null,null,null,null,{"$f":"IF(Реестр_tb[[#This Row],[Срок оплаты (дней)]]=\"\",\"\",WORKDAY(Реестр_tb[[#This Row],[входящий (дата)]],Реестр_tb[[#This Row],[Срок оплаты (дней)]]+1,Выходные_tb[Выходные]))","v":""},null,{"$f":"IF(AND(Реестр_tb[[#This Row],[Оплачен]]=\"Да\",Реестр_tb[[#This Row],[Факт. дата оплаты]]<=Реестр_tb[[#This Row],[Плановая дата оплаты]]),\"Оплачено вовремя\",IF(AND(Реестр_tb[[#This Row],[Оплачен]]=\"Да\",Реестр_tb[[#This Row],[Факт. дата оплаты]]>Реестр_tb[[#This Row],[Плановая дата оплаты]]),\"Просрочено\",IF(AND(Реестр_tb[[#This Row],[Оплачен]]=\"Нет\",Реестр_tb[[#This Row],[Факт. дата оплаты]]=\"\",Реестр_tb[[#This Row],[Плановая дата оплаты]]<$AB$1),\"Просрочено\",IF(Реестр_tb[[#This Row],[Плановая дата оплаты]]=$AB$1,\"Сегодня\",IF(Реестр_tb[[#This Row],[Плановая дата оплаты]]<=$AB$1+7,\"В течении недели\",\"Через неделю и более\")))))","v":"Через неделю и более"},null,null,"Договор № 1 от 26.11.2021 г. на сумму 672 303,52 руб."]
["ООО \"Южно-Курильский водоканал\"","Коммунальные услуги","вода",{"$f":"IFERROR(VLOOKUP(Реестр_tb[[#This Row],[Подкатегория]],IF({1,0},Данные_tb[ЕД],Данные_tb[доп. код.]),2,0),\" \")","v":23},{"$f":"IFERROR(VLOOKUP(Реестр_tb[[#This Row],[ДОПЫ]],IF({1,0},Данные_tb[доп. код.],Данные_tb[Источник]),2,0),\" \")","v":20},"Нет","август","Водоснабжение","аукцион и т.п.",141661,null,null,null,null,{"$f":"IF(Реестр_tb[[#This Row],[Срок оплаты (дней)]]=\"\",\"\",WORKDAY(Реестр_tb[[#This Row],[входящий (дата)]],Реестр_tb[[#This Row],[Срок оплаты (дней)]]+1,Выходные_tb[Выходные]))","v":""},null,{"$f":"IF(AND(Реестр_tb[[#This Row],[Оплачен]]=\"Да\",Реестр_tb[[#This Row],[Факт. дата оплаты]]<=Реестр_tb[[#This Row],[Плановая дата оплаты]]),\"Оплачено вовремя\",IF(AND(Реестр_tb[[#This Row],[Оплачен]]=\"Да\",Реестр_tb[[#This Row],[Факт. дата оплаты]]>Реестр_tb[[#This Row],[Плановая дата оплаты]]),\"Просрочено\",IF(AND(Реестр_tb[[#This Row],[Оплачен]]=\"Нет\",Реестр_tb[[#This Row],[Факт. дата оплаты]]=\"\",Реестр_tb[[#This Row],[Плановая дата оплаты]]<$AB$1),\"Просрочено\",IF(Реестр_tb[[#This Row],[Плановая дата оплаты]]=$AB$1,\"Сегодня\",IF(Реестр_tb[[#This Row],[Плановая дата оплаты]]<=$AB$1+7,\"В течении недели\",\"Через неделю и более\")))))","v":"Через неделю и более"},null,null,"Договор № 1 от 26.11.2021 г. на сумму 672 303,52 руб."]
["ООО \"Южно-Курильский водоканал\"","Коммунальные услуги","вода",{"$f":"IFERROR(VLOOKUP(Реестр_tb[[#This Row],[Подкатегория]],IF({1,0},Данные_tb[ЕД],Данные_tb[доп. код.]),2,0),\" \")","v":23},{"$f":"IFERROR(VLOOKUP(Реестр_tb[[#This Row],[ДОПЫ]],IF({1,0},Данные_tb[доп. код.],Данные_tb[Источник]),2,0),\" \")","v":20},"Нет","сентябрь","Водоснабжение","аукцион и т.п.",142662,null,null,null,null,{"$f":"IF(Реестр_tb[[#This Row],[Срок оплаты (дней)]]=\"\",\"\",WORKDAY(Реестр_tb[[#This Row],[входящий (дата)]],Реестр_tb[[#This Row],[Срок оплаты (дней)]]+1,Выходные_tb[Выходные]))","v":""},null,{"$f":"IF(AND(Реестр_tb[[#This Row],[Оплачен]]=\"Да\",Реестр_tb[[#This Row],[Факт. дата оплаты]]<=Реестр_tb[[#This Row],[Плановая дата оплаты]]),\"Оплачено вовремя\",IF(AND(Реестр_tb[[#This Row],[Оплачен]]=\"Да\",Реестр_tb[[#This Row],[Факт. дата оплаты]]>Реестр_tb[[#This Row],[Плановая дата оплаты]]),\"Просрочено\",IF(AND(Реестр_tb[[#This Row],[Оплачен]]=\"Нет\",Реестр_tb[[#This Row],[Факт. дата оплаты]]=\"\",Реестр_tb[[#This Row],[Плановая дата оплаты]]<$AB$1),\"Просрочено\",IF(Реестр_tb[[#This Row],[Плановая дата оплаты]]=$AB$1,\"Сегодня\",IF(Реестр_tb[[#This Row],[Плановая дата оплаты]]<=$AB$1+7,\"В течении недели\",\"Через неделю и более\")))))","v":"Через неделю и более"},null,null,"Договор № 1 от 26.11.2021 г. на сумму 672 303,52 руб."]
["ООО \"Южно-Курильский водоканал\"","Коммунальные услуги","вода",{"$f":"IFERROR(VLOOKUP(Реестр_tb[[#This Row],[Подкатегория]],IF({1,0},Данные_tb[ЕД],Данные_tb[доп. код.]),2,0),\" \")","v":23},{"$f":"IFERROR(VLOOKUP(Реестр_tb[[#This Row],[ДОПЫ]],IF({1,0},Данные_tb[доп. код.],Данные_tb[Источник]),2,0),\" \")","v":20},"Нет","октябрь","Водоснабжение","аукцион и т.п.",143663,null,null,null,null,{"$f":"IF(Реестр_tb[[#This Row],[Срок оплаты (дней)]]=\"\",\"\",WORKDAY(Реестр_tb[[#This Row],[входящий (дата)]],Реестр_tb[[#This Row],[Срок оплаты (дней)]]+1,Выходные_tb[Выходные]))","v":""},null,{"$f":"IF(AND(Реестр_tb[[#This Row],[Оплачен]]=\"Да\",Реестр_tb[[#This Row],[Факт. дата оплаты]]<=Реестр_tb[[#This Row],[Плановая дата оплаты]]),\"Оплачено вовремя\",IF(AND(Реестр_tb[[#This Row],[Оплачен]]=\"Да\",Реестр_tb[[#This Row],[Факт. дата оплаты]]>Реестр_tb[[#This Row],[Плановая дата оплаты]]),\"Просрочено\",IF(AND(Реестр_tb[[#This Row],[Оплачен]]=\"Нет\",Реестр_tb[[#This Row],[Факт. дата оплаты]]=\"\",Реестр_tb[[#This Row],[Плановая дата оплаты]]<$AB$1),\"Просрочено\",IF(Реестр_tb[[#This Row],[Плановая дата оплаты]]=$AB$1,\"Сегодня\",IF(Реестр_tb[[#This Row],[Плановая дата оплаты]]<=$AB$1+7,\"В течении недели\",\"Через неделю и более\")))))","v":"Через неделю и более"},null,null,"Договор № 1 от 26.11.2021 г. на сумму 672 303,52 руб."]
["ООО \"Южно-Курильский водоканал\"","Коммунальные услуги","вода",{"$f":"IFERROR(VLOOKUP(Реестр_tb[[#This Row],[Подкатегория]],IF({1,0},Данные_tb[ЕД],Данные_tb[доп. код.]),2,0),\" \")","v":23},{"$f":"IFERROR(VLOOKUP(Реестр_tb[[#This Row],[ДОПЫ]],IF({1,0},Данные_tb[доп. код.],Данные_tb[Источник]),2,0),\" \")","v":20},"Нет","ноябрь","Водоснабжение","аукцион и т.п.",144664,null,null,null,null,{"$f":"IF(Реестр_tb[[#This Row],[Срок оплаты (дней)]]=\"\",\"\",WORKDAY(Реестр_tb[[#This Row],[входящий (дата)]],Реестр_tb[[#This Row],[Срок оплаты (дней)]]+1,Выходные_tb[Выходные]))","v":""},null,{"$f":"IF(AND(Реестр_tb[[#This Row],[Оплачен]]=\"Да\",Реестр_tb[[#This Row],[Факт. дата оплаты]]<=Реестр_tb[[#This Row],[Плановая дата оплаты]]),\"Оплачено вовремя\",IF(AND(Реестр_tb[[#This Row],[Оплачен]]=\"Да\",Реестр_tb[[#This Row],[Факт. дата оплаты]]>Реестр_tb[[#This Row],[Плановая дата оплаты]]),\"Просрочено\",IF(AND(Реестр_tb[[#This Row],[Оплачен]]=\"Нет\",Реестр_tb[[#This Row],[Факт. дата оплаты]]=\"\",Реестр_tb[[#This Row],[Плановая дата оплаты]]<$AB$1),\"Просрочено\",IF(Реестр_tb[[#This Row],[Плановая дата оплаты]]=$AB$1,\"Сегодня\",IF(Реестр_tb[[#This Row],[Плановая дата оплаты]]<=$AB$1+7,\"В течении недели\",\"Через неделю и более\")))))","v":"Через неделю и более"},null,null,"Договор № 1 от 26.11.2021 г. на сумму 672 303,52 руб."]
["ООО \"Южно-Курильский водоканал\"","Коммунальные услуги","вода",{"$f":"IFERROR(VLOOKUP(Реестр_tb[[#This Row],[Подкатегория]],IF({1,0},Данные_tb[ЕД],Данные_tb[доп. код.]),2,0),\" \")","v":23},{"$f":"IFERROR(VLOOKUP(Реестр_tb[[#This Row],[ДОПЫ]],IF({1,0},Данные_tb[доп. код.],Данные_tb[Источник]),2,0),\" \")","v":20},"Нет","декабрь","Водоснабжение","аукцион и т.п.",145665,null,null,null,null,{"$f":"IF(Реестр_tb[[#This Row],[Срок оплаты (дней)]]=\"\",\"\",WORKDAY(Реестр_tb[[#This Row],[входящий (дата)]],Реестр_tb[[#This Row],[Срок оплаты (дней)]]+1,Выходные_tb[Выходные]))","v":""},null,{"$f":"IF(AND(Реестр_tb[[#This Row],[Оплачен]]=\"Да\",Реестр_tb[[#This Row],[Факт. дата оплаты]]<=Реестр_tb[[#This Row],[Плановая дата оплаты]]),\"Оплачено вовремя\",IF(AND(Реестр_tb[[#This Row],[Оплачен]]=\"Да\",Реестр_tb[[#This Row],[Факт. дата оплаты]]>Реестр_tb[[#This Row],[Плановая дата оплаты]]),\"Просрочено\",IF(AND(Реестр_tb[[#This Row],[Оплачен]]=\"Нет\",Реестр_tb[[#This Row],[Факт. дата оплаты]]=\"\",Реестр_tb[[#This Row],[Плановая дата оплаты]]<$AB$1),\"Просрочено\",IF(Реестр_tb[[#This Row],[Плановая дата оплаты]]=$AB$1,\"Сегодня\",IF(Реестр_tb[[#This Row],[Плановая дата оплаты]]<=$AB$1+7,\"В течении недели\",\"Через неделю и более\")))))","v":"Через неделю и более"},null,null,"Договор № 1 от 26.11.2021 г. на сумму 672 303,52 руб."]
["ООО \"Южно-Курильский водоканал\"","Коммунальные услуги","теплоснабжение",{"$f":"IFERROR(VLOOKUP(Реестр_tb[[#This Row],[Подкатегория]],IF({1,0},Данные_tb[ЕД],Данные_tb[доп. код.]),2,0),\" \")","v":23},{"$f":"IFERROR(VLOOKUP(Реестр_tb[[#This Row],[ДОПЫ]],IF({1,0},Данные_tb[доп. код.],Данные_tb[Источник]),2,0),\" \")","v":20},"Нет","январь","теплоснабжение","аукцион и т.п.",146666,null,null,null,null,{"$f":"IF(Реестр_tb[[#This Row],[Срок оплаты (дней)]]=\"\",\"\",WORKDAY(Реестр_tb[[#This Row],[входящий (дата)]],Реестр_tb[[#This Row],[Срок оплаты (дней)]]+1,Выходные_tb[Выходные]))","v":""},null,{"$f":"IF(AND(Реестр_tb[[#This Row],[Оплачен]]=\"Да\",Реестр_tb[[#This Row],[Факт. дата оплаты]]<=Реестр_tb[[#This Row],[Плановая дата оплаты]]),\"Оплачено вовремя\",IF(AND(Реестр_tb[[#This Row],[Оплачен]]=\"Да\",Реестр_tb[[#This Row],[Факт. дата оплаты]]>Реестр_tb[[#This Row],[Плановая дата оплаты]]),\"Просрочено\",IF(AND(Реестр_tb[[#This Row],[Оплачен]]=\"Нет\",Реестр_tb[[#This Row],[Факт. дата оплаты]]=\"\",Реестр_tb[[#This Row],[Плановая дата оплаты]]<$AB$1),\"Просрочено\",IF(Реестр_tb[[#This Row],[Плановая дата оплаты]]=$AB$1,\"Сегодня\",IF(Реестр_tb[[#This Row],[Плановая дата оплаты]]<=$AB$1+7,\"В течении недели\",\"Через неделю и более\")))))","v":"Через неделю и более"},null,null,"Договор № 7 от 22.12.2021 г. на сумму 4 588 650,74 руб."]
["ООО \"Южно-Курильский водоканал\"","Коммунальные услуги","теплоснабжение",{"$f":"IFERROR(VLOOKUP(Реестр_tb[[#This Row],[Подкатегория]],IF({1,0},Данные_tb[ЕД],Данные_tb[доп. код.]),2,0),\" \")","v":23},{"$f":"IFERROR(VLOOKUP(Реестр_tb[[#This Row],[ДОПЫ]],IF({1,0},Данные_tb[доп. код.],Данные_tb[Источник]),2,0),\" \")","v":20},"Нет","февраль","теплоснабжение","аукцион и т.п.",147667,null,null,null,null,{"$f":"IF(Реестр_tb[[#This Row],[Срок оплаты (дней)]]=\"\",\"\",WORKDAY(Реестр_tb[[#This Row],[входящий (дата)]],Реестр_tb[[#This Row],[Срок оплаты (дней)]]+1,Выходные_tb[Выходные]))","v":""},null,{"$f":"IF(AND(Реестр_tb[[#This Row],[Оплачен]]=\"Да\",Реестр_tb[[#This Row],[Факт. дата оплаты]]<=Реестр_tb[[#This Row],[Плановая дата оплаты]]),\"Оплачено вовремя\",IF(AND(Реестр_tb[[#This Row],[Оплачен]]=\"Да\",Реестр_tb[[#This Row],[Факт. дата оплаты]]>Реестр_tb[[#This Row],[Плановая дата оплаты]]),\"Просрочено\",IF(AND(Реестр_tb[[#This Row],[Оплачен]]=\"Нет\",Реестр_tb[[#This Row],[Факт. дата оплаты]]=\"\",Реестр_tb[[#This Row],[Плановая дата оплаты]]<$AB$1),\"Просрочено\",IF(Реестр_tb[[#This Row],[Плановая дата оплаты]]=$AB$1,\"Сегодня\",IF(Реестр_tb[[#This Row],[Плановая дата оплаты]]<=$AB$1+7,\"В течении недели\",\"Через неделю и более\")))))","v":"Через неделю и более"},null,null,"Договор № 7 от 22.12.2021 г. на сумму 4 588 650,74 руб."]
["ООО \"Южно-Курильский водоканал\"","Коммунальные услуги","теплоснабжение",{"$f":"IFERROR(VLOOKUP(Реестр_tb[[#This Row],[Подкатегория]],IF({1,0},Данные_tb[ЕД],Данные_tb[доп. код.]),2,0),\" \")","v":23},{"$f":"IFERROR(VLOOKUP(Реестр_tb[[#This Row],[ДОПЫ]],IF({1,0},Данные_tb[доп. код.],Данные_tb[Источник]),2,0),\" \")","v":20},"Нет","март","теплоснабжение","аукцион и т.п.",148668,null,null,null,null,{"$f":"IF(Реестр_tb[[#This Row],[Срок оплаты (дней)]]=\"\",\"\",WORKDAY(Реестр_tb[[#This Row],[входящий (дата)]],Реестр_tb[[#This Row],[Срок оплаты (дней)]]+1,Выходные_tb[Выходные]))","v":""},null,{"$f":"IF(AND(Реестр_tb[[#This Row],[Оплачен]]=\"Да\",Реестр_tb[[#This Row],[Факт. дата оплаты]]<=Реестр_tb[[#This Row],[Плановая дата оплаты]]),\"Оплачено вовремя\",IF(AND(Реестр_tb[[#This Row],[Оплачен]]=\"Да\",Реестр_tb[[#This Row],[Факт. дата оплаты]]>Реестр_tb[[#This Row],[Плановая дата оплаты]]),\"Просрочено\",IF(AND(Реестр_tb[[#This Row],[Оплачен]]=\"Нет\",Реестр_tb[[#This Row],[Факт. дата оплаты]]=\"\",Реестр_tb[[#This Row],[Плановая дата оплаты]]<$AB$1),\"Просрочено\",IF(Реестр_tb[[#This Row],[Плановая дата оплаты]]=$AB$1,\"Сегодня\",IF(Реестр_tb[[#This Row],[Плановая дата оплаты]]<=$AB$1+7,\"В течении недели\",\"Через неделю и более\")))))","v":"Через неделю и более"},null,null,"Договор № 7 от 22.12.2021 г. на сумму 4 588 650,74 руб."]
["ООО \"Южно-Курильский водоканал\"","Коммунальные услуги","теплоснабжение",{"$f":"IFERROR(VLOOKUP(Реестр_tb[[#This Row],[Подкатегория]],IF({1,0},Данные_tb[ЕД],Данные_tb[доп. код.]),2,0),\" \")","v":23},{"$f":"IFERROR(VLOOKUP(Реестр_tb[[#This Row],[ДОПЫ]],IF({1,0},Данные_tb[доп. код.],Данные_tb[Источник]),2,0),\" \")","v":20},"Нет","апрель","теплоснабжение","аукцион и т.п.",149669,null,null,null,null,{"$f":"IF(Реестр_tb[[#This Row],[Срок оплаты (дней)]]=\"\",\"\",WORKDAY(Реестр_tb[[#This Row],[входящий (дата)]],Реестр_tb[[#This Row],[Срок оплаты (дней)]]+1,Выходные_tb[Выходные]))","v":""},null,{"$f":"IF(AND(Реестр_tb[[#This Row],[Оплачен]]=\"Да\",Реестр_tb[[#This Row],[Факт. дата оплаты]]<=Реестр_tb[[#This Row],[Плановая дата оплаты]]),\"Оплачено вовремя\",IF(AND(Реестр_tb[[#This Row],[Оплачен]]=\"Да\",Реестр_tb[[#This Row],[Факт. дата оплаты]]>Реестр_tb[[#This Row],[Плановая дата оплаты]]),\"Просрочено\",IF(AND(Реестр_tb[[#This Row],[Оплачен]]=\"Нет\",Реестр_tb[[#This Row],[Факт. дата оплаты]]=\"\",Реестр_tb[[#This Row],[Плановая дата оплаты]]<$AB$1),\"Просрочено\",IF(Реестр_tb[[#This Row],[Плановая дата оплаты]]=$AB$1,\"Сегодня\",IF(Реестр_tb[[#This Row],[Плановая дата оплаты]]<=$AB$1+7,\"В течении недели\",\"Через неделю и более\")))))","v":"Через неделю и более"},null,null,"Договор № 7 от 22.12.2021 г. на сумму 4 588 650,74 руб."]
["ООО \"Южно-Курильский водоканал\"","Коммунальные услуги","теплоснабжение",{"$f":"IFERROR(VLOOKUP(Реестр_tb[[#This Row],[Подкатегория]],IF({1,0},Данные_tb[ЕД],Данные_tb[доп. код.]),2,0),\" \")","v":23},{"$f":"IFERROR(VLOOKUP(Реестр_tb[[#This Row],[ДОПЫ]],IF({1,0},Данные_tb[доп. код.],Данные_tb[Источник]),2,0),\" \")","v":20},"Нет","май","теплоснабжение","аукцион и т.п.",150670,null,null,null,null,{"$f":"IF(Реестр_tb[[#This Row],[Срок оплаты (дней)]]=\"\",\"\",WORKDAY(Реестр_tb[[#This Row],[входящий (дата)]],Реестр_tb[[#This Row],[Срок оплаты (дней)]]+1,Выходные_tb[Выходные]))","v":""},null,{"$f":"IF(AND(Реестр_tb[[#This Row],[Оплачен]]=\"Да\",Реестр_tb[[#This Row],[Факт. дата оплаты]]<=Реестр_tb[[#This Row],[Плановая дата оплаты]]),\"Оплачено вовремя\",IF(AND(Реестр_tb[[#This Row],[Оплачен]]=\"Да\",Реестр_tb[[#This Row],[Факт. дата оплаты]]>Реестр_tb[[#This Row],[Плановая дата оплаты]]),\"Просрочено\",IF(AND(Реестр_tb[[#This Row],[Оплачен]]=\"Нет\",Реестр_tb[[#This Row],[Факт. дата оплаты]]=\"\",Реестр_tb[[#This Row],[Плановая дата оплаты]]<$AB$1),\"Просрочено\",IF(Реестр_tb[[#This Row],[Плановая дата оплаты]]=$AB$1,\"Сегодня\",IF(Реестр_tb[[#This Row],[Плановая дата оплаты]]<=$AB$1+7,\"В течении недели\",\"Через неделю и более\")))))","v":"Через неделю и более"},null,null,"Договор № 7 от 22.12.2021 г. на сумму 4 588 650,74 руб."]
["ООО \"Южно-Курильский водоканал\"","Коммунальные услуги","теплоснабжение",{"$f":"IFERROR(VLOOKUP(Реестр_tb[[#This Row],[Подкатегория]],IF({1,0},Данные_tb[ЕД],Данные_tb[доп. код.]),2,0),\" \")","v":23},{"$f":"IFERROR(VLOOKUP(Реестр_tb[[#This Row],[ДОПЫ]],IF({1,0},Данные_tb[доп. код.],Данные_tb[Источник]),2,0),\" \")","v":20},"Нет","июнь","теплоснабжение","аукцион и т.п.",151671,null,null,null,null,{"$f":"IF(Реестр_tb[[#This Row],[Срок оплаты (дней)]]=\"\",\"\",WORKDAY(Реестр_tb[[#This Row],[входящий (дата)]],Реестр_tb[[#This Row],[Срок оплаты (дней)]]+1,Выходные_tb[Выходные]))","v":""},null,{"$f":"IF(AND(Реестр_tb[[#This Row],[Оплачен]]=\"Да\",Реестр_tb[[#This Row],[Факт. дата оплаты]]<=Реестр_tb[[#This Row],[Плановая дата оплаты]]),\"Оплачено вовремя\",IF(AND(Реестр_tb[[#This Row],[Оплачен]]=\"Да\",Реестр_tb[[#This Row],[Факт. дата оплаты]]>Реестр_tb[[#This Row],[Плановая дата оплаты]]),\"Просрочено\",IF(AND(Реестр_tb[[#This Row],[Оплачен]]=\"Нет\",Реестр_tb[[#This Row],[Факт. дата оплаты]]=\"\",Реестр_tb[[#This Row],[Плановая дата оплаты]]<$AB$1),\"Просрочено\",IF(Реестр_tb[[#This Row],[Плановая дата оплаты]]=$AB$1,\"Сегодня\",IF(Реестр_tb[[#This Row],[Плановая дата оплаты]]<=$AB$1+7,\"В течении недели\",\"Через неделю и более\")))))","v":"Через неделю и более"},null,null,"Договор № 7 от 22.12.2021 г. на сумму 4 588 650,74 руб."]
["ООО \"Южно-Курильский водоканал\"","Коммунальные услуги","теплоснабжение",{"$f":"IFERROR(VLOOKUP(Реестр_tb[[#This Row],[Подкатегория]],IF({1,0},Данные_tb[ЕД],Данные_tb[доп. код.]),2,0),\" \")","v":23},{"$f":"IFERROR(VLOOKUP(Реестр_tb[[#This Row],[ДОПЫ]],IF({1,0},Данные_tb[доп. код.],Данные_tb[Источник]),2,0),\" \")","v":20},"Нет","июль","теплоснабжение","аукцион и т.п.",152672,null,null,null,null,{"$f":"IF(Реестр_tb[[#This Row],[Срок оплаты (дней)]]=\"\",\"\",WORKDAY(Реестр_tb[[#This Row],[входящий (дата)]],Реестр_tb[[#This Row],[Срок оплаты (дней)]]+1,Выходные_tb[Выходные]))","v":""},null,{"$f":"IF(AND(Реестр_tb[[#This Row],[Оплачен]]=\"Да\",Реестр_tb[[#This Row],[Факт. дата оплаты]]<=Реестр_tb[[#This Row],[Плановая дата оплаты]]),\"Оплачено вовремя\",IF(AND(Реестр_tb[[#This Row],[Оплачен]]=\"Да\",Реестр_tb[[#This Row],[Факт. дата оплаты]]>Реестр_tb[[#This Row],[Плановая дата оплаты]]),\"Просрочено\",IF(AND(Реестр_tb[[#This Row],[Оплачен]]=\"Нет\",Реестр_tb[[#This Row],[Факт. дата оплаты]]=\"\",Реестр_tb[[#This Row],[Плановая дата оплаты]]<$AB$1),\"Просрочено\",IF(Реестр_tb[[#This Row],[Плановая дата оплаты]]=$AB$1,\"Сегодня\",IF(Реестр_tb[[#This Row],[Плановая дата оплаты]]<=$AB$1+7,\"В течении недели\",\"Через неделю и более\")))))","v":"Через неделю и более"},null,null,"Договор № 7 от 22.12.2021 г. на сумму 4 588 650,74 руб."]
["ООО \"Южно-Курильский водоканал\"","Коммунальные услуги","теплоснабжение",{"$f":"IFERROR(VLOOKUP(Реестр_tb[[#This Row],[Подкатегория]],IF({1,0},Данные_tb[ЕД],Данные_tb[доп. код.]),2,0),\" \")","v":23},{"$f":"IFERROR(VLOOKUP(Реестр_tb[[#This Row],[ДОПЫ]],IF({1,0},Данные_tb[доп. код.],Данные_tb[Источник]),2,0),\" \")","v":20},"Нет","август","теплоснабжение","аукцион и т.п.",153673,null,null,null,null,{"$f":"IF(Реестр_tb[[#This Row],[Срок оплаты (дней)]]=\"\",\"\",WORKDAY(Реестр_tb[[#This Row],[входящий (дата)]],Реестр_tb[[#This Row],[Срок оплаты (дней)]]+1,Выходные_tb[Выходные]))","v":""},null,{"$f":"IF(AND(Реестр_tb[[#This Row],[Оплачен]]=\"Да\",Реестр_tb[[#This Row],[Факт. дата оплаты]]<=Реестр_tb[[#This Row],[Плановая дата оплаты]]),\"Оплачено вовремя\",IF(AND(Реестр_tb[[#This Row],[Оплачен]]=\"Да\",Реестр_tb[[#This Row],[Факт. дата оплаты]]>Реестр_tb[[#This Row],[Плановая дата оплаты]]),\"Просрочено\",IF(AND(Реестр_tb[[#This Row],[Оплачен]]=\"Нет\",Реестр_tb[[#This Row],[Факт. дата оплаты]]=\"\",Реестр_tb[[#This Row],[Плановая дата оплаты]]<$AB$1),\"Просрочено\",IF(Реестр_tb[[#This Row],[Плановая дата оплаты]]=$AB$1,\"Сегодня\",IF(Реестр_tb[[#This Row],[Плановая дата оплаты]]<=$AB$1+7,\"В течении недели\",\"Через неделю и более\")))))","v":"Через неделю и более"},null,null,"Договор № 7 от 22.12.2021 г. на сумму 4 588 650,74 руб."]
["ООО \"Южно-Курильский водоканал\"","Коммунальные услуги","теплоснабжение",{"$f":"IFERROR(VLOOKUP(Реестр_tb[[#This Row],[Подкатегория]],IF({1,0},Данные_tb[ЕД],Данные_tb[доп. код.]),2,0),\" \")","v":23},{"$f":"IFERROR(VLOOKUP(Реестр_tb[[#This Row],[ДОПЫ]],IF({1,0},Данные_tb[доп. код.],Данные_tb[Источник]),2,0),\" \")","v":20},"Нет","сентябрь","теплоснабжение","аукцион и т.п.",154674,null,null,null,null,{"$f":"IF(Реестр_tb[[#This Row],[Срок оплаты (дней)]]=\"\",\"\",WORKDAY(Реестр_tb[[#This Row],[входящий (дата)]],Реестр_tb[[#This Row],[Срок оплаты (дней)]]+1,Выходные_tb[Выходные]))","v":""},null,{"$f":"IF(AND(Реестр_tb[[#This Row],[Оплачен]]=\"Да\",Реестр_tb[[#This Row],[Факт. дата оплаты]]<=Реестр_tb[[#This Row],[Плановая дата оплаты]]),\"Оплачено вовремя\",IF(AND(Реестр_tb[[#This Row],[Оплачен]]=\"Да\",Реестр_tb[[#This Row],[Факт. дата оплаты]]>Реестр_tb[[#This Row],[Плановая дата оплаты]]),\"Просрочено\",IF(AND(Реестр_tb[[#This Row],[Оплачен]]=\"Нет\",Реестр_tb[[#This Row],[Факт. дата оплаты]]=\"\",Реестр_tb[[#This Row],[Плановая дата оплаты]]<$AB$1),\"Просрочено\",IF(Реестр_tb[[#This Row],[Плановая дата оплаты]]=$AB$1,\"Сегодня\",IF(Реестр_tb[[#This Row],[Плановая дата оплаты]]<=$AB$1+7,\"В течении недели\",\"Через неделю и более\")))))","v":"Через неделю и более"},null,null,"Договор № 7 от 22.12.2021 г. на сумму 4 588 650,74 руб."]
["ООО \"Южно-Курильский водоканал\"","Коммунальные услуги","теплоснабжение",{"$f":"IFERROR(VLOOKUP(Реестр_tb[[#This Row],[Подкатегория]],IF({1,0},Данные_tb[ЕД],Данные_tb[доп. код.]),2,0),\" \")","v":23},{"$f":"IFERROR(VLOOKUP(Реестр_tb[[#This Row],[ДОПЫ]],IF({1,0},Данные_tb[доп. код.],Данные_tb[Источник]),2,0),\" \")","v":20},"Нет","октябрь","теплоснабжение","аукцион и т.п.",155675,null,null,null,null,{"$f":"IF(Реестр_tb[[#This Row],[Срок оплаты (дней)]]=\"\",\"\",WORKDAY(Реестр_tb[[#This Row],[входящий (дата)]],Реестр_tb[[#This Row],[Срок оплаты (дней)]]+1,Выходные_tb[Выходные]))","v":""},null,{"$f":"IF(AND(Реестр_tb[[#This Row],[Оплачен]]=\"Да\",Реестр_tb[[#This Row],[Факт. дата оплаты]]<=Реестр_tb[[#This Row],[Плановая дата оплаты]]),\"Оплачено вовремя\",IF(AND(Реестр_tb[[#This Row],[Оплачен]]=\"Да\",Реестр_tb[[#This Row],[Факт. дата оплаты]]>Реестр_tb[[#This Row],[Плановая дата оплаты]]),\"Просрочено\",IF(AND(Реестр_tb[[#This Row],[Оплачен]]=\"Нет\",Реестр_tb[[#This Row],[Факт. дата оплаты]]=\"\",Реестр_tb[[#This Row],[Плановая дата оплаты]]<$AB$1),\"Просрочено\",IF(Реестр_tb[[#This Row],[Плановая дата оплаты]]=$AB$1,\"Сегодня\",IF(Реестр_tb[[#This Row],[Плановая дата оплаты]]<=$AB$1+7,\"В течении недели\",\"Через неделю и более\")))))","v":"Через неделю и более"},null,null,"Договор № 7 от 22.12.2021 г. на сумму 4 588 650,74 руб."]
["ООО \"Южно-Курильский водоканал\"","Коммунальные услуги","теплоснабжение",{"$f":"IFERROR(VLOOKUP(Реестр_tb[[#This Row],[Подкатегория]],IF({1,0},Данные_tb[ЕД],Данные_tb[доп. код.]),2,0),\" \")","v":23},{"$f":"IFERROR(VLOOKUP(Реестр_tb[[#This Row],[ДОПЫ]],IF({1,0},Данные_tb[доп. код.],Данные_tb[Источник]),2,0),\" \")","v":20},"Нет","ноябрь","теплоснабжение","аукцион и т.п.",156676,null,null,null,null,{"$f":"IF(Реестр_tb[[#This Row],[Срок оплаты (дней)]]=\"\",\"\",WORKDAY(Реестр_tb[[#This Row],[входящий (дата)]],Реестр_tb[[#This Row],[Срок оплаты (дней)]]+1,Выходные_tb[Выходные]))","v":""},null,{"$f":"IF(AND(Реестр_tb[[#This Row],[Оплачен]]=\"Да\",Реестр_tb[[#This Row],[Факт. дата оплаты]]<=Реестр_tb[[#This Row],[Плановая дата оплаты]]),\"Оплачено вовремя\",IF(AND(Реестр_tb[[#This Row],[Оплачен]]=\"Да\",Реестр_tb[[#This Row],[Факт. дата оплаты]]>Реестр_tb[[#This Row],[Плановая дата оплаты]]),\"Просрочено\",IF(AND(Реестр_tb[[#This Row],[Оплачен]]=\"Нет\",Реестр_tb[[#This Row],[Факт. дата оплаты]]=\"\",Реестр_tb[[#This Row],[Плановая дата оплаты]]<$AB$1),\"Просрочено\",IF(Реестр_tb[[#This Row],[Плановая дата оплаты]]=$AB$1,\"Сегодня\",IF(Реестр_tb[[#This Row],[Плановая дата оплаты]]<=$AB$1+7,\"В течении недели\",\"Через неделю и более\")))))","v":"Через неделю и более"},null,null,"Договор № 7 от 22.12.2021 г. на сумму 4 588 650,74 руб."]
["ООО \"Южно-Курильский водоканал\"","Коммунальные услуги","теплоснабжение",{"$f":"IFERROR(VLOOKUP(Реестр_tb[[#This Row],[Подкатегория]],IF({1,0},Данные_tb[ЕД],Данные_tb[доп. код.]),2,0),\" \")","v":23},{"$f":"IFERROR(VLOOKUP(Реестр_tb[[#This Row],[ДОПЫ]],IF({1,0},Данные_tb[доп. код.],Данные_tb[Источник]),2,0),\" \")","v":20},"Нет","декабрь","теплоснабжение","аукцион и т.п.",157677,null,null,null,null,{"$f":"IF(Реестр_tb[[#This Row],[Срок оплаты (дней)]]=\"\",\"\",WORKDAY(Реестр_tb[[#This Row],[входящий (дата)]],Реестр_tb[[#This Row],[Срок оплаты (дней)]]+1,Выходные_tb[Выходные]))","v":""},null,{"$f":"IF(AND(Реестр_tb[[#This Row],[Оплачен]]=\"Да\",Реестр_tb[[#This Row],[Факт. дата оплаты]]<=Реестр_tb[[#This Row],[Плановая дата оплаты]]),\"Оплачено вовремя\",IF(AND(Реестр_tb[[#This Row],[Оплачен]]=\"Да\",Реестр_tb[[#This Row],[Факт. дата оплаты]]>Реестр_tb[[#This Row],[Плановая дата оплаты]]),\"Просрочено\",IF(AND(Реестр_tb[[#This Row],[Оплачен]]=\"Нет\",Реестр_tb[[#This Row],[Факт. дата оплаты]]=\"\",Реестр_tb[[#This Row],[Плановая дата оплаты]]<$AB$1),\"Просрочено\",IF(Реестр_tb[[#This Row],[Плановая дата оплаты]]=$AB$1,\"Сегодня\",IF(Реестр_tb[[#This Row],[Плановая дата оплаты]]<=$AB$1+7,\"В течении недели\",\"Через неделю и более\")))))","v":"Через неделю и более"},null,null,"Договор № 7 от 22.12.2021 г. на сумму 4 588 650,74 руб."]
["АО \"Мобильные газотурбинные электрические станции\"","Коммунальные услуги","электроэнергия",{"$f":"IFERROR(VLOOKUP(Реестр_tb[[#This Row],[Подкатегория]],IF({1,0},Данные_tb[ЕД],Данные_tb[доп. код.]),2,0),\" \")","v":23},{"$f":"IFERROR(VLOOKUP(Реестр_tb[[#This Row],[ДОПЫ]],IF({1,0},Данные_tb[доп. код.],Данные_tb[Источник]),2,0),\" \")","v":20},"Нет","январь","электроэнергия","аукцион и т.п.",158678,null,null,null,null,{"$f":"IF(Реестр_tb[[#This Row],[Срок оплаты (дней)]]=\"\",\"\",WORKDAY(Реестр_tb[[#This Row],[входящий (дата)]],Реестр_tb[[#This Row],[Срок оплаты (дней)]]+1,Выходные_tb[Выходные]))","v":""},null,{"$f":"IF(AND(Реестр_tb[[#This Row],[Оплачен]]=\"Да\",Реестр_tb[[#This Row],[Факт. дата оплаты]]<=Реестр_tb[[#This Row],[Плановая дата оплаты]]),\"Оплачено вовремя\",IF(AND(Реестр_tb[[#This Row],[Оплачен]]=\"Да\",Реестр_tb[[#This Row],[Факт. дата оплаты]]>Реестр_tb[[#This Row],[Плановая дата оплаты]]),\"Просрочено\",IF(AND(Реестр_tb[[#This Row],[Оплачен]]=\"Нет\",Реестр_tb[[#This Row],[Факт. дата оплаты]]=\"\",Реестр_tb[[#This Row],[Плановая дата оплаты]]<$AB$1),\"Просрочено\",IF(Реестр_tb[[#This Row],[Плановая дата оплаты]]=$AB$1,\"Сегодня\",IF(Реестр_tb[[#This Row],[Плановая дата оплаты]]<=$AB$1+7,\"В течении недели\",\"Через неделю и более\")))))","v":"Через неделю и более"},null,null,"Контракт № 008-22 от 30.11.2021 г. на сумму 1 400 222,40 руб."]
["АО \"Мобильные газотурбинные электрические станции\"","Коммунальные услуги","электроэнергия",{"$f":"IFERROR(VLOOKUP(Реестр_tb[[#This Row],[Подкатегория]],IF({1,0},Данные_tb[ЕД],Данные_tb[доп. код.]),2,0),\" \")","v":23},{"$f":"IFERROR(VLOOKUP(Реестр_tb[[#This Row],[ДОПЫ]],IF({1,0},Данные_tb[доп. код.],Данные_tb[Источник]),2,0),\" \")","v":20},"Нет","февраль","электроэнергия","аукцион и т.п.",159679,null,null,null,null,{"$f":"IF(Реестр_tb[[#This Row],[Срок оплаты (дней)]]=\"\",\"\",WORKDAY(Реестр_tb[[#This Row],[входящий (дата)]],Реестр_tb[[#This Row],[Срок оплаты (дней)]]+1,Выходные_tb[Выходные]))","v":""},null,{"$f":"IF(AND(Реестр_tb[[#This Row],[Оплачен]]=\"Да\",Реестр_tb[[#This Row],[Факт. дата оплаты]]<=Реестр_tb[[#This Row],[Плановая дата оплаты]]),\"Оплачено вовремя\",IF(AND(Реестр_tb[[#This Row],[Оплачен]]=\"Да\",Реестр_tb[[#This Row],[Факт. дата оплаты]]>Реестр_tb[[#This Row],[Плановая дата оплаты]]),\"Просрочено\",IF(AND(Реестр_tb[[#This Row],[Оплачен]]=\"Нет\",Реестр_tb[[#This Row],[Факт. дата оплаты]]=\"\",Реестр_tb[[#This Row],[Плановая дата оплаты]]<$AB$1),\"Просрочено\",IF(Реестр_tb[[#This Row],[Плановая дата оплаты]]=$AB$1,\"Сегодня\",IF(Реестр_tb[[#This Row],[Плановая дата оплаты]]<=$AB$1+7,\"В течении недели\",\"Через неделю и более\")))))","v":"Через неделю и более"},null,null,"Контракт № 008-22 от 30.11.2021 г. на сумму 1 400 222,40 руб."]
["АО \"Мобильные газотурбинные электрические станции\"","Коммунальные услуги","электроэнергия",{"$f":"IFERROR(VLOOKUP(Реестр_tb[[#This Row],[Подкатегория]],IF({1,0},Данные_tb[ЕД],Данные_tb[доп. код.]),2,0),\" \")","v":23},{"$f":"IFERROR(VLOOKUP(Реестр_tb[[#This Row],[ДОПЫ]],IF({1,0},Данные_tb[доп. код.],Данные_tb[Источник]),2,0),\" \")","v":20},"Нет","март","электроэнергия","аукцион и т.п.",160680,null,null,null,null,{"$f":"IF(Реестр_tb[[#This Row],[Срок оплаты (дней)]]=\"\",\"\",WORKDAY(Реестр_tb[[#This Row],[входящий (дата)]],Реестр_tb[[#This Row],[Срок оплаты (дней)]]+1,Выходные_tb[Выходные]))","v":""},null,{"$f":"IF(AND(Реестр_tb[[#This Row],[Оплачен]]=\"Да\",Реестр_tb[[#This Row],[Факт. дата оплаты]]<=Реестр_tb[[#This Row],[Плановая дата оплаты]]),\"Оплачено вовремя\",IF(AND(Реестр_tb[[#This Row],[Оплачен]]=\"Да\",Реестр_tb[[#This Row],[Факт. дата оплаты]]>Реестр_tb[[#This Row],[Плановая дата оплаты]]),\"Просрочено\",IF(AND(Реестр_tb[[#This Row],[Оплачен]]=\"Нет\",Реестр_tb[[#This Row],[Факт. дата оплаты]]=\"\",Реестр_tb[[#This Row],[Плановая дата оплаты]]<$AB$1),\"Просрочено\",IF(Реестр_tb[[#This Row],[Плановая дата оплаты]]=$AB$1,\"Сегодня\",IF(Реестр_tb[[#This Row],[Плановая дата оплаты]]<=$AB$1+7,\"В течении недели\",\"Через неделю и более\")))))","v":"Через неделю и более"},null,null,"Контракт № 008-22 от 30.11.2021 г. на сумму 1 400 222,40 руб."]
["АО \"Мобильные газотурбинные электрические станции\"","Коммунальные услуги","электроэнергия",{"$f":"IFERROR(VLOOKUP(Реестр_tb[[#This Row],[Подкатегория]],IF({1,0},Данные_tb[ЕД],Данные_tb[доп. код.]),2,0),\" \")","v":23},{"$f":"IFERROR(VLOOKUP(Реестр_tb[[#This Row],[ДОПЫ]],IF({1,0},Данные_tb[доп. код.],Данные_tb[Источник]),2,0),\" \")","v":20},"Нет","апрель","электроэнергия","аукцион и т.п.",161681,null,null,null,null,{"$f":"IF(Реестр_tb[[#This Row],[Срок оплаты (дней)]]=\"\",\"\",WORKDAY(Реестр_tb[[#This Row],[входящий (дата)]],Реестр_tb[[#This Row],[Срок оплаты (дней)]]+1,Выходные_tb[Выходные]))","v":""},null,{"$f":"IF(AND(Реестр_tb[[#This Row],[Оплачен]]=\"Да\",Реестр_tb[[#This Row],[Факт. дата оплаты]]<=Реестр_tb[[#This Row],[Плановая дата оплаты]]),\"Оплачено вовремя\",IF(AND(Реестр_tb[[#This Row],[Оплачен]]=\"Да\",Реестр_tb[[#This Row],[Факт. дата оплаты]]>Реестр_tb[[#This Row],[Плановая дата оплаты]]),\"Просрочено\",IF(AND(Реестр_tb[[#This Row],[Оплачен]]=\"Нет\",Реестр_tb[[#This Row],[Факт. дата оплаты]]=\"\",Реестр_tb[[#This Row],[Плановая дата оплаты]]<$AB$1),\"Просрочено\",IF(Реестр_tb[[#This Row],[Плановая дата оплаты]]=$AB$1,\"Сегодня\",IF(Реестр_tb[[#This Row],[Плановая дата оплаты]]<=$AB$1+7,\"В течении недели\",\"Через неделю и более\")))))","v":"Через неделю и более"},null,null,"Контракт № 008-22 от 30.11.2021 г. на сумму 1 400 222,40 руб."]
["АО \"Мобильные газотурбинные электрические станции\"","Коммунальные услуги","электроэнергия",{"$f":"IFERROR(VLOOKUP(Реестр_tb[[#This Row],[Подкатегория]],IF({1,0},Данные_tb[ЕД],Данные_tb[доп. код.]),2,0),\" \")","v":23},{"$f":"IFERROR(VLOOKUP(Реестр_tb[[#This Row],[ДОПЫ]],IF({1,0},Данные_tb[доп. код.],Данные_tb[Источник]),2,0),\" \")","v":20},"Нет","май","электроэнергия","аукцион и т.п.",162682,null,null,null,null,{"$f":"IF(Реестр_tb[[#This Row],[Срок оплаты (дней)]]=\"\",\"\",WORKDAY(Реестр_tb[[#This Row],[входящий (дата)]],Реестр_tb[[#This Row],[Срок оплаты (дней)]]+1,Выходные_tb[Выходные]))","v":""},null,{"$f":"IF(AND(Реестр_tb[[#This Row],[Оплачен]]=\"Да\",Реестр_tb[[#This Row],[Факт. дата оплаты]]<=Реестр_tb[[#This Row],[Плановая дата оплаты]]),\"Оплачено вовремя\",IF(AND(Реестр_tb[[#This Row],[Оплачен]]=\"Да\",Реестр_tb[[#This Row],[Факт. дата оплаты]]>Реестр_tb[[#This Row],[Плановая дата оплаты]]),\"Просрочено\",IF(AND(Реестр_tb[[#This Row],[Оплачен]]=\"Нет\",Реестр_tb[[#This Row],[Факт. дата оплаты]]=\"\",Реестр_tb[[#This Row],[Плановая дата оплаты]]<$AB$1),\"Просрочено\",IF(Реестр_tb[[#This Row],[Плановая дата оплаты]]=$AB$1,\"Сегодня\",IF(Реестр_tb[[#This Row],[Плановая дата оплаты]]<=$AB$1+7,\"В течении недели\",\"Через неделю и более\")))))","v":"Через неделю и более"},null,null,"Контракт № 008-22 от 30.11.2021 г. на сумму 1 400 222,40 руб."]
["АО \"Мобильные газотурбинные электрические станции\"","Коммунальные услуги","электроэнергия",{"$f":"IFERROR(VLOOKUP(Реестр_tb[[#This Row],[Подкатегория]],IF({1,0},Данные_tb[ЕД],Данные_tb[доп. код.]),2,0),\" \")","v":23},{"$f":"IFERROR(VLOOKUP(Реестр_tb[[#This Row],[ДОПЫ]],IF({1,0},Данные_tb[доп. код.],Данные_tb[Источник]),2,0),\" \")","v":20},"Нет","июнь","электроэнергия","аукцион и т.п.",163683,null,null,null,null,{"$f":"IF(Реестр_tb[[#This Row],[Срок оплаты (дней)]]=\"\",\"\",WORKDAY(Реестр_tb[[#This Row],[входящий (дата)]],Реестр_tb[[#This Row],[Срок оплаты (дней)]]+1,Выходные_tb[Выходные]))","v":""},null,{"$f":"IF(AND(Реестр_tb[[#This Row],[Оплачен]]=\"Да\",Реестр_tb[[#This Row],[Факт. дата оплаты]]<=Реестр_tb[[#This Row],[Плановая дата оплаты]]),\"Оплачено вовремя\",IF(AND(Реестр_tb[[#This Row],[Оплачен]]=\"Да\",Реестр_tb[[#This Row],[Факт. дата оплаты]]>Реестр_tb[[#This Row],[Плановая дата оплаты]]),\"Просрочено\",IF(AND(Реестр_tb[[#This Row],[Оплачен]]=\"Нет\",Реестр_tb[[#This Row],[Факт. дата оплаты]]=\"\",Реестр_tb[[#This Row],[Плановая дата оплаты]]<$AB$1),\"Просрочено\",IF(Реестр_tb[[#This Row],[Плановая дата оплаты]]=$AB$1,\"Сегодня\",IF(Реестр_tb[[#This Row],[Плановая дата оплаты]]<=$AB$1+7,\"В течении недели\",\"Через неделю и более\")))))","v":"Через неделю и более"},null,null,"Контракт № 008-22 от 30.11.2021 г. на сумму 1 400 222,40 руб."]
["АО \"Мобильные газотурбинные электрические станции\"","Коммунальные услуги","электроэнергия",{"$f":"IFERROR(VLOOKUP(Реестр_tb[[#This Row],[Подкатегория]],IF({1,0},Данные_tb[ЕД],Данные_tb[доп. код.]),2,0),\" \")","v":23},{"$f":"IFERROR(VLOOKUP(Реестр_tb[[#This Row],[ДОПЫ]],IF({1,0},Данные_tb[доп. код.],Данные_tb[Источник]),2,0),\" \")","v":20},"Нет","июль","электроэнергия","аукцион и т.п.",164684,null,null,null,null,{"$f":"IF(Реестр_tb[[#This Row],[Срок оплаты (дней)]]=\"\",\"\",WORKDAY(Реестр_tb[[#This Row],[входящий (дата)]],Реестр_tb[[#This Row],[Срок оплаты (дней)]]+1,Выходные_tb[Выходные]))","v":""},null,{"$f":"IF(AND(Реестр_tb[[#This Row],[Оплачен]]=\"Да\",Реестр_tb[[#This Row],[Факт. дата оплаты]]<=Реестр_tb[[#This Row],[Плановая дата оплаты]]),\"Оплачено вовремя\",IF(AND(Реестр_tb[[#This Row],[Оплачен]]=\"Да\",Реестр_tb[[#This Row],[Факт. дата оплаты]]>Реестр_tb[[#This Row],[Плановая дата оплаты]]),\"Просрочено\",IF(AND(Реестр_tb[[#This Row],[Оплачен]]=\"Нет\",Реестр_tb[[#This Row],[Факт. дата оплаты]]=\"\",Реестр_tb[[#This Row],[Плановая дата оплаты]]<$AB$1),\"Просрочено\",IF(Реестр_tb[[#This Row],[Плановая дата оплаты]]=$AB$1,\"Сегодня\",IF(Реестр_tb[[#This Row],[Плановая дата оплаты]]<=$AB$1+7,\"В течении недели\",\"Через неделю и более\")))))","v":"Через неделю и более"},null,null,"Контракт № 008-22 от 30.11.2021 г. на сумму 1 400 222,40 руб."]
["АО \"Мобильные газотурбинные электрические станции\"","Коммунальные услуги","электроэнергия",{"$f":"IFERROR(VLOOKUP(Реестр_tb[[#This Row],[Подкатегория]],IF({1,0},Данные_tb[ЕД],Данные_tb[доп. код.]),2,0),\" \")","v":23},{"$f":"IFERROR(VLOOKUP(Реестр_tb[[#This Row],[ДОПЫ]],IF({1,0},Данные_tb[доп. код.],Данные_tb[Источник]),2,0),\" \")","v":20},"Нет","август","электроэнергия","аукцион и т.п.",165685,null,null,null,null,{"$f":"IF(Реестр_tb[[#This Row],[Срок оплаты (дней)]]=\"\",\"\",WORKDAY(Реестр_tb[[#This Row],[входящий (дата)]],Реестр_tb[[#This Row],[Срок оплаты (дней)]]+1,Выходные_tb[Выходные]))","v":""},null,{"$f":"IF(AND(Реестр_tb[[#This Row],[Оплачен]]=\"Да\",Реестр_tb[[#This Row],[Факт. дата оплаты]]<=Реестр_tb[[#This Row],[Плановая дата оплаты]]),\"Оплачено вовремя\",IF(AND(Реестр_tb[[#This Row],[Оплачен]]=\"Да\",Реестр_tb[[#This Row],[Факт. дата оплаты]]>Реестр_tb[[#This Row],[Плановая дата оплаты]]),\"Просрочено\",IF(AND(Реестр_tb[[#This Row],[Оплачен]]=\"Нет\",Реестр_tb[[#This Row],[Факт. дата оплаты]]=\"\",Реестр_tb[[#This Row],[Плановая дата оплаты]]<$AB$1),\"Просрочено\",IF(Реестр_tb[[#This Row],[Плановая дата оплаты]]=$AB$1,\"Сегодня\",IF(Реестр_tb[[#This Row],[Плановая дата оплаты]]<=$AB$1+7,\"В течении недели\",\"Через неделю и более\")))))","v":"Через неделю и более"},null,null,"Контракт № 008-22 от 30.11.2021 г. на сумму 1 400 222,40 руб."]
["АО \"Мобильные газотурбинные электрические станции\"","Коммунальные услуги","электроэнергия",{"$f":"IFERROR(VLOOKUP(Реестр_tb[[#This Row],[Подкатегория]],IF({1,0},Данные_tb[ЕД],Данные_tb[доп. код.]),2,0),\" \")","v":23},{"$f":"IFERROR(VLOOKUP(Реестр_tb[[#This Row],[ДОПЫ]],IF({1,0},Данные_tb[доп. код.],Данные_tb[Источник]),2,0),\" \")","v":20},"Нет","сентябрь","электроэнергия","аукцион и т.п.",166686,null,null,null,null,{"$f":"IF(Реестр_tb[[#This Row],[Срок оплаты (дней)]]=\"\",\"\",WORKDAY(Реестр_tb[[#This Row],[входящий (дата)]],Реестр_tb[[#This Row],[Срок оплаты (дней)]]+1,Выходные_tb[Выходные]))","v":""},null,{"$f":"IF(AND(Реестр_tb[[#This Row],[Оплачен]]=\"Да\",Реестр_tb[[#This Row],[Факт. дата оплаты]]<=Реестр_tb[[#This Row],[Плановая дата оплаты]]),\"Оплачено вовремя\",IF(AND(Реестр_tb[[#This Row],[Оплачен]]=\"Да\",Реестр_tb[[#This Row],[Факт. дата оплаты]]>Реестр_tb[[#This Row],[Плановая дата оплаты]]),\"Просрочено\",IF(AND(Реестр_tb[[#This Row],[Оплачен]]=\"Нет\",Реестр_tb[[#This Row],[Факт. дата оплаты]]=\"\",Реестр_tb[[#This Row],[Плановая дата оплаты]]<$AB$1),\"Просрочено\",IF(Реестр_tb[[#This Row],[Плановая дата оплаты]]=$AB$1,\"Сегодня\",IF(Реестр_tb[[#This Row],[Плановая дата оплаты]]<=$AB$1+7,\"В течении недели\",\"Через неделю и более\")))))","v":"Через неделю и более"},null,null,"Контракт № 008-22 от 30.11.2021 г. на сумму 1 400 222,40 руб."]
["АО \"Мобильные газотурбинные электрические станции\"","Коммунальные услуги","электроэнергия",{"$f":"IFERROR(VLOOKUP(Реестр_tb[[#This Row],[Подкатегория]],IF({1,0},Данные_tb[ЕД],Данные_tb[доп. код.]),2,0),\" \")","v":23},{"$f":"IFERROR(VLOOKUP(Реестр_tb[[#This Row],[ДОПЫ]],IF({1,0},Данные_tb[доп. код.],Данные_tb[Источник]),2,0),\" \")","v":20},"Нет","октябрь","электроэнергия","аукцион и т.п.",167687,null,null,null,null,{"$f":"IF(Реестр_tb[[#This Row],[Срок оплаты (дней)]]=\"\",\"\",WORKDAY(Реестр_tb[[#This Row],[входящий (дата)]],Реестр_tb[[#This Row],[Срок оплаты (дней)]]+1,Выходные_tb[Выходные]))","v":""},null,{"$f":"IF(AND(Реестр_tb[[#This Row],[Оплачен]]=\"Да\",Реестр_tb[[#This Row],[Факт. дата оплаты]]<=Реестр_tb[[#This Row],[Плановая дата оплаты]]),\"Оплачено вовремя\",IF(AND(Реестр_tb[[#This Row],[Оплачен]]=\"Да\",Реестр_tb[[#This Row],[Факт. дата оплаты]]>Реестр_tb[[#This Row],[Плановая дата оплаты]]),\"Просрочено\",IF(AND(Реестр_tb[[#This Row],[Оплачен]]=\"Нет\",Реестр_tb[[#This Row],[Факт. дата оплаты]]=\"\",Реестр_tb[[#This Row],[Плановая дата оплаты]]<$AB$1),\"Просрочено\",IF(Реестр_tb[[#This Row],[Плановая дата оплаты]]=$AB$1,\"Сегодня\",IF(Реестр_tb[[#This Row],[Плановая дата оплаты]]<=$AB$1+7,\"В течении недели\",\"Через неделю и более\")))))","v":"Через неделю и более"},null,null,"Контракт № 008-22 от 30.11.2021 г. на сумму 1 400 222,40 руб."]
["АО \"Мобильные газотурбинные электрические станции\"","Коммунальные услуги","электроэнергия",{"$f":"IFERROR(VLOOKUP(Реестр_tb[[#This Row],[Подкатегория]],IF({1,0},Данные_tb[ЕД],Данные_tb[доп. код.]),2,0),\" \")","v":23},{"$f":"IFERROR(VLOOKUP(Реестр_tb[[#This Row],[ДОПЫ]],IF({1,0},Данные_tb[доп. код.],Данные_tb[Источник]),2,0),\" \")","v":20},"Нет","ноябрь","электроэнергия","аукцион и т.п.",168688,null,null,null,null,{"$f":"IF(Реестр_tb[[#This Row],[Срок оплаты (дней)]]=\"\",\"\",WORKDAY(Реестр_tb[[#This Row],[входящий (дата)]],Реестр_tb[[#This Row],[Срок оплаты (дней)]]+1,Выходные_tb[Выходные]))","v":""},null,{"$f":"IF(AND(Реестр_tb[[#This Row],[Оплачен]]=\"Да\",Реестр_tb[[#This Row],[Факт. дата оплаты]]<=Реестр_tb[[#This Row],[Плановая дата оплаты]]),\"Оплачено вовремя\",IF(AND(Реестр_tb[[#This Row],[Оплачен]]=\"Да\",Реестр_tb[[#This Row],[Факт. дата оплаты]]>Реестр_tb[[#This Row],[Плановая дата оплаты]]),\"Просрочено\",IF(AND(Реестр_tb[[#This Row],[Оплачен]]=\"Нет\",Реестр_tb[[#This Row],[Факт. дата оплаты]]=\"\",Реестр_tb[[#This Row],[Плановая дата оплаты]]<$AB$1),\"Просрочено\",IF(Реестр_tb[[#This Row],[Плановая дата оплаты]]=$AB$1,\"Сегодня\",IF(Реестр_tb[[#This Row],[Плановая дата оплаты]]<=$AB$1+7,\"В течении недели\",\"Через неделю и более\")))))","v":"Через неделю и более"},null,null,"Контракт № 008-22 от 30.11.2021 г. на сумму 1 400 222,40 руб."]
["АО \"Мобильные газотурбинные электрические станции\"","Коммунальные услуги","электроэнергия",{"$f":"IFERROR(VLOOKUP(Реестр_tb[[#This Row],[Подкатегория]],IF({1,0},Данные_tb[ЕД],Данные_tb[доп. код.]),2,0),\" \")","v":23},{"$f":"IFERROR(VLOOKUP(Реестр_tb[[#This Row],[ДОПЫ]],IF({1,0},Данные_tb[доп. код.],Данные_tb[Источник]),2,0),\" \")","v":20},"Нет","декабрь","электроэнергия","аукцион и т.п.",169689,null,null,null,null,{"$f":"IF(Реестр_tb[[#This Row],[Срок оплаты (дней)]]=\"\",\"\",WORKDAY(Реестр_tb[[#This Row],[входящий (дата)]],Реестр_tb[[#This Row],[Срок оплаты (дней)]]+1,Выходные_tb[Выходные]))","v":""},null,{"$f":"IF(AND(Реестр_tb[[#This Row],[Оплачен]]=\"Да\",Реестр_tb[[#This Row],[Факт. дата оплаты]]<=Реестр_tb[[#This Row],[Плановая дата оплаты]]),\"Оплачено вовремя\",IF(AND(Реестр_tb[[#This Row],[Оплачен]]=\"Да\",Реестр_tb[[#This Row],[Факт. дата оплаты]]>Реестр_tb[[#This Row],[Плановая дата оплаты]]),\"Просрочено\",IF(AND(Реестр_tb[[#This Row],[Оплачен]]=\"Нет\",Реестр_tb[[#This Row],[Факт. дата оплаты]]=\"\",Реестр_tb[[#This Row],[Плановая дата оплаты]]<$AB$1),\"Просрочено\",IF(Реестр_tb[[#This Row],[Плановая дата оплаты]]=$AB$1,\"Сегодня\",IF(Реестр_tb[[#This Row],[Плановая дата оплаты]]<=$AB$1+7,\"В течении недели\",\"Через неделю и более\")))))","v":"Через неделю и более"},null,null,"Контракт № 008-22 от 30.11.2021 г. на сумму 1 400 222,40 руб."]
["ФГКУ «ОВО ВНГ России по Сахалинской области»","Муниципальное задание","мониторинг тенических средств охраны (Росгвардия)",{"$f":"IFERROR(VLOOKUP(Реестр_tb[[#This Row],[Подкатегория]],IF({1,0},Данные_tb[ЕД],Данные_tb[доп. код.]),2,0),\" \")","v":4},{"$f":"IFERROR(VLOOKUP(Реестр_tb[[#This Row],[ДОПЫ]],IF({1,0},Данные_tb[доп. код.],Данные_tb[Источник]),2,0),\" \")","v":20},"Нет","январь","мониторинг тенических средств охраны (Росгвардия)",5,5168.3999999999996,null,null,null,null,{"$f":"IF(Реестр_tb[[#This Row],[Срок оплаты (дней)]]=\"\",\"\",WORKDAY(Реестр_tb[[#This Row],[входящий (дата)]],Реестр_tb[[#This Row],[Срок оплаты (дней)]]+1,Выходные_tb[Выходные]))","v":""},null,{"$f":"IF(AND(Реестр_tb[[#This Row],[Оплачен]]=\"Да\",Реестр_tb[[#This Row],[Факт. дата оплаты]]<=Реестр_tb[[#This Row],[Плановая дата оплаты]]),\"Оплачено вовремя\",IF(AND(Реестр_tb[[#This Row],[Оплачен]]=\"Да\",Реестр_tb[[#This Row],[Факт. дата оплаты]]>Реестр_tb[[#This Row],[Плановая дата оплаты]]),\"Просрочено\",IF(AND(Реестр_tb[[#This Row],[Оплачен]]=\"Нет\",Реестр_tb[[#This Row],[Факт. дата оплаты]]=\"\",Реестр_tb[[#This Row],[Плановая дата оплаты]]<$AB$1),\"Просрочено\",IF(Реестр_tb[[#This Row],[Плановая дата оплаты]]=$AB$1,\"Сегодня\",IF(Реестр_tb[[#This Row],[Плановая дата оплаты]]<=$AB$1+7,\"В течении недели\",\"Через неделю и более\")))))","v":"Через неделю и более"},null,null,"Договор № 579-М-КТС-GSM от ххх на сумму 62 020,80 руб. (БО на сумму 62 020,80 руб.)"]
["ФГКУ «ОВО ВНГ России по Сахалинской области»","Муниципальное задание","мониторинг тенических средств охраны (Росгвардия)",{"$f":"IFERROR(VLOOKUP(Реестр_tb[[#This Row],[Подкатегория]],IF({1,0},Данные_tb[ЕД],Данные_tb[доп. код.]),2,0),\" \")","v":4},{"$f":"IFERROR(VLOOKUP(Реестр_tb[[#This Row],[ДОПЫ]],IF({1,0},Данные_tb[доп. код.],Данные_tb[Источник]),2,0),\" \")","v":20},"Нет","февраль","мониторинг тенических средств охраны (Росгвардия)",5,5168.3999999999996,null,null,null,null,{"$f":"IF(Реестр_tb[[#This Row],[Срок оплаты (дней)]]=\"\",\"\",WORKDAY(Реестр_tb[[#This Row],[входящий (дата)]],Реестр_tb[[#This Row],[Срок оплаты (дней)]]+1,Выходные_tb[Выходные]))","v":""},null,{"$f":"IF(AND(Реестр_tb[[#This Row],[Оплачен]]=\"Да\",Реестр_tb[[#This Row],[Факт. дата оплаты]]<=Реестр_tb[[#This Row],[Плановая дата оплаты]]),\"Оплачено вовремя\",IF(AND(Реестр_tb[[#This Row],[Оплачен]]=\"Да\",Реестр_tb[[#This Row],[Факт. дата оплаты]]>Реестр_tb[[#This Row],[Плановая дата оплаты]]),\"Просрочено\",IF(AND(Реестр_tb[[#This Row],[Оплачен]]=\"Нет\",Реестр_tb[[#This Row],[Факт. дата оплаты]]=\"\",Реестр_tb[[#This Row],[Плановая дата оплаты]]<$AB$1),\"Просрочено\",IF(Реестр_tb[[#This Row],[Плановая дата оплаты]]=$AB$1,\"Сегодня\",IF(Реестр_tb[[#This Row],[Плановая дата оплаты]]<=$AB$1+7,\"В течении недели\",\"Через неделю и более\")))))","v":"Через неделю и более"},null,null,"Договор № 579-М-КТС-GSM от ххх на сумму 62 020,80 руб. (БО на сумму 62 020,80 руб.)"]
["ФГКУ «ОВО ВНГ России по Сахалинской области»","Муниципальное задание","мониторинг тенических средств охраны (Росгвардия)",{"$f":"IFERROR(VLOOKUP(Реестр_tb[[#This Row],[Подкатегория]],IF({1,0},Данные_tb[ЕД],Данные_tb[доп. код.]),2,0),\" \")","v":4},{"$f":"IFERROR(VLOOKUP(Реестр_tb[[#This Row],[ДОПЫ]],IF({1,0},Данные_tb[доп. код.],Данные_tb[Источник]),2,0),\" \")","v":20},"Нет","март","мониторинг тенических средств охраны (Росгвардия)",5,5168.3999999999996,null,null,null,null,{"$f":"IF(Реестр_tb[[#This Row],[Срок оплаты (дней)]]=\"\",\"\",WORKDAY(Реестр_tb[[#This Row],[входящий (дата)]],Реестр_tb[[#This Row],[Срок оплаты (дней)]]+1,Выходные_tb[Выходные]))","v":""},null,{"$f":"IF(AND(Реестр_tb[[#This Row],[Оплачен]]=\"Да\",Реестр_tb[[#This Row],[Факт. дата оплаты]]<=Реестр_tb[[#This Row],[Плановая дата оплаты]]),\"Оплачено вовремя\",IF(AND(Реестр_tb[[#This Row],[Оплачен]]=\"Да\",Реестр_tb[[#This Row],[Факт. дата оплаты]]>Реестр_tb[[#This Row],[Плановая дата оплаты]]),\"Просрочено\",IF(AND(Реестр_tb[[#This Row],[Оплачен]]=\"Нет\",Реестр_tb[[#This Row],[Факт. дата оплаты]]=\"\",Реестр_tb[[#This Row],[Плановая дата оплаты]]<$AB$1),\"Просрочено\",IF(Реестр_tb[[#This Row],[Плановая дата оплаты]]=$AB$1,\"Сегодня\",IF(Реестр_tb[[#This Row],[Плановая дата оплаты]]<=$AB$1+7,\"В течении недели\",\"Через неделю и более\")))))","v":"Через неделю и более"},null,null,"Договор № 579-М-КТС-GSM от ххх на сумму 62 020,80 руб. (БО на сумму 62 020,80 руб.)"]
["ФГКУ «ОВО ВНГ России по Сахалинской области»","Муниципальное задание","мониторинг тенических средств охраны (Росгвардия)",{"$f":"IFERROR(VLOOKUP(Реестр_tb[[#This Row],[Подкатегория]],IF({1,0},Данные_tb[ЕД],Данные_tb[доп. код.]),2,0),\" \")","v":4},{"$f":"IFERROR(VLOOKUP(Реестр_tb[[#This Row],[ДОПЫ]],IF({1,0},Данные_tb[доп. код.],Данные_tb[Источник]),2,0),\" \")","v":20},"Нет","апрель","мониторинг тенических средств охраны (Росгвардия)",5,5168.3999999999996,null,null,null,null,{"$f":"IF(Реестр_tb[[#This Row],[Срок оплаты (дней)]]=\"\",\"\",WORKDAY(Реестр_tb[[#This Row],[входящий (дата)]],Реестр_tb[[#This Row],[Срок оплаты (дней)]]+1,Выходные_tb[Выходные]))","v":""},null,{"$f":"IF(AND(Реестр_tb[[#This Row],[Оплачен]]=\"Да\",Реестр_tb[[#This Row],[Факт. дата оплаты]]<=Реестр_tb[[#This Row],[Плановая дата оплаты]]),\"Оплачено вовремя\",IF(AND(Реестр_tb[[#This Row],[Оплачен]]=\"Да\",Реестр_tb[[#This Row],[Факт. дата оплаты]]>Реестр_tb[[#This Row],[Плановая дата оплаты]]),\"Просрочено\",IF(AND(Реестр_tb[[#This Row],[Оплачен]]=\"Нет\",Реестр_tb[[#This Row],[Факт. дата оплаты]]=\"\",Реестр_tb[[#This Row],[Плановая дата оплаты]]<$AB$1),\"Просрочено\",IF(Реестр_tb[[#This Row],[Плановая дата оплаты]]=$AB$1,\"Сегодня\",IF(Реестр_tb[[#This Row],[Плановая дата оплаты]]<=$AB$1+7,\"В течении недели\",\"Через неделю и более\")))))","v":"Через неделю и более"},null,null,"Договор № 579-М-КТС-GSM от ххх на сумму 62 020,80 руб. (БО на сумму 62 020,80 руб.)"]
["ФГКУ «ОВО ВНГ России по Сахалинской области»","Муниципальное задание","мониторинг тенических средств охраны (Росгвардия)",{"$f":"IFERROR(VLOOKUP(Реестр_tb[[#This Row],[Подкатегория]],IF({1,0},Данные_tb[ЕД],Данные_tb[доп. код.]),2,0),\" \")","v":4},{"$f":"IFERROR(VLOOKUP(Реестр_tb[[#This Row],[ДОПЫ]],IF({1,0},Данные_tb[доп. код.],Данные_tb[Источник]),2,0),\" \")","v":20},"Нет","май","мониторинг тенических средств охраны (Росгвардия)",5,5168.3999999999996,null,null,null,null,{"$f":"IF(Реестр_tb[[#This Row],[Срок оплаты (дней)]]=\"\",\"\",WORKDAY(Реестр_tb[[#This Row],[входящий (дата)]],Реестр_tb[[#This Row],[Срок оплаты (дней)]]+1,Выходные_tb[Выходные]))","v":""},null,{"$f":"IF(AND(Реестр_tb[[#This Row],[Оплачен]]=\"Да\",Реестр_tb[[#This Row],[Факт. дата оплаты]]<=Реестр_tb[[#This Row],[Плановая дата оплаты]]),\"Оплачено вовремя\",IF(AND(Реестр_tb[[#This Row],[Оплачен]]=\"Да\",Реестр_tb[[#This Row],[Факт. дата оплаты]]>Реестр_tb[[#This Row],[Плановая дата оплаты]]),\"Просрочено\",IF(AND(Реестр_tb[[#This Row],[Оплачен]]=\"Нет\",Реестр_tb[[#This Row],[Факт. дата оплаты]]=\"\",Реестр_tb[[#This Row],[Плановая дата оплаты]]<$AB$1),\"Просрочено\",IF(Реестр_tb[[#This Row],[Плановая дата оплаты]]=$AB$1,\"Сегодня\",IF(Реестр_tb[[#This Row],[Плановая дата оплаты]]<=$AB$1+7,\"В течении недели\",\"Через неделю и более\")))))","v":"Через неделю и более"},null,null,"Договор № 579-М-КТС-GSM от ххх на сумму 62 020,80 руб. (БО на сумму 62 020,80 руб.)"]
["ФГКУ «ОВО ВНГ России по Сахалинской области»","Муниципальное задание","мониторинг тенических средств охраны (Росгвардия)",{"$f":"IFERROR(VLOOKUP(Реестр_tb[[#This Row],[Подкатегория]],IF({1,0},Данные_tb[ЕД],Данные_tb[доп. код.]),2,0),\" \")","v":4},{"$f":"IFERROR(VLOOKUP(Реестр_tb[[#This Row],[ДОПЫ]],IF({1,0},Данные_tb[доп. код.],Данные_tb[Источник]),2,0),\" \")","v":20},"Нет","июнь","мониторинг тенических средств охраны (Росгвардия)",5,5168.3999999999996,null,null,null,null,{"$f":"IF(Реестр_tb[[#This Row],[Срок оплаты (дней)]]=\"\",\"\",WORKDAY(Реестр_tb[[#This Row],[входящий (дата)]],Реестр_tb[[#This Row],[Срок оплаты (дней)]]+1,Выходные_tb[Выходные]))","v":""},null,{"$f":"IF(AND(Реестр_tb[[#This Row],[Оплачен]]=\"Да\",Реестр_tb[[#This Row],[Факт. дата оплаты]]<=Реестр_tb[[#This Row],[Плановая дата оплаты]]),\"Оплачено вовремя\",IF(AND(Реестр_tb[[#This Row],[Оплачен]]=\"Да\",Реестр_tb[[#This Row],[Факт. дата оплаты]]>Реестр_tb[[#This Row],[Плановая дата оплаты]]),\"Просрочено\",IF(AND(Реестр_tb[[#This Row],[Оплачен]]=\"Нет\",Реестр_tb[[#This Row],[Факт. дата оплаты]]=\"\",Реестр_tb[[#This Row],[Плановая дата оплаты]]<$AB$1),\"Просрочено\",IF(Реестр_tb[[#This Row],[Плановая дата оплаты]]=$AB$1,\"Сегодня\",IF(Реестр_tb[[#This Row],[Плановая дата оплаты]]<=$AB$1+7,\"В течении недели\",\"Через неделю и более\")))))","v":"Через неделю и более"},null,null,"Договор № 579-М-КТС-GSM от ххх на сумму 62 020,80 руб. (БО на сумму 62 020,80 руб.)"]
["ФГКУ «ОВО ВНГ России по Сахалинской области»","Муниципальное задание","мониторинг тенических средств охраны (Росгвардия)",{"$f":"IFERROR(VLOOKUP(Реестр_tb[[#This Row],[Подкатегория]],IF({1,0},Данные_tb[ЕД],Данные_tb[доп. код.]),2,0),\" \")","v":4},{"$f":"IFERROR(VLOOKUP(Реестр_tb[[#This Row],[ДОПЫ]],IF({1,0},Данные_tb[доп. код.],Данные_tb[Источник]),2,0),\" \")","v":20},"Нет","июль","мониторинг тенических средств охраны (Росгвардия)",5,5168.3999999999996,null,null,null,null,{"$f":"IF(Реестр_tb[[#This Row],[Срок оплаты (дней)]]=\"\",\"\",WORKDAY(Реестр_tb[[#This Row],[входящий (дата)]],Реестр_tb[[#This Row],[Срок оплаты (дней)]]+1,Выходные_tb[Выходные]))","v":""},null,{"$f":"IF(AND(Реестр_tb[[#This Row],[Оплачен]]=\"Да\",Реестр_tb[[#This Row],[Факт. дата оплаты]]<=Реестр_tb[[#This Row],[Плановая дата оплаты]]),\"Оплачено вовремя\",IF(AND(Реестр_tb[[#This Row],[Оплачен]]=\"Да\",Реестр_tb[[#This Row],[Факт. дата оплаты]]>Реестр_tb[[#This Row],[Плановая дата оплаты]]),\"Просрочено\",IF(AND(Реестр_tb[[#This Row],[Оплачен]]=\"Нет\",Реестр_tb[[#This Row],[Факт. дата оплаты]]=\"\",Реестр_tb[[#This Row],[Плановая дата оплаты]]<$AB$1),\"Просрочено\",IF(Реестр_tb[[#This Row],[Плановая дата оплаты]]=$AB$1,\"Сегодня\",IF(Реестр_tb[[#This Row],[Плановая дата оплаты]]<=$AB$1+7,\"В течении недели\",\"Через неделю и более\")))))","v":"Через неделю и более"},null,null,"Договор № 579-М-КТС-GSM от ххх на сумму 62 020,80 руб. (БО на сумму 62 020,80 руб.)"]
["ФГКУ «ОВО ВНГ России по Сахалинской области»","Муниципальное задание","мониторинг тенических средств охраны (Росгвардия)",{"$f":"IFERROR(VLOOKUP(Реестр_tb[[#This Row],[Подкатегория]],IF({1,0},Данные_tb[ЕД],Данные_tb[доп. код.]),2,0),\" \")","v":4},{"$f":"IFERROR(VLOOKUP(Реестр_tb[[#This Row],[ДОПЫ]],IF({1,0},Данные_tb[доп. код.],Данные_tb[Источник]),2,0),\" \")","v":20},"Нет","август","мониторинг тенических средств охраны (Росгвардия)",5,5168.3999999999996,null,null,null,null,{"$f":"IF(Реестр_tb[[#This Row],[Срок оплаты (дней)]]=\"\",\"\",WORKDAY(Реестр_tb[[#This Row],[входящий (дата)]],Реестр_tb[[#This Row],[Срок оплаты (дней)]]+1,Выходные_tb[Выходные]))","v":""},null,{"$f":"IF(AND(Реестр_tb[[#This Row],[Оплачен]]=\"Да\",Реестр_tb[[#This Row],[Факт. дата оплаты]]<=Реестр_tb[[#This Row],[Плановая дата оплаты]]),\"Оплачено вовремя\",IF(AND(Реестр_tb[[#This Row],[Оплачен]]=\"Да\",Реестр_tb[[#This Row],[Факт. дата оплаты]]>Реестр_tb[[#This Row],[Плановая дата оплаты]]),\"Просрочено\",IF(AND(Реестр_tb[[#This Row],[Оплачен]]=\"Нет\",Реестр_tb[[#This Row],[Факт. дата оплаты]]=\"\",Реестр_tb[[#This Row],[Плановая дата оплаты]]<$AB$1),\"Просрочено\",IF(Реестр_tb[[#This Row],[Плановая дата оплаты]]=$AB$1,\"Сегодня\",IF(Реестр_tb[[#This Row],[Плановая дата оплаты]]<=$AB$1+7,\"В течении недели\",\"Через неделю и более\")))))","v":"Через неделю и более"},null,null,"Договор № 579-М-КТС-GSM от ххх на сумму 62 020,80 руб. (БО на сумму 62 020,80 руб.)"]
["ФГКУ «ОВО ВНГ России по Сахалинской области»","Муниципальное задание","мониторинг тенических средств охраны (Росгвардия)",{"$f":"IFERROR(VLOOKUP(Реестр_tb[[#This Row],[Подкатегория]],IF({1,0},Данные_tb[ЕД],Данные_tb[доп. код.]),2,0),\" \")","v":4},{"$f":"IFERROR(VLOOKUP(Реестр_tb[[#This Row],[ДОПЫ]],IF({1,0},Данные_tb[доп. код.],Данные_tb[Источник]),2,0),\" \")","v":20},"Нет","сентябрь","мониторинг тенических средств охраны (Росгвардия)",5,5168.3999999999996,null,null,null,null,{"$f":"IF(Реестр_tb[[#This Row],[Срок оплаты (дней)]]=\"\",\"\",WORKDAY(Реестр_tb[[#This Row],[входящий (дата)]],Реестр_tb[[#This Row],[Срок оплаты (дней)]]+1,Выходные_tb[Выходные]))","v":""},null,{"$f":"IF(AND(Реестр_tb[[#This Row],[Оплачен]]=\"Да\",Реестр_tb[[#This Row],[Факт. дата оплаты]]<=Реестр_tb[[#This Row],[Плановая дата оплаты]]),\"Оплачено вовремя\",IF(AND(Реестр_tb[[#This Row],[Оплачен]]=\"Да\",Реестр_tb[[#This Row],[Факт. дата оплаты]]>Реестр_tb[[#This Row],[Плановая дата оплаты]]),\"Просрочено\",IF(AND(Реестр_tb[[#This Row],[Оплачен]]=\"Нет\",Реестр_tb[[#This Row],[Факт. дата оплаты]]=\"\",Реестр_tb[[#This Row],[Плановая дата оплаты]]<$AB$1),\"Просрочено\",IF(Реестр_tb[[#This Row],[Плановая дата оплаты]]=$AB$1,\"Сегодня\",IF(Реестр_tb[[#This Row],[Плановая дата оплаты]]<=$AB$1+7,\"В течении недели\",\"Через неделю и более\")))))","v":"Через неделю и более"},null,null,"Договор № 579-М-КТС-GSM от ххх на сумму 62 020,80 руб. (БО на сумму 62 020,80 руб.)"]
["ФГКУ «ОВО ВНГ России по Сахалинской области»","Муниципальное задание","мониторинг тенических средств охраны (Росгвардия)",{"$f":"IFERROR(VLOOKUP(Реестр_tb[[#This Row],[Подкатегория]],IF({1,0},Данные_tb[ЕД],Данные_tb[доп. код.]),2,0),\" \")","v":4},{"$f":"IFERROR(VLOOKUP(Реестр_tb[[#This Row],[ДОПЫ]],IF({1,0},Данные_tb[доп. код.],Данные_tb[Источник]),2,0),\" \")","v":20},"Нет","октябрь","мониторинг тенических средств охраны (Росгвардия)",5,5168.3999999999996,null,null,null,null,{"$f":"IF(Реестр_tb[[#This Row],[Срок оплаты (дней)]]=\"\",\"\",WORKDAY(Реестр_tb[[#This Row],[входящий (дата)]],Реестр_tb[[#This Row],[Срок оплаты (дней)]]+1,Выходные_tb[Выходные]))","v":""},null,{"$f":"IF(AND(Реестр_tb[[#This Row],[Оплачен]]=\"Да\",Реестр_tb[[#This Row],[Факт. дата оплаты]]<=Реестр_tb[[#This Row],[Плановая дата оплаты]]),\"Оплачено вовремя\",IF(AND(Реестр_tb[[#This Row],[Оплачен]]=\"Да\",Реестр_tb[[#This Row],[Факт. дата оплаты]]>Реестр_tb[[#This Row],[Плановая дата оплаты]]),\"Просрочено\",IF(AND(Реестр_tb[[#This Row],[Оплачен]]=\"Нет\",Реестр_tb[[#This Row],[Факт. дата оплаты]]=\"\",Реестр_tb[[#This Row],[Плановая дата оплаты]]<$AB$1),\"Просрочено\",IF(Реестр_tb[[#This Row],[Плановая дата оплаты]]=$AB$1,\"Сегодня\",IF(Реестр_tb[[#This Row],[Плановая дата оплаты]]<=$AB$1+7,\"В течении недели\",\"Через неделю и более\")))))","v":"Через неделю и более"},null,null,"Договор № 579-М-КТС-GSM от ххх на сумму 62 020,80 руб. (БО на сумму 62 020,80 руб.)"]
["ФГКУ «ОВО ВНГ России по Сахалинской области»","Муниципальное задание","мониторинг тенических средств охраны (Росгвардия)",{"$f":"IFERROR(VLOOKUP(Реестр_tb[[#This Row],[Подкатегория]],IF({1,0},Данные_tb[ЕД],Данные_tb[доп. код.]),2,0),\" \")","v":4},{"$f":"IFERROR(VLOOKUP(Реестр_tb[[#This Row],[ДОПЫ]],IF({1,0},Данные_tb[доп. код.],Данные_tb[Источник]),2,0),\" \")","v":20},"Нет","ноябрь","мониторинг тенических средств охраны (Росгвардия)",5,5168.3999999999996,null,null,null,null,{"$f":"IF(Реестр_tb[[#This Row],[Срок оплаты (дней)]]=\"\",\"\",WORKDAY(Реестр_tb[[#This Row],[входящий (дата)]],Реестр_tb[[#This Row],[Срок оплаты (дней)]]+1,Выходные_tb[Выходные]))","v":""},null,{"$f":"IF(AND(Реестр_tb[[#This Row],[Оплачен]]=\"Да\",Реестр_tb[[#This Row],[Факт. дата оплаты]]<=Реестр_tb[[#This Row],[Плановая дата оплаты]]),\"Оплачено вовремя\",IF(AND(Реестр_tb[[#This Row],[Оплачен]]=\"Да\",Реестр_tb[[#This Row],[Факт. дата оплаты]]>Реестр_tb[[#This Row],[Плановая дата оплаты]]),\"Просрочено\",IF(AND(Реестр_tb[[#This Row],[Оплачен]]=\"Нет\",Реестр_tb[[#This Row],[Факт. дата оплаты]]=\"\",Реестр_tb[[#This Row],[Плановая дата оплаты]]<$AB$1),\"Просрочено\",IF(Реестр_tb[[#This Row],[Плановая дата оплаты]]=$AB$1,\"Сегодня\",IF(Реестр_tb[[#This Row],[Плановая дата оплаты]]<=$AB$1+7,\"В течении недели\",\"Через неделю и более\")))))","v":"Через неделю и более"},null,null,"Договор № 579-М-КТС-GSM от ххх на сумму 62 020,80 руб. (БО на сумму 62 020,80 руб.)"]
["ФГКУ «ОВО ВНГ России по Сахалинской области»","Муниципальное задание","мониторинг тенических средств охраны (Росгвардия)",{"$f":"IFERROR(VLOOKUP(Реестр_tb[[#This Row],[Подкатегория]],IF({1,0},Данные_tb[ЕД],Данные_tb[доп. код.]),2,0),\" \")","v":4},{"$f":"IFERROR(VLOOKUP(Реестр_tb[[#This Row],[ДОПЫ]],IF({1,0},Данные_tb[доп. код.],Данные_tb[Источник]),2,0),\" \")","v":20},"Нет","декабрь","мониторинг тенических средств охраны (Росгвардия)",5,5168.3999999999996,null,null,null,null,{"$f":"IF(Реестр_tb[[#This Row],[Срок оплаты (дней)]]=\"\",\"\",WORKDAY(Реестр_tb[[#This Row],[входящий (дата)]],Реестр_tb[[#This Row],[Срок оплаты (дней)]]+1,Выходные_tb[Выходные]))","v":""},null,{"$f":"IF(AND(Реестр_tb[[#This Row],[Оплачен]]=\"Да\",Реестр_tb[[#This Row],[Факт. дата оплаты]]<=Реестр_tb[[#This Row],[Плановая дата оплаты]]),\"Оплачено вовремя\",IF(AND(Реестр_tb[[#This Row],[Оплачен]]=\"Да\",Реестр_tb[[#This Row],[Факт. дата оплаты]]>Реестр_tb[[#This Row],[Плановая дата оплаты]]),\"Просрочено\",IF(AND(Реестр_tb[[#This Row],[Оплачен]]=\"Нет\",Реестр_tb[[#This Row],[Факт. дата оплаты]]=\"\",Реестр_tb[[#This Row],[Плановая дата оплаты]]<$AB$1),\"Просрочено\",IF(Реестр_tb[[#This Row],[Плановая дата оплаты]]=$AB$1,\"Сегодня\",IF(Реестр_tb[[#This Row],[Плановая дата оплаты]]<=$AB$1+7,\"В течении недели\",\"Через неделю и более\")))))","v":"Через неделю и более"},null,null,"Договор № 579-М-КТС-GSM от ххх на сумму 62 020,80 руб. (БО на сумму 62 020,80 руб.)"]
["ИП Ибрагимов Рустам Ибрагимович","Муниципальное задание","обслуживание системы видеонаблюдения",{"$f":"IFERROR(VLOOKUP(Реестр_tb[[#This Row],[Подкатегория]],IF({1,0},Данные_tb[ЕД],Данные_tb[доп. код.]),2,0),\" \")","v":4},{"$f":"IFERROR(VLOOKUP(Реестр_tb[[#This Row],[ДОПЫ]],IF({1,0},Данные_tb[доп. код.],Данные_tb[Источник]),2,0),\" \")","v":20},"Нет","январь","обслуживание системы видеонаблюдения",5,18000,null,null,null,null,{"$f":"IF(Реестр_tb[[#This Row],[Срок оплаты (дней)]]=\"\",\"\",WORKDAY(Реестр_tb[[#This Row],[входящий (дата)]],Реестр_tb[[#This Row],[Срок оплаты (дней)]]+1,Выходные_tb[Выходные]))","v":""},null,{"$f":"IF(AND(Реестр_tb[[#This Row],[Оплачен]]=\"Да\",Реестр_tb[[#This Row],[Факт. дата оплаты]]<=Реестр_tb[[#This Row],[Плановая дата оплаты]]),\"Оплачено вовремя\",IF(AND(Реестр_tb[[#This Row],[Оплачен]]=\"Да\",Реестр_tb[[#This Row],[Факт. дата оплаты]]>Реестр_tb[[#This Row],[Плановая дата оплаты]]),\"Просрочено\",IF(AND(Реестр_tb[[#This Row],[Оплачен]]=\"Нет\",Реестр_tb[[#This Row],[Факт. дата оплаты]]=\"\",Реестр_tb[[#This Row],[Плановая дата оплаты]]<$AB$1),\"Просрочено\",IF(Реестр_tb[[#This Row],[Плановая дата оплаты]]=$AB$1,\"Сегодня\",IF(Реестр_tb[[#This Row],[Плановая дата оплаты]]<=$AB$1+7,\"В течении недели\",\"Через неделю и более\")))))","v":"Через неделю и более"},null,null,"Договор № ТО-5-22 от ххх на сумму 216 000,00 руб. (БО на сумму 216 000,00 руб.)"]
["ИП Ибрагимов Рустам Ибрагимович","Муниципальное задание","обслуживание системы видеонаблюдения",{"$f":"IFERROR(VLOOKUP(Реестр_tb[[#This Row],[Подкатегория]],IF({1,0},Данные_tb[ЕД],Данные_tb[доп. код.]),2,0),\" \")","v":4},{"$f":"IFERROR(VLOOKUP(Реестр_tb[[#This Row],[ДОПЫ]],IF({1,0},Данные_tb[доп. код.],Данные_tb[Источник]),2,0),\" \")","v":20},"Нет","февраль","обслуживание системы видеонаблюдения",5,18000,null,null,null,null,{"$f":"IF(Реестр_tb[[#This Row],[Срок оплаты (дней)]]=\"\",\"\",WORKDAY(Реестр_tb[[#This Row],[входящий (дата)]],Реестр_tb[[#This Row],[Срок оплаты (дней)]]+1,Выходные_tb[Выходные]))","v":""},null,{"$f":"IF(AND(Реестр_tb[[#This Row],[Оплачен]]=\"Да\",Реестр_tb[[#This Row],[Факт. дата оплаты]]<=Реестр_tb[[#This Row],[Плановая дата оплаты]]),\"Оплачено вовремя\",IF(AND(Реестр_tb[[#This Row],[Оплачен]]=\"Да\",Реестр_tb[[#This Row],[Факт. дата оплаты]]>Реестр_tb[[#This Row],[Плановая дата оплаты]]),\"Просрочено\",IF(AND(Реестр_tb[[#This Row],[Оплачен]]=\"Нет\",Реестр_tb[[#This Row],[Факт. дата оплаты]]=\"\",Реестр_tb[[#This Row],[Плановая дата оплаты]]<$AB$1),\"Просрочено\",IF(Реестр_tb[[#This Row],[Плановая дата оплаты]]=$AB$1,\"Сегодня\",IF(Реестр_tb[[#This Row],[Плановая дата оплаты]]<=$AB$1+7,\"В течении недели\",\"Через неделю и более\")))))","v":"Через неделю и более"},null,null,"Договор № ТО-5-22 от ххх на сумму 216 000,00 руб. (БО на сумму 216 000,00 руб.)"]
["ИП Ибрагимов Рустам Ибрагимович","Муниципальное задание","обслуживание системы видеонаблюдения",{"$f":"IFERROR(VLOOKUP(Реестр_tb[[#This Row],[Подкатегория]],IF({1,0},Данные_tb[ЕД],Данные_tb[доп. код.]),2,0),\" \")","v":4},{"$f":"IFERROR(VLOOKUP(Реестр_tb[[#This Row],[ДОПЫ]],IF({1,0},Данные_tb[доп. код.],Данные_tb[Источник]),2,0),\" \")","v":20},"Нет","март","обслуживание системы видеонаблюдения",5,18000,null,null,null,null,{"$f":"IF(Реестр_tb[[#This Row],[Срок оплаты (дней)]]=\"\",\"\",WORKDAY(Реестр_tb[[#This Row],[входящий (дата)]],Реестр_tb[[#This Row],[Срок оплаты (дней)]]+1,Выходные_tb[Выходные]))","v":""},null,{"$f":"IF(AND(Реестр_tb[[#This Row],[Оплачен]]=\"Да\",Реестр_tb[[#This Row],[Факт. дата оплаты]]<=Реестр_tb[[#This Row],[Плановая дата оплаты]]),\"Оплачено вовремя\",IF(AND(Реестр_tb[[#This Row],[Оплачен]]=\"Да\",Реестр_tb[[#This Row],[Факт. дата оплаты]]>Реестр_tb[[#This Row],[Плановая дата оплаты]]),\"Просрочено\",IF(AND(Реестр_tb[[#This Row],[Оплачен]]=\"Нет\",Реестр_tb[[#This Row],[Факт. дата оплаты]]=\"\",Реестр_tb[[#This Row],[Плановая дата оплаты]]<$AB$1),\"Просрочено\",IF(Реестр_tb[[#This Row],[Плановая дата оплаты]]=$AB$1,\"Сегодня\",IF(Реестр_tb[[#This Row],[Плановая дата оплаты]]<=$AB$1+7,\"В течении недели\",\"Через неделю и более\")))))","v":"Через неделю и более"},null,null,"Договор № ТО-5-22 от ххх на сумму 216 000,00 руб. (БО на сумму 216 000,00 руб.)"]
["ИП Ибрагимов Рустам Ибрагимович","Муниципальное задание","обслуживание системы видеонаблюдения",{"$f":"IFERROR(VLOOKUP(Реестр_tb[[#This Row],[Подкатегория]],IF({1,0},Данные_tb[ЕД],Данные_tb[доп. код.]),2,0),\" \")","v":4},{"$f":"IFERROR(VLOOKUP(Реестр_tb[[#This Row],[ДОПЫ]],IF({1,0},Данные_tb[доп. код.],Данные_tb[Источник]),2,0),\" \")","v":20},"Нет","апрель","обслуживание системы видеонаблюдения",5,18000,null,null,null,null,{"$f":"IF(Реестр_tb[[#This Row],[Срок оплаты (дней)]]=\"\",\"\",WORKDAY(Реестр_tb[[#This Row],[входящий (дата)]],Реестр_tb[[#This Row],[Срок оплаты (дней)]]+1,Выходные_tb[Выходные]))","v":""},null,{"$f":"IF(AND(Реестр_tb[[#This Row],[Оплачен]]=\"Да\",Реестр_tb[[#This Row],[Факт. дата оплаты]]<=Реестр_tb[[#This Row],[Плановая дата оплаты]]),\"Оплачено вовремя\",IF(AND(Реестр_tb[[#This Row],[Оплачен]]=\"Да\",Реестр_tb[[#This Row],[Факт. дата оплаты]]>Реестр_tb[[#This Row],[Плановая дата оплаты]]),\"Просрочено\",IF(AND(Реестр_tb[[#This Row],[Оплачен]]=\"Нет\",Реестр_tb[[#This Row],[Факт. дата оплаты]]=\"\",Реестр_tb[[#This Row],[Плановая дата оплаты]]<$AB$1),\"Просрочено\",IF(Реестр_tb[[#This Row],[Плановая дата оплаты]]=$AB$1,\"Сегодня\",IF(Реестр_tb[[#This Row],[Плановая дата оплаты]]<=$AB$1+7,\"В течении недели\",\"Через неделю и более\")))))","v":"Через неделю и более"},null,null,"Договор № ТО-5-22 от ххх на сумму 216 000,00 руб. (БО на сумму 216 000,00 руб.)"]
["ИП Ибрагимов Рустам Ибрагимович","Муниципальное задание","обслуживание системы видеонаблюдения",{"$f":"IFERROR(VLOOKUP(Реестр_tb[[#This Row],[Подкатегория]],IF({1,0},Данные_tb[ЕД],Данные_tb[доп. код.]),2,0),\" \")","v":4},{"$f":"IFERROR(VLOOKUP(Реестр_tb[[#This Row],[ДОПЫ]],IF({1,0},Данные_tb[доп. код.],Данные_tb[Источник]),2,0),\" \")","v":20},"Нет","май","обслуживание системы видеонаблюдения",5,18000,null,null,null,null,{"$f":"IF(Реестр_tb[[#This Row],[Срок оплаты (дней)]]=\"\",\"\",WORKDAY(Реестр_tb[[#This Row],[входящий (дата)]],Реестр_tb[[#This Row],[Срок оплаты (дней)]]+1,Выходные_tb[Выходные]))","v":""},null,{"$f":"IF(AND(Реестр_tb[[#This Row],[Оплачен]]=\"Да\",Реестр_tb[[#This Row],[Факт. дата оплаты]]<=Реестр_tb[[#This Row],[Плановая дата оплаты]]),\"Оплачено вовремя\",IF(AND(Реестр_tb[[#This Row],[Оплачен]]=\"Да\",Реестр_tb[[#This Row],[Факт. дата оплаты]]>Реестр_tb[[#This Row],[Плановая дата оплаты]]),\"Просрочено\",IF(AND(Реестр_tb[[#This Row],[Оплачен]]=\"Нет\",Реестр_tb[[#This Row],[Факт. дата оплаты]]=\"\",Реестр_tb[[#This Row],[Плановая дата оплаты]]<$AB$1),\"Просрочено\",IF(Реестр_tb[[#This Row],[Плановая дата оплаты]]=$AB$1,\"Сегодня\",IF(Реестр_tb[[#This Row],[Плановая дата оплаты]]<=$AB$1+7,\"В течении недели\",\"Через неделю и более\")))))","v":"Через неделю и более"},null,null,"Договор № ТО-5-22 от ххх на сумму 216 000,00 руб. (БО на сумму 216 000,00 руб.)"]
["ИП Ибрагимов Рустам Ибрагимович","Муниципальное задание","обслуживание системы видеонаблюдения",{"$f":"IFERROR(VLOOKUP(Реестр_tb[[#This Row],[Подкатегория]],IF({1,0},Данные_tb[ЕД],Данные_tb[доп. код.]),2,0),\" \")","v":4},{"$f":"IFERROR(VLOOKUP(Реестр_tb[[#This Row],[ДОПЫ]],IF({1,0},Данные_tb[доп. код.],Данные_tb[Источник]),2,0),\" \")","v":20},"Нет","июнь","обслуживание системы видеонаблюдения",5,18000,null,null,null,null,{"$f":"IF(Реестр_tb[[#This Row],[Срок оплаты (дней)]]=\"\",\"\",WORKDAY(Реестр_tb[[#This Row],[входящий (дата)]],Реестр_tb[[#This Row],[Срок оплаты (дней)]]+1,Выходные_tb[Выходные]))","v":""},null,{"$f":"IF(AND(Реестр_tb[[#This Row],[Оплачен]]=\"Да\",Реестр_tb[[#This Row],[Факт. дата оплаты]]<=Реестр_tb[[#This Row],[Плановая дата оплаты]]),\"Оплачено вовремя\",IF(AND(Реестр_tb[[#This Row],[Оплачен]]=\"Да\",Реестр_tb[[#This Row],[Факт. дата оплаты]]>Реестр_tb[[#This Row],[Плановая дата оплаты]]),\"Просрочено\",IF(AND(Реестр_tb[[#This Row],[Оплачен]]=\"Нет\",Реестр_tb[[#This Row],[Факт. дата оплаты]]=\"\",Реестр_tb[[#This Row],[Плановая дата оплаты]]<$AB$1),\"Просрочено\",IF(Реестр_tb[[#This Row],[Плановая дата оплаты]]=$AB$1,\"Сегодня\",IF(Реестр_tb[[#This Row],[Плановая дата оплаты]]<=$AB$1+7,\"В течении недели\",\"Через неделю и более\")))))","v":"Через неделю и более"},null,null,"Договор № ТО-5-22 от ххх на сумму 216 000,00 руб. (БО на сумму 216 000,00 руб.)"]
["ИП Ибрагимов Рустам Ибрагимович","Муниципальное задание","обслуживание системы видеонаблюдения",{"$f":"IFERROR(VLOOKUP(Реестр_tb[[#This Row],[Подкатегория]],IF({1,0},Данные_tb[ЕД],Данные_tb[доп. код.]),2,0),\" \")","v":4},{"$f":"IFERROR(VLOOKUP(Реестр_tb[[#This Row],[ДОПЫ]],IF({1,0},Данные_tb[доп. код.],Данные_tb[Источник]),2,0),\" \")","v":20},"Нет","июль","обслуживание системы видеонаблюдения",5,18000,null,null,null,null,{"$f":"IF(Реестр_tb[[#This Row],[Срок оплаты (дней)]]=\"\",\"\",WORKDAY(Реестр_tb[[#This Row],[входящий (дата)]],Реестр_tb[[#This Row],[Срок оплаты (дней)]]+1,Выходные_tb[Выходные]))","v":""},null,{"$f":"IF(AND(Реестр_tb[[#This Row],[Оплачен]]=\"Да\",Реестр_tb[[#This Row],[Факт. дата оплаты]]<=Реестр_tb[[#This Row],[Плановая дата оплаты]]),\"Оплачено вовремя\",IF(AND(Реестр_tb[[#This Row],[Оплачен]]=\"Да\",Реестр_tb[[#This Row],[Факт. дата оплаты]]>Реестр_tb[[#This Row],[Плановая дата оплаты]]),\"Просрочено\",IF(AND(Реестр_tb[[#This Row],[Оплачен]]=\"Нет\",Реестр_tb[[#This Row],[Факт. дата оплаты]]=\"\",Реестр_tb[[#This Row],[Плановая дата оплаты]]<$AB$1),\"Просрочено\",IF(Реестр_tb[[#This Row],[Плановая дата оплаты]]=$AB$1,\"Сегодня\",IF(Реестр_tb[[#This Row],[Плановая дата оплаты]]<=$AB$1+7,\"В течении недели\",\"Через неделю и более\")))))","v":"Через неделю и более"},null,null,"Договор № ТО-5-22 от ххх на сумму 216 000,00 руб. (БО на сумму 216 000,00 руб.)"]
["ИП Ибрагимов Рустам Ибрагимович","Муниципальное задание","обслуживание системы видеонаблюдения",{"$f":"IFERROR(VLOOKUP(Реестр_tb[[#This Row],[Подкатегория]],IF({1,0},Данные_tb[ЕД],Данные_tb[доп. код.]),2,0),\" \")","v":4},{"$f":"IFERROR(VLOOKUP(Реестр_tb[[#This Row],[ДОПЫ]],IF({1,0},Данные_tb[доп. код.],Данные_tb[Источник]),2,0),\" \")","v":20},"Нет","август","обслуживание системы видеонаблюдения",5,18000,null,null,null,null,{"$f":"IF(Реестр_tb[[#This Row],[Срок оплаты (дней)]]=\"\",\"\",WORKDAY(Реестр_tb[[#This Row],[входящий (дата)]],Реестр_tb[[#This Row],[Срок оплаты (дней)]]+1,Выходные_tb[Выходные]))","v":""},null,{"$f":"IF(AND(Реестр_tb[[#This Row],[Оплачен]]=\"Да\",Реестр_tb[[#This Row],[Факт. дата оплаты]]<=Реестр_tb[[#This Row],[Плановая дата оплаты]]),\"Оплачено вовремя\",IF(AND(Реестр_tb[[#This Row],[Оплачен]]=\"Да\",Реестр_tb[[#This Row],[Факт. дата оплаты]]>Реестр_tb[[#This Row],[Плановая дата оплаты]]),\"Просрочено\",IF(AND(Реестр_tb[[#This Row],[Оплачен]]=\"Нет\",Реестр_tb[[#This Row],[Факт. дата оплаты]]=\"\",Реестр_tb[[#This Row],[Плановая дата оплаты]]<$AB$1),\"Просрочено\",IF(Реестр_tb[[#This Row],[Плановая дата оплаты]]=$AB$1,\"Сегодня\",IF(Реестр_tb[[#This Row],[Плановая дата оплаты]]<=$AB$1+7,\"В течении недели\",\"Через неделю и более\")))))","v":"Через неделю и более"},null,null,"Договор № ТО-5-22 от ххх на сумму 216 000,00 руб. (БО на сумму 216 000,00 руб.)"]
["ИП Ибрагимов Рустам Ибрагимович","Муниципальное задание","обслуживание системы видеонаблюдения",{"$f":"IFERROR(VLOOKUP(Реестр_tb[[#This Row],[Подкатегория]],IF({1,0},Данные_tb[ЕД],Данные_tb[доп. код.]),2,0),\" \")","v":4},{"$f":"IFERROR(VLOOKUP(Реестр_tb[[#This Row],[ДОПЫ]],IF({1,0},Данные_tb[доп. код.],Данные_tb[Источник]),2,0),\" \")","v":20},"Нет","сентябрь","обслуживание системы видеонаблюдения",5,18000,null,null,null,null,{"$f":"IF(Реестр_tb[[#This Row],[Срок оплаты (дней)]]=\"\",\"\",WORKDAY(Реестр_tb[[#This Row],[входящий (дата)]],Реестр_tb[[#This Row],[Срок оплаты (дней)]]+1,Выходные_tb[Выходные]))","v":""},null,{"$f":"IF(AND(Реестр_tb[[#This Row],[Оплачен]]=\"Да\",Реестр_tb[[#This Row],[Факт. дата оплаты]]<=Реестр_tb[[#This Row],[Плановая дата оплаты]]),\"Оплачено вовремя\",IF(AND(Реестр_tb[[#This Row],[Оплачен]]=\"Да\",Реестр_tb[[#This Row],[Факт. дата оплаты]]>Реестр_tb[[#This Row],[Плановая дата оплаты]]),\"Просрочено\",IF(AND(Реестр_tb[[#This Row],[Оплачен]]=\"Нет\",Реестр_tb[[#This Row],[Факт. дата оплаты]]=\"\",Реестр_tb[[#This Row],[Плановая дата оплаты]]<$AB$1),\"Просрочено\",IF(Реестр_tb[[#This Row],[Плановая дата оплаты]]=$AB$1,\"Сегодня\",IF(Реестр_tb[[#This Row],[Плановая дата оплаты]]<=$AB$1+7,\"В течении недели\",\"Через неделю и более\")))))","v":"Через неделю и более"},null,null,"Договор № ТО-5-22 от ххх на сумму 216 000,00 руб. (БО на сумму 216 000,00 руб.)"]
["ИП Ибрагимов Рустам Ибрагимович","Муниципальное задание","обслуживание системы видеонаблюдения",{"$f":"IFERROR(VLOOKUP(Реестр_tb[[#This Row],[Подкатегория]],IF({1,0},Данные_tb[ЕД],Данные_tb[доп. код.]),2,0),\" \")","v":4},{"$f":"IFERROR(VLOOKUP(Реестр_tb[[#This Row],[ДОПЫ]],IF({1,0},Данные_tb[доп. код.],Данные_tb[Источник]),2,0),\" \")","v":20},"Нет","октябрь","обслуживание системы видеонаблюдения",5,18000,null,null,null,null,{"$f":"IF(Реестр_tb[[#This Row],[Срок оплаты (дней)]]=\"\",\"\",WORKDAY(Реестр_tb[[#This Row],[входящий (дата)]],Реестр_tb[[#This Row],[Срок оплаты (дней)]]+1,Выходные_tb[Выходные]))","v":""},null,{"$f":"IF(AND(Реестр_tb[[#This Row],[Оплачен]]=\"Да\",Реестр_tb[[#This Row],[Факт. дата оплаты]]<=Реестр_tb[[#This Row],[Плановая дата оплаты]]),\"Оплачено вовремя\",IF(AND(Реестр_tb[[#This Row],[Оплачен]]=\"Да\",Реестр_tb[[#This Row],[Факт. дата оплаты]]>Реестр_tb[[#This Row],[Плановая дата оплаты]]),\"Просрочено\",IF(AND(Реестр_tb[[#This Row],[Оплачен]]=\"Нет\",Реестр_tb[[#This Row],[Факт. дата оплаты]]=\"\",Реестр_tb[[#This Row],[Плановая дата оплаты]]<$AB$1),\"Просрочено\",IF(Реестр_tb[[#This Row],[Плановая дата оплаты]]=$AB$1,\"Сегодня\",IF(Реестр_tb[[#This Row],[Плановая дата оплаты]]<=$AB$1+7,\"В течении недели\",\"Через неделю и более\")))))","v":"Через неделю и более"},null,null,"Договор № ТО-5-22 от ххх на сумму 216 000,00 руб. (БО на сумму 216 000,00 руб.)"]
["ИП Ибрагимов Рустам Ибрагимович","Муниципальное задание","обслуживание системы видеонаблюдения",{"$f":"IFERROR(VLOOKUP(Реестр_tb[[#This Row],[Подкатегория]],IF({1,0},Данные_tb[ЕД],Данные_tb[доп. код.]),2,0),\" \")","v":4},{"$f":"IFERROR(VLOOKUP(Реестр_tb[[#This Row],[ДОПЫ]],IF({1,0},Данные_tb[доп. код.],Данные_tb[Источник]),2,0),\" \")","v":20},"Нет","ноябрь","обслуживание системы видеонаблюдения",5,18000,null,null,null,null,{"$f":"IF(Реестр_tb[[#This Row],[Срок оплаты (дней)]]=\"\",\"\",WORKDAY(Реестр_tb[[#This Row],[входящий (дата)]],Реестр_tb[[#This Row],[Срок оплаты (дней)]]+1,Выходные_tb[Выходные]))","v":""},null,{"$f":"IF(AND(Реестр_tb[[#This Row],[Оплачен]]=\"Да\",Реестр_tb[[#This Row],[Факт. дата оплаты]]<=Реестр_tb[[#This Row],[Плановая дата оплаты]]),\"Оплачено вовремя\",IF(AND(Реестр_tb[[#This Row],[Оплачен]]=\"Да\",Реестр_tb[[#This Row],[Факт. дата оплаты]]>Реестр_tb[[#This Row],[Плановая дата оплаты]]),\"Просрочено\",IF(AND(Реестр_tb[[#This Row],[Оплачен]]=\"Нет\",Реестр_tb[[#This Row],[Факт. дата оплаты]]=\"\",Реестр_tb[[#This Row],[Плановая дата оплаты]]<$AB$1),\"Просрочено\",IF(Реестр_tb[[#This Row],[Плановая дата оплаты]]=$AB$1,\"Сегодня\",IF(Реестр_tb[[#This Row],[Плановая дата оплаты]]<=$AB$1+7,\"В течении недели\",\"Через неделю и более\")))))","v":"Через неделю и более"},null,null,"Договор № ТО-5-22 от ххх на сумму 216 000,00 руб. (БО на сумму 216 000,00 руб.)"]
["ИП Ибрагимов Рустам Ибрагимович","Муниципальное задание","обслуживание системы видеонаблюдения",{"$f":"IFERROR(VLOOKUP(Реестр_tb[[#This Row],[Подкатегория]],IF({1,0},Данные_tb[ЕД],Данные_tb[доп. код.]),2,0),\" \")","v":4},{"$f":"IFERROR(VLOOKUP(Реестр_tb[[#This Row],[ДОПЫ]],IF({1,0},Данные_tb[доп. код.],Данные_tb[Источник]),2,0),\" \")","v":20},"Нет","декабрь","обслуживание системы видеонаблюдения",5,18000,null,null,null,null,{"$f":"IF(Реестр_tb[[#This Row],[Срок оплаты (дней)]]=\"\",\"\",WORKDAY(Реестр_tb[[#This Row],[входящий (дата)]],Реестр_tb[[#This Row],[Срок оплаты (дней)]]+1,Выходные_tb[Выходные]))","v":""},null,{"$f":"IF(AND(Реестр_tb[[#This Row],[Оплачен]]=\"Да\",Реестр_tb[[#This Row],[Факт. дата оплаты]]<=Реестр_tb[[#This Row],[Плановая дата оплаты]]),\"Оплачено вовремя\",IF(AND(Реестр_tb[[#This Row],[Оплачен]]=\"Да\",Реестр_tb[[#This Row],[Факт. дата оплаты]]>Реестр_tb[[#This Row],[Плановая дата оплаты]]),\"Просрочено\",IF(AND(Реестр_tb[[#This Row],[Оплачен]]=\"Нет\",Реестр_tb[[#This Row],[Факт. дата оплаты]]=\"\",Реестр_tb[[#This Row],[Плановая дата оплаты]]<$AB$1),\"Просрочено\",IF(Реестр_tb[[#This Row],[Плановая дата оплаты]]=$AB$1,\"Сегодня\",IF(Реестр_tb[[#This Row],[Плановая дата оплаты]]<=$AB$1+7,\"В течении недели\",\"Через неделю и более\")))))","v":"Через неделю и более"},null,null,"Договор № ТО-5-22 от ххх на сумму 216 000,00 руб. (БО на сумму 216 000,00 руб.)"]
["ООО \"Кашалот-К\"","Муниципальное задание","обслуживание пожарной сигнализации ",{"$f":"IFERROR(VLOOKUP(Реестр_tb[[#This Row],[Подкатегория]],IF({1,0},Данные_tb[ЕД],Данные_tb[доп. код.]),2,0),\" \")","v":4},{"$f":"IFERROR(VLOOKUP(Реестр_tb[[#This Row],[ДОПЫ]],IF({1,0},Данные_tb[доп. код.],Данные_tb[Источник]),2,0),\" \")","v":20},"Нет","январь","обслуживание пожарной сигнализации ",5,25000,null,null,null,null,{"$f":"IF(Реестр_tb[[#This Row],[Срок оплаты (дней)]]=\"\",\"\",WORKDAY(Реестр_tb[[#This Row],[входящий (дата)]],Реестр_tb[[#This Row],[Срок оплаты (дней)]]+1,Выходные_tb[Выходные]))","v":""},null,{"$f":"IF(AND(Реестр_tb[[#This Row],[Оплачен]]=\"Да\",Реестр_tb[[#This Row],[Факт. дата оплаты]]<=Реестр_tb[[#This Row],[Плановая дата оплаты]]),\"Оплачено вовремя\",IF(AND(Реестр_tb[[#This Row],[Оплачен]]=\"Да\",Реестр_tb[[#This Row],[Факт. дата оплаты]]>Реестр_tb[[#This Row],[Плановая дата оплаты]]),\"Просрочено\",IF(AND(Реестр_tb[[#This Row],[Оплачен]]=\"Нет\",Реестр_tb[[#This Row],[Факт. дата оплаты]]=\"\",Реестр_tb[[#This Row],[Плановая дата оплаты]]<$AB$1),\"Просрочено\",IF(Реестр_tb[[#This Row],[Плановая дата оплаты]]=$AB$1,\"Сегодня\",IF(Реестр_tb[[#This Row],[Плановая дата оплаты]]<=$AB$1+7,\"В течении недели\",\"Через неделю и более\")))))","v":"Через неделю и более"},null,null,"Контракт № ТО-5-22 от ххх на сумму 300 000,00 руб. (БО на сумму 300 000 руб.)"]
["ООО \"Кашалот-К\"","Муниципальное задание","обслуживание пожарной сигнализации ",{"$f":"IFERROR(VLOOKUP(Реестр_tb[[#This Row],[Подкатегория]],IF({1,0},Данные_tb[ЕД],Данные_tb[доп. код.]),2,0),\" \")","v":4},{"$f":"IFERROR(VLOOKUP(Реестр_tb[[#This Row],[ДОПЫ]],IF({1,0},Данные_tb[доп. код.],Данные_tb[Источник]),2,0),\" \")","v":20},"Нет","февраль","обслуживание пожарной сигнализации ",5,25000,null,null,null,null,{"$f":"IF(Реестр_tb[[#This Row],[Срок оплаты (дней)]]=\"\",\"\",WORKDAY(Реестр_tb[[#This Row],[входящий (дата)]],Реестр_tb[[#This Row],[Срок оплаты (дней)]]+1,Выходные_tb[Выходные]))","v":""},null,{"$f":"IF(AND(Реестр_tb[[#This Row],[Оплачен]]=\"Да\",Реестр_tb[[#This Row],[Факт. дата оплаты]]<=Реестр_tb[[#This Row],[Плановая дата оплаты]]),\"Оплачено вовремя\",IF(AND(Реестр_tb[[#This Row],[Оплачен]]=\"Да\",Реестр_tb[[#This Row],[Факт. дата оплаты]]>Реестр_tb[[#This Row],[Плановая дата оплаты]]),\"Просрочено\",IF(AND(Реестр_tb[[#This Row],[Оплачен]]=\"Нет\",Реестр_tb[[#This Row],[Факт. дата оплаты]]=\"\",Реестр_tb[[#This Row],[Плановая дата оплаты]]<$AB$1),\"Просрочено\",IF(Реестр_tb[[#This Row],[Плановая дата оплаты]]=$AB$1,\"Сегодня\",IF(Реестр_tb[[#This Row],[Плановая дата оплаты]]<=$AB$1+7,\"В течении недели\",\"Через неделю и более\")))))","v":"Через неделю и более"},null,null,"Контракт № ТО-5-22 от ххх на сумму 300 000,00 руб. (БО на сумму 300 000 руб.)"]
["ООО \"Кашалот-К\"","Муниципальное задание","обслуживание пожарной сигнализации ",{"$f":"IFERROR(VLOOKUP(Реестр_tb[[#This Row],[Подкатегория]],IF({1,0},Данные_tb[ЕД],Данные_tb[доп. код.]),2,0),\" \")","v":4},{"$f":"IFERROR(VLOOKUP(Реестр_tb[[#This Row],[ДОПЫ]],IF({1,0},Данные_tb[доп. код.],Данные_tb[Источник]),2,0),\" \")","v":20},"Нет","март","обслуживание пожарной сигнализации ",5,25000,null,null,null,null,{"$f":"IF(Реестр_tb[[#This Row],[Срок оплаты (дней)]]=\"\",\"\",WORKDAY(Реестр_tb[[#This Row],[входящий (дата)]],Реестр_tb[[#This Row],[Срок оплаты (дней)]]+1,Выходные_tb[Выходные]))","v":""},null,{"$f":"IF(AND(Реестр_tb[[#This Row],[Оплачен]]=\"Да\",Реестр_tb[[#This Row],[Факт. дата оплаты]]<=Реестр_tb[[#This Row],[Плановая дата оплаты]]),\"Оплачено вовремя\",IF(AND(Реестр_tb[[#This Row],[Оплачен]]=\"Да\",Реестр_tb[[#This Row],[Факт. дата оплаты]]>Реестр_tb[[#This Row],[Плановая дата оплаты]]),\"Просрочено\",IF(AND(Реестр_tb[[#This Row],[Оплачен]]=\"Нет\",Реестр_tb[[#This Row],[Факт. дата оплаты]]=\"\",Реестр_tb[[#This Row],[Плановая дата оплаты]]<$AB$1),\"Просрочено\",IF(Реестр_tb[[#This Row],[Плановая дата оплаты]]=$AB$1,\"Сегодня\",IF(Реестр_tb[[#This Row],[Плановая дата оплаты]]<=$AB$1+7,\"В течении недели\",\"Через неделю и более\")))))","v":"Через неделю и более"},null,null,"Контракт № ТО-5-22 от ххх на сумму 300 000,00 руб. (БО на сумму 300 000 руб.)"]
["ООО \"Кашалот-К\"","Муниципальное задание","обслуживание пожарной сигнализации ",{"$f":"IFERROR(VLOOKUP(Реестр_tb[[#This Row],[Подкатегория]],IF({1,0},Данные_tb[ЕД],Данные_tb[доп. код.]),2,0),\" \")","v":4},{"$f":"IFERROR(VLOOKUP(Реестр_tb[[#This Row],[ДОПЫ]],IF({1,0},Данные_tb[доп. код.],Данные_tb[Источник]),2,0),\" \")","v":20},"Нет","апрель","обслуживание пожарной сигнализации ",5,25000,null,null,null,null,{"$f":"IF(Реестр_tb[[#This Row],[Срок оплаты (дней)]]=\"\",\"\",WORKDAY(Реестр_tb[[#This Row],[входящий (дата)]],Реестр_tb[[#This Row],[Срок оплаты (дней)]]+1,Выходные_tb[Выходные]))","v":""},null,{"$f":"IF(AND(Реестр_tb[[#This Row],[Оплачен]]=\"Да\",Реестр_tb[[#This Row],[Факт. дата оплаты]]<=Реестр_tb[[#This Row],[Плановая дата оплаты]]),\"Оплачено вовремя\",IF(AND(Реестр_tb[[#This Row],[Оплачен]]=\"Да\",Реестр_tb[[#This Row],[Факт. дата оплаты]]>Реестр_tb[[#This Row],[Плановая дата оплаты]]),\"Просрочено\",IF(AND(Реестр_tb[[#This Row],[Оплачен]]=\"Нет\",Реестр_tb[[#This Row],[Факт. дата оплаты]]=\"\",Реестр_tb[[#This Row],[Плановая дата оплаты]]<$AB$1),\"Просрочено\",IF(Реестр_tb[[#This Row],[Плановая дата оплаты]]=$AB$1,\"Сегодня\",IF(Реестр_tb[[#This Row],[Плановая дата оплаты]]<=$AB$1+7,\"В течении недели\",\"Через неделю и более\")))))","v":"Через неделю и более"},null,null,"Контракт № ТО-5-22 от ххх на сумму 300 000,00 руб. (БО на сумму 300 000 руб.)"]
["ООО \"Кашалот-К\"","Муниципальное задание","обслуживание пожарной сигнализации ",{"$f":"IFERROR(VLOOKUP(Реестр_tb[[#This Row],[Подкатегория]],IF({1,0},Данные_tb[ЕД],Данные_tb[доп. код.]),2,0),\" \")","v":4},{"$f":"IFERROR(VLOOKUP(Реестр_tb[[#This Row],[ДОПЫ]],IF({1,0},Данные_tb[доп. код.],Данные_tb[Источник]),2,0),\" \")","v":20},"Нет","май","обслуживание пожарной сигнализации ",5,25000,null,null,null,null,{"$f":"IF(Реестр_tb[[#This Row],[Срок оплаты (дней)]]=\"\",\"\",WORKDAY(Реестр_tb[[#This Row],[входящий (дата)]],Реестр_tb[[#This Row],[Срок оплаты (дней)]]+1,Выходные_tb[Выходные]))","v":""},null,{"$f":"IF(AND(Реестр_tb[[#This Row],[Оплачен]]=\"Да\",Реестр_tb[[#This Row],[Факт. дата оплаты]]<=Реестр_tb[[#This Row],[Плановая дата оплаты]]),\"Оплачено вовремя\",IF(AND(Реестр_tb[[#This Row],[Оплачен]]=\"Да\",Реестр_tb[[#This Row],[Факт. дата оплаты]]>Реестр_tb[[#This Row],[Плановая дата оплаты]]),\"Просрочено\",IF(AND(Реестр_tb[[#This Row],[Оплачен]]=\"Нет\",Реестр_tb[[#This Row],[Факт. дата оплаты]]=\"\",Реестр_tb[[#This Row],[Плановая дата оплаты]]<$AB$1),\"Просрочено\",IF(Реестр_tb[[#This Row],[Плановая дата оплаты]]=$AB$1,\"Сегодня\",IF(Реестр_tb[[#This Row],[Плановая дата оплаты]]<=$AB$1+7,\"В течении недели\",\"Через неделю и более\")))))","v":"Через неделю и более"},null,null,"Контракт № ТО-5-22 от ххх на сумму 300 000,00 руб. (БО на сумму 300 000 руб.)"]
["ООО \"Кашалот-К\"","Муниципальное задание","обслуживание пожарной сигнализации ",{"$f":"IFERROR(VLOOKUP(Реестр_tb[[#This Row],[Подкатегория]],IF({1,0},Данные_tb[ЕД],Данные_tb[доп. код.]),2,0),\" \")","v":4},{"$f":"IFERROR(VLOOKUP(Реестр_tb[[#This Row],[ДОПЫ]],IF({1,0},Данные_tb[доп. код.],Данные_tb[Источник]),2,0),\" \")","v":20},"Нет","июнь","обслуживание пожарной сигнализации ",5,25000,null,null,null,null,{"$f":"IF(Реестр_tb[[#This Row],[Срок оплаты (дней)]]=\"\",\"\",WORKDAY(Реестр_tb[[#This Row],[входящий (дата)]],Реестр_tb[[#This Row],[Срок оплаты (дней)]]+1,Выходные_tb[Выходные]))","v":""},null,{"$f":"IF(AND(Реестр_tb[[#This Row],[Оплачен]]=\"Да\",Реестр_tb[[#This Row],[Факт. дата оплаты]]<=Реестр_tb[[#This Row],[Плановая дата оплаты]]),\"Оплачено вовремя\",IF(AND(Реестр_tb[[#This Row],[Оплачен]]=\"Да\",Реестр_tb[[#This Row],[Факт. дата оплаты]]>Реестр_tb[[#This Row],[Плановая дата оплаты]]),\"Просрочено\",IF(AND(Реестр_tb[[#This Row],[Оплачен]]=\"Нет\",Реестр_tb[[#This Row],[Факт. дата оплаты]]=\"\",Реестр_tb[[#This Row],[Плановая дата оплаты]]<$AB$1),\"Просрочено\",IF(Реестр_tb[[#This Row],[Плановая дата оплаты]]=$AB$1,\"Сегодня\",IF(Реестр_tb[[#This Row],[Плановая дата оплаты]]<=$AB$1+7,\"В течении недели\",\"Через неделю и более\")))))","v":"Через неделю и более"},null,null,"Контракт № ТО-5-22 от ххх на сумму 300 000,00 руб. (БО на сумму 300 000 руб.)"]
["ООО \"Кашалот-К\"","Муниципальное задание","обслуживание пожарной сигнализации ",{"$f":"IFERROR(VLOOKUP(Реестр_tb[[#This Row],[Подкатегория]],IF({1,0},Данные_tb[ЕД],Данные_tb[доп. код.]),2,0),\" \")","v":4},{"$f":"IFERROR(VLOOKUP(Реестр_tb[[#This Row],[ДОПЫ]],IF({1,0},Данные_tb[доп. код.],Данные_tb[Источник]),2,0),\" \")","v":20},"Нет","июль","обслуживание пожарной сигнализации ",5,25000,null,null,null,null,{"$f":"IF(Реестр_tb[[#This Row],[Срок оплаты (дней)]]=\"\",\"\",WORKDAY(Реестр_tb[[#This Row],[входящий (дата)]],Реестр_tb[[#This Row],[Срок оплаты (дней)]]+1,Выходные_tb[Выходные]))","v":""},null,{"$f":"IF(AND(Реестр_tb[[#This Row],[Оплачен]]=\"Да\",Реестр_tb[[#This Row],[Факт. дата оплаты]]<=Реестр_tb[[#This Row],[Плановая дата оплаты]]),\"Оплачено вовремя\",IF(AND(Реестр_tb[[#This Row],[Оплачен]]=\"Да\",Реестр_tb[[#This Row],[Факт. дата оплаты]]>Реестр_tb[[#This Row],[Плановая дата оплаты]]),\"Просрочено\",IF(AND(Реестр_tb[[#This Row],[Оплачен]]=\"Нет\",Реестр_tb[[#This Row],[Факт. дата оплаты]]=\"\",Реестр_tb[[#This Row],[Плановая дата оплаты]]<$AB$1),\"Просрочено\",IF(Реестр_tb[[#This Row],[Плановая дата оплаты]]=$AB$1,\"Сегодня\",IF(Реестр_tb[[#This Row],[Плановая дата оплаты]]<=$AB$1+7,\"В течении недели\",\"Через неделю и более\")))))","v":"Через неделю и более"},null,null,"Контракт № ТО-5-22 от ххх на сумму 300 000,00 руб. (БО на сумму 300 000 руб.)"]
["ООО \"Кашалот-К\"","Муниципальное задание","обслуживание пожарной сигнализации ",{"$f":"IFERROR(VLOOKUP(Реестр_tb[[#This Row],[Подкатегория]],IF({1,0},Данные_tb[ЕД],Данные_tb[доп. код.]),2,0),\" \")","v":4},{"$f":"IFERROR(VLOOKUP(Реестр_tb[[#This Row],[ДОПЫ]],IF({1,0},Данные_tb[доп. код.],Данные_tb[Источник]),2,0),\" \")","v":20},"Нет","август","обслуживание пожарной сигнализации ",5,25000,null,null,null,null,{"$f":"IF(Реестр_tb[[#This Row],[Срок оплаты (дней)]]=\"\",\"\",WORKDAY(Реестр_tb[[#This Row],[входящий (дата)]],Реестр_tb[[#This Row],[Срок оплаты (дней)]]+1,Выходные_tb[Выходные]))","v":""},null,{"$f":"IF(AND(Реестр_tb[[#This Row],[Оплачен]]=\"Да\",Реестр_tb[[#This Row],[Факт. дата оплаты]]<=Реестр_tb[[#This Row],[Плановая дата оплаты]]),\"Оплачено вовремя\",IF(AND(Реестр_tb[[#This Row],[Оплачен]]=\"Да\",Реестр_tb[[#This Row],[Факт. дата оплаты]]>Реестр_tb[[#This Row],[Плановая дата оплаты]]),\"Просрочено\",IF(AND(Реестр_tb[[#This Row],[Оплачен]]=\"Нет\",Реестр_tb[[#This Row],[Факт. дата оплаты]]=\"\",Реестр_tb[[#This Row],[Плановая дата оплаты]]<$AB$1),\"Просрочено\",IF(Реестр_tb[[#This Row],[Плановая дата оплаты]]=$AB$1,\"Сегодня\",IF(Реестр_tb[[#This Row],[Плановая дата оплаты]]<=$AB$1+7,\"В течении недели\",\"Через неделю и более\")))))","v":"Через неделю и более"},null,null,"Контракт № ТО-5-22 от ххх на сумму 300 000,00 руб. (БО на сумму 300 000 руб.)"]
["ООО \"Кашалот-К\"","Муниципальное задание","обслуживание пожарной сигнализации ",{"$f":"IFERROR(VLOOKUP(Реестр_tb[[#This Row],[Подкатегория]],IF({1,0},Данные_tb[ЕД],Данные_tb[доп. код.]),2,0),\" \")","v":4},{"$f":"IFERROR(VLOOKUP(Реестр_tb[[#This Row],[ДОПЫ]],IF({1,0},Данные_tb[доп. код.],Данные_tb[Источник]),2,0),\" \")","v":20},"Нет","сентябрь","обслуживание пожарной сигнализации ",5,25000,null,null,null,null,{"$f":"IF(Реестр_tb[[#This Row],[Срок оплаты (дней)]]=\"\",\"\",WORKDAY(Реестр_tb[[#This Row],[входящий (дата)]],Реестр_tb[[#This Row],[Срок оплаты (дней)]]+1,Выходные_tb[Выходные]))","v":""},null,{"$f":"IF(AND(Реестр_tb[[#This Row],[Оплачен]]=\"Да\",Реестр_tb[[#This Row],[Факт. дата оплаты]]<=Реестр_tb[[#This Row],[Плановая дата оплаты]]),\"Оплачено вовремя\",IF(AND(Реестр_tb[[#This Row],[Оплачен]]=\"Да\",Реестр_tb[[#This Row],[Факт. дата оплаты]]>Реестр_tb[[#This Row],[Плановая дата оплаты]]),\"Просрочено\",IF(AND(Реестр_tb[[#This Row],[Оплачен]]=\"Нет\",Реестр_tb[[#This Row],[Факт. дата оплаты]]=\"\",Реестр_tb[[#This Row],[Плановая дата оплаты]]<$AB$1),\"Просрочено\",IF(Реестр_tb[[#This Row],[Плановая дата оплаты]]=$AB$1,\"Сегодня\",IF(Реестр_tb[[#This Row],[Плановая дата оплаты]]<=$AB$1+7,\"В течении недели\",\"Через неделю и более\")))))","v":"Через неделю и более"},null,null,"Контракт № ТО-5-22 от ххх на сумму 300 000,00 руб. (БО на сумму 300 000 руб.)"]
["ООО \"Кашалот-К\"","Муниципальное задание","обслуживание пожарной сигнализации ",{"$f":"IFERROR(VLOOKUP(Реестр_tb[[#This Row],[Подкатегория]],IF({1,0},Данные_tb[ЕД],Данные_tb[доп. код.]),2,0),\" \")","v":4},{"$f":"IFERROR(VLOOKUP(Реестр_tb[[#This Row],[ДОПЫ]],IF({1,0},Данные_tb[доп. код.],Данные_tb[Источник]),2,0),\" \")","v":20},"Нет","октябрь","обслуживание пожарной сигнализации ",5,25000,null,null,null,null,{"$f":"IF(Реестр_tb[[#This Row],[Срок оплаты (дней)]]=\"\",\"\",WORKDAY(Реестр_tb[[#This Row],[входящий (дата)]],Реестр_tb[[#This Row],[Срок оплаты (дней)]]+1,Выходные_tb[Выходные]))","v":""},null,{"$f":"IF(AND(Реестр_tb[[#This Row],[Оплачен]]=\"Да\",Реестр_tb[[#This Row],[Факт. дата оплаты]]<=Реестр_tb[[#This Row],[Плановая дата оплаты]]),\"Оплачено вовремя\",IF(AND(Реестр_tb[[#This Row],[Оплачен]]=\"Да\",Реестр_tb[[#This Row],[Факт. дата оплаты]]>Реестр_tb[[#This Row],[Плановая дата оплаты]]),\"Просрочено\",IF(AND(Реестр_tb[[#This Row],[Оплачен]]=\"Нет\",Реестр_tb[[#This Row],[Факт. дата оплаты]]=\"\",Реестр_tb[[#This Row],[Плановая дата оплаты]]<$AB$1),\"Просрочено\",IF(Реестр_tb[[#This Row],[Плановая дата оплаты]]=$AB$1,\"Сегодня\",IF(Реестр_tb[[#This Row],[Плановая дата оплаты]]<=$AB$1+7,\"В течении недели\",\"Через неделю и более\")))))","v":"Через неделю и более"},null,null,"Контракт № ТО-5-22 от ххх на сумму 300 000,00 руб. (БО на сумму 300 000 руб.)"]
["ООО \"Кашалот-К\"","Муниципальное задание","обслуживание пожарной сигнализации ",{"$f":"IFERROR(VLOOKUP(Реестр_tb[[#This Row],[Подкатегория]],IF({1,0},Данные_tb[ЕД],Данные_tb[доп. код.]),2,0),\" \")","v":4},{"$f":"IFERROR(VLOOKUP(Реестр_tb[[#This Row],[ДОПЫ]],IF({1,0},Данные_tb[доп. код.],Данные_tb[Источник]),2,0),\" \")","v":20},"Нет","ноябрь","обслуживание пожарной сигнализации ",5,25000,null,null,null,null,{"$f":"IF(Реестр_tb[[#This Row],[Срок оплаты (дней)]]=\"\",\"\",WORKDAY(Реестр_tb[[#This Row],[входящий (дата)]],Реестр_tb[[#This Row],[Срок оплаты (дней)]]+1,Выходные_tb[Выходные]))","v":""},null,{"$f":"IF(AND(Реестр_tb[[#This Row],[Оплачен]]=\"Да\",Реестр_tb[[#This Row],[Факт. дата оплаты]]<=Реестр_tb[[#This Row],[Плановая дата оплаты]]),\"Оплачено вовремя\",IF(AND(Реестр_tb[[#This Row],[Оплачен]]=\"Да\",Реестр_tb[[#This Row],[Факт. дата оплаты]]>Реестр_tb[[#This Row],[Плановая дата оплаты]]),\"Просрочено\",IF(AND(Реестр_tb[[#This Row],[Оплачен]]=\"Нет\",Реестр_tb[[#This Row],[Факт. дата оплаты]]=\"\",Реестр_tb[[#This Row],[Плановая дата оплаты]]<$AB$1),\"Просрочено\",IF(Реестр_tb[[#This Row],[Плановая дата оплаты]]=$AB$1,\"Сегодня\",IF(Реестр_tb[[#This Row],[Плановая дата оплаты]]<=$AB$1+7,\"В течении недели\",\"Через неделю и более\")))))","v":"Через неделю и более"},null,null,"Контракт № ТО-5-22 от ххх на сумму 300 000,00 руб. (БО на сумму 300 000 руб.)"]
["ООО \"Кашалот-К\"","Муниципальное задание","обслуживание пожарной сигнализации ",{"$f":"IFERROR(VLOOKUP(Реестр_tb[[#This Row],[Подкатегория]],IF({1,0},Данные_tb[ЕД],Данные_tb[доп. код.]),2,0),\" \")","v":4},{"$f":"IFERROR(VLOOKUP(Реестр_tb[[#This Row],[ДОПЫ]],IF({1,0},Данные_tb[доп. код.],Данные_tb[Источник]),2,0),\" \")","v":20},"Нет","декабрь","обслуживание пожарной сигнализации ",5,25000,null,null,null,null,{"$f":"IF(Реестр_tb[[#This Row],[Срок оплаты (дней)]]=\"\",\"\",WORKDAY(Реестр_tb[[#This Row],[входящий (дата)]],Реестр_tb[[#This Row],[Срок оплаты (дней)]]+1,Выходные_tb[Выходные]))","v":""},null,{"$f":"IF(AND(Реестр_tb[[#This Row],[Оплачен]]=\"Да\",Реестр_tb[[#This Row],[Факт. дата оплаты]]<=Реестр_tb[[#This Row],[Плановая дата оплаты]]),\"Оплачено вовремя\",IF(AND(Реестр_tb[[#This Row],[Оплачен]]=\"Да\",Реестр_tb[[#This Row],[Факт. дата оплаты]]>Реестр_tb[[#This Row],[Плановая дата оплаты]]),\"Просрочено\",IF(AND(Реестр_tb[[#This Row],[Оплачен]]=\"Нет\",Реестр_tb[[#This Row],[Факт. дата оплаты]]=\"\",Реестр_tb[[#This Row],[Плановая дата оплаты]]<$AB$1),\"Просрочено\",IF(Реестр_tb[[#This Row],[Плановая дата оплаты]]=$AB$1,\"Сегодня\",IF(Реестр_tb[[#This Row],[Плановая дата оплаты]]<=$AB$1+7,\"В течении недели\",\"Через неделю и более\")))))","v":"Через неделю и более"},null,null,"Контракт № ТО-5-22 от ххх на сумму 300 000,00 руб. (БО на сумму 300 000 руб.)"]
["ООО «Региональный Центр Консультант»","Муниципальное задание","обновление справочно-информационных баз (Консультант)",{"$f":"IFERROR(VLOOKUP(Реестр_tb[[#This Row],[Подкатегория]],IF({1,0},Данные_tb[ЕД],Данные_tb[доп. код.]),2,0),\" \")","v":4},{"$f":"IFERROR(VLOOKUP(Реестр_tb[[#This Row],[ДОПЫ]],IF({1,0},Данные_tb[доп. код.],Данные_tb[Источник]),2,0),\" \")","v":20},"Нет","179 от 10.01.2022","обновление справочно-информационных баз (Консультант)",4,6942.5,null,"2022-01-27",15,"Акта",{"$f":"IF(Реестр_tb[[#This Row],[Срок оплаты (дней)]]=\"\",\"\",WORKDAY(Реестр_tb[[#This Row],[входящий (дата)]],Реестр_tb[[#This Row],[Срок оплаты (дней)]]+1,Выходные_tb[Выходные]))","v":"2022-02-18"},null,{"$f":"IF(AND(Реестр_tb[[#This Row],[Оплачен]]=\"Да\",Реестр_tb[[#This Row],[Факт. дата оплаты]]<=Реестр_tb[[#This Row],[Плановая дата оплаты]]),\"Оплачено вовремя\",IF(AND(Реестр_tb[[#This Row],[Оплачен]]=\"Да\",Реестр_tb[[#This Row],[Факт. дата оплаты]]>Реестр_tb[[#This Row],[Плановая дата оплаты]]),\"Просрочено\",IF(AND(Реестр_tb[[#This Row],[Оплачен]]=\"Нет\",Реестр_tb[[#This Row],[Факт. дата оплаты]]=\"\",Реестр_tb[[#This Row],[Плановая дата оплаты]]<$AB$1),\"Просрочено\",IF(Реестр_tb[[#This Row],[Плановая дата оплаты]]=$AB$1,\"Сегодня\",IF(Реестр_tb[[#This Row],[Плановая дата оплаты]]<=$AB$1+7,\"В течении недели\",\"Через неделю и более\")))))","v":"Через неделю и более"},"Полный расчет","Оригиналы","Договор № Р18.035/СП от ххх на сумму 97 533,72 руб. (БО на сумму 97 533,72 руб.)"]
["ООО «Региональный Центр Консультант»","Муниципальное задание","обновление справочно-информационных баз (Консультант)",{"$f":"IFERROR(VLOOKUP(Реестр_tb[[#This Row],[Подкатегория]],IF({1,0},Данные_tb[ЕД],Данные_tb[доп. код.]),2,0),\" \")","v":4},{"$f":"IFERROR(VLOOKUP(Реестр_tb[[#This Row],[ДОПЫ]],IF({1,0},Данные_tb[доп. код.],Данные_tb[Источник]),2,0),\" \")","v":20},"Нет","февраль","обновление справочно-информационных баз (Консультант)",4,6942.5,null,null,null,null,{"$f":"IF(Реестр_tb[[#This Row],[Срок оплаты (дней)]]=\"\",\"\",WORKDAY(Реестр_tb[[#This Row],[входящий (дата)]],Реестр_tb[[#This Row],[Срок оплаты (дней)]]+1,Выходные_tb[Выходные]))","v":""},null,{"$f":"IF(AND(Реестр_tb[[#This Row],[Оплачен]]=\"Да\",Реестр_tb[[#This Row],[Факт. дата оплаты]]<=Реестр_tb[[#This Row],[Плановая дата оплаты]]),\"Оплачено вовремя\",IF(AND(Реестр_tb[[#This Row],[Оплачен]]=\"Да\",Реестр_tb[[#This Row],[Факт. дата оплаты]]>Реестр_tb[[#This Row],[Плановая дата оплаты]]),\"Просрочено\",IF(AND(Реестр_tb[[#This Row],[Оплачен]]=\"Нет\",Реестр_tb[[#This Row],[Факт. дата оплаты]]=\"\",Реестр_tb[[#This Row],[Плановая дата оплаты]]<$AB$1),\"Просрочено\",IF(Реестр_tb[[#This Row],[Плановая дата оплаты]]=$AB$1,\"Сегодня\",IF(Реестр_tb[[#This Row],[Плановая дата оплаты]]<=$AB$1+7,\"В течении недели\",\"Через неделю и более\")))))","v":"Через неделю и более"},null,null,"Договор № Р18.035/СП от ххх на сумму 97 533,72 руб. (БО на сумму 97 533,72 руб.)"]
["ООО «Региональный Центр Консультант»","Муниципальное задание","обновление справочно-информационных баз (Консультант)",{"$f":"IFERROR(VLOOKUP(Реестр_tb[[#This Row],[Подкатегория]],IF({1,0},Данные_tb[ЕД],Данные_tb[доп. код.]),2,0),\" \")","v":4},{"$f":"IFERROR(VLOOKUP(Реестр_tb[[#This Row],[ДОПЫ]],IF({1,0},Данные_tb[доп. код.],Данные_tb[Источник]),2,0),\" \")","v":20},"Нет","март","обновление справочно-информационных баз (Консультант)",4,6942.5,null,null,null,null,{"$f":"IF(Реестр_tb[[#This Row],[Срок оплаты (дней)]]=\"\",\"\",WORKDAY(Реестр_tb[[#This Row],[входящий (дата)]],Реестр_tb[[#This Row],[Срок оплаты (дней)]]+1,Выходные_tb[Выходные]))","v":""},null,{"$f":"IF(AND(Реестр_tb[[#This Row],[Оплачен]]=\"Да\",Реестр_tb[[#This Row],[Факт. дата оплаты]]<=Реестр_tb[[#This Row],[Плановая дата оплаты]]),\"Оплачено вовремя\",IF(AND(Реестр_tb[[#This Row],[Оплачен]]=\"Да\",Реестр_tb[[#This Row],[Факт. дата оплаты]]>Реестр_tb[[#This Row],[Плановая дата оплаты]]),\"Просрочено\",IF(AND(Реестр_tb[[#This Row],[Оплачен]]=\"Нет\",Реестр_tb[[#This Row],[Факт. дата оплаты]]=\"\",Реестр_tb[[#This Row],[Плановая дата оплаты]]<$AB$1),\"Просрочено\",IF(Реестр_tb[[#This Row],[Плановая дата оплаты]]=$AB$1,\"Сегодня\",IF(Реестр_tb[[#This Row],[Плановая дата оплаты]]<=$AB$1+7,\"В течении недели\",\"Через неделю и более\")))))","v":"Через неделю и более"},null,null,"Договор № Р18.035/СП от ххх на сумму 97 533,72 руб. (БО на сумму 97 533,72 руб.)"]
["ООО «Региональный Центр Консультант»","Муниципальное задание","обновление справочно-информационных баз (Консультант)",{"$f":"IFERROR(VLOOKUP(Реестр_tb[[#This Row],[Подкатегория]],IF({1,0},Данные_tb[ЕД],Данные_tb[доп. код.]),2,0),\" \")","v":4},{"$f":"IFERROR(VLOOKUP(Реестр_tb[[#This Row],[ДОПЫ]],IF({1,0},Данные_tb[доп. код.],Данные_tb[Источник]),2,0),\" \")","v":20},"Нет","март","обновление справочно-информационных баз (Консультант)",4,7111.86,null,null,null,null,{"$f":"IF(Реестр_tb[[#This Row],[Срок оплаты (дней)]]=\"\",\"\",WORKDAY(Реестр_tb[[#This Row],[входящий (дата)]],Реестр_tb[[#This Row],[Срок оплаты (дней)]]+1,Выходные_tb[Выходные]))","v":""},null,{"$f":"IF(AND(Реестр_tb[[#This Row],[Оплачен]]=\"Да\",Реестр_tb[[#This Row],[Факт. дата оплаты]]<=Реестр_tb[[#This Row],[Плановая дата оплаты]]),\"Оплачено вовремя\",IF(AND(Реестр_tb[[#This Row],[Оплачен]]=\"Да\",Реестр_tb[[#This Row],[Факт. дата оплаты]]>Реестр_tb[[#This Row],[Плановая дата оплаты]]),\"Просрочено\",IF(AND(Реестр_tb[[#This Row],[Оплачен]]=\"Нет\",Реестр_tb[[#This Row],[Факт. дата оплаты]]=\"\",Реестр_tb[[#This Row],[Плановая дата оплаты]]<$AB$1),\"Просрочено\",IF(Реестр_tb[[#This Row],[Плановая дата оплаты]]=$AB$1,\"Сегодня\",IF(Реестр_tb[[#This Row],[Плановая дата оплаты]]<=$AB$1+7,\"В течении недели\",\"Через неделю и более\")))))","v":"Через неделю и более"},null,null,"Договор № Р18.035/СП от ххх на сумму 97 533,72 руб. (БО на сумму 97 533,72 руб.)"]
["ООО «Региональный Центр Консультант»","Муниципальное задание","обновление справочно-информационных баз (Консультант)",{"$f":"IFERROR(VLOOKUP(Реестр_tb[[#This Row],[Подкатегория]],IF({1,0},Данные_tb[ЕД],Данные_tb[доп. код.]),2,0),\" \")","v":4},{"$f":"IFERROR(VLOOKUP(Реестр_tb[[#This Row],[ДОПЫ]],IF({1,0},Данные_tb[доп. код.],Данные_tb[Источник]),2,0),\" \")","v":20},"Нет","апрель","обновление справочно-информационных баз (Консультант)",4,6942.5,null,null,null,null,{"$f":"IF(Реестр_tb[[#This Row],[Срок оплаты (дней)]]=\"\",\"\",WORKDAY(Реестр_tb[[#This Row],[входящий (дата)]],Реестр_tb[[#This Row],[Срок оплаты (дней)]]+1,Выходные_tb[Выходные]))","v":""},null,{"$f":"IF(AND(Реестр_tb[[#This Row],[Оплачен]]=\"Да\",Реестр_tb[[#This Row],[Факт. дата оплаты]]<=Реестр_tb[[#This Row],[Плановая дата оплаты]]),\"Оплачено вовремя\",IF(AND(Реестр_tb[[#This Row],[Оплачен]]=\"Да\",Реестр_tb[[#This Row],[Факт. дата оплаты]]>Реестр_tb[[#This Row],[Плановая дата оплаты]]),\"Просрочено\",IF(AND(Реестр_tb[[#This Row],[Оплачен]]=\"Нет\",Реестр_tb[[#This Row],[Факт. дата оплаты]]=\"\",Реестр_tb[[#This Row],[Плановая дата оплаты]]<$AB$1),\"Просрочено\",IF(Реестр_tb[[#This Row],[Плановая дата оплаты]]=$AB$1,\"Сегодня\",IF(Реестр_tb[[#This Row],[Плановая дата оплаты]]<=$AB$1+7,\"В течении недели\",\"Через неделю и более\")))))","v":"Через неделю и более"},null,null,"Договор № Р18.035/СП от ххх на сумму 97 533,72 руб. (БО на сумму 97 533,72 руб.)"]
["ООО «Региональный Центр Консультант»","Муниципальное задание","обновление справочно-информационных баз (Консультант)",{"$f":"IFERROR(VLOOKUP(Реестр_tb[[#This Row],[Подкатегория]],IF({1,0},Данные_tb[ЕД],Данные_tb[доп. код.]),2,0),\" \")","v":4},{"$f":"IFERROR(VLOOKUP(Реестр_tb[[#This Row],[ДОПЫ]],IF({1,0},Данные_tb[доп. код.],Данные_tb[Источник]),2,0),\" \")","v":20},"Нет","май","обновление справочно-информационных баз (Консультант)",4,6942.5,null,null,null,null,{"$f":"IF(Реестр_tb[[#This Row],[Срок оплаты (дней)]]=\"\",\"\",WORKDAY(Реестр_tb[[#This Row],[входящий (дата)]],Реестр_tb[[#This Row],[Срок оплаты (дней)]]+1,Выходные_tb[Выходные]))","v":""},null,{"$f":"IF(AND(Реестр_tb[[#This Row],[Оплачен]]=\"Да\",Реестр_tb[[#This Row],[Факт. дата оплаты]]<=Реестр_tb[[#This Row],[Плановая дата оплаты]]),\"Оплачено вовремя\",IF(AND(Реестр_tb[[#This Row],[Оплачен]]=\"Да\",Реестр_tb[[#This Row],[Факт. дата оплаты]]>Реестр_tb[[#This Row],[Плановая дата оплаты]]),\"Просрочено\",IF(AND(Реестр_tb[[#This Row],[Оплачен]]=\"Нет\",Реестр_tb[[#This Row],[Факт. дата оплаты]]=\"\",Реестр_tb[[#This Row],[Плановая дата оплаты]]<$AB$1),\"Просрочено\",IF(Реестр_tb[[#This Row],[Плановая дата оплаты]]=$AB$1,\"Сегодня\",IF(Реестр_tb[[#This Row],[Плановая дата оплаты]]<=$AB$1+7,\"В течении недели\",\"Через неделю и более\")))))","v":"Через неделю и более"},null,null,"Договор № Р18.035/СП от ххх на сумму 97 533,72 руб. (БО на сумму 97 533,72 руб.)"]
["ООО «Региональный Центр Консультант»","Муниципальное задание","обновление справочно-информационных баз (Консультант)",{"$f":"IFERROR(VLOOKUP(Реестр_tb[[#This Row],[Подкатегория]],IF({1,0},Данные_tb[ЕД],Данные_tb[доп. код.]),2,0),\" \")","v":4},{"$f":"IFERROR(VLOOKUP(Реестр_tb[[#This Row],[ДОПЫ]],IF({1,0},Данные_tb[доп. код.],Данные_tb[Источник]),2,0),\" \")","v":20},"Нет","июнь","обновление справочно-информационных баз (Консультант)",4,6942.5,null,null,null,null,{"$f":"IF(Реестр_tb[[#This Row],[Срок оплаты (дней)]]=\"\",\"\",WORKDAY(Реестр_tb[[#This Row],[входящий (дата)]],Реестр_tb[[#This Row],[Срок оплаты (дней)]]+1,Выходные_tb[Выходные]))","v":""},null,{"$f":"IF(AND(Реестр_tb[[#This Row],[Оплачен]]=\"Да\",Реестр_tb[[#This Row],[Факт. дата оплаты]]<=Реестр_tb[[#This Row],[Плановая дата оплаты]]),\"Оплачено вовремя\",IF(AND(Реестр_tb[[#This Row],[Оплачен]]=\"Да\",Реестр_tb[[#This Row],[Факт. дата оплаты]]>Реестр_tb[[#This Row],[Плановая дата оплаты]]),\"Просрочено\",IF(AND(Реестр_tb[[#This Row],[Оплачен]]=\"Нет\",Реестр_tb[[#This Row],[Факт. дата оплаты]]=\"\",Реестр_tb[[#This Row],[Плановая дата оплаты]]<$AB$1),\"Просрочено\",IF(Реестр_tb[[#This Row],[Плановая дата оплаты]]=$AB$1,\"Сегодня\",IF(Реестр_tb[[#This Row],[Плановая дата оплаты]]<=$AB$1+7,\"В течении недели\",\"Через неделю и более\")))))","v":"Через неделю и более"},null,null,"Договор № Р18.035/СП от ххх на сумму 97 533,72 руб. (БО на сумму 97 533,72 руб.)"]
["ООО «Региональный Центр Консультант»","Муниципальное задание","обновление справочно-информационных баз (Консультант)",{"$f":"IFERROR(VLOOKUP(Реестр_tb[[#This Row],[Подкатегория]],IF({1,0},Данные_tb[ЕД],Данные_tb[доп. код.]),2,0),\" \")","v":4},{"$f":"IFERROR(VLOOKUP(Реестр_tb[[#This Row],[ДОПЫ]],IF({1,0},Данные_tb[доп. код.],Данные_tb[Источник]),2,0),\" \")","v":20},"Нет","июль","обновление справочно-информационных баз (Консультант)",4,6942.5,null,null,null,null,{"$f":"IF(Реестр_tb[[#This Row],[Срок оплаты (дней)]]=\"\",\"\",WORKDAY(Реестр_tb[[#This Row],[входящий (дата)]],Реестр_tb[[#This Row],[Срок оплаты (дней)]]+1,Выходные_tb[Выходные]))","v":""},null,{"$f":"IF(AND(Реестр_tb[[#This Row],[Оплачен]]=\"Да\",Реестр_tb[[#This Row],[Факт. дата оплаты]]<=Реестр_tb[[#This Row],[Плановая дата оплаты]]),\"Оплачено вовремя\",IF(AND(Реестр_tb[[#This Row],[Оплачен]]=\"Да\",Реестр_tb[[#This Row],[Факт. дата оплаты]]>Реестр_tb[[#This Row],[Плановая дата оплаты]]),\"Просрочено\",IF(AND(Реестр_tb[[#This Row],[Оплачен]]=\"Нет\",Реестр_tb[[#This Row],[Факт. дата оплаты]]=\"\",Реестр_tb[[#This Row],[Плановая дата оплаты]]<$AB$1),\"Просрочено\",IF(Реестр_tb[[#This Row],[Плановая дата оплаты]]=$AB$1,\"Сегодня\",IF(Реестр_tb[[#This Row],[Плановая дата оплаты]]<=$AB$1+7,\"В течении недели\",\"Через неделю и более\")))))","v":"Через неделю и более"},null,null,"Договор № Р18.035/СП от ххх на сумму 97 533,72 руб. (БО на сумму 97 533,72 руб.)"]
["ООО «Региональный Центр Консультант»","Муниципальное задание","обновление справочно-информационных баз (Консультант)",{"$f":"IFERROR(VLOOKUP(Реестр_tb[[#This Row],[Подкатегория]],IF({1,0},Данные_tb[ЕД],Данные_tb[доп. код.]),2,0),\" \")","v":4},{"$f":"IFERROR(VLOOKUP(Реестр_tb[[#This Row],[ДОПЫ]],IF({1,0},Данные_tb[доп. код.],Данные_tb[Источник]),2,0),\" \")","v":20},"Нет","август","обновление справочно-информационных баз (Консультант)",4,6942.5,null,null,null,null,{"$f":"IF(Реестр_tb[[#This Row],[Срок оплаты (дней)]]=\"\",\"\",WORKDAY(Реестр_tb[[#This Row],[входящий (дата)]],Реестр_tb[[#This Row],[Срок оплаты (дней)]]+1,Выходные_tb[Выходные]))","v":""},null,{"$f":"IF(AND(Реестр_tb[[#This Row],[Оплачен]]=\"Да\",Реестр_tb[[#This Row],[Факт. дата оплаты]]<=Реестр_tb[[#This Row],[Плановая дата оплаты]]),\"Оплачено вовремя\",IF(AND(Реестр_tb[[#This Row],[Оплачен]]=\"Да\",Реестр_tb[[#This Row],[Факт. дата оплаты]]>Реестр_tb[[#This Row],[Плановая дата оплаты]]),\"Просрочено\",IF(AND(Реестр_tb[[#This Row],[Оплачен]]=\"Нет\",Реестр_tb[[#This Row],[Факт. дата оплаты]]=\"\",Реестр_tb[[#This Row],[Плановая дата оплаты]]<$AB$1),\"Просрочено\",IF(Реестр_tb[[#This Row],[Плановая дата оплаты]]=$AB$1,\"Сегодня\",IF(Реестр_tb[[#This Row],[Плановая дата оплаты]]<=$AB$1+7,\"В течении недели\",\"Через неделю и более\")))))","v":"Через неделю и более"},null,null,"Договор № Р18.035/СП от ххх на сумму 97 533,72 руб. (БО на сумму 97 533,72 руб.)"]
["ООО «Региональный Центр Консультант»","Муниципальное задание","обновление справочно-информационных баз (Консультант)",{"$f":"IFERROR(VLOOKUP(Реестр_tb[[#This Row],[Подкатегория]],IF({1,0},Данные_tb[ЕД],Данные_tb[доп. код.]),2,0),\" \")","v":4},{"$f":"IFERROR(VLOOKUP(Реестр_tb[[#This Row],[ДОПЫ]],IF({1,0},Данные_tb[доп. код.],Данные_tb[Источник]),2,0),\" \")","v":20},"Нет","сентябрь","обновление справочно-информационных баз (Консультант)",4,6942.5,null,null,null,null,{"$f":"IF(Реестр_tb[[#This Row],[Срок оплаты (дней)]]=\"\",\"\",WORKDAY(Реестр_tb[[#This Row],[входящий (дата)]],Реестр_tb[[#This Row],[Срок оплаты (дней)]]+1,Выходные_tb[Выходные]))","v":""},null,{"$f":"IF(AND(Реестр_tb[[#This Row],[Оплачен]]=\"Да\",Реестр_tb[[#This Row],[Факт. дата оплаты]]<=Реестр_tb[[#This Row],[Плановая дата оплаты]]),\"Оплачено вовремя\",IF(AND(Реестр_tb[[#This Row],[Оплачен]]=\"Да\",Реестр_tb[[#This Row],[Факт. дата оплаты]]>Реестр_tb[[#This Row],[Плановая дата оплаты]]),\"Просрочено\",IF(AND(Реестр_tb[[#This Row],[Оплачен]]=\"Нет\",Реестр_tb[[#This Row],[Факт. дата оплаты]]=\"\",Реестр_tb[[#This Row],[Плановая дата оплаты]]<$AB$1),\"Просрочено\",IF(Реестр_tb[[#This Row],[Плановая дата оплаты]]=$AB$1,\"Сегодня\",IF(Реестр_tb[[#This Row],[Плановая дата оплаты]]<=$AB$1+7,\"В течении недели\",\"Через неделю и более\")))))","v":"Через неделю и более"},null,null,"Договор № Р18.035/СП от ххх на сумму 97 533,72 руб. (БО на сумму 97 533,72 руб.)"]
["ООО «Региональный Центр Консультант»","Муниципальное задание","обновление справочно-информационных баз (Консультант)",{"$f":"IFERROR(VLOOKUP(Реестр_tb[[#This Row],[Подкатегория]],IF({1,0},Данные_tb[ЕД],Данные_tb[доп. код.]),2,0),\" \")","v":4},{"$f":"IFERROR(VLOOKUP(Реестр_tb[[#This Row],[ДОПЫ]],IF({1,0},Данные_tb[доп. код.],Данные_tb[Источник]),2,0),\" \")","v":20},"Нет","октябрь","обновление справочно-информационных баз (Консультант)",4,6942.5,null,null,null,null,{"$f":"IF(Реестр_tb[[#This Row],[Срок оплаты (дней)]]=\"\",\"\",WORKDAY(Реестр_tb[[#This Row],[входящий (дата)]],Реестр_tb[[#This Row],[Срок оплаты (дней)]]+1,Выходные_tb[Выходные]))","v":""},null,{"$f":"IF(AND(Реестр_tb[[#This Row],[Оплачен]]=\"Да\",Реестр_tb[[#This Row],[Факт. дата оплаты]]<=Реестр_tb[[#This Row],[Плановая дата оплаты]]),\"Оплачено вовремя\",IF(AND(Реестр_tb[[#This Row],[Оплачен]]=\"Да\",Реестр_tb[[#This Row],[Факт. дата оплаты]]>Реестр_tb[[#This Row],[Плановая дата оплаты]]),\"Просрочено\",IF(AND(Реестр_tb[[#This Row],[Оплачен]]=\"Нет\",Реестр_tb[[#This Row],[Факт. дата оплаты]]=\"\",Реестр_tb[[#This Row],[Плановая дата оплаты]]<$AB$1),\"Просрочено\",IF(Реестр_tb[[#This Row],[Плановая дата оплаты]]=$AB$1,\"Сегодня\",IF(Реестр_tb[[#This Row],[Плановая дата оплаты]]<=$AB$1+7,\"В течении недели\",\"Через неделю и более\")))))","v":"Через неделю и более"},null,null,"Договор № Р18.035/СП от ххх на сумму 97 533,72 руб. (БО на сумму 97 533,72 руб.)"]
["ООО «Региональный Центр Консультант»","Муниципальное задание","обновление справочно-информационных баз (Консультант)",{"$f":"IFERROR(VLOOKUP(Реестр_tb[[#This Row],[Подкатегория]],IF({1,0},Данные_tb[ЕД],Данные_tb[доп. код.]),2,0),\" \")","v":4},{"$f":"IFERROR(VLOOKUP(Реестр_tb[[#This Row],[ДОПЫ]],IF({1,0},Данные_tb[доп. код.],Данные_tb[Источник]),2,0),\" \")","v":20},"Нет","ноябрь","обновление справочно-информационных баз (Консультант)",4,6942.5,null,null,null,null,{"$f":"IF(Реестр_tb[[#This Row],[Срок оплаты (дней)]]=\"\",\"\",WORKDAY(Реестр_tb[[#This Row],[входящий (дата)]],Реестр_tb[[#This Row],[Срок оплаты (дней)]]+1,Выходные_tb[Выходные]))","v":""},null,{"$f":"IF(AND(Реестр_tb[[#This Row],[Оплачен]]=\"Да\",Реестр_tb[[#This Row],[Факт. дата оплаты]]<=Реестр_tb[[#This Row],[Плановая дата оплаты]]),\"Оплачено вовремя\",IF(AND(Реестр_tb[[#This Row],[Оплачен]]=\"Да\",Реестр_tb[[#This Row],[Факт. дата оплаты]]>Реестр_tb[[#This Row],[Плановая дата оплаты]]),\"Просрочено\",IF(AND(Реестр_tb[[#This Row],[Оплачен]]=\"Нет\",Реестр_tb[[#This Row],[Факт. дата оплаты]]=\"\",Реестр_tb[[#This Row],[Плановая дата оплаты]]<$AB$1),\"Просрочено\",IF(Реестр_tb[[#This Row],[Плановая дата оплаты]]=$AB$1,\"Сегодня\",IF(Реестр_tb[[#This Row],[Плановая дата оплаты]]<=$AB$1+7,\"В течении недели\",\"Через неделю и более\")))))","v":"Через неделю и более"},null,null,"Договор № Р18.035/СП от ххх на сумму 97 533,72 руб. (БО на сумму 97 533,72 руб.)"]
["ООО «Региональный Центр Консультант»","Муниципальное задание","обновление справочно-информационных баз (Консультант)",{"$f":"IFERROR(VLOOKUP(Реестр_tb[[#This Row],[Подкатегория]],IF({1,0},Данные_tb[ЕД],Данные_tb[доп. код.]),2,0),\" \")","v":4},{"$f":"IFERROR(VLOOKUP(Реестр_tb[[#This Row],[ДОПЫ]],IF({1,0},Данные_tb[доп. код.],Данные_tb[Источник]),2,0),\" \")","v":20},"Нет","ноябрь","обновление справочно-информационных баз (Консультант)",4,7111.86,null,null,null,null,{"$f":"IF(Реестр_tb[[#This Row],[Срок оплаты (дней)]]=\"\",\"\",WORKDAY(Реестр_tb[[#This Row],[входящий (дата)]],Реестр_tb[[#This Row],[Срок оплаты (дней)]]+1,Выходные_tb[Выходные]))","v":""},null,{"$f":"IF(AND(Реестр_tb[[#This Row],[Оплачен]]=\"Да\",Реестр_tb[[#This Row],[Факт. дата оплаты]]<=Реестр_tb[[#This Row],[Плановая дата оплаты]]),\"Оплачено вовремя\",IF(AND(Реестр_tb[[#This Row],[Оплачен]]=\"Да\",Реестр_tb[[#This Row],[Факт. дата оплаты]]>Реестр_tb[[#This Row],[Плановая дата оплаты]]),\"Просрочено\",IF(AND(Реестр_tb[[#This Row],[Оплачен]]=\"Нет\",Реестр_tb[[#This Row],[Факт. дата оплаты]]=\"\",Реестр_tb[[#This Row],[Плановая дата оплаты]]<$AB$1),\"Просрочено\",IF(Реестр_tb[[#This Row],[Плановая дата оплаты]]=$AB$1,\"Сегодня\",IF(Реестр_tb[[#This Row],[Плановая дата оплаты]]<=$AB$1+7,\"В течении недели\",\"Через неделю и более\")))))","v":"Через неделю и более"},null,null,"Договор № Р18.035/СП от ххх на сумму 97 533,72 руб. (БО на сумму 97 533,72 руб.)"]
["ООО «Региональный Центр Консультант»","Муниципальное задание","обновление справочно-информационных баз (Консультант)",{"$f":"IFERROR(VLOOKUP(Реестр_tb[[#This Row],[Подкатегория]],IF({1,0},Данные_tb[ЕД],Данные_tb[доп. код.]),2,0),\" \")","v":4},{"$f":"IFERROR(VLOOKUP(Реестр_tb[[#This Row],[ДОПЫ]],IF({1,0},Данные_tb[доп. код.],Данные_tb[Источник]),2,0),\" \")","v":20},"Нет","декабрь","обновление справочно-информационных баз (Консультант)",4,6942.5,null,null,null,null,{"$f":"IF(Реестр_tb[[#This Row],[Срок оплаты (дней)]]=\"\",\"\",WORKDAY(Реестр_tb[[#This Row],[входящий (дата)]],Реестр_tb[[#This Row],[Срок оплаты (дней)]]+1,Выходные_tb[Выходные]))","v":""},null,{"$f":"IF(AND(Реестр_tb[[#This Row],[Оплачен]]=\"Да\",Реестр_tb[[#This Row],[Факт. дата оплаты]]<=Реестр_tb[[#This Row],[Плановая дата оплаты]]),\"Оплачено вовремя\",IF(AND(Реестр_tb[[#This Row],[Оплачен]]=\"Да\",Реестр_tb[[#This Row],[Факт. дата оплаты]]>Реестр_tb[[#This Row],[Плановая дата оплаты]]),\"Просрочено\",IF(AND(Реестр_tb[[#This Row],[Оплачен]]=\"Нет\",Реестр_tb[[#This Row],[Факт. дата оплаты]]=\"\",Реестр_tb[[#This Row],[Плановая дата оплаты]]<$AB$1),\"Просрочено\",IF(Реестр_tb[[#This Row],[Плановая дата оплаты]]=$AB$1,\"Сегодня\",IF(Реестр_tb[[#This Row],[Плановая дата оплаты]]<=$AB$1+7,\"В течении недели\",\"Через неделю и более\")))))","v":"Через неделю и более"},null,null,"Договор № Р18.035/СП от ххх на сумму 97 533,72 руб. (БО на сумму 97 533,72 руб.)"]
["ИП Николаева Ольга Ваильевна","Муниципальное задание","экология ЦЛАТИ (ИП Николаева)",{"$f":"IFERROR(VLOOKUP(Реестр_tb[[#This Row],[Подкатегория]],IF({1,0},Данные_tb[ЕД],Данные_tb[доп. код.]),2,0),\" \")","v":4},{"$f":"IFERROR(VLOOKUP(Реестр_tb[[#This Row],[ДОПЫ]],IF({1,0},Данные_tb[доп. код.],Данные_tb[Источник]),2,0),\" \")","v":20},"Нет",null,null,5,23000,null,null,null,null,{"$f":"IF(Реестр_tb[[#This Row],[Срок оплаты (дней)]]=\"\",\"\",WORKDAY(Реестр_tb[[#This Row],[входящий (дата)]],Реестр_tb[[#This Row],[Срок оплаты (дней)]]+1,Выходные_tb[Выходные]))","v":""},null,{"$f":"IF(AND(Реестр_tb[[#This Row],[Оплачен]]=\"Да\",Реестр_tb[[#This Row],[Факт. дата оплаты]]<=Реестр_tb[[#This Row],[Плановая дата оплаты]]),\"Оплачено вовремя\",IF(AND(Реестр_tb[[#This Row],[Оплачен]]=\"Да\",Реестр_tb[[#This Row],[Факт. дата оплаты]]>Реестр_tb[[#This Row],[Плановая дата оплаты]]),\"Просрочено\",IF(AND(Реестр_tb[[#This Row],[Оплачен]]=\"Нет\",Реестр_tb[[#This Row],[Факт. дата оплаты]]=\"\",Реестр_tb[[#This Row],[Плановая дата оплаты]]<$AB$1),\"Просрочено\",IF(Реестр_tb[[#This Row],[Плановая дата оплаты]]=$AB$1,\"Сегодня\",IF(Реестр_tb[[#This Row],[Плановая дата оплаты]]<=$AB$1+7,\"В течении недели\",\"Через неделю и более\")))))","v":"Через неделю и более"},null,null,"Договор № 8/2022 от ххх на сумму 23000,00 руб. (БО на сумму 23 000,00 руб.)"]
["ПАО \"Ростелеком\"","Муниципальное задание","услуги связи",{"$f":"IFERROR(VLOOKUP(Реестр_tb[[#This Row],[Подкатегория]],IF({1,0},Данные_tb[ЕД],Данные_tb[доп. код.]),2,0),\" \")","v":4},{"$f":"IFERROR(VLOOKUP(Реестр_tb[[#This Row],[ДОПЫ]],IF({1,0},Данные_tb[доп. код.],Данные_tb[Источник]),2,0),\" \")","v":20},"Нет","765000022110 от 31.12.21","услуги связи",5,-928.98,null,null,null,null,{"$f":"IF(Реестр_tb[[#This Row],[Срок оплаты (дней)]]=\"\",\"\",WORKDAY(Реестр_tb[[#This Row],[входящий (дата)]],Реестр_tb[[#This Row],[Срок оплаты (дней)]]+1,Выходные_tb[Выходные]))","v":""},null,{"$f":"IF(AND(Реестр_tb[[#This Row],[Оплачен]]=\"Да\",Реестр_tb[[#This Row],[Факт. дата оплаты]]<=Реестр_tb[[#This Row],[Плановая дата оплаты]]),\"Оплачено вовремя\",IF(AND(Реестр_tb[[#This Row],[Оплачен]]=\"Да\",Реестр_tb[[#This Row],[Факт. дата оплаты]]>Реестр_tb[[#This Row],[Плановая дата оплаты]]),\"Просрочено\",IF(AND(Реестр_tb[[#This Row],[Оплачен]]=\"Нет\",Реестр_tb[[#This Row],[Факт. дата оплаты]]=\"\",Реестр_tb[[#This Row],[Плановая дата оплаты]]<$AB$1),\"Просрочено\",IF(Реестр_tb[[#This Row],[Плановая дата оплаты]]=$AB$1,\"Сегодня\",IF(Реестр_tb[[#This Row],[Плановая дата оплаты]]<=$AB$1+7,\"В течении недели\",\"Через неделю и более\")))))","v":"Через неделю и более"}]
["ПАО \"Ростелеком\"","Муниципальное задание","услуги связи",{"$f":"IFERROR(VLOOKUP(Реестр_tb[[#This Row],[Подкатегория]],IF({1,0},Данные_tb[ЕД],Данные_tb[доп. код.]),2,0),\" \")","v":4},{"$f":"IFERROR(VLOOKUP(Реестр_tb[[#This Row],[ДОПЫ]],IF({1,0},Данные_tb[доп. код.],Данные_tb[Источник]),2,0),\" \")","v":20},"Нет","765000027209 от 31.12.21","услуги связи",5,-272.45000000000005,null,null,null,null,{"$f":"IF(Реестр_tb[[#This Row],[Срок оплаты (дней)]]=\"\",\"\",WORKDAY(Реестр_tb[[#This Row],[входящий (дата)]],Реестр_tb[[#This Row],[Срок оплаты (дней)]]+1,Выходные_tb[Выходные]))","v":""},null,{"$f":"IF(AND(Реестр_tb[[#This Row],[Оплачен]]=\"Да\",Реестр_tb[[#This Row],[Факт. дата оплаты]]<=Реестр_tb[[#This Row],[Плановая дата оплаты]]),\"Оплачено вовремя\",IF(AND(Реестр_tb[[#This Row],[Оплачен]]=\"Да\",Реестр_tb[[#This Row],[Факт. дата оплаты]]>Реестр_tb[[#This Row],[Плановая дата оплаты]]),\"Просрочено\",IF(AND(Реестр_tb[[#This Row],[Оплачен]]=\"Нет\",Реестр_tb[[#This Row],[Факт. дата оплаты]]=\"\",Реестр_tb[[#This Row],[Плановая дата оплаты]]<$AB$1),\"Просрочено\",IF(Реестр_tb[[#This Row],[Плановая дата оплаты]]=$AB$1,\"Сегодня\",IF(Реестр_tb[[#This Row],[Плановая дата оплаты]]<=$AB$1+7,\"В течении недели\",\"Через неделю и более\")))))","v":"Через неделю и более"}]
["ПАО \"Ростелеком\"","Муниципальное задание","услуги связи",{"$f":"IFERROR(VLOOKUP(Реестр_tb[[#This Row],[Подкатегория]],IF({1,0},Данные_tb[ЕД],Данные_tb[доп. код.]),2,0),\" \")","v":4},{"$f":"IFERROR(VLOOKUP(Реестр_tb[[#This Row],[ДОПЫ]],IF({1,0},Данные_tb[доп. код.],Данные_tb[Источник]),2,0),\" \")","v":20},"Нет","январь","услуги связи",4,5000,null,null,null,null,{"$f":"IF(Реестр_tb[[#This Row],[Срок оплаты (дней)]]=\"\",\"\",WORKDAY(Реестр_tb[[#This Row],[входящий (дата)]],Реестр_tb[[#This Row],[Срок оплаты (дней)]]+1,Выходные_tb[Выходные]))","v":""},null,{"$f":"IF(AND(Реестр_tb[[#This Row],[Оплачен]]=\"Да\",Реестр_tb[[#This Row],[Факт. дата оплаты]]<=Реестр_tb[[#This Row],[Плановая дата оплаты]]),\"Оплачено вовремя\",IF(AND(Реестр_tb[[#This Row],[Оплачен]]=\"Да\",Реестр_tb[[#This Row],[Факт. дата оплаты]]>Реестр_tb[[#This Row],[Плановая дата оплаты]]),\"Просрочено\",IF(AND(Реестр_tb[[#This Row],[Оплачен]]=\"Нет\",Реестр_tb[[#This Row],[Факт. дата оплаты]]=\"\",Реестр_tb[[#This Row],[Плановая дата оплаты]]<$AB$1),\"Просрочено\",IF(Реестр_tb[[#This Row],[Плановая дата оплаты]]=$AB$1,\"Сегодня\",IF(Реестр_tb[[#This Row],[Плановая дата оплаты]]<=$AB$1+7,\"В течении недели\",\"Через неделю и более\")))))","v":"Через неделю и более"},null,null,"Контракт № 765000027209 о т ххх на сумму 80 000,00 руб. (БО на сумму 80 000,00 руб.)"]
["ПАО \"Ростелеком\"","Муниципальное задание","услуги связи",{"$f":"IFERROR(VLOOKUP(Реестр_tb[[#This Row],[Подкатегория]],IF({1,0},Данные_tb[ЕД],Данные_tb[доп. код.]),2,0),\" \")","v":4},{"$f":"IFERROR(VLOOKUP(Реестр_tb[[#This Row],[ДОПЫ]],IF({1,0},Данные_tb[доп. код.],Данные_tb[Источник]),2,0),\" \")","v":20},"Нет","январь","услуги связи",4,1000,null,null,null,null,{"$f":"IF(Реестр_tb[[#This Row],[Срок оплаты (дней)]]=\"\",\"\",WORKDAY(Реестр_tb[[#This Row],[входящий (дата)]],Реестр_tb[[#This Row],[Срок оплаты (дней)]]+1,Выходные_tb[Выходные]))","v":""},null,{"$f":"IF(AND(Реестр_tb[[#This Row],[Оплачен]]=\"Да\",Реестр_tb[[#This Row],[Факт. дата оплаты]]<=Реестр_tb[[#This Row],[Плановая дата оплаты]]),\"Оплачено вовремя\",IF(AND(Реестр_tb[[#This Row],[Оплачен]]=\"Да\",Реестр_tb[[#This Row],[Факт. дата оплаты]]>Реестр_tb[[#This Row],[Плановая дата оплаты]]),\"Просрочено\",IF(AND(Реестр_tb[[#This Row],[Оплачен]]=\"Нет\",Реестр_tb[[#This Row],[Факт. дата оплаты]]=\"\",Реестр_tb[[#This Row],[Плановая дата оплаты]]<$AB$1),\"Просрочено\",IF(Реестр_tb[[#This Row],[Плановая дата оплаты]]=$AB$1,\"Сегодня\",IF(Реестр_tb[[#This Row],[Плановая дата оплаты]]<=$AB$1+7,\"В течении недели\",\"Через неделю и более\")))))","v":"Через неделю и более"},null,null,"Контракт № 765000027209 о т ххх на сумму 80 000,00 руб. (БО на сумму 80 000,00 руб.)"]
["ПАО \"Ростелеком\"","Муниципальное задание","услуги связи",{"$f":"IFERROR(VLOOKUP(Реестр_tb[[#This Row],[Подкатегория]],IF({1,0},Данные_tb[ЕД],Данные_tb[доп. код.]),2,0),\" \")","v":4},{"$f":"IFERROR(VLOOKUP(Реестр_tb[[#This Row],[ДОПЫ]],IF({1,0},Данные_tb[доп. код.],Данные_tb[Источник]),2,0),\" \")","v":20},"Нет","февраль","услуги связи",4,5000,null,null,null,null,{"$f":"IF(Реестр_tb[[#This Row],[Срок оплаты (дней)]]=\"\",\"\",WORKDAY(Реестр_tb[[#This Row],[входящий (дата)]],Реестр_tb[[#This Row],[Срок оплаты (дней)]]+1,Выходные_tb[Выходные]))","v":""},null,{"$f":"IF(AND(Реестр_tb[[#This Row],[Оплачен]]=\"Да\",Реестр_tb[[#This Row],[Факт. дата оплаты]]<=Реестр_tb[[#This Row],[Плановая дата оплаты]]),\"Оплачено вовремя\",IF(AND(Реестр_tb[[#This Row],[Оплачен]]=\"Да\",Реестр_tb[[#This Row],[Факт. дата оплаты]]>Реестр_tb[[#This Row],[Плановая дата оплаты]]),\"Просрочено\",IF(AND(Реестр_tb[[#This Row],[Оплачен]]=\"Нет\",Реестр_tb[[#This Row],[Факт. дата оплаты]]=\"\",Реестр_tb[[#This Row],[Плановая дата оплаты]]<$AB$1),\"Просрочено\",IF(Реестр_tb[[#This Row],[Плановая дата оплаты]]=$AB$1,\"Сегодня\",IF(Реестр_tb[[#This Row],[Плановая дата оплаты]]<=$AB$1+7,\"В течении недели\",\"Через неделю и более\")))))","v":"Через неделю и более"},null,null,"Контракт № 765000027209 о т ххх на сумму 80 000,00 руб. (БО на сумму 80 000,00 руб.)"]
["ПАО \"Ростелеком\"","Муниципальное задание","услуги связи",{"$f":"IFERROR(VLOOKUP(Реестр_tb[[#This Row],[Подкатегория]],IF({1,0},Данные_tb[ЕД],Данные_tb[доп. код.]),2,0),\" \")","v":4},{"$f":"IFERROR(VLOOKUP(Реестр_tb[[#This Row],[ДОПЫ]],IF({1,0},Данные_tb[доп. код.],Данные_tb[Источник]),2,0),\" \")","v":20},"Нет","февраль","услуги связи",4,1000,null,null,null,null,{"$f":"IF(Реестр_tb[[#This Row],[Срок оплаты (дней)]]=\"\",\"\",WORKDAY(Реестр_tb[[#This Row],[входящий (дата)]],Реестр_tb[[#This Row],[Срок оплаты (дней)]]+1,Выходные_tb[Выходные]))","v":""},null,{"$f":"IF(AND(Реестр_tb[[#This Row],[Оплачен]]=\"Да\",Реестр_tb[[#This Row],[Факт. дата оплаты]]<=Реестр_tb[[#This Row],[Плановая дата оплаты]]),\"Оплачено вовремя\",IF(AND(Реестр_tb[[#This Row],[Оплачен]]=\"Да\",Реестр_tb[[#This Row],[Факт. дата оплаты]]>Реестр_tb[[#This Row],[Плановая дата оплаты]]),\"Просрочено\",IF(AND(Реестр_tb[[#This Row],[Оплачен]]=\"Нет\",Реестр_tb[[#This Row],[Факт. дата оплаты]]=\"\",Реестр_tb[[#This Row],[Плановая дата оплаты]]<$AB$1),\"Просрочено\",IF(Реестр_tb[[#This Row],[Плановая дата оплаты]]=$AB$1,\"Сегодня\",IF(Реестр_tb[[#This Row],[Плановая дата оплаты]]<=$AB$1+7,\"В течении недели\",\"Через неделю и более\")))))","v":"Через неделю и более"},null,null,"Контракт № 765000027209 о т ххх на сумму 80 000,00 руб. (БО на сумму 80 000,00 руб.)"]
["ПАО \"Ростелеком\"","Муниципальное задание","услуги связи",{"$f":"IFERROR(VLOOKUP(Реестр_tb[[#This Row],[Подкатегория]],IF({1,0},Данные_tb[ЕД],Данные_tb[доп. код.]),2,0),\" \")","v":4},{"$f":"IFERROR(VLOOKUP(Реестр_tb[[#This Row],[ДОПЫ]],IF({1,0},Данные_tb[доп. код.],Данные_tb[Источник]),2,0),\" \")","v":20},"Нет","март","услуги связи",4,5000,null,null,null,null,{"$f":"IF(Реестр_tb[[#This Row],[Срок оплаты (дней)]]=\"\",\"\",WORKDAY(Реестр_tb[[#This Row],[входящий (дата)]],Реестр_tb[[#This Row],[Срок оплаты (дней)]]+1,Выходные_tb[Выходные]))","v":""},null,{"$f":"IF(AND(Реестр_tb[[#This Row],[Оплачен]]=\"Да\",Реестр_tb[[#This Row],[Факт. дата оплаты]]<=Реестр_tb[[#This Row],[Плановая дата оплаты]]),\"Оплачено вовремя\",IF(AND(Реестр_tb[[#This Row],[Оплачен]]=\"Да\",Реестр_tb[[#This Row],[Факт. дата оплаты]]>Реестр_tb[[#This Row],[Плановая дата оплаты]]),\"Просрочено\",IF(AND(Реестр_tb[[#This Row],[Оплачен]]=\"Нет\",Реестр_tb[[#This Row],[Факт. дата оплаты]]=\"\",Реестр_tb[[#This Row],[Плановая дата оплаты]]<$AB$1),\"Просрочено\",IF(Реестр_tb[[#This Row],[Плановая дата оплаты]]=$AB$1,\"Сегодня\",IF(Реестр_tb[[#This Row],[Плановая дата оплаты]]<=$AB$1+7,\"В течении недели\",\"Через неделю и более\")))))","v":"Через неделю и более"},null,null,"Контракт № 765000027209 о т ххх на сумму 80 000,00 руб. (БО на сумму 80 000,00 руб.)"]
["ПАО \"Ростелеком\"","Муниципальное задание","услуги связи",{"$f":"IFERROR(VLOOKUP(Реестр_tb[[#This Row],[Подкатегория]],IF({1,0},Данные_tb[ЕД],Данные_tb[доп. код.]),2,0),\" \")","v":4},{"$f":"IFERROR(VLOOKUP(Реестр_tb[[#This Row],[ДОПЫ]],IF({1,0},Данные_tb[доп. код.],Данные_tb[Источник]),2,0),\" \")","v":20},"Нет","март","услуги связи",4,1000,null,null,null,null,{"$f":"IF(Реестр_tb[[#This Row],[Срок оплаты (дней)]]=\"\",\"\",WORKDAY(Реестр_tb[[#This Row],[входящий (дата)]],Реестр_tb[[#This Row],[Срок оплаты (дней)]]+1,Выходные_tb[Выходные]))","v":""},null,{"$f":"IF(AND(Реестр_tb[[#This Row],[Оплачен]]=\"Да\",Реестр_tb[[#This Row],[Факт. дата оплаты]]<=Реестр_tb[[#This Row],[Плановая дата оплаты]]),\"Оплачено вовремя\",IF(AND(Реестр_tb[[#This Row],[Оплачен]]=\"Да\",Реестр_tb[[#This Row],[Факт. дата оплаты]]>Реестр_tb[[#This Row],[Плановая дата оплаты]]),\"Просрочено\",IF(AND(Реестр_tb[[#This Row],[Оплачен]]=\"Нет\",Реестр_tb[[#This Row],[Факт. дата оплаты]]=\"\",Реестр_tb[[#This Row],[Плановая дата оплаты]]<$AB$1),\"Просрочено\",IF(Реестр_tb[[#This Row],[Плановая дата оплаты]]=$AB$1,\"Сегодня\",IF(Реестр_tb[[#This Row],[Плановая дата оплаты]]<=$AB$1+7,\"В течении недели\",\"Через неделю и более\")))))","v":"Через неделю и более"},null,null,"Контракт № 765000027209 о т ххх на сумму 80 000,00 руб. (БО на сумму 80 000,00 руб.)"]
["ПАО \"Ростелеком\"","Муниципальное задание","услуги связи",{"$f":"IFERROR(VLOOKUP(Реестр_tb[[#This Row],[Подкатегория]],IF({1,0},Данные_tb[ЕД],Данные_tb[доп. код.]),2,0),\" \")","v":4},{"$f":"IFERROR(VLOOKUP(Реестр_tb[[#This Row],[ДОПЫ]],IF({1,0},Данные_tb[доп. код.],Данные_tb[Источник]),2,0),\" \")","v":20},"Нет","апрель","услуги связи",4,5000,null,null,null,null,{"$f":"IF(Реестр_tb[[#This Row],[Срок оплаты (дней)]]=\"\",\"\",WORKDAY(Реестр_tb[[#This Row],[входящий (дата)]],Реестр_tb[[#This Row],[Срок оплаты (дней)]]+1,Выходные_tb[Выходные]))","v":""},null,{"$f":"IF(AND(Реестр_tb[[#This Row],[Оплачен]]=\"Да\",Реестр_tb[[#This Row],[Факт. дата оплаты]]<=Реестр_tb[[#This Row],[Плановая дата оплаты]]),\"Оплачено вовремя\",IF(AND(Реестр_tb[[#This Row],[Оплачен]]=\"Да\",Реестр_tb[[#This Row],[Факт. дата оплаты]]>Реестр_tb[[#This Row],[Плановая дата оплаты]]),\"Просрочено\",IF(AND(Реестр_tb[[#This Row],[Оплачен]]=\"Нет\",Реестр_tb[[#This Row],[Факт. дата оплаты]]=\"\",Реестр_tb[[#This Row],[Плановая дата оплаты]]<$AB$1),\"Просрочено\",IF(Реестр_tb[[#This Row],[Плановая дата оплаты]]=$AB$1,\"Сегодня\",IF(Реестр_tb[[#This Row],[Плановая дата оплаты]]<=$AB$1+7,\"В течении недели\",\"Через неделю и более\")))))","v":"Через неделю и более"},null,null,"Контракт № 765000027209 о т ххх на сумму 80 000,00 руб. (БО на сумму 80 000,00 руб.)"]
["ПАО \"Ростелеком\"","Муниципальное задание","услуги связи",{"$f":"IFERROR(VLOOKUP(Реестр_tb[[#This Row],[Подкатегория]],IF({1,0},Данные_tb[ЕД],Данные_tb[доп. код.]),2,0),\" \")","v":4},{"$f":"IFERROR(VLOOKUP(Реестр_tb[[#This Row],[ДОПЫ]],IF({1,0},Данные_tb[доп. код.],Данные_tb[Источник]),2,0),\" \")","v":20},"Нет","апрель","услуги связи",4,1000,null,null,null,null,{"$f":"IF(Реестр_tb[[#This Row],[Срок оплаты (дней)]]=\"\",\"\",WORKDAY(Реестр_tb[[#This Row],[входящий (дата)]],Реестр_tb[[#This Row],[Срок оплаты (дней)]]+1,Выходные_tb[Выходные]))","v":""},null,{"$f":"IF(AND(Реестр_tb[[#This Row],[Оплачен]]=\"Да\",Реестр_tb[[#This Row],[Факт. дата оплаты]]<=Реестр_tb[[#This Row],[Плановая дата оплаты]]),\"Оплачено вовремя\",IF(AND(Реестр_tb[[#This Row],[Оплачен]]=\"Да\",Реестр_tb[[#This Row],[Факт. дата оплаты]]>Реестр_tb[[#This Row],[Плановая дата оплаты]]),\"Просрочено\",IF(AND(Реестр_tb[[#This Row],[Оплачен]]=\"Нет\",Реестр_tb[[#This Row],[Факт. дата оплаты]]=\"\",Реестр_tb[[#This Row],[Плановая дата оплаты]]<$AB$1),\"Просрочено\",IF(Реестр_tb[[#This Row],[Плановая дата оплаты]]=$AB$1,\"Сегодня\",IF(Реестр_tb[[#This Row],[Плановая дата оплаты]]<=$AB$1+7,\"В течении недели\",\"Через неделю и более\")))))","v":"Через неделю и более"},null,null,"Контракт № 765000027209 о т ххх на сумму 80 000,00 руб. (БО на сумму 80 000,00 руб.)"]
["ПАО \"Ростелеком\"","Муниципальное задание","услуги связи",{"$f":"IFERROR(VLOOKUP(Реестр_tb[[#This Row],[Подкатегория]],IF({1,0},Данные_tb[ЕД],Данные_tb[доп. код.]),2,0),\" \")","v":4},{"$f":"IFERROR(VLOOKUP(Реестр_tb[[#This Row],[ДОПЫ]],IF({1,0},Данные_tb[доп. код.],Данные_tb[Источник]),2,0),\" \")","v":20},"Нет","май","услуги связи",4,5000,null,null,null,null,{"$f":"IF(Реестр_tb[[#This Row],[Срок оплаты (дней)]]=\"\",\"\",WORKDAY(Реестр_tb[[#This Row],[входящий (дата)]],Реестр_tb[[#This Row],[Срок оплаты (дней)]]+1,Выходные_tb[Выходные]))","v":""},null,{"$f":"IF(AND(Реестр_tb[[#This Row],[Оплачен]]=\"Да\",Реестр_tb[[#This Row],[Факт. дата оплаты]]<=Реестр_tb[[#This Row],[Плановая дата оплаты]]),\"Оплачено вовремя\",IF(AND(Реестр_tb[[#This Row],[Оплачен]]=\"Да\",Реестр_tb[[#This Row],[Факт. дата оплаты]]>Реестр_tb[[#This Row],[Плановая дата оплаты]]),\"Просрочено\",IF(AND(Реестр_tb[[#This Row],[Оплачен]]=\"Нет\",Реестр_tb[[#This Row],[Факт. дата оплаты]]=\"\",Реестр_tb[[#This Row],[Плановая дата оплаты]]<$AB$1),\"Просрочено\",IF(Реестр_tb[[#This Row],[Плановая дата оплаты]]=$AB$1,\"Сегодня\",IF(Реестр_tb[[#This Row],[Плановая дата оплаты]]<=$AB$1+7,\"В течении недели\",\"Через неделю и более\")))))","v":"Через неделю и более"},null,null,"Контракт № 765000027209 о т ххх на сумму 80 000,00 руб. (БО на сумму 80 000,00 руб.)"]
["ПАО \"Ростелеком\"","Муниципальное задание","услуги связи",{"$f":"IFERROR(VLOOKUP(Реестр_tb[[#This Row],[Подкатегория]],IF({1,0},Данные_tb[ЕД],Данные_tb[доп. код.]),2,0),\" \")","v":4},{"$f":"IFERROR(VLOOKUP(Реестр_tb[[#This Row],[ДОПЫ]],IF({1,0},Данные_tb[доп. код.],Данные_tb[Источник]),2,0),\" \")","v":20},"Нет","май","услуги связи",4,1000,null,null,null,null,{"$f":"IF(Реестр_tb[[#This Row],[Срок оплаты (дней)]]=\"\",\"\",WORKDAY(Реестр_tb[[#This Row],[входящий (дата)]],Реестр_tb[[#This Row],[Срок оплаты (дней)]]+1,Выходные_tb[Выходные]))","v":""},null,{"$f":"IF(AND(Реестр_tb[[#This Row],[Оплачен]]=\"Да\",Реестр_tb[[#This Row],[Факт. дата оплаты]]<=Реестр_tb[[#This Row],[Плановая дата оплаты]]),\"Оплачено вовремя\",IF(AND(Реестр_tb[[#This Row],[Оплачен]]=\"Да\",Реестр_tb[[#This Row],[Факт. дата оплаты]]>Реестр_tb[[#This Row],[Плановая дата оплаты]]),\"Просрочено\",IF(AND(Реестр_tb[[#This Row],[Оплачен]]=\"Нет\",Реестр_tb[[#This Row],[Факт. дата оплаты]]=\"\",Реестр_tb[[#This Row],[Плановая дата оплаты]]<$AB$1),\"Просрочено\",IF(Реестр_tb[[#This Row],[Плановая дата оплаты]]=$AB$1,\"Сегодня\",IF(Реестр_tb[[#This Row],[Плановая дата оплаты]]<=$AB$1+7,\"В течении недели\",\"Через неделю и более\")))))","v":"Через неделю и более"},null,null,"Контракт № 765000027209 о т ххх на сумму 80 000,00 руб. (БО на сумму 80 000,00 руб.)"]
["ПАО \"Ростелеком\"","Муниципальное задание","услуги связи",{"$f":"IFERROR(VLOOKUP(Реестр_tb[[#This Row],[Подкатегория]],IF({1,0},Данные_tb[ЕД],Данные_tb[доп. код.]),2,0),\" \")","v":4},{"$f":"IFERROR(VLOOKUP(Реестр_tb[[#This Row],[ДОПЫ]],IF({1,0},Данные_tb[доп. код.],Данные_tb[Источник]),2,0),\" \")","v":20},"Нет","июнь","услуги связи",4,5000,null,null,null,null,{"$f":"IF(Реестр_tb[[#This Row],[Срок оплаты (дней)]]=\"\",\"\",WORKDAY(Реестр_tb[[#This Row],[входящий (дата)]],Реестр_tb[[#This Row],[Срок оплаты (дней)]]+1,Выходные_tb[Выходные]))","v":""},null,{"$f":"IF(AND(Реестр_tb[[#This Row],[Оплачен]]=\"Да\",Реестр_tb[[#This Row],[Факт. дата оплаты]]<=Реестр_tb[[#This Row],[Плановая дата оплаты]]),\"Оплачено вовремя\",IF(AND(Реестр_tb[[#This Row],[Оплачен]]=\"Да\",Реестр_tb[[#This Row],[Факт. дата оплаты]]>Реестр_tb[[#This Row],[Плановая дата оплаты]]),\"Просрочено\",IF(AND(Реестр_tb[[#This Row],[Оплачен]]=\"Нет\",Реестр_tb[[#This Row],[Факт. дата оплаты]]=\"\",Реестр_tb[[#This Row],[Плановая дата оплаты]]<$AB$1),\"Просрочено\",IF(Реестр_tb[[#This Row],[Плановая дата оплаты]]=$AB$1,\"Сегодня\",IF(Реестр_tb[[#This Row],[Плановая дата оплаты]]<=$AB$1+7,\"В течении недели\",\"Через неделю и более\")))))","v":"Через неделю и более"},null,null,"Контракт № 765000027209 о т ххх на сумму 80 000,00 руб. (БО на сумму 80 000,00 руб.)"]
["ПАО \"Ростелеком\"","Муниципальное задание","услуги связи",{"$f":"IFERROR(VLOOKUP(Реестр_tb[[#This Row],[Подкатегория]],IF({1,0},Данные_tb[ЕД],Данные_tb[доп. код.]),2,0),\" \")","v":4},{"$f":"IFERROR(VLOOKUP(Реестр_tb[[#This Row],[ДОПЫ]],IF({1,0},Данные_tb[доп. код.],Данные_tb[Источник]),2,0),\" \")","v":20},"Нет","июнь","услуги связи",4,1000,null,null,null,null,{"$f":"IF(Реестр_tb[[#This Row],[Срок оплаты (дней)]]=\"\",\"\",WORKDAY(Реестр_tb[[#This Row],[входящий (дата)]],Реестр_tb[[#This Row],[Срок оплаты (дней)]]+1,Выходные_tb[Выходные]))","v":""},null,{"$f":"IF(AND(Реестр_tb[[#This Row],[Оплачен]]=\"Да\",Реестр_tb[[#This Row],[Факт. дата оплаты]]<=Реестр_tb[[#This Row],[Плановая дата оплаты]]),\"Оплачено вовремя\",IF(AND(Реестр_tb[[#This Row],[Оплачен]]=\"Да\",Реестр_tb[[#This Row],[Факт. дата оплаты]]>Реестр_tb[[#This Row],[Плановая дата оплаты]]),\"Просрочено\",IF(AND(Реестр_tb[[#This Row],[Оплачен]]=\"Нет\",Реестр_tb[[#This Row],[Факт. дата оплаты]]=\"\",Реестр_tb[[#This Row],[Плановая дата оплаты]]<$AB$1),\"Просрочено\",IF(Реестр_tb[[#This Row],[Плановая дата оплаты]]=$AB$1,\"Сегодня\",IF(Реестр_tb[[#This Row],[Плановая дата оплаты]]<=$AB$1+7,\"В течении недели\",\"Через неделю и более\")))))","v":"Через неделю и более"},null,null,"Контракт № 765000027209 о т ххх на сумму 80 000,00 руб. (БО на сумму 80 000,00 руб.)"]
["ПАО \"Ростелеком\"","Муниципальное задание","услуги связи",{"$f":"IFERROR(VLOOKUP(Реестр_tb[[#This Row],[Подкатегория]],IF({1,0},Данные_tb[ЕД],Данные_tb[доп. код.]),2,0),\" \")","v":4},{"$f":"IFERROR(VLOOKUP(Реестр_tb[[#This Row],[ДОПЫ]],IF({1,0},Данные_tb[доп. код.],Данные_tb[Источник]),2,0),\" \")","v":20},"Нет","июль","услуги связи",4,5000,null,null,null,null,{"$f":"IF(Реестр_tb[[#This Row],[Срок оплаты (дней)]]=\"\",\"\",WORKDAY(Реестр_tb[[#This Row],[входящий (дата)]],Реестр_tb[[#This Row],[Срок оплаты (дней)]]+1,Выходные_tb[Выходные]))","v":""},null,{"$f":"IF(AND(Реестр_tb[[#This Row],[Оплачен]]=\"Да\",Реестр_tb[[#This Row],[Факт. дата оплаты]]<=Реестр_tb[[#This Row],[Плановая дата оплаты]]),\"Оплачено вовремя\",IF(AND(Реестр_tb[[#This Row],[Оплачен]]=\"Да\",Реестр_tb[[#This Row],[Факт. дата оплаты]]>Реестр_tb[[#This Row],[Плановая дата оплаты]]),\"Просрочено\",IF(AND(Реестр_tb[[#This Row],[Оплачен]]=\"Нет\",Реестр_tb[[#This Row],[Факт. дата оплаты]]=\"\",Реестр_tb[[#This Row],[Плановая дата оплаты]]<$AB$1),\"Просрочено\",IF(Реестр_tb[[#This Row],[Плановая дата оплаты]]=$AB$1,\"Сегодня\",IF(Реестр_tb[[#This Row],[Плановая дата оплаты]]<=$AB$1+7,\"В течении недели\",\"Через неделю и более\")))))","v":"Через неделю и более"},null,null,"Контракт № 765000027209 о т ххх на сумму 80 000,00 руб. (БО на сумму 80 000,00 руб.)"]
["ПАО \"Ростелеком\"","Муниципальное задание","услуги связи",{"$f":"IFERROR(VLOOKUP(Реестр_tb[[#This Row],[Подкатегория]],IF({1,0},Данные_tb[ЕД],Данные_tb[доп. код.]),2,0),\" \")","v":4},{"$f":"IFERROR(VLOOKUP(Реестр_tb[[#This Row],[ДОПЫ]],IF({1,0},Данные_tb[доп. код.],Данные_tb[Источник]),2,0),\" \")","v":20},"Нет","июль","услуги связи",4,1000,null,null,null,null,{"$f":"IF(Реестр_tb[[#This Row],[Срок оплаты (дней)]]=\"\",\"\",WORKDAY(Реестр_tb[[#This Row],[входящий (дата)]],Реестр_tb[[#This Row],[Срок оплаты (дней)]]+1,Выходные_tb[Выходные]))","v":""},null,{"$f":"IF(AND(Реестр_tb[[#This Row],[Оплачен]]=\"Да\",Реестр_tb[[#This Row],[Факт. дата оплаты]]<=Реестр_tb[[#This Row],[Плановая дата оплаты]]),\"Оплачено вовремя\",IF(AND(Реестр_tb[[#This Row],[Оплачен]]=\"Да\",Реестр_tb[[#This Row],[Факт. дата оплаты]]>Реестр_tb[[#This Row],[Плановая дата оплаты]]),\"Просрочено\",IF(AND(Реестр_tb[[#This Row],[Оплачен]]=\"Нет\",Реестр_tb[[#This Row],[Факт. дата оплаты]]=\"\",Реестр_tb[[#This Row],[Плановая дата оплаты]]<$AB$1),\"Просрочено\",IF(Реестр_tb[[#This Row],[Плановая дата оплаты]]=$AB$1,\"Сегодня\",IF(Реестр_tb[[#This Row],[Плановая дата оплаты]]<=$AB$1+7,\"В течении недели\",\"Через неделю и более\")))))","v":"Через неделю и более"},null,null,"Контракт № 765000027209 о т ххх на сумму 80 000,00 руб. (БО на сумму 80 000,00 руб.)"]
["ПАО \"Ростелеком\"","Муниципальное задание","услуги связи",{"$f":"IFERROR(VLOOKUP(Реестр_tb[[#This Row],[Подкатегория]],IF({1,0},Данные_tb[ЕД],Данные_tb[доп. код.]),2,0),\" \")","v":4},{"$f":"IFERROR(VLOOKUP(Реестр_tb[[#This Row],[ДОПЫ]],IF({1,0},Данные_tb[доп. код.],Данные_tb[Источник]),2,0),\" \")","v":20},"Нет","август","услуги связи",4,5000,null,null,null,null,{"$f":"IF(Реестр_tb[[#This Row],[Срок оплаты (дней)]]=\"\",\"\",WORKDAY(Реестр_tb[[#This Row],[входящий (дата)]],Реестр_tb[[#This Row],[Срок оплаты (дней)]]+1,Выходные_tb[Выходные]))","v":""},null,{"$f":"IF(AND(Реестр_tb[[#This Row],[Оплачен]]=\"Да\",Реестр_tb[[#This Row],[Факт. дата оплаты]]<=Реестр_tb[[#This Row],[Плановая дата оплаты]]),\"Оплачено вовремя\",IF(AND(Реестр_tb[[#This Row],[Оплачен]]=\"Да\",Реестр_tb[[#This Row],[Факт. дата оплаты]]>Реестр_tb[[#This Row],[Плановая дата оплаты]]),\"Просрочено\",IF(AND(Реестр_tb[[#This Row],[Оплачен]]=\"Нет\",Реестр_tb[[#This Row],[Факт. дата оплаты]]=\"\",Реестр_tb[[#This Row],[Плановая дата оплаты]]<$AB$1),\"Просрочено\",IF(Реестр_tb[[#This Row],[Плановая дата оплаты]]=$AB$1,\"Сегодня\",IF(Реестр_tb[[#This Row],[Плановая дата оплаты]]<=$AB$1+7,\"В течении недели\",\"Через неделю и более\")))))","v":"Через неделю и более"},null,null,"Контракт № 765000027209 о т ххх на сумму 80 000,00 руб. (БО на сумму 80 000,00 руб.)"]
["ПАО \"Ростелеком\"","Муниципальное задание","услуги связи",{"$f":"IFERROR(VLOOKUP(Реестр_tb[[#This Row],[Подкатегория]],IF({1,0},Данные_tb[ЕД],Данные_tb[доп. код.]),2,0),\" \")","v":4},{"$f":"IFERROR(VLOOKUP(Реестр_tb[[#This Row],[ДОПЫ]],IF({1,0},Данные_tb[доп. код.],Данные_tb[Источник]),2,0),\" \")","v":20},"Нет","август","услуги связи",4,1000,null,null,null,null,{"$f":"IF(Реестр_tb[[#This Row],[Срок оплаты (дней)]]=\"\",\"\",WORKDAY(Реестр_tb[[#This Row],[входящий (дата)]],Реестр_tb[[#This Row],[Срок оплаты (дней)]]+1,Выходные_tb[Выходные]))","v":""},null,{"$f":"IF(AND(Реестр_tb[[#This Row],[Оплачен]]=\"Да\",Реестр_tb[[#This Row],[Факт. дата оплаты]]<=Реестр_tb[[#This Row],[Плановая дата оплаты]]),\"Оплачено вовремя\",IF(AND(Реестр_tb[[#This Row],[Оплачен]]=\"Да\",Реестр_tb[[#This Row],[Факт. дата оплаты]]>Реестр_tb[[#This Row],[Плановая дата оплаты]]),\"Просрочено\",IF(AND(Реестр_tb[[#This Row],[Оплачен]]=\"Нет\",Реестр_tb[[#This Row],[Факт. дата оплаты]]=\"\",Реестр_tb[[#This Row],[Плановая дата оплаты]]<$AB$1),\"Просрочено\",IF(Реестр_tb[[#This Row],[Плановая дата оплаты]]=$AB$1,\"Сегодня\",IF(Реестр_tb[[#This Row],[Плановая дата оплаты]]<=$AB$1+7,\"В течении недели\",\"Через неделю и более\")))))","v":"Через неделю и более"},null,null,"Контракт № 765000027209 о т ххх на сумму 80 000,00 руб. (БО на сумму 80 000,00 руб.)"]
["ПАО \"Ростелеком\"","Муниципальное задание","услуги связи",{"$f":"IFERROR(VLOOKUP(Реестр_tb[[#This Row],[Подкатегория]],IF({1,0},Данные_tb[ЕД],Данные_tb[доп. код.]),2,0),\" \")","v":4},{"$f":"IFERROR(VLOOKUP(Реестр_tb[[#This Row],[ДОПЫ]],IF({1,0},Данные_tb[доп. код.],Данные_tb[Источник]),2,0),\" \")","v":20},"Нет","сентябрь","услуги связи",4,5000,null,null,null,null,{"$f":"IF(Реестр_tb[[#This Row],[Срок оплаты (дней)]]=\"\",\"\",WORKDAY(Реестр_tb[[#This Row],[входящий (дата)]],Реестр_tb[[#This Row],[Срок оплаты (дней)]]+1,Выходные_tb[Выходные]))","v":""},null,{"$f":"IF(AND(Реестр_tb[[#This Row],[Оплачен]]=\"Да\",Реестр_tb[[#This Row],[Факт. дата оплаты]]<=Реестр_tb[[#This Row],[Плановая дата оплаты]]),\"Оплачено вовремя\",IF(AND(Реестр_tb[[#This Row],[Оплачен]]=\"Да\",Реестр_tb[[#This Row],[Факт. дата оплаты]]>Реестр_tb[[#This Row],[Плановая дата оплаты]]),\"Просрочено\",IF(AND(Реестр_tb[[#This Row],[Оплачен]]=\"Нет\",Реестр_tb[[#This Row],[Факт. дата оплаты]]=\"\",Реестр_tb[[#This Row],[Плановая дата оплаты]]<$AB$1),\"Просрочено\",IF(Реестр_tb[[#This Row],[Плановая дата оплаты]]=$AB$1,\"Сегодня\",IF(Реестр_tb[[#This Row],[Плановая дата оплаты]]<=$AB$1+7,\"В течении недели\",\"Через неделю и более\")))))","v":"Через неделю и более"},null,null,"Контракт № 765000027209 о т ххх на сумму 80 000,00 руб. (БО на сумму 80 000,00 руб.)"]
["ПАО \"Ростелеком\"","Муниципальное задание","услуги связи",{"$f":"IFERROR(VLOOKUP(Реестр_tb[[#This Row],[Подкатегория]],IF({1,0},Данные_tb[ЕД],Данные_tb[доп. код.]),2,0),\" \")","v":4},{"$f":"IFERROR(VLOOKUP(Реестр_tb[[#This Row],[ДОПЫ]],IF({1,0},Данные_tb[доп. код.],Данные_tb[Источник]),2,0),\" \")","v":20},"Нет","сентябрь","услуги связи",4,1000,null,null,null,null,{"$f":"IF(Реестр_tb[[#This Row],[Срок оплаты (дней)]]=\"\",\"\",WORKDAY(Реестр_tb[[#This Row],[входящий (дата)]],Реестр_tb[[#This Row],[Срок оплаты (дней)]]+1,Выходные_tb[Выходные]))","v":""},null,{"$f":"IF(AND(Реестр_tb[[#This Row],[Оплачен]]=\"Да\",Реестр_tb[[#This Row],[Факт. дата оплаты]]<=Реестр_tb[[#This Row],[Плановая дата оплаты]]),\"Оплачено вовремя\",IF(AND(Реестр_tb[[#This Row],[Оплачен]]=\"Да\",Реестр_tb[[#This Row],[Факт. дата оплаты]]>Реестр_tb[[#This Row],[Плановая дата оплаты]]),\"Просрочено\",IF(AND(Реестр_tb[[#This Row],[Оплачен]]=\"Нет\",Реестр_tb[[#This Row],[Факт. дата оплаты]]=\"\",Реестр_tb[[#This Row],[Плановая дата оплаты]]<$AB$1),\"Просрочено\",IF(Реестр_tb[[#This Row],[Плановая дата оплаты]]=$AB$1,\"Сегодня\",IF(Реестр_tb[[#This Row],[Плановая дата оплаты]]<=$AB$1+7,\"В течении недели\",\"Через неделю и более\")))))","v":"Через неделю и более"},null,null,"Контракт № 765000027209 о т ххх на сумму 80 000,00 руб. (БО на сумму 80 000,00 руб.)"]
["ПАО \"Ростелеком\"","Муниципальное задание","услуги связи",{"$f":"IFERROR(VLOOKUP(Реестр_tb[[#This Row],[Подкатегория]],IF({1,0},Данные_tb[ЕД],Данные_tb[доп. код.]),2,0),\" \")","v":4},{"$f":"IFERROR(VLOOKUP(Реестр_tb[[#This Row],[ДОПЫ]],IF({1,0},Данные_tb[доп. код.],Данные_tb[Источник]),2,0),\" \")","v":20},"Нет","октябрь","услуги связи",4,5000,null,null,null,null,{"$f":"IF(Реестр_tb[[#This Row],[Срок оплаты (дней)]]=\"\",\"\",WORKDAY(Реестр_tb[[#This Row],[входящий (дата)]],Реестр_tb[[#This Row],[Срок оплаты (дней)]]+1,Выходные_tb[Выходные]))","v":""},null,{"$f":"IF(AND(Реестр_tb[[#This Row],[Оплачен]]=\"Да\",Реестр_tb[[#This Row],[Факт. дата оплаты]]<=Реестр_tb[[#This Row],[Плановая дата оплаты]]),\"Оплачено вовремя\",IF(AND(Реестр_tb[[#This Row],[Оплачен]]=\"Да\",Реестр_tb[[#This Row],[Факт. дата оплаты]]>Реестр_tb[[#This Row],[Плановая дата оплаты]]),\"Просрочено\",IF(AND(Реестр_tb[[#This Row],[Оплачен]]=\"Нет\",Реестр_tb[[#This Row],[Факт. дата оплаты]]=\"\",Реестр_tb[[#This Row],[Плановая дата оплаты]]<$AB$1),\"Просрочено\",IF(Реестр_tb[[#This Row],[Плановая дата оплаты]]=$AB$1,\"Сегодня\",IF(Реестр_tb[[#This Row],[Плановая дата оплаты]]<=$AB$1+7,\"В течении недели\",\"Через неделю и более\")))))","v":"Через неделю и более"},null,null,"Контракт № 765000027209 о т ххх на сумму 80 000,00 руб. (БО на сумму 80 000,00 руб.)"]
["ПАО \"Ростелеком\"","Муниципальное задание","услуги связи",{"$f":"IFERROR(VLOOKUP(Реестр_tb[[#This Row],[Подкатегория]],IF({1,0},Данные_tb[ЕД],Данные_tb[доп. код.]),2,0),\" \")","v":4},{"$f":"IFERROR(VLOOKUP(Реестр_tb[[#This Row],[ДОПЫ]],IF({1,0},Данные_tb[доп. код.],Данные_tb[Источник]),2,0),\" \")","v":20},"Нет","октябрь","услуги связи",4,1000,null,null,null,null,{"$f":"IF(Реестр_tb[[#This Row],[Срок оплаты (дней)]]=\"\",\"\",WORKDAY(Реестр_tb[[#This Row],[входящий (дата)]],Реестр_tb[[#This Row],[Срок оплаты (дней)]]+1,Выходные_tb[Выходные]))","v":""},null,{"$f":"IF(AND(Реестр_tb[[#This Row],[Оплачен]]=\"Да\",Реестр_tb[[#This Row],[Факт. дата оплаты]]<=Реестр_tb[[#This Row],[Плановая дата оплаты]]),\"Оплачено вовремя\",IF(AND(Реестр_tb[[#This Row],[Оплачен]]=\"Да\",Реестр_tb[[#This Row],[Факт. дата оплаты]]>Реестр_tb[[#This Row],[Плановая дата оплаты]]),\"Просрочено\",IF(AND(Реестр_tb[[#This Row],[Оплачен]]=\"Нет\",Реестр_tb[[#This Row],[Факт. дата оплаты]]=\"\",Реестр_tb[[#This Row],[Плановая дата оплаты]]<$AB$1),\"Просрочено\",IF(Реестр_tb[[#This Row],[Плановая дата оплаты]]=$AB$1,\"Сегодня\",IF(Реестр_tb[[#This Row],[Плановая дата оплаты]]<=$AB$1+7,\"В течении недели\",\"Через неделю и более\")))))","v":"Через неделю и более"},null,null,"Контракт № 765000027209 о т ххх на сумму 80 000,00 руб. (БО на сумму 80 000,00 руб.)"]
["ПАО \"Ростелеком\"","Муниципальное задание","услуги связи",{"$f":"IFERROR(VLOOKUP(Реестр_tb[[#This Row],[Подкатегория]],IF({1,0},Данные_tb[ЕД],Данные_tb[доп. код.]),2,0),\" \")","v":4},{"$f":"IFERROR(VLOOKUP(Реестр_tb[[#This Row],[ДОПЫ]],IF({1,0},Данные_tb[доп. код.],Данные_tb[Источник]),2,0),\" \")","v":20},"Нет","ноябрь","услуги связи",4,5000,null,null,null,null,{"$f":"IF(Реестр_tb[[#This Row],[Срок оплаты (дней)]]=\"\",\"\",WORKDAY(Реестр_tb[[#This Row],[входящий (дата)]],Реестр_tb[[#This Row],[Срок оплаты (дней)]]+1,Выходные_tb[Выходные]))","v":""},null,{"$f":"IF(AND(Реестр_tb[[#This Row],[Оплачен]]=\"Да\",Реестр_tb[[#This Row],[Факт. дата оплаты]]<=Реестр_tb[[#This Row],[Плановая дата оплаты]]),\"Оплачено вовремя\",IF(AND(Реестр_tb[[#This Row],[Оплачен]]=\"Да\",Реестр_tb[[#This Row],[Факт. дата оплаты]]>Реестр_tb[[#This Row],[Плановая дата оплаты]]),\"Просрочено\",IF(AND(Реестр_tb[[#This Row],[Оплачен]]=\"Нет\",Реестр_tb[[#This Row],[Факт. дата оплаты]]=\"\",Реестр_tb[[#This Row],[Плановая дата оплаты]]<$AB$1),\"Просрочено\",IF(Реестр_tb[[#This Row],[Плановая дата оплаты]]=$AB$1,\"Сегодня\",IF(Реестр_tb[[#This Row],[Плановая дата оплаты]]<=$AB$1+7,\"В течении недели\",\"Через неделю и более\")))))","v":"Через неделю и более"},null,null,"Контракт № 765000027209 о т ххх на сумму 80 000,00 руб. (БО на сумму 80 000,00 руб.)"]
["ПАО \"Ростелеком\"","Муниципальное задание","услуги связи",{"$f":"IFERROR(VLOOKUP(Реестр_tb[[#This Row],[Подкатегория]],IF({1,0},Данные_tb[ЕД],Данные_tb[доп. код.]),2,0),\" \")","v":4},{"$f":"IFERROR(VLOOKUP(Реестр_tb[[#This Row],[ДОПЫ]],IF({1,0},Данные_tb[доп. код.],Данные_tb[Источник]),2,0),\" \")","v":20},"Нет","ноябрь","услуги связи",4,1000,null,null,null,null,{"$f":"IF(Реестр_tb[[#This Row],[Срок оплаты (дней)]]=\"\",\"\",WORKDAY(Реестр_tb[[#This Row],[входящий (дата)]],Реестр_tb[[#This Row],[Срок оплаты (дней)]]+1,Выходные_tb[Выходные]))","v":""},null,{"$f":"IF(AND(Реестр_tb[[#This Row],[Оплачен]]=\"Да\",Реестр_tb[[#This Row],[Факт. дата оплаты]]<=Реестр_tb[[#This Row],[Плановая дата оплаты]]),\"Оплачено вовремя\",IF(AND(Реестр_tb[[#This Row],[Оплачен]]=\"Да\",Реестр_tb[[#This Row],[Факт. дата оплаты]]>Реестр_tb[[#This Row],[Плановая дата оплаты]]),\"Просрочено\",IF(AND(Реестр_tb[[#This Row],[Оплачен]]=\"Нет\",Реестр_tb[[#This Row],[Факт. дата оплаты]]=\"\",Реестр_tb[[#This Row],[Плановая дата оплаты]]<$AB$1),\"Просрочено\",IF(Реестр_tb[[#This Row],[Плановая дата оплаты]]=$AB$1,\"Сегодня\",IF(Реестр_tb[[#This Row],[Плановая дата оплаты]]<=$AB$1+7,\"В течении недели\",\"Через неделю и более\")))))","v":"Через неделю и более"},null,null,"Контракт № 765000027209 о т ххх на сумму 80 000,00 руб. (БО на сумму 80 000,00 руб.)"]
["ПАО \"Ростелеком\"","Муниципальное задание","услуги связи",{"$f":"IFERROR(VLOOKUP(Реестр_tb[[#This Row],[Подкатегория]],IF({1,0},Данные_tb[ЕД],Данные_tb[доп. код.]),2,0),\" \")","v":4},{"$f":"IFERROR(VLOOKUP(Реестр_tb[[#This Row],[ДОПЫ]],IF({1,0},Данные_tb[доп. код.],Данные_tb[Источник]),2,0),\" \")","v":20},"Нет","декабрь","услуги связи",4,5000,null,null,null,null,{"$f":"IF(Реестр_tb[[#This Row],[Срок оплаты (дней)]]=\"\",\"\",WORKDAY(Реестр_tb[[#This Row],[входящий (дата)]],Реестр_tb[[#This Row],[Срок оплаты (дней)]]+1,Выходные_tb[Выходные]))","v":""},null,{"$f":"IF(AND(Реестр_tb[[#This Row],[Оплачен]]=\"Да\",Реестр_tb[[#This Row],[Факт. дата оплаты]]<=Реестр_tb[[#This Row],[Плановая дата оплаты]]),\"Оплачено вовремя\",IF(AND(Реестр_tb[[#This Row],[Оплачен]]=\"Да\",Реестр_tb[[#This Row],[Факт. дата оплаты]]>Реестр_tb[[#This Row],[Плановая дата оплаты]]),\"Просрочено\",IF(AND(Реестр_tb[[#This Row],[Оплачен]]=\"Нет\",Реестр_tb[[#This Row],[Факт. дата оплаты]]=\"\",Реестр_tb[[#This Row],[Плановая дата оплаты]]<$AB$1),\"Просрочено\",IF(Реестр_tb[[#This Row],[Плановая дата оплаты]]=$AB$1,\"Сегодня\",IF(Реестр_tb[[#This Row],[Плановая дата оплаты]]<=$AB$1+7,\"В течении недели\",\"Через неделю и более\")))))","v":"Через неделю и более"},null,null,"Контракт № 765000027209 о т ххх на сумму 80 000,00 руб. (БО на сумму 80 000,00 руб.)"]
["ПАО \"Ростелеком\"","Муниципальное задание","услуги связи",{"$f":"IFERROR(VLOOKUP(Реестр_tb[[#This Row],[Подкатегория]],IF({1,0},Данные_tb[ЕД],Данные_tb[доп. код.]),2,0),\" \")","v":4},{"$f":"IFERROR(VLOOKUP(Реестр_tb[[#This Row],[ДОПЫ]],IF({1,0},Данные_tb[доп. код.],Данные_tb[Источник]),2,0),\" \")","v":20},"Нет","декабрь","услуги связи",4,1000,null,null,null,null,{"$f":"IF(Реестр_tb[[#This Row],[Срок оплаты (дней)]]=\"\",\"\",WORKDAY(Реестр_tb[[#This Row],[входящий (дата)]],Реестр_tb[[#This Row],[Срок оплаты (дней)]]+1,Выходные_tb[Выходные]))","v":""},null,{"$f":"IF(AND(Реестр_tb[[#This Row],[Оплачен]]=\"Да\",Реестр_tb[[#This Row],[Факт. дата оплаты]]<=Реестр_tb[[#This Row],[Плановая дата оплаты]]),\"Оплачено вовремя\",IF(AND(Реестр_tb[[#This Row],[Оплачен]]=\"Да\",Реестр_tb[[#This Row],[Факт. дата оплаты]]>Реестр_tb[[#This Row],[Плановая дата оплаты]]),\"Просрочено\",IF(AND(Реестр_tb[[#This Row],[Оплачен]]=\"Нет\",Реестр_tb[[#This Row],[Факт. дата оплаты]]=\"\",Реестр_tb[[#This Row],[Плановая дата оплаты]]<$AB$1),\"Просрочено\",IF(Реестр_tb[[#This Row],[Плановая дата оплаты]]=$AB$1,\"Сегодня\",IF(Реестр_tb[[#This Row],[Плановая дата оплаты]]<=$AB$1+7,\"В течении недели\",\"Через неделю и более\")))))","v":"Через неделю и более"},null,null,"Контракт № 765000027209 о т ххх на сумму 80 000,00 руб. (БО на сумму 80 000,00 руб.)"]
["АО \"Мобильные газотурбинные электрические станции\"","Муниципальное задание","восстановление кабельной линии в 2021 году",{"$f":"IFERROR(VLOOKUP(Реестр_tb[[#This Row],[Подкатегория]],IF({1,0},Данные_tb[ЕД],Данные_tb[доп. код.]),2,0),\" \")","v":4},{"$f":"IFERROR(VLOOKUP(Реестр_tb[[#This Row],[ДОПЫ]],IF({1,0},Данные_tb[доп. код.],Данные_tb[Источник]),2,0),\" \")","v":20},"Нет","1-11-01-22 от 11.01.22","Восстановление кабельной линии 0,4 кВ ТП4 - здание школы",5,367497.6,null,"02.02.2022",30,"Акта",{"$f":"IF(Реестр_tb[[#This Row],[Срок оплаты (дней)]]=\"\",\"\",WORKDAY(Реестр_tb[[#This Row],[входящий (дата)]],Реестр_tb[[#This Row],[Срок оплаты (дней)]]+1,Выходные_tb[Выходные]))","v":"2022-03-17"},null,{"$f":"IF(AND(Реестр_tb[[#This Row],[Оплачен]]=\"Да\",Реестр_tb[[#This Row],[Факт. дата оплаты]]<=Реестр_tb[[#This Row],[Плановая дата оплаты]]),\"Оплачено вовремя\",IF(AND(Реестр_tb[[#This Row],[Оплачен]]=\"Да\",Реестр_tb[[#This Row],[Факт. дата оплаты]]>Реестр_tb[[#This Row],[Плановая дата оплаты]]),\"Просрочено\",IF(AND(Реестр_tb[[#This Row],[Оплачен]]=\"Нет\",Реестр_tb[[#This Row],[Факт. дата оплаты]]=\"\",Реестр_tb[[#This Row],[Плановая дата оплаты]]<$AB$1),\"Просрочено\",IF(Реестр_tb[[#This Row],[Плановая дата оплаты]]=$AB$1,\"Сегодня\",IF(Реестр_tb[[#This Row],[Плановая дата оплаты]]<=$AB$1+7,\"В течении недели\",\"Через неделю и более\")))))","v":"Через неделю и более"},"Полный расчет","Копии","Договор № 265/2021 от 15.12.2021 г."]
["ООО \"Коралл\"","питание (внебюджет)","5-11, сотрудники",{"$f":"IFERROR(VLOOKUP(Реестр_tb[[#This Row],[Подкатегория]],IF({1,0},Данные_tb[ЕД],Данные_tb[доп. код.]),2,0),\" \")","v":2},{"$f":"IFERROR(VLOOKUP(Реестр_tb[[#This Row],[ДОПЫ]],IF({1,0},Данные_tb[доп. код.],Данные_tb[Источник]),2,0),\" \")","v":20},"Нет","2 от 10.01.22 ",null,5,184482.4,null,"2022-01-10",15,"Акта",{"$f":"IF(Реестр_tb[[#This Row],[Срок оплаты (дней)]]=\"\",\"\",WORKDAY(Реестр_tb[[#This Row],[входящий (дата)]],Реестр_tb[[#This Row],[Срок оплаты (дней)]]+1,Выходные_tb[Выходные]))","v":"2022-02-01"},null,{"$f":"IF(AND(Реестр_tb[[#This Row],[Оплачен]]=\"Да\",Реестр_tb[[#This Row],[Факт. дата оплаты]]<=Реестр_tb[[#This Row],[Плановая дата оплаты]]),\"Оплачено вовремя\",IF(AND(Реестр_tb[[#This Row],[Оплачен]]=\"Да\",Реестр_tb[[#This Row],[Факт. дата оплаты]]>Реестр_tb[[#This Row],[Плановая дата оплаты]]),\"Просрочено\",IF(AND(Реестр_tb[[#This Row],[Оплачен]]=\"Нет\",Реестр_tb[[#This Row],[Факт. дата оплаты]]=\"\",Реестр_tb[[#This Row],[Плановая дата оплаты]]<$AB$1),\"Просрочено\",IF(Реестр_tb[[#This Row],[Плановая дата оплаты]]=$AB$1,\"Сегодня\",IF(Реестр_tb[[#This Row],[Плановая дата оплаты]]<=$AB$1+7,\"В течении недели\",\"Через неделю и более\")))))","v":"Просрочено"},"Полный расчет",null,"Контракт б/н от 10.01.2022 г. на сумму 201852,40 руб."]
["ООО \"Коралл\"","питание (местный бюджет)","питание 1-4 классы",{"$f":"IFERROR(VLOOKUP(Реестр_tb[[#This Row],[Подкатегория]],IF({1,0},Данные_tb[ЕД],Данные_tb[доп. код.]),2,0),\" \")","v":"М0025"},{"$f":"IFERROR(VLOOKUP(Реестр_tb[[#This Row],[ДОПЫ]],IF({1,0},Данные_tb[доп. код.],Данные_tb[Источник]),2,0),\" \")","v":20},"Нет","2 от 10.01.22 ",null,5,17370,null,"2022-01-10",15,"Акта",{"$f":"IF(Реестр_tb[[#This Row],[Срок оплаты (дней)]]=\"\",\"\",WORKDAY(Реестр_tb[[#This Row],[входящий (дата)]],Реестр_tb[[#This Row],[Срок оплаты (дней)]]+1,Выходные_tb[Выходные]))","v":"2022-02-01"},null,{"$f":"IF(AND(Реестр_tb[[#This Row],[Оплачен]]=\"Да\",Реестр_tb[[#This Row],[Факт. дата оплаты]]<=Реестр_tb[[#This Row],[Плановая дата оплаты]]),\"Оплачено вовремя\",IF(AND(Реестр_tb[[#This Row],[Оплачен]]=\"Да\",Реестр_tb[[#This Row],[Факт. дата оплаты]]>Реестр_tb[[#This Row],[Плановая дата оплаты]]),\"Просрочено\",IF(AND(Реестр_tb[[#This Row],[Оплачен]]=\"Нет\",Реестр_tb[[#This Row],[Факт. дата оплаты]]=\"\",Реестр_tb[[#This Row],[Плановая дата оплаты]]<$AB$1),\"Просрочено\",IF(Реестр_tb[[#This Row],[Плановая дата оплаты]]=$AB$1,\"Сегодня\",IF(Реестр_tb[[#This Row],[Плановая дата оплаты]]<=$AB$1+7,\"В течении недели\",\"Через неделю и более\")))))","v":"Просрочено"},"Полный расчет",null,"Контракт б/н от 10.01.2022 г. на сумму 201852,40 руб."]
["АО \"Молочный комбинат \"Южно-Сахалинский\"","питание (местный бюджет)","молоко опека",{"$f":"IFERROR(VLOOKUP(Реестр_tb[[#This Row],[Подкатегория]],IF({1,0},Данные_tb[ЕД],Данные_tb[доп. код.]),2,0),\" \")","v":"М19017"},{"$f":"IFERROR(VLOOKUP(Реестр_tb[[#This Row],[ДОПЫ]],IF({1,0},Данные_tb[доп. код.],Данные_tb[Источник]),2,0),\" \")","v":20},"Нет",null,null,5,36540,3,null,null,"Акта",{"$f":"IF(Реестр_tb[[#This Row],[Срок оплаты (дней)]]=\"\",\"\",WORKDAY(Реестр_tb[[#This Row],[входящий (дата)]],Реестр_tb[[#This Row],[Срок оплаты (дней)]]+1,Выходные_tb[Выходные]))","v":""},null,{"$f":"IF(AND(Реестр_tb[[#This Row],[Оплачен]]=\"Да\",Реестр_tb[[#This Row],[Факт. дата оплаты]]<=Реестр_tb[[#This Row],[Плановая дата оплаты]]),\"Оплачено вовремя\",IF(AND(Реестр_tb[[#This Row],[Оплачен]]=\"Да\",Реестр_tb[[#This Row],[Факт. дата оплаты]]>Реестр_tb[[#This Row],[Плановая дата оплаты]]),\"Просрочено\",IF(AND(Реестр_tb[[#This Row],[Оплачен]]=\"Нет\",Реестр_tb[[#This Row],[Факт. дата оплаты]]=\"\",Реестр_tb[[#This Row],[Плановая дата оплаты]]<$AB$1),\"Просрочено\",IF(Реестр_tb[[#This Row],[Плановая дата оплаты]]=$AB$1,\"Сегодня\",IF(Реестр_tb[[#This Row],[Плановая дата оплаты]]<=$AB$1+7,\"В течении недели\",\"Через неделю и более\")))))","v":"Через неделю и более"},"Полный расчет","Копии","Контракт № 17/2022 от 19.01.2022 г."]
["ПАО \"САК \"Энергогарант\"","Подвоз","автострахование",{"$f":"IFERROR(VLOOKUP(Реестр_tb[[#This Row],[Подкатегория]],IF({1,0},Данные_tb[ЕД],Данные_tb[доп. код.]),2,0),\" \")","v":18},{"$f":"IFERROR(VLOOKUP(Реестр_tb[[#This Row],[ДОПЫ]],IF({1,0},Данные_tb[доп. код.],Данные_tb[Источник]),2,0),\" \")","v":20},"Нет","220061-891-003161/1 от 11.01.22","ОСАГО ПАЗ 3205 70-02 XIM3205XXM0002132 (164301032987850)",5,9462.74,4,"11.01.22",15,"Акта",{"$f":"IF(Реестр_tb[[#This Row],[Срок оплаты (дней)]]=\"\",\"\",WORKDAY(Реестр_tb[[#This Row],[входящий (дата)]],Реестр_tb[[#This Row],[Срок оплаты (дней)]]+1,Выходные_tb[Выходные]))","v":"2022-02-02"},null,{"$f":"IF(AND(Реестр_tb[[#This Row],[Оплачен]]=\"Да\",Реестр_tb[[#This Row],[Факт. дата оплаты]]<=Реестр_tb[[#This Row],[Плановая дата оплаты]]),\"Оплачено вовремя\",IF(AND(Реестр_tb[[#This Row],[Оплачен]]=\"Да\",Реестр_tb[[#This Row],[Факт. дата оплаты]]>Реестр_tb[[#This Row],[Плановая дата оплаты]]),\"Просрочено\",IF(AND(Реестр_tb[[#This Row],[Оплачен]]=\"Нет\",Реестр_tb[[#This Row],[Факт. дата оплаты]]=\"\",Реестр_tb[[#This Row],[Плановая дата оплаты]]<$AB$1),\"Просрочено\",IF(Реестр_tb[[#This Row],[Плановая дата оплаты]]=$AB$1,\"Сегодня\",IF(Реестр_tb[[#This Row],[Плановая дата оплаты]]<=$AB$1+7,\"В течении недели\",\"Через неделю и более\")))))","v":"Просрочено"},"Полный расчет","Копии","Без договора"]
["ООО \"Коралл\"","питание (федеральный бюджет)","питание (федеральный бюджет)",{"$f":"IFERROR(VLOOKUP(Реестр_tb[[#This Row],[Подкатегория]],IF({1,0},Данные_tb[ЕД],Данные_tb[доп. код.]),2,0),\" \")","v":"22-53040-00000"},{"$f":"IFERROR(VLOOKUP(Реестр_tb[[#This Row],[ДОПЫ]],IF({1,0},Данные_tb[доп. код.],Данные_tb[Источник]),2,0),\" \")","v":20},"Нет","3 от 17.01.22",null,5,83420,null,"21.01.2022",15,"Акта",{"$f":"IF(Реестр_tb[[#This Row],[Срок оплаты (дней)]]=\"\",\"\",WORKDAY(Реестр_tb[[#This Row],[входящий (дата)]],Реестр_tb[[#This Row],[Срок оплаты (дней)]]+1,Выходные_tb[Выходные]))","v":"2022-02-14"},null,{"$f":"IF(AND(Реестр_tb[[#This Row],[Оплачен]]=\"Да\",Реестр_tb[[#This Row],[Факт. дата оплаты]]<=Реестр_tb[[#This Row],[Плановая дата оплаты]]),\"Оплачено вовремя\",IF(AND(Реестр_tb[[#This Row],[Оплачен]]=\"Да\",Реестр_tb[[#This Row],[Факт. дата оплаты]]>Реестр_tb[[#This Row],[Плановая дата оплаты]]),\"Просрочено\",IF(AND(Реестр_tb[[#This Row],[Оплачен]]=\"Нет\",Реестр_tb[[#This Row],[Факт. дата оплаты]]=\"\",Реестр_tb[[#This Row],[Плановая дата оплаты]]<$AB$1),\"Просрочено\",IF(Реестр_tb[[#This Row],[Плановая дата оплаты]]=$AB$1,\"Сегодня\",IF(Реестр_tb[[#This Row],[Плановая дата оплаты]]<=$AB$1+7,\"В течении недели\",\"Через неделю и более\")))))","v":"Через неделю и более"},"Полный расчет","Оригиналы","Контракт б/н от 17.01.2022 г. на сумму 83420,00 руб."]
["ООО \"Коралл\"","питание (федеральный бюджет)","питание (федеральный бюджет)",{"$f":"IFERROR(VLOOKUP(Реестр_tb[[#This Row],[Подкатегория]],IF({1,0},Данные_tb[ЕД],Данные_tb[доп. код.]),2,0),\" \")","v":"22-53040-00000"},{"$f":"IFERROR(VLOOKUP(Реестр_tb[[#This Row],[ДОПЫ]],IF({1,0},Данные_tb[доп. код.],Данные_tb[Источник]),2,0),\" \")","v":20},"Нет","1 от 10.01.22",null,5,135805,null,"13.01.2022",15,"Акта",{"$f":"IF(Реестр_tb[[#This Row],[Срок оплаты (дней)]]=\"\",\"\",WORKDAY(Реестр_tb[[#This Row],[входящий (дата)]],Реестр_tb[[#This Row],[Срок оплаты (дней)]]+1,Выходные_tb[Выходные]))","v":"2022-02-04"},null,{"$f":"IF(AND(Реестр_tb[[#This Row],[Оплачен]]=\"Да\",Реестр_tb[[#This Row],[Факт. дата оплаты]]<=Реестр_tb[[#This Row],[Плановая дата оплаты]]),\"Оплачено вовремя\",IF(AND(Реестр_tb[[#This Row],[Оплачен]]=\"Да\",Реестр_tb[[#This Row],[Факт. дата оплаты]]>Реестр_tb[[#This Row],[Плановая дата оплаты]]),\"Просрочено\",IF(AND(Реестр_tb[[#This Row],[Оплачен]]=\"Нет\",Реестр_tb[[#This Row],[Факт. дата оплаты]]=\"\",Реестр_tb[[#This Row],[Плановая дата оплаты]]<$AB$1),\"Просрочено\",IF(Реестр_tb[[#This Row],[Плановая дата оплаты]]=$AB$1,\"Сегодня\",IF(Реестр_tb[[#This Row],[Плановая дата оплаты]]<=$AB$1+7,\"В течении недели\",\"Через неделю и более\")))))","v":"В течении недели"},"Полный расчет","Оригиналы","Контракт б/н от 10.01.2022 г. на сумму 135805,00 руб."]
["ООО \"Коралл\"","питание (местный бюджет)","питание 1-4 классы",{"$f":"IFERROR(VLOOKUP(Реестр_tb[[#This Row],[Подкатегория]],IF({1,0},Данные_tb[ЕД],Данные_tb[доп. код.]),2,0),\" \")","v":"М0025"},{"$f":"IFERROR(VLOOKUP(Реестр_tb[[#This Row],[ДОПЫ]],IF({1,0},Данные_tb[доп. код.],Данные_tb[Источник]),2,0),\" \")","v":20},"Нет","6 от 20.01.22",null,5,14710.8,null,"25.01.2022",15,"Акта",{"$f":"IF(Реестр_tb[[#This Row],[Срок оплаты (дней)]]=\"\",\"\",WORKDAY(Реестр_tb[[#This Row],[входящий (дата)]],Реестр_tb[[#This Row],[Срок оплаты (дней)]]+1,Выходные_tb[Выходные]))","v":"2022-02-16"},null,{"$f":"IF(AND(Реестр_tb[[#This Row],[Оплачен]]=\"Да\",Реестр_tb[[#This Row],[Факт. дата оплаты]]<=Реестр_tb[[#This Row],[Плановая дата оплаты]]),\"Оплачено вовремя\",IF(AND(Реестр_tb[[#This Row],[Оплачен]]=\"Да\",Реестр_tb[[#This Row],[Факт. дата оплаты]]>Реестр_tb[[#This Row],[Плановая дата оплаты]]),\"Просрочено\",IF(AND(Реестр_tb[[#This Row],[Оплачен]]=\"Нет\",Реестр_tb[[#This Row],[Факт. дата оплаты]]=\"\",Реестр_tb[[#This Row],[Плановая дата оплаты]]<$AB$1),\"Просрочено\",IF(Реестр_tb[[#This Row],[Плановая дата оплаты]]=$AB$1,\"Сегодня\",IF(Реестр_tb[[#This Row],[Плановая дата оплаты]]<=$AB$1+7,\"В течении недели\",\"Через неделю и более\")))))","v":"Через неделю и более"},"Полный расчет","Оригиналы","Контракт б/н от 20.01.2022 г. на сумму  14710,80 руб."]
["ООО \"Коралл\"","питание (федеральный бюджет)","питание (федеральный бюджет)",{"$f":"IFERROR(VLOOKUP(Реестр_tb[[#This Row],[Подкатегория]],IF({1,0},Данные_tb[ЕД],Данные_tb[доп. код.]),2,0),\" \")","v":"22-53040-00000"},{"$f":"IFERROR(VLOOKUP(Реестр_tb[[#This Row],[ДОПЫ]],IF({1,0},Данные_tb[доп. код.],Данные_tb[Источник]),2,0),\" \")","v":20},"Нет","5 от 20.01.22",null,5,121395.77,null,"25.01.2022",15,"Акта",{"$f":"IF(Реестр_tb[[#This Row],[Срок оплаты (дней)]]=\"\",\"\",WORKDAY(Реестр_tb[[#This Row],[входящий (дата)]],Реестр_tb[[#This Row],[Срок оплаты (дней)]]+1,Выходные_tb[Выходные]))","v":"2022-02-16"},null,{"$f":"IF(AND(Реестр_tb[[#This Row],[Оплачен]]=\"Да\",Реестр_tb[[#This Row],[Факт. дата оплаты]]<=Реестр_tb[[#This Row],[Плановая дата оплаты]]),\"Оплачено вовремя\",IF(AND(Реестр_tb[[#This Row],[Оплачен]]=\"Да\",Реестр_tb[[#This Row],[Факт. дата оплаты]]>Реестр_tb[[#This Row],[Плановая дата оплаты]]),\"Просрочено\",IF(AND(Реестр_tb[[#This Row],[Оплачен]]=\"Нет\",Реестр_tb[[#This Row],[Факт. дата оплаты]]=\"\",Реестр_tb[[#This Row],[Плановая дата оплаты]]<$AB$1),\"Просрочено\",IF(Реестр_tb[[#This Row],[Плановая дата оплаты]]=$AB$1,\"Сегодня\",IF(Реестр_tb[[#This Row],[Плановая дата оплаты]]<=$AB$1+7,\"В течении недели\",\"Через неделю и более\")))))","v":"Через неделю и более"},"Полный расчет","Оригиналы","Контракт б/н от 20.01.2022 г. на сумму  121395,77 руб."]
["ООО \"Коралл\"","питание (внебюджет)","5-11, сотрудники",{"$f":"IFERROR(VLOOKUP(Реестр_tb[[#This Row],[Подкатегория]],IF({1,0},Данные_tb[ЕД],Данные_tb[доп. код.]),2,0),\" \")","v":2},{"$f":"IFERROR(VLOOKUP(Реестр_tb[[#This Row],[ДОПЫ]],IF({1,0},Данные_tb[доп. код.],Данные_tb[Источник]),2,0),\" \")","v":20},"Нет","175 от 10.01.22",null,5,565.29999999999995,null,"10.01.2022",15,"Акта",{"$f":"IF(Реестр_tb[[#This Row],[Срок оплаты (дней)]]=\"\",\"\",WORKDAY(Реестр_tb[[#This Row],[входящий (дата)]],Реестр_tb[[#This Row],[Срок оплаты (дней)]]+1,Выходные_tb[Выходные]))","v":"2022-02-01"},null,{"$f":"IF(AND(Реестр_tb[[#This Row],[Оплачен]]=\"Да\",Реестр_tb[[#This Row],[Факт. дата оплаты]]<=Реестр_tb[[#This Row],[Плановая дата оплаты]]),\"Оплачено вовремя\",IF(AND(Реестр_tb[[#This Row],[Оплачен]]=\"Да\",Реестр_tb[[#This Row],[Факт. дата оплаты]]>Реестр_tb[[#This Row],[Плановая дата оплаты]]),\"Просрочено\",IF(AND(Реестр_tb[[#This Row],[Оплачен]]=\"Нет\",Реестр_tb[[#This Row],[Факт. дата оплаты]]=\"\",Реестр_tb[[#This Row],[Плановая дата оплаты]]<$AB$1),\"Просрочено\",IF(Реестр_tb[[#This Row],[Плановая дата оплаты]]=$AB$1,\"Сегодня\",IF(Реестр_tb[[#This Row],[Плановая дата оплаты]]<=$AB$1+7,\"В течении недели\",\"Через неделю и более\")))))","v":"Просрочено"},"Полный расчет","Оригиналы","Контракт б/н от 16.12.2021 г. на сумму  170437,45 руб."]
["ООО \"Коралл\"","питание (областной бюджет) (молоко, 5-11,многодетные, ОВЗ)","питание 1-4 кл, 5-11 кл.малоимущ",{"$f":"IFERROR(VLOOKUP(Реестр_tb[[#This Row],[Подкатегория]],IF({1,0},Данные_tb[ЕД],Данные_tb[доп. код.]),2,0),\" \")","v":"Д62190"},{"$f":"IFERROR(VLOOKUP(Реестр_tb[[#This Row],[ДОПЫ]],IF({1,0},Данные_tb[доп. код.],Данные_tb[Источник]),2,0),\" \")","v":20},"Нет","175 от 10.01.22",null,5,89237.77,null,"10.01.2022",15,"Акта",{"$f":"IF(Реестр_tb[[#This Row],[Срок оплаты (дней)]]=\"\",\"\",WORKDAY(Реестр_tb[[#This Row],[входящий (дата)]],Реестр_tb[[#This Row],[Срок оплаты (дней)]]+1,Выходные_tb[Выходные]))","v":"2022-02-01"},null,{"$f":"IF(AND(Реестр_tb[[#This Row],[Оплачен]]=\"Да\",Реестр_tb[[#This Row],[Факт. дата оплаты]]<=Реестр_tb[[#This Row],[Плановая дата оплаты]]),\"Оплачено вовремя\",IF(AND(Реестр_tb[[#This Row],[Оплачен]]=\"Да\",Реестр_tb[[#This Row],[Факт. дата оплаты]]>Реестр_tb[[#This Row],[Плановая дата оплаты]]),\"Просрочено\",IF(AND(Реестр_tb[[#This Row],[Оплачен]]=\"Нет\",Реестр_tb[[#This Row],[Факт. дата оплаты]]=\"\",Реестр_tb[[#This Row],[Плановая дата оплаты]]<$AB$1),\"Просрочено\",IF(Реестр_tb[[#This Row],[Плановая дата оплаты]]=$AB$1,\"Сегодня\",IF(Реестр_tb[[#This Row],[Плановая дата оплаты]]<=$AB$1+7,\"В течении недели\",\"Через неделю и более\")))))","v":"Просрочено"},"Полный расчет","Оригиналы","Контракт б/н от 16.12.2021 г. на сумму  170437,45 руб."]
["ООО \"Коралл\"","питание (областной бюджет) (молоко, 5-11,многодетные, ОВЗ)","питание 1-4 кл, 5-11 кл.малоимущ",{"$f":"IFERROR(VLOOKUP(Реестр_tb[[#This Row],[Подкатегория]],IF({1,0},Данные_tb[ЕД],Данные_tb[доп. код.]),2,0),\" \")","v":"Д62190"},{"$f":"IFERROR(VLOOKUP(Реестр_tb[[#This Row],[ДОПЫ]],IF({1,0},Данные_tb[доп. код.],Данные_tb[Источник]),2,0),\" \")","v":20},"Нет","175 от 10.01.22",null,5,27335.119999999999,null,"10.01.2022",15,"Акта",{"$f":"IF(Реестр_tb[[#This Row],[Срок оплаты (дней)]]=\"\",\"\",WORKDAY(Реестр_tb[[#This Row],[входящий (дата)]],Реестр_tb[[#This Row],[Срок оплаты (дней)]]+1,Выходные_tb[Выходные]))","v":"2022-02-01"},null,{"$f":"IF(AND(Реестр_tb[[#This Row],[Оплачен]]=\"Да\",Реестр_tb[[#This Row],[Факт. дата оплаты]]<=Реестр_tb[[#This Row],[Плановая дата оплаты]]),\"Оплачено вовремя\",IF(AND(Реестр_tb[[#This Row],[Оплачен]]=\"Да\",Реестр_tb[[#This Row],[Факт. дата оплаты]]>Реестр_tb[[#This Row],[Плановая дата оплаты]]),\"Просрочено\",IF(AND(Реестр_tb[[#This Row],[Оплачен]]=\"Нет\",Реестр_tb[[#This Row],[Факт. дата оплаты]]=\"\",Реестр_tb[[#This Row],[Плановая дата оплаты]]<$AB$1),\"Просрочено\",IF(Реестр_tb[[#This Row],[Плановая дата оплаты]]=$AB$1,\"Сегодня\",IF(Реестр_tb[[#This Row],[Плановая дата оплаты]]<=$AB$1+7,\"В течении недели\",\"Через неделю и более\")))))","v":"Просрочено"},"Полный расчет","Оригиналы","Контракт б/н от 16.12.2021 г. на сумму  170437,45 руб."]
["ООО \"Коралл\"","питание (местный бюджет)","молоко опека",{"$f":"IFERROR(VLOOKUP(Реестр_tb[[#This Row],[Подкатегория]],IF({1,0},Данные_tb[ЕД],Данные_tb[доп. код.]),2,0),\" \")","v":"М19017"},{"$f":"IFERROR(VLOOKUP(Реестр_tb[[#This Row],[ДОПЫ]],IF({1,0},Данные_tb[доп. код.],Данные_tb[Источник]),2,0),\" \")","v":20},"Нет","175 от 10.01.22",null,5,19109.53,null,"10.01.2022",15,"Акта",{"$f":"IF(Реестр_tb[[#This Row],[Срок оплаты (дней)]]=\"\",\"\",WORKDAY(Реестр_tb[[#This Row],[входящий (дата)]],Реестр_tb[[#This Row],[Срок оплаты (дней)]]+1,Выходные_tb[Выходные]))","v":"2022-02-01"},null,{"$f":"IF(AND(Реестр_tb[[#This Row],[Оплачен]]=\"Да\",Реестр_tb[[#This Row],[Факт. дата оплаты]]<=Реестр_tb[[#This Row],[Плановая дата оплаты]]),\"Оплачено вовремя\",IF(AND(Реестр_tb[[#This Row],[Оплачен]]=\"Да\",Реестр_tb[[#This Row],[Факт. дата оплаты]]>Реестр_tb[[#This Row],[Плановая дата оплаты]]),\"Просрочено\",IF(AND(Реестр_tb[[#This Row],[Оплачен]]=\"Нет\",Реестр_tb[[#This Row],[Факт. дата оплаты]]=\"\",Реестр_tb[[#This Row],[Плановая дата оплаты]]<$AB$1),\"Просрочено\",IF(Реестр_tb[[#This Row],[Плановая дата оплаты]]=$AB$1,\"Сегодня\",IF(Реестр_tb[[#This Row],[Плановая дата оплаты]]<=$AB$1+7,\"В течении недели\",\"Через неделю и более\")))))","v":"Просрочено"},"Полный расчет","Оригиналы","Контракт б/н от 16.12.2021 г. на сумму  170437,45 руб."]
["ООО \"Коралл\"","питание (областной бюджет) (молоко, 5-11,многодетные, ОВЗ)","питание 1-4 кл, 5-11 кл.малоимущ",{"$f":"IFERROR(VLOOKUP(Реестр_tb[[#This Row],[Подкатегория]],IF({1,0},Данные_tb[ЕД],Данные_tb[доп. код.]),2,0),\" \")","v":"Д62190"},{"$f":"IFERROR(VLOOKUP(Реестр_tb[[#This Row],[ДОПЫ]],IF({1,0},Данные_tb[доп. код.],Данные_tb[Источник]),2,0),\" \")","v":20},"Нет","175 от 10.01.22",null,5,23502.92,null,"10.01.2022",15,"Акта",{"$f":"IF(Реестр_tb[[#This Row],[Срок оплаты (дней)]]=\"\",\"\",WORKDAY(Реестр_tb[[#This Row],[входящий (дата)]],Реестр_tb[[#This Row],[Срок оплаты (дней)]]+1,Выходные_tb[Выходные]))","v":"2022-02-01"},null,{"$f":"IF(AND(Реестр_tb[[#This Row],[Оплачен]]=\"Да\",Реестр_tb[[#This Row],[Факт. дата оплаты]]<=Реестр_tb[[#This Row],[Плановая дата оплаты]]),\"Оплачено вовремя\",IF(AND(Реестр_tb[[#This Row],[Оплачен]]=\"Да\",Реестр_tb[[#This Row],[Факт. дата оплаты]]>Реестр_tb[[#This Row],[Плановая дата оплаты]]),\"Просрочено\",IF(AND(Реестр_tb[[#This Row],[Оплачен]]=\"Нет\",Реестр_tb[[#This Row],[Факт. дата оплаты]]=\"\",Реестр_tb[[#This Row],[Плановая дата оплаты]]<$AB$1),\"Просрочено\",IF(Реестр_tb[[#This Row],[Плановая дата оплаты]]=$AB$1,\"Сегодня\",IF(Реестр_tb[[#This Row],[Плановая дата оплаты]]<=$AB$1+7,\"В течении недели\",\"Через неделю и более\")))))","v":"Просрочено"},"Полный расчет","Оригиналы","Контракт б/н от 16.12.2021 г. на сумму  170437,45 руб."]
["ООО \"Коралл\"","питание (внебюджет)","5-11, сотрудники",{"$f":"IFERROR(VLOOKUP(Реестр_tb[[#This Row],[Подкатегория]],IF({1,0},Данные_tb[ЕД],Данные_tb[доп. код.]),2,0),\" \")","v":2},{"$f":"IFERROR(VLOOKUP(Реестр_tb[[#This Row],[ДОПЫ]],IF({1,0},Данные_tb[доп. код.],Данные_tb[Источник]),2,0),\" \")","v":20},"Нет","175 от 10.01.22",null,5,10686.81,null,"10.01.2022",15,"Акта",{"$f":"IF(Реестр_tb[[#This Row],[Срок оплаты (дней)]]=\"\",\"\",WORKDAY(Реестр_tb[[#This Row],[входящий (дата)]],Реестр_tb[[#This Row],[Срок оплаты (дней)]]+1,Выходные_tb[Выходные]))","v":"2022-02-01"},null,{"$f":"IF(AND(Реестр_tb[[#This Row],[Оплачен]]=\"Да\",Реестр_tb[[#This Row],[Факт. дата оплаты]]<=Реестр_tb[[#This Row],[Плановая дата оплаты]]),\"Оплачено вовремя\",IF(AND(Реестр_tb[[#This Row],[Оплачен]]=\"Да\",Реестр_tb[[#This Row],[Факт. дата оплаты]]>Реестр_tb[[#This Row],[Плановая дата оплаты]]),\"Просрочено\",IF(AND(Реестр_tb[[#This Row],[Оплачен]]=\"Нет\",Реестр_tb[[#This Row],[Факт. дата оплаты]]=\"\",Реестр_tb[[#This Row],[Плановая дата оплаты]]<$AB$1),\"Просрочено\",IF(Реестр_tb[[#This Row],[Плановая дата оплаты]]=$AB$1,\"Сегодня\",IF(Реестр_tb[[#This Row],[Плановая дата оплаты]]<=$AB$1+7,\"В течении недели\",\"Через неделю и более\")))))","v":"Просрочено"},"Полный расчет","Оригиналы","Контракт б/н от 16.12.2021 г. на сумму  170437,45 руб."]
["ООО \"Коралл\"","питание (внебюджет)","5-11, сотрудники",{"$f":"IFERROR(VLOOKUP(Реестр_tb[[#This Row],[Подкатегория]],IF({1,0},Данные_tb[ЕД],Данные_tb[доп. код.]),2,0),\" \")","v":2},{"$f":"IFERROR(VLOOKUP(Реестр_tb[[#This Row],[ДОПЫ]],IF({1,0},Данные_tb[доп. код.],Данные_tb[Источник]),2,0),\" \")","v":20},"Нет","4 от 17.01.22",null,5,21060,null,"21.01.2022",15,"Акта",{"$f":"IF(Реестр_tb[[#This Row],[Срок оплаты (дней)]]=\"\",\"\",WORKDAY(Реестр_tb[[#This Row],[входящий (дата)]],Реестр_tb[[#This Row],[Срок оплаты (дней)]]+1,Выходные_tb[Выходные]))","v":"2022-02-14"},null,{"$f":"IF(AND(Реестр_tb[[#This Row],[Оплачен]]=\"Да\",Реестр_tb[[#This Row],[Факт. дата оплаты]]<=Реестр_tb[[#This Row],[Плановая дата оплаты]]),\"Оплачено вовремя\",IF(AND(Реестр_tb[[#This Row],[Оплачен]]=\"Да\",Реестр_tb[[#This Row],[Факт. дата оплаты]]>Реестр_tb[[#This Row],[Плановая дата оплаты]]),\"Просрочено\",IF(AND(Реестр_tb[[#This Row],[Оплачен]]=\"Нет\",Реестр_tb[[#This Row],[Факт. дата оплаты]]=\"\",Реестр_tb[[#This Row],[Плановая дата оплаты]]<$AB$1),\"Просрочено\",IF(Реестр_tb[[#This Row],[Плановая дата оплаты]]=$AB$1,\"Сегодня\",IF(Реестр_tb[[#This Row],[Плановая дата оплаты]]<=$AB$1+7,\"В течении недели\",\"Через неделю и более\")))))","v":"Через неделю и более"},"Полный расчет","Оригиналы","Контракт б/н от 17.01.2022 г. на сумму  77550,00 руб."]
["ООО \"Коралл\"","питание (областной бюджет) (молоко, 5-11,многодетные, ОВЗ)","питание 1-4 кл, 5-11 кл.малоимущ",{"$f":"IFERROR(VLOOKUP(Реестр_tb[[#This Row],[Подкатегория]],IF({1,0},Данные_tb[ЕД],Данные_tb[доп. код.]),2,0),\" \")","v":"Д62190"},{"$f":"IFERROR(VLOOKUP(Реестр_tb[[#This Row],[ДОПЫ]],IF({1,0},Данные_tb[доп. код.],Данные_tb[Источник]),2,0),\" \")","v":20},"Нет","4 от 17.01.22",null,5,56490,null,"21.01.2022",15,"Акта",{"$f":"IF(Реестр_tb[[#This Row],[Срок оплаты (дней)]]=\"\",\"\",WORKDAY(Реестр_tb[[#This Row],[входящий (дата)]],Реестр_tb[[#This Row],[Срок оплаты (дней)]]+1,Выходные_tb[Выходные]))","v":"2022-02-14"},null,{"$f":"IF(AND(Реестр_tb[[#This Row],[Оплачен]]=\"Да\",Реестр_tb[[#This Row],[Факт. дата оплаты]]<=Реестр_tb[[#This Row],[Плановая дата оплаты]]),\"Оплачено вовремя\",IF(AND(Реестр_tb[[#This Row],[Оплачен]]=\"Да\",Реестр_tb[[#This Row],[Факт. дата оплаты]]>Реестр_tb[[#This Row],[Плановая дата оплаты]]),\"Просрочено\",IF(AND(Реестр_tb[[#This Row],[Оплачен]]=\"Нет\",Реестр_tb[[#This Row],[Факт. дата оплаты]]=\"\",Реестр_tb[[#This Row],[Плановая дата оплаты]]<$AB$1),\"Просрочено\",IF(Реестр_tb[[#This Row],[Плановая дата оплаты]]=$AB$1,\"Сегодня\",IF(Реестр_tb[[#This Row],[Плановая дата оплаты]]<=$AB$1+7,\"В течении недели\",\"Через неделю и более\")))))","v":"Через неделю и более"},"Полный расчет","Оригиналы","Контракт б/н от 17.01.2022 г. на сумму  77550,00 руб."]
["МУП\" Южно-Курильский Докер\"","питание (внебюджет)","5-11, сотрудники",{"$f":"IFERROR(VLOOKUP(Реестр_tb[[#This Row],[Подкатегория]],IF({1,0},Данные_tb[ЕД],Данные_tb[доп. код.]),2,0),\" \")","v":2},{"$f":"IFERROR(VLOOKUP(Реестр_tb[[#This Row],[ДОПЫ]],IF({1,0},Данные_tb[доп. код.],Данные_tb[Источник]),2,0),\" \")","v":20},"Нет","40 от 19.01.22",null,5,6521.35,null,"21.01.2022",15,"Акта",{"$f":"IF(Реестр_tb[[#This Row],[Срок оплаты (дней)]]=\"\",\"\",WORKDAY(Реестр_tb[[#This Row],[входящий (дата)]],Реестр_tb[[#This Row],[Срок оплаты (дней)]]+1,Выходные_tb[Выходные]))","v":"2022-02-14"},null,{"$f":"IF(AND(Реестр_tb[[#This Row],[Оплачен]]=\"Да\",Реестр_tb[[#This Row],[Факт. дата оплаты]]<=Реестр_tb[[#This Row],[Плановая дата оплаты]]),\"Оплачено вовремя\",IF(AND(Реестр_tb[[#This Row],[Оплачен]]=\"Да\",Реестр_tb[[#This Row],[Факт. дата оплаты]]>Реестр_tb[[#This Row],[Плановая дата оплаты]]),\"Просрочено\",IF(AND(Реестр_tb[[#This Row],[Оплачен]]=\"Нет\",Реестр_tb[[#This Row],[Факт. дата оплаты]]=\"\",Реестр_tb[[#This Row],[Плановая дата оплаты]]<$AB$1),\"Просрочено\",IF(Реестр_tb[[#This Row],[Плановая дата оплаты]]=$AB$1,\"Сегодня\",IF(Реестр_tb[[#This Row],[Плановая дата оплаты]]<=$AB$1+7,\"В течении недели\",\"Через неделю и более\")))))","v":"Через неделю и более"},"Полный расчет","Оригиналы","Контракт б/н от 19.01.2022 г. на сумму  16177,03руб."]
["МУП\" Южно-Курильский Докер\"","питание (областной бюджет) (молоко, 5-11,многодетные, ОВЗ)","питание 1-4 кл, 5-11 кл.малоимущ",{"$f":"IFERROR(VLOOKUP(Реестр_tb[[#This Row],[Подкатегория]],IF({1,0},Данные_tb[ЕД],Данные_tb[доп. код.]),2,0),\" \")","v":"Д62190"},{"$f":"IFERROR(VLOOKUP(Реестр_tb[[#This Row],[ДОПЫ]],IF({1,0},Данные_tb[доп. код.],Данные_tb[Источник]),2,0),\" \")","v":20},"Нет","40 от 19.01.22",null,5,7698.64,null,"21.01.2022",15,"Акта",{"$f":"IF(Реестр_tb[[#This Row],[Срок оплаты (дней)]]=\"\",\"\",WORKDAY(Реестр_tb[[#This Row],[входящий (дата)]],Реестр_tb[[#This Row],[Срок оплаты (дней)]]+1,Выходные_tb[Выходные]))","v":"2022-02-14"},null,{"$f":"IF(AND(Реестр_tb[[#This Row],[Оплачен]]=\"Да\",Реестр_tb[[#This Row],[Факт. дата оплаты]]<=Реестр_tb[[#This Row],[Плановая дата оплаты]]),\"Оплачено вовремя\",IF(AND(Реестр_tb[[#This Row],[Оплачен]]=\"Да\",Реестр_tb[[#This Row],[Факт. дата оплаты]]>Реестр_tb[[#This Row],[Плановая дата оплаты]]),\"Просрочено\",IF(AND(Реестр_tb[[#This Row],[Оплачен]]=\"Нет\",Реестр_tb[[#This Row],[Факт. дата оплаты]]=\"\",Реестр_tb[[#This Row],[Плановая дата оплаты]]<$AB$1),\"Просрочено\",IF(Реестр_tb[[#This Row],[Плановая дата оплаты]]=$AB$1,\"Сегодня\",IF(Реестр_tb[[#This Row],[Плановая дата оплаты]]<=$AB$1+7,\"В течении недели\",\"Через неделю и более\")))))","v":"Через неделю и более"},"Полный расчет","Оригиналы","Контракт б/н от 19.01.2022 г. на сумму  16177,03руб."]
["МУП\" Южно-Курильский Докер\"","питание (областной бюджет) (молоко, 5-11,многодетные, ОВЗ)","питание 1-4 кл, 5-11 кл.малоимущ",{"$f":"IFERROR(VLOOKUP(Реестр_tb[[#This Row],[Подкатегория]],IF({1,0},Данные_tb[ЕД],Данные_tb[доп. код.]),2,0),\" \")","v":"Д62190"},{"$f":"IFERROR(VLOOKUP(Реестр_tb[[#This Row],[ДОПЫ]],IF({1,0},Данные_tb[доп. код.],Данные_tb[Источник]),2,0),\" \")","v":20},"Нет","40 от 19.01.22",null,5,1957.04,null,"21.01.2022",15,"Акта",{"$f":"IF(Реестр_tb[[#This Row],[Срок оплаты (дней)]]=\"\",\"\",WORKDAY(Реестр_tb[[#This Row],[входящий (дата)]],Реестр_tb[[#This Row],[Срок оплаты (дней)]]+1,Выходные_tb[Выходные]))","v":"2022-02-14"},null,{"$f":"IF(AND(Реестр_tb[[#This Row],[Оплачен]]=\"Да\",Реестр_tb[[#This Row],[Факт. дата оплаты]]<=Реестр_tb[[#This Row],[Плановая дата оплаты]]),\"Оплачено вовремя\",IF(AND(Реестр_tb[[#This Row],[Оплачен]]=\"Да\",Реестр_tb[[#This Row],[Факт. дата оплаты]]>Реестр_tb[[#This Row],[Плановая дата оплаты]]),\"Просрочено\",IF(AND(Реестр_tb[[#This Row],[Оплачен]]=\"Нет\",Реестр_tb[[#This Row],[Факт. дата оплаты]]=\"\",Реестр_tb[[#This Row],[Плановая дата оплаты]]<$AB$1),\"Просрочено\",IF(Реестр_tb[[#This Row],[Плановая дата оплаты]]=$AB$1,\"Сегодня\",IF(Реестр_tb[[#This Row],[Плановая дата оплаты]]<=$AB$1+7,\"В течении недели\",\"Через неделю и более\")))))","v":"Через неделю и более"},"Полный расчет","Оригиналы","Контракт б/н от 19.01.2022 г. на сумму  16177,03руб."]
["МУП\" Южно-Курильский Докер\"","питание (федеральный бюджет)","питание (федеральный бюджет)",{"$f":"IFERROR(VLOOKUP(Реестр_tb[[#This Row],[Подкатегория]],IF({1,0},Данные_tb[ЕД],Данные_tb[доп. код.]),2,0),\" \")","v":"22-53040-00000"},{"$f":"IFERROR(VLOOKUP(Реестр_tb[[#This Row],[ДОПЫ]],IF({1,0},Данные_tb[доп. код.],Данные_tb[Источник]),2,0),\" \")","v":20},"Нет","41 от 19.01.22",null,5,14004.1,null,"21.01.2022",15,"Акта",{"$f":"IF(Реестр_tb[[#This Row],[Срок оплаты (дней)]]=\"\",\"\",WORKDAY(Реестр_tb[[#This Row],[входящий (дата)]],Реестр_tb[[#This Row],[Срок оплаты (дней)]]+1,Выходные_tb[Выходные]))","v":"2022-02-14"},null,{"$f":"IF(AND(Реестр_tb[[#This Row],[Оплачен]]=\"Да\",Реестр_tb[[#This Row],[Факт. дата оплаты]]<=Реестр_tb[[#This Row],[Плановая дата оплаты]]),\"Оплачено вовремя\",IF(AND(Реестр_tb[[#This Row],[Оплачен]]=\"Да\",Реестр_tb[[#This Row],[Факт. дата оплаты]]>Реестр_tb[[#This Row],[Плановая дата оплаты]]),\"Просрочено\",IF(AND(Реестр_tb[[#This Row],[Оплачен]]=\"Нет\",Реестр_tb[[#This Row],[Факт. дата оплаты]]=\"\",Реестр_tb[[#This Row],[Плановая дата оплаты]]<$AB$1),\"Просрочено\",IF(Реестр_tb[[#This Row],[Плановая дата оплаты]]=$AB$1,\"Сегодня\",IF(Реестр_tb[[#This Row],[Плановая дата оплаты]]<=$AB$1+7,\"В течении недели\",\"Через неделю и более\")))))","v":"Через неделю и более"},"Полный расчет","Оригиналы","Контракт б/н от 19.01.2022 г. на сумму  14004,10 руб."]
["ООО\"Эскада\"","питание (федеральный бюджет)","питание (федеральный бюджет)",{"$f":"IFERROR(VLOOKUP(Реестр_tb[[#This Row],[Подкатегория]],IF({1,0},Данные_tb[ЕД],Данные_tb[доп. код.]),2,0),\" \")","v":"22-53040-00000"},{"$f":"IFERROR(VLOOKUP(Реестр_tb[[#This Row],[ДОПЫ]],IF({1,0},Данные_tb[доп. код.],Данные_tb[Источник]),2,0),\" \")","v":20},"Нет","1 от 17.01.22",null,5,37410,null,"25.01.2022",15,"Акта",{"$f":"IF(Реестр_tb[[#This Row],[Срок оплаты (дней)]]=\"\",\"\",WORKDAY(Реестр_tb[[#This Row],[входящий (дата)]],Реестр_tb[[#This Row],[Срок оплаты (дней)]]+1,Выходные_tb[Выходные]))","v":"2022-02-16"},null,{"$f":"IF(AND(Реестр_tb[[#This Row],[Оплачен]]=\"Да\",Реестр_tb[[#This Row],[Факт. дата оплаты]]<=Реестр_tb[[#This Row],[Плановая дата оплаты]]),\"Оплачено вовремя\",IF(AND(Реестр_tb[[#This Row],[Оплачен]]=\"Да\",Реестр_tb[[#This Row],[Факт. дата оплаты]]>Реестр_tb[[#This Row],[Плановая дата оплаты]]),\"Просрочено\",IF(AND(Реестр_tb[[#This Row],[Оплачен]]=\"Нет\",Реестр_tb[[#This Row],[Факт. дата оплаты]]=\"\",Реестр_tb[[#This Row],[Плановая дата оплаты]]<$AB$1),\"Просрочено\",IF(Реестр_tb[[#This Row],[Плановая дата оплаты]]=$AB$1,\"Сегодня\",IF(Реестр_tb[[#This Row],[Плановая дата оплаты]]<=$AB$1+7,\"В течении недели\",\"Через неделю и более\")))))","v":"Через неделю и более"},"Полный расчет","Оригиналы","Контракт от 17.01.2022 г.на сумму 37410,00 руб."]
["ООО\"Эскада\"","питание (местный бюджет)","питание 1-4 классы",{"$f":"IFERROR(VLOOKUP(Реестр_tb[[#This Row],[Подкатегория]],IF({1,0},Данные_tb[ЕД],Данные_tb[доп. код.]),2,0),\" \")","v":"М0025"},{"$f":"IFERROR(VLOOKUP(Реестр_tb[[#This Row],[ДОПЫ]],IF({1,0},Данные_tb[доп. код.],Данные_tb[Источник]),2,0),\" \")","v":20},"Нет","2 от 17.01.22",null,5,31250,null,"25.01.2022",15,"Акта",{"$f":"IF(Реестр_tb[[#This Row],[Срок оплаты (дней)]]=\"\",\"\",WORKDAY(Реестр_tb[[#This Row],[входящий (дата)]],Реестр_tb[[#This Row],[Срок оплаты (дней)]]+1,Выходные_tb[Выходные]))","v":"2022-02-16"},null,{"$f":"IF(AND(Реестр_tb[[#This Row],[Оплачен]]=\"Да\",Реестр_tb[[#This Row],[Факт. дата оплаты]]<=Реестр_tb[[#This Row],[Плановая дата оплаты]]),\"Оплачено вовремя\",IF(AND(Реестр_tb[[#This Row],[Оплачен]]=\"Да\",Реестр_tb[[#This Row],[Факт. дата оплаты]]>Реестр_tb[[#This Row],[Плановая дата оплаты]]),\"Просрочено\",IF(AND(Реестр_tb[[#This Row],[Оплачен]]=\"Нет\",Реестр_tb[[#This Row],[Факт. дата оплаты]]=\"\",Реестр_tb[[#This Row],[Плановая дата оплаты]]<$AB$1),\"Просрочено\",IF(Реестр_tb[[#This Row],[Плановая дата оплаты]]=$AB$1,\"Сегодня\",IF(Реестр_tb[[#This Row],[Плановая дата оплаты]]<=$AB$1+7,\"В течении недели\",\"Через неделю и более\")))))","v":"Через неделю и более"},"Полный расчет","Оригиналы","Контракт от 17.01.2022 г.на сумму 75025,00 руб."]
["ООО\"Эскада\"","питание (внебюджет)","5-11, сотрудники",{"$f":"IFERROR(VLOOKUP(Реестр_tb[[#This Row],[Подкатегория]],IF({1,0},Данные_tb[ЕД],Данные_tb[доп. код.]),2,0),\" \")","v":2},{"$f":"IFERROR(VLOOKUP(Реестр_tb[[#This Row],[ДОПЫ]],IF({1,0},Данные_tb[доп. код.],Данные_tb[Источник]),2,0),\" \")","v":20},"Нет","2 от 17.01.22",null,5,31300,null,"25.01.2022",15,"Акта",{"$f":"IF(Реестр_tb[[#This Row],[Срок оплаты (дней)]]=\"\",\"\",WORKDAY(Реестр_tb[[#This Row],[входящий (дата)]],Реестр_tb[[#This Row],[Срок оплаты (дней)]]+1,Выходные_tb[Выходные]))","v":"2022-02-16"},null,{"$f":"IF(AND(Реестр_tb[[#This Row],[Оплачен]]=\"Да\",Реестр_tb[[#This Row],[Факт. дата оплаты]]<=Реестр_tb[[#This Row],[Плановая дата оплаты]]),\"Оплачено вовремя\",IF(AND(Реестр_tb[[#This Row],[Оплачен]]=\"Да\",Реестр_tb[[#This Row],[Факт. дата оплаты]]>Реестр_tb[[#This Row],[Плановая дата оплаты]]),\"Просрочено\",IF(AND(Реестр_tb[[#This Row],[Оплачен]]=\"Нет\",Реестр_tb[[#This Row],[Факт. дата оплаты]]=\"\",Реестр_tb[[#This Row],[Плановая дата оплаты]]<$AB$1),\"Просрочено\",IF(Реестр_tb[[#This Row],[Плановая дата оплаты]]=$AB$1,\"Сегодня\",IF(Реестр_tb[[#This Row],[Плановая дата оплаты]]<=$AB$1+7,\"В течении недели\",\"Через неделю и более\")))))","v":"Через неделю и более"},"Полный расчет","Оригиналы","Контракт от 17.01.2022 г.на сумму 75025,00 руб."]
["ООО\"Эскада\"","питание (областной бюджет) (молоко, 5-11,многодетные, ОВЗ)","питание 1-4 кл, 5-11 кл.малоимущ",{"$f":"IFERROR(VLOOKUP(Реестр_tb[[#This Row],[Подкатегория]],IF({1,0},Данные_tb[ЕД],Данные_tb[доп. код.]),2,0),\" \")","v":"Д62190"},{"$f":"IFERROR(VLOOKUP(Реестр_tb[[#This Row],[ДОПЫ]],IF({1,0},Данные_tb[доп. код.],Данные_tb[Источник]),2,0),\" \")","v":20},"Нет","2 от 17.01.22",null,5,12475,null,"25.01.2022",15,"Акта",{"$f":"IF(Реестр_tb[[#This Row],[Срок оплаты (дней)]]=\"\",\"\",WORKDAY(Реестр_tb[[#This Row],[входящий (дата)]],Реестр_tb[[#This Row],[Срок оплаты (дней)]]+1,Выходные_tb[Выходные]))","v":"2022-02-16"},null,{"$f":"IF(AND(Реестр_tb[[#This Row],[Оплачен]]=\"Да\",Реестр_tb[[#This Row],[Факт. дата оплаты]]<=Реестр_tb[[#This Row],[Плановая дата оплаты]]),\"Оплачено вовремя\",IF(AND(Реестр_tb[[#This Row],[Оплачен]]=\"Да\",Реестр_tb[[#This Row],[Факт. дата оплаты]]>Реестр_tb[[#This Row],[Плановая дата оплаты]]),\"Просрочено\",IF(AND(Реестр_tb[[#This Row],[Оплачен]]=\"Нет\",Реестр_tb[[#This Row],[Факт. дата оплаты]]=\"\",Реестр_tb[[#This Row],[Плановая дата оплаты]]<$AB$1),\"Просрочено\",IF(Реестр_tb[[#This Row],[Плановая дата оплаты]]=$AB$1,\"Сегодня\",IF(Реестр_tb[[#This Row],[Плановая дата оплаты]]<=$AB$1+7,\"В течении недели\",\"Через неделю и более\")))))","v":"Через неделю и более"},"Полный расчет","Оригиналы","Контракт от 17.01.2022 г.на сумму 75025,00 руб."]
["ИП Ткачев","Муниципальное задание","Олимпиады",{"$f":"IFERROR(VLOOKUP(Реестр_tb[[#This Row],[Подкатегория]],IF({1,0},Данные_tb[ЕД],Данные_tb[доп. код.]),2,0),\" \")","v":4},{"$f":"IFERROR(VLOOKUP(Реестр_tb[[#This Row],[ДОПЫ]],IF({1,0},Данные_tb[доп. код.],Данные_tb[Источник]),2,0),\" \")","v":20},"Нет","60199 то 24.01.22",null,4,6050,null,"26.01.2022",15,"Акта",{"$f":"IF(Реестр_tb[[#This Row],[Срок оплаты (дней)]]=\"\",\"\",WORKDAY(Реестр_tb[[#This Row],[входящий (дата)]],Реестр_tb[[#This Row],[Срок оплаты (дней)]]+1,Выходные_tb[Выходные]))","v":"2022-02-17"},null,{"$f":"IF(AND(Реестр_tb[[#This Row],[Оплачен]]=\"Да\",Реестр_tb[[#This Row],[Факт. дата оплаты]]<=Реестр_tb[[#This Row],[Плановая дата оплаты]]),\"Оплачено вовремя\",IF(AND(Реестр_tb[[#This Row],[Оплачен]]=\"Да\",Реестр_tb[[#This Row],[Факт. дата оплаты]]>Реестр_tb[[#This Row],[Плановая дата оплаты]]),\"Просрочено\",IF(AND(Реестр_tb[[#This Row],[Оплачен]]=\"Нет\",Реестр_tb[[#This Row],[Факт. дата оплаты]]=\"\",Реестр_tb[[#This Row],[Плановая дата оплаты]]<$AB$1),\"Просрочено\",IF(Реестр_tb[[#This Row],[Плановая дата оплаты]]=$AB$1,\"Сегодня\",IF(Реестр_tb[[#This Row],[Плановая дата оплаты]]<=$AB$1+7,\"В течении недели\",\"Через неделю и более\")))))","v":"Через неделю и более"},"Полный расчет","Оригиналы","Договор № 60199 от 24.01.2022 г. на сумму 6050,00 руб."]
["ООО\"Рубеж -Комплект\"","Муниципальное задание","хоз.материалы, инвентарь, канц.элект. товары",{"$f":"IFERROR(VLOOKUP(Реестр_tb[[#This Row],[Подкатегория]],IF({1,0},Данные_tb[ЕД],Данные_tb[доп. код.]),2,0),\" \")","v":4},{"$f":"IFERROR(VLOOKUP(Реестр_tb[[#This Row],[ДОПЫ]],IF({1,0},Данные_tb[доп. код.],Данные_tb[Источник]),2,0),\" \")","v":20},"Нет","7 от 20.01.22",null,5,58800,null,"27.01.2022",15,"Акта",{"$f":"IF(Реестр_tb[[#This Row],[Срок оплаты (дней)]]=\"\",\"\",WORKDAY(Реестр_tb[[#This Row],[входящий (дата)]],Реестр_tb[[#This Row],[Срок оплаты (дней)]]+1,Выходные_tb[Выходные]))","v":"2022-02-18"},null,{"$f":"IF(AND(Реестр_tb[[#This Row],[Оплачен]]=\"Да\",Реестр_tb[[#This Row],[Факт. дата оплаты]]<=Реестр_tb[[#This Row],[Плановая дата оплаты]]),\"Оплачено вовремя\",IF(AND(Реестр_tb[[#This Row],[Оплачен]]=\"Да\",Реестр_tb[[#This Row],[Факт. дата оплаты]]>Реестр_tb[[#This Row],[Плановая дата оплаты]]),\"Просрочено\",IF(AND(Реестр_tb[[#This Row],[Оплачен]]=\"Нет\",Реестр_tb[[#This Row],[Факт. дата оплаты]]=\"\",Реестр_tb[[#This Row],[Плановая дата оплаты]]<$AB$1),\"Просрочено\",IF(Реестр_tb[[#This Row],[Плановая дата оплаты]]=$AB$1,\"Сегодня\",IF(Реестр_tb[[#This Row],[Плановая дата оплаты]]<=$AB$1+7,\"В течении недели\",\"Через неделю и более\")))))","v":"Через неделю и более"},"Полный расчет","Оригиналы","Без договора"]
["ООО\"Рубеж -Комплект\"","Муниципальное задание","снегоуборщик ",{"$f":"IFERROR(VLOOKUP(Реестр_tb[[#This Row],[Подкатегория]],IF({1,0},Данные_tb[ЕД],Данные_tb[доп. код.]),2,0),\" \")","v":4},{"$f":"IFERROR(VLOOKUP(Реестр_tb[[#This Row],[ДОПЫ]],IF({1,0},Данные_tb[доп. код.],Данные_tb[Источник]),2,0),\" \")","v":20},"Нет","8 от 20.01.22","снегоуборщик",5,151020,null,"27.01.2022",15,"Акта",{"$f":"IF(Реестр_tb[[#This Row],[Срок оплаты (дней)]]=\"\",\"\",WORKDAY(Реестр_tb[[#This Row],[входящий (дата)]],Реестр_tb[[#This Row],[Срок оплаты (дней)]]+1,Выходные_tb[Выходные]))","v":"2022-02-18"},null,{"$f":"IF(AND(Реестр_tb[[#This Row],[Оплачен]]=\"Да\",Реестр_tb[[#This Row],[Факт. дата оплаты]]<=Реестр_tb[[#This Row],[Плановая дата оплаты]]),\"Оплачено вовремя\",IF(AND(Реестр_tb[[#This Row],[Оплачен]]=\"Да\",Реестр_tb[[#This Row],[Факт. дата оплаты]]>Реестр_tb[[#This Row],[Плановая дата оплаты]]),\"Просрочено\",IF(AND(Реестр_tb[[#This Row],[Оплачен]]=\"Нет\",Реестр_tb[[#This Row],[Факт. дата оплаты]]=\"\",Реестр_tb[[#This Row],[Плановая дата оплаты]]<$AB$1),\"Просрочено\",IF(Реестр_tb[[#This Row],[Плановая дата оплаты]]=$AB$1,\"Сегодня\",IF(Реестр_tb[[#This Row],[Плановая дата оплаты]]<=$AB$1+7,\"В течении недели\",\"Через неделю и более\")))))","v":"Через неделю и более"},"Полный расчет","Оригиналы","Без договора"]
["ООО \"Сахалин-Логистика\"","Подвоз","услуги автотранспорта (морская перевозка автобуса на техомотр)",{"$f":"IFERROR(VLOOKUP(Реестр_tb[[#This Row],[Подкатегория]],IF({1,0},Данные_tb[ЕД],Данные_tb[доп. код.]),2,0),\" \")","v":18},{"$f":"IFERROR(VLOOKUP(Реестр_tb[[#This Row],[ДОПЫ]],IF({1,0},Данные_tb[доп. код.],Данные_tb[Источник]),2,0),\" \")","v":20},"Нет","266 от 28.01.22",null,5,34700,null,"31.01.22",15,"Акта",{"$f":"IF(Реестр_tb[[#This Row],[Срок оплаты (дней)]]=\"\",\"\",WORKDAY(Реестр_tb[[#This Row],[входящий (дата)]],Реестр_tb[[#This Row],[Срок оплаты (дней)]]+1,Выходные_tb[Выходные]))","v":"2022-02-22"},null,{"$f":"IF(AND(Реестр_tb[[#This Row],[Оплачен]]=\"Да\",Реестр_tb[[#This Row],[Факт. дата оплаты]]<=Реестр_tb[[#This Row],[Плановая дата оплаты]]),\"Оплачено вовремя\",IF(AND(Реестр_tb[[#This Row],[Оплачен]]=\"Да\",Реестр_tb[[#This Row],[Факт. дата оплаты]]>Реестр_tb[[#This Row],[Плановая дата оплаты]]),\"Просрочено\",IF(AND(Реестр_tb[[#This Row],[Оплачен]]=\"Нет\",Реестр_tb[[#This Row],[Факт. дата оплаты]]=\"\",Реестр_tb[[#This Row],[Плановая дата оплаты]]<$AB$1),\"Просрочено\",IF(Реестр_tb[[#This Row],[Плановая дата оплаты]]=$AB$1,\"Сегодня\",IF(Реестр_tb[[#This Row],[Плановая дата оплаты]]<=$AB$1+7,\"В течении недели\",\"Через неделю и более\")))))","v":"Через неделю и более"},"Полный расчет","Копии","Договор № 31/2022 от 19.01.2022 г."]
["ИП Мамалыга М.Л.","Подвоз","запчасти",{"$f":"IFERROR(VLOOKUP(Реестр_tb[[#This Row],[Подкатегория]],IF({1,0},Данные_tb[ЕД],Данные_tb[доп. код.]),2,0),\" \")","v":18},{"$f":"IFERROR(VLOOKUP(Реестр_tb[[#This Row],[ДОПЫ]],IF({1,0},Данные_tb[доп. код.],Данные_tb[Источник]),2,0),\" \")","v":20},"Нет","9 от 17.01.22",null,5,12490,null,"24.01.22",15,"Акта",{"$f":"IF(Реестр_tb[[#This Row],[Срок оплаты (дней)]]=\"\",\"\",WORKDAY(Реестр_tb[[#This Row],[входящий (дата)]],Реестр_tb[[#This Row],[Срок оплаты (дней)]]+1,Выходные_tb[Выходные]))","v":"2022-02-15"},null,{"$f":"IF(AND(Реестр_tb[[#This Row],[Оплачен]]=\"Да\",Реестр_tb[[#This Row],[Факт. дата оплаты]]<=Реестр_tb[[#This Row],[Плановая дата оплаты]]),\"Оплачено вовремя\",IF(AND(Реестр_tb[[#This Row],[Оплачен]]=\"Да\",Реестр_tb[[#This Row],[Факт. дата оплаты]]>Реестр_tb[[#This Row],[Плановая дата оплаты]]),\"Просрочено\",IF(AND(Реестр_tb[[#This Row],[Оплачен]]=\"Нет\",Реестр_tb[[#This Row],[Факт. дата оплаты]]=\"\",Реестр_tb[[#This Row],[Плановая дата оплаты]]<$AB$1),\"Просрочено\",IF(Реестр_tb[[#This Row],[Плановая дата оплаты]]=$AB$1,\"Сегодня\",IF(Реестр_tb[[#This Row],[Плановая дата оплаты]]<=$AB$1+7,\"В течении недели\",\"Через неделю и более\")))))","v":"Через неделю и более"},"Полный расчет","Оригиналы","Без договора"]
["ОАО Киржачская типография\"","Муниципальное задание","Учетно-бланочная и бланочная продукция (аттестаты, меню)",{"$f":"IFERROR(VLOOKUP(Реестр_tb[[#This Row],[Подкатегория]],IF({1,0},Данные_tb[ЕД],Данные_tb[доп. код.]),2,0),\" \")","v":4},{"$f":"IFERROR(VLOOKUP(Реестр_tb[[#This Row],[ДОПЫ]],IF({1,0},Данные_tb[доп. код.],Данные_tb[Источник]),2,0),\" \")","v":20},"Нет","242838 от 24.01.22","бланк свидетельства с обложкой",4,2110,null,"27.01.22",15,"Акта",{"$f":"IF(Реестр_tb[[#This Row],[Срок оплаты (дней)]]=\"\",\"\",WORKDAY(Реестр_tb[[#This Row],[входящий (дата)]],Реестр_tb[[#This Row],[Срок оплаты (дней)]]+1,Выходные_tb[Выходные]))","v":"2022-02-18"},null,{"$f":"IF(AND(Реестр_tb[[#This Row],[Оплачен]]=\"Да\",Реестр_tb[[#This Row],[Факт. дата оплаты]]<=Реестр_tb[[#This Row],[Плановая дата оплаты]]),\"Оплачено вовремя\",IF(AND(Реестр_tb[[#This Row],[Оплачен]]=\"Да\",Реестр_tb[[#This Row],[Факт. дата оплаты]]>Реестр_tb[[#This Row],[Плановая дата оплаты]]),\"Просрочено\",IF(AND(Реестр_tb[[#This Row],[Оплачен]]=\"Нет\",Реестр_tb[[#This Row],[Факт. дата оплаты]]=\"\",Реестр_tb[[#This Row],[Плановая дата оплаты]]<$AB$1),\"Просрочено\",IF(Реестр_tb[[#This Row],[Плановая дата оплаты]]=$AB$1,\"Сегодня\",IF(Реестр_tb[[#This Row],[Плановая дата оплаты]]<=$AB$1+7,\"В течении недели\",\"Через неделю и более\")))))","v":"Через неделю и более"},"Полный расчет","Копии","Договор № 242838 от 24.01.2022 г."]
["ИП Поречина О.А.","учебные расходы","учебные расходы (расходные)",{"$f":"IFERROR(VLOOKUP(Реестр_tb[[#This Row],[Подкатегория]],IF({1,0},Данные_tb[ЕД],Данные_tb[доп. код.]),2,0),\" \")","v":"0202"},{"$f":"IFERROR(VLOOKUP(Реестр_tb[[#This Row],[ДОПЫ]],IF({1,0},Данные_tb[доп. код.],Данные_tb[Источник]),2,0),\" \")","v":"20"},"Нет","5 от 20.01.22",null,4,2000,null,"01.02.22",15,"Акта",{"$f":"IF(Реестр_tb[[#This Row],[Срок оплаты (дней)]]=\"\",\"\",WORKDAY(Реестр_tb[[#This Row],[входящий (дата)]],Реестр_tb[[#This Row],[Срок оплаты (дней)]]+1,Выходные_tb[Выходные]))","v":"2022-02-23"},null,{"$f":"IF(AND(Реестр_tb[[#This Row],[Оплачен]]=\"Да\",Реестр_tb[[#This Row],[Факт. дата оплаты]]<=Реестр_tb[[#This Row],[Плановая дата оплаты]]),\"Оплачено вовремя\",IF(AND(Реестр_tb[[#This Row],[Оплачен]]=\"Да\",Реестр_tb[[#This Row],[Факт. дата оплаты]]>Реестр_tb[[#This Row],[Плановая дата оплаты]]),\"Просрочено\",IF(AND(Реестр_tb[[#This Row],[Оплачен]]=\"Нет\",Реестр_tb[[#This Row],[Факт. дата оплаты]]=\"\",Реестр_tb[[#This Row],[Плановая дата оплаты]]<$AB$1),\"Просрочено\",IF(Реестр_tb[[#This Row],[Плановая дата оплаты]]=$AB$1,\"Сегодня\",IF(Реестр_tb[[#This Row],[Плановая дата оплаты]]<=$AB$1+7,\"В течении недели\",\"Через неделю и более\")))))","v":"Через неделю и более"},"Полный расчет","Оригиналы","Без договора"]
["ИП Поречина О.А.","Спонсорские","Спонсорские",{"$f":"IFERROR(VLOOKUP(Реестр_tb[[#This Row],[Подкатегория]],IF({1,0},Данные_tb[ЕД],Данные_tb[доп. код.]),2,0),\" \")","v":2},{"$f":"IFERROR(VLOOKUP(Реестр_tb[[#This Row],[ДОПЫ]],IF({1,0},Данные_tb[доп. код.],Данные_tb[Источник]),2,0),\" \")","v":20},"Нет","5 от 20.01.22",null,4,3855,null,"01.02.22",15,"Акта",{"$f":"IF(Реестр_tb[[#This Row],[Срок оплаты (дней)]]=\"\",\"\",WORKDAY(Реестр_tb[[#This Row],[входящий (дата)]],Реестр_tb[[#This Row],[Срок оплаты (дней)]]+1,Выходные_tb[Выходные]))","v":"2022-02-23"},null,{"$f":"IF(AND(Реестр_tb[[#This Row],[Оплачен]]=\"Да\",Реестр_tb[[#This Row],[Факт. дата оплаты]]<=Реестр_tb[[#This Row],[Плановая дата оплаты]]),\"Оплачено вовремя\",IF(AND(Реестр_tb[[#This Row],[Оплачен]]=\"Да\",Реестр_tb[[#This Row],[Факт. дата оплаты]]>Реестр_tb[[#This Row],[Плановая дата оплаты]]),\"Просрочено\",IF(AND(Реестр_tb[[#This Row],[Оплачен]]=\"Нет\",Реестр_tb[[#This Row],[Факт. дата оплаты]]=\"\",Реестр_tb[[#This Row],[Плановая дата оплаты]]<$AB$1),\"Просрочено\",IF(Реестр_tb[[#This Row],[Плановая дата оплаты]]=$AB$1,\"Сегодня\",IF(Реестр_tb[[#This Row],[Плановая дата оплаты]]<=$AB$1+7,\"В течении недели\",\"Через неделю и более\")))))","v":"Через неделю и более"},"Полный расчет","Оригиналы","Без договора"]
["ИП Поречина О.А.","Муниципальное задание","хоз.материалы, инвентарь, канц.элект. товары",{"$f":"IFERROR(VLOOKUP(Реестр_tb[[#This Row],[Подкатегория]],IF({1,0},Данные_tb[ЕД],Данные_tb[доп. код.]),2,0),\" \")","v":4},{"$f":"IFERROR(VLOOKUP(Реестр_tb[[#This Row],[ДОПЫ]],IF({1,0},Данные_tb[доп. код.],Данные_tb[Источник]),2,0),\" \")","v":20},"Нет","5 от 20.01.22",null,4,19220,null,"01.02.22",15,"Акта",{"$f":"IF(Реестр_tb[[#This Row],[Срок оплаты (дней)]]=\"\",\"\",WORKDAY(Реестр_tb[[#This Row],[входящий (дата)]],Реестр_tb[[#This Row],[Срок оплаты (дней)]]+1,Выходные_tb[Выходные]))","v":"2022-02-23"},null,{"$f":"IF(AND(Реестр_tb[[#This Row],[Оплачен]]=\"Да\",Реестр_tb[[#This Row],[Факт. дата оплаты]]<=Реестр_tb[[#This Row],[Плановая дата оплаты]]),\"Оплачено вовремя\",IF(AND(Реестр_tb[[#This Row],[Оплачен]]=\"Да\",Реестр_tb[[#This Row],[Факт. дата оплаты]]>Реестр_tb[[#This Row],[Плановая дата оплаты]]),\"Просрочено\",IF(AND(Реестр_tb[[#This Row],[Оплачен]]=\"Нет\",Реестр_tb[[#This Row],[Факт. дата оплаты]]=\"\",Реестр_tb[[#This Row],[Плановая дата оплаты]]<$AB$1),\"Просрочено\",IF(Реестр_tb[[#This Row],[Плановая дата оплаты]]=$AB$1,\"Сегодня\",IF(Реестр_tb[[#This Row],[Плановая дата оплаты]]<=$AB$1+7,\"В течении недели\",\"Через неделю и более\")))))","v":"Через неделю и более"},"Полный расчет","Оригиналы","Без договора"]
["ИП Гребенкин И.А.","Муниципальное задание","хоз.материалы, инвентарь, канц.элект. товары",{"$f":"IFERROR(VLOOKUP(Реестр_tb[[#This Row],[Подкатегория]],IF({1,0},Данные_tb[ЕД],Данные_tb[доп. код.]),2,0),\" \")","v":4},{"$f":"IFERROR(VLOOKUP(Реестр_tb[[#This Row],[ДОПЫ]],IF({1,0},Данные_tb[доп. код.],Данные_tb[Источник]),2,0),\" \")","v":20},"Нет","8 от 17.01.22",null,4,5710,null,"01.02.22",15,"Акта",{"$f":"IF(Реестр_tb[[#This Row],[Срок оплаты (дней)]]=\"\",\"\",WORKDAY(Реестр_tb[[#This Row],[входящий (дата)]],Реестр_tb[[#This Row],[Срок оплаты (дней)]]+1,Выходные_tb[Выходные]))","v":"2022-02-23"},null,{"$f":"IF(AND(Реестр_tb[[#This Row],[Оплачен]]=\"Да\",Реестр_tb[[#This Row],[Факт. дата оплаты]]<=Реестр_tb[[#This Row],[Плановая дата оплаты]]),\"Оплачено вовремя\",IF(AND(Реестр_tb[[#This Row],[Оплачен]]=\"Да\",Реестр_tb[[#This Row],[Факт. дата оплаты]]>Реестр_tb[[#This Row],[Плановая дата оплаты]]),\"Просрочено\",IF(AND(Реестр_tb[[#This Row],[Оплачен]]=\"Нет\",Реестр_tb[[#This Row],[Факт. дата оплаты]]=\"\",Реестр_tb[[#This Row],[Плановая дата оплаты]]<$AB$1),\"Просрочено\",IF(Реестр_tb[[#This Row],[Плановая дата оплаты]]=$AB$1,\"Сегодня\",IF(Реестр_tb[[#This Row],[Плановая дата оплаты]]<=$AB$1+7,\"В течении недели\",\"Через неделю и более\")))))","v":"Через неделю и более"},"Полный расчет","Оригиналы","Без договора"]
["ООО Посейдон\"","Подвоз","обслуживание тахографов, мониторинг \"Посейдон\"",{"$f":"IFERROR(VLOOKUP(Реестр_tb[[#This Row],[Подкатегория]],IF({1,0},Данные_tb[ЕД],Данные_tb[доп. код.]),2,0),\" \")","v":18},{"$f":"IFERROR(VLOOKUP(Реестр_tb[[#This Row],[ДОПЫ]],IF({1,0},Данные_tb[доп. код.],Данные_tb[Источник]),2,0),\" \")","v":20},"Нет","52 от 31.01.22",null,5,5600,null,"02.02.22",15,"Акта",{"$f":"IF(Реестр_tb[[#This Row],[Срок оплаты (дней)]]=\"\",\"\",WORKDAY(Реестр_tb[[#This Row],[входящий (дата)]],Реестр_tb[[#This Row],[Срок оплаты (дней)]]+1,Выходные_tb[Выходные]))","v":"2022-02-24"},null,{"$f":"IF(AND(Реестр_tb[[#This Row],[Оплачен]]=\"Да\",Реестр_tb[[#This Row],[Факт. дата оплаты]]<=Реестр_tb[[#This Row],[Плановая дата оплаты]]),\"Оплачено вовремя\",IF(AND(Реестр_tb[[#This Row],[Оплачен]]=\"Да\",Реестр_tb[[#This Row],[Факт. дата оплаты]]>Реестр_tb[[#This Row],[Плановая дата оплаты]]),\"Просрочено\",IF(AND(Реестр_tb[[#This Row],[Оплачен]]=\"Нет\",Реестр_tb[[#This Row],[Факт. дата оплаты]]=\"\",Реестр_tb[[#This Row],[Плановая дата оплаты]]<$AB$1),\"Просрочено\",IF(Реестр_tb[[#This Row],[Плановая дата оплаты]]=$AB$1,\"Сегодня\",IF(Реестр_tb[[#This Row],[Плановая дата оплаты]]<=$AB$1+7,\"В течении недели\",\"Через неделю и более\")))))","v":"Через неделю и более"},"Полный расчет","Копии","Договор № 001-МН-2022 от 10.01.2022 г. на сумму 67 200,00 руб."]
["ООО Посейдон\"","Подвоз","обслуживание тахографов, мониторинг \"Посейдон\"",{"$f":"IFERROR(VLOOKUP(Реестр_tb[[#This Row],[Подкатегория]],IF({1,0},Данные_tb[ЕД],Данные_tb[доп. код.]),2,0),\" \")","v":18},{"$f":"IFERROR(VLOOKUP(Реестр_tb[[#This Row],[ДОПЫ]],IF({1,0},Данные_tb[доп. код.],Данные_tb[Источник]),2,0),\" \")","v":20},"Нет","февраль",null,5,5600,null,null,null,null,{"$f":"IF(Реестр_tb[[#This Row],[Срок оплаты (дней)]]=\"\",\"\",WORKDAY(Реестр_tb[[#This Row],[входящий (дата)]],Реестр_tb[[#This Row],[Срок оплаты (дней)]]+1,Выходные_tb[Выходные]))","v":""},null,{"$f":"IF(AND(Реестр_tb[[#This Row],[Оплачен]]=\"Да\",Реестр_tb[[#This Row],[Факт. дата оплаты]]<=Реестр_tb[[#This Row],[Плановая дата оплаты]]),\"Оплачено вовремя\",IF(AND(Реестр_tb[[#This Row],[Оплачен]]=\"Да\",Реестр_tb[[#This Row],[Факт. дата оплаты]]>Реестр_tb[[#This Row],[Плановая дата оплаты]]),\"Просрочено\",IF(AND(Реестр_tb[[#This Row],[Оплачен]]=\"Нет\",Реестр_tb[[#This Row],[Факт. дата оплаты]]=\"\",Реестр_tb[[#This Row],[Плановая дата оплаты]]<$AB$1),\"Просрочено\",IF(Реестр_tb[[#This Row],[Плановая дата оплаты]]=$AB$1,\"Сегодня\",IF(Реестр_tb[[#This Row],[Плановая дата оплаты]]<=$AB$1+7,\"В течении недели\",\"Через неделю и более\")))))","v":"Через неделю и более"},"Полный расчет",null,"Договор № 001-МН-2022 от 10.01.2022 г. на сумму 67 200,00 руб."]
["ООО Посейдон\"","Подвоз","обслуживание тахографов, мониторинг \"Посейдон\"",{"$f":"IFERROR(VLOOKUP(Реестр_tb[[#This Row],[Подкатегория]],IF({1,0},Данные_tb[ЕД],Данные_tb[доп. код.]),2,0),\" \")","v":18},{"$f":"IFERROR(VLOOKUP(Реестр_tb[[#This Row],[ДОПЫ]],IF({1,0},Данные_tb[доп. код.],Данные_tb[Источник]),2,0),\" \")","v":20},"Нет","март",null,5,5600,null,null,null,null,{"$f":"IF(Реестр_tb[[#This Row],[Срок оплаты (дней)]]=\"\",\"\",WORKDAY(Реестр_tb[[#This Row],[входящий (дата)]],Реестр_tb[[#This Row],[Срок оплаты (дней)]]+1,Выходные_tb[Выходные]))","v":""},null,{"$f":"IF(AND(Реестр_tb[[#This Row],[Оплачен]]=\"Да\",Реестр_tb[[#This Row],[Факт. дата оплаты]]<=Реестр_tb[[#This Row],[Плановая дата оплаты]]),\"Оплачено вовремя\",IF(AND(Реестр_tb[[#This Row],[Оплачен]]=\"Да\",Реестр_tb[[#This Row],[Факт. дата оплаты]]>Реестр_tb[[#This Row],[Плановая дата оплаты]]),\"Просрочено\",IF(AND(Реестр_tb[[#This Row],[Оплачен]]=\"Нет\",Реестр_tb[[#This Row],[Факт. дата оплаты]]=\"\",Реестр_tb[[#This Row],[Плановая дата оплаты]]<$AB$1),\"Просрочено\",IF(Реестр_tb[[#This Row],[Плановая дата оплаты]]=$AB$1,\"Сегодня\",IF(Реестр_tb[[#This Row],[Плановая дата оплаты]]<=$AB$1+7,\"В течении недели\",\"Через неделю и более\")))))","v":"Через неделю и более"},"Полный расчет",null,"Договор № 001-МН-2022 от 10.01.2022 г. на сумму 67 200,00 руб."]
["ООО Посейдон\"","Подвоз","обслуживание тахографов, мониторинг \"Посейдон\"",{"$f":"IFERROR(VLOOKUP(Реестр_tb[[#This Row],[Подкатегория]],IF({1,0},Данные_tb[ЕД],Данные_tb[доп. код.]),2,0),\" \")","v":18},{"$f":"IFERROR(VLOOKUP(Реестр_tb[[#This Row],[ДОПЫ]],IF({1,0},Данные_tb[доп. код.],Данные_tb[Источник]),2,0),\" \")","v":20},"Нет","апрель",null,5,5600,null,null,null,null,{"$f":"IF(Реестр_tb[[#This Row],[Срок оплаты (дней)]]=\"\",\"\",WORKDAY(Реестр_tb[[#This Row],[входящий (дата)]],Реестр_tb[[#This Row],[Срок оплаты (дней)]]+1,Выходные_tb[Выходные]))","v":""},null,{"$f":"IF(AND(Реестр_tb[[#This Row],[Оплачен]]=\"Да\",Реестр_tb[[#This Row],[Факт. дата оплаты]]<=Реестр_tb[[#This Row],[Плановая дата оплаты]]),\"Оплачено вовремя\",IF(AND(Реестр_tb[[#This Row],[Оплачен]]=\"Да\",Реестр_tb[[#This Row],[Факт. дата оплаты]]>Реестр_tb[[#This Row],[Плановая дата оплаты]]),\"Просрочено\",IF(AND(Реестр_tb[[#This Row],[Оплачен]]=\"Нет\",Реестр_tb[[#This Row],[Факт. дата оплаты]]=\"\",Реестр_tb[[#This Row],[Плановая дата оплаты]]<$AB$1),\"Просрочено\",IF(Реестр_tb[[#This Row],[Плановая дата оплаты]]=$AB$1,\"Сегодня\",IF(Реестр_tb[[#This Row],[Плановая дата оплаты]]<=$AB$1+7,\"В течении недели\",\"Через неделю и более\")))))","v":"Через неделю и более"},"Полный расчет",null,"Договор № 001-МН-2022 от 10.01.2022 г. на сумму 67 200,00 руб."]
["ООО Посейдон\"","Подвоз","обслуживание тахографов, мониторинг \"Посейдон\"",{"$f":"IFERROR(VLOOKUP(Реестр_tb[[#This Row],[Подкатегория]],IF({1,0},Данные_tb[ЕД],Данные_tb[доп. код.]),2,0),\" \")","v":18},{"$f":"IFERROR(VLOOKUP(Реестр_tb[[#This Row],[ДОПЫ]],IF({1,0},Данные_tb[доп. код.],Данные_tb[Источник]),2,0),\" \")","v":20},"Нет","май",null,5,5600,null,null,null,null,{"$f":"IF(Реестр_tb[[#This Row],[Срок оплаты (дней)]]=\"\",\"\",WORKDAY(Реестр_tb[[#This Row],[входящий (дата)]],Реестр_tb[[#This Row],[Срок оплаты (дней)]]+1,Выходные_tb[Выходные]))","v":""},null,{"$f":"IF(AND(Реестр_tb[[#This Row],[Оплачен]]=\"Да\",Реестр_tb[[#This Row],[Факт. дата оплаты]]<=Реестр_tb[[#This Row],[Плановая дата оплаты]]),\"Оплачено вовремя\",IF(AND(Реестр_tb[[#This Row],[Оплачен]]=\"Да\",Реестр_tb[[#This Row],[Факт. дата оплаты]]>Реестр_tb[[#This Row],[Плановая дата оплаты]]),\"Просрочено\",IF(AND(Реестр_tb[[#This Row],[Оплачен]]=\"Нет\",Реестр_tb[[#This Row],[Факт. дата оплаты]]=\"\",Реестр_tb[[#This Row],[Плановая дата оплаты]]<$AB$1),\"Просрочено\",IF(Реестр_tb[[#This Row],[Плановая дата оплаты]]=$AB$1,\"Сегодня\",IF(Реестр_tb[[#This Row],[Плановая дата оплаты]]<=$AB$1+7,\"В течении недели\",\"Через неделю и более\")))))","v":"Через неделю и более"},"Полный расчет",null,"Договор № 001-МН-2022 от 10.01.2022 г. на сумму 67 200,00 руб."]
["ООО Посейдон\"","Подвоз","обслуживание тахографов, мониторинг \"Посейдон\"",{"$f":"IFERROR(VLOOKUP(Реестр_tb[[#This Row],[Подкатегория]],IF({1,0},Данные_tb[ЕД],Данные_tb[доп. код.]),2,0),\" \")","v":18},{"$f":"IFERROR(VLOOKUP(Реестр_tb[[#This Row],[ДОПЫ]],IF({1,0},Данные_tb[доп. код.],Данные_tb[Источник]),2,0),\" \")","v":20},"Нет","июнь",null,5,5600,null,null,null,null,{"$f":"IF(Реестр_tb[[#This Row],[Срок оплаты (дней)]]=\"\",\"\",WORKDAY(Реестр_tb[[#This Row],[входящий (дата)]],Реестр_tb[[#This Row],[Срок оплаты (дней)]]+1,Выходные_tb[Выходные]))","v":""},null,{"$f":"IF(AND(Реестр_tb[[#This Row],[Оплачен]]=\"Да\",Реестр_tb[[#This Row],[Факт. дата оплаты]]<=Реестр_tb[[#This Row],[Плановая дата оплаты]]),\"Оплачено вовремя\",IF(AND(Реестр_tb[[#This Row],[Оплачен]]=\"Да\",Реестр_tb[[#This Row],[Факт. дата оплаты]]>Реестр_tb[[#This Row],[Плановая дата оплаты]]),\"Просрочено\",IF(AND(Реестр_tb[[#This Row],[Оплачен]]=\"Нет\",Реестр_tb[[#This Row],[Факт. дата оплаты]]=\"\",Реестр_tb[[#This Row],[Плановая дата оплаты]]<$AB$1),\"Просрочено\",IF(Реестр_tb[[#This Row],[Плановая дата оплаты]]=$AB$1,\"Сегодня\",IF(Реестр_tb[[#This Row],[Плановая дата оплаты]]<=$AB$1+7,\"В течении недели\",\"Через неделю и более\")))))","v":"Через неделю и более"},"Полный расчет",null,"Договор № 001-МН-2022 от 10.01.2022 г. на сумму 67 200,00 руб."]
["ООО Посейдон\"","Подвоз","обслуживание тахографов, мониторинг \"Посейдон\"",{"$f":"IFERROR(VLOOKUP(Реестр_tb[[#This Row],[Подкатегория]],IF({1,0},Данные_tb[ЕД],Данные_tb[доп. код.]),2,0),\" \")","v":18},{"$f":"IFERROR(VLOOKUP(Реестр_tb[[#This Row],[ДОПЫ]],IF({1,0},Данные_tb[доп. код.],Данные_tb[Источник]),2,0),\" \")","v":20},"Нет","июль",null,5,5600,null,null,null,null,{"$f":"IF(Реестр_tb[[#This Row],[Срок оплаты (дней)]]=\"\",\"\",WORKDAY(Реестр_tb[[#This Row],[входящий (дата)]],Реестр_tb[[#This Row],[Срок оплаты (дней)]]+1,Выходные_tb[Выходные]))","v":""},null,{"$f":"IF(AND(Реестр_tb[[#This Row],[Оплачен]]=\"Да\",Реестр_tb[[#This Row],[Факт. дата оплаты]]<=Реестр_tb[[#This Row],[Плановая дата оплаты]]),\"Оплачено вовремя\",IF(AND(Реестр_tb[[#This Row],[Оплачен]]=\"Да\",Реестр_tb[[#This Row],[Факт. дата оплаты]]>Реестр_tb[[#This Row],[Плановая дата оплаты]]),\"Просрочено\",IF(AND(Реестр_tb[[#This Row],[Оплачен]]=\"Нет\",Реестр_tb[[#This Row],[Факт. дата оплаты]]=\"\",Реестр_tb[[#This Row],[Плановая дата оплаты]]<$AB$1),\"Просрочено\",IF(Реестр_tb[[#This Row],[Плановая дата оплаты]]=$AB$1,\"Сегодня\",IF(Реестр_tb[[#This Row],[Плановая дата оплаты]]<=$AB$1+7,\"В течении недели\",\"Через неделю и более\")))))","v":"Через неделю и более"},"Полный расчет",null,"Договор № 001-МН-2022 от 10.01.2022 г. на сумму 67 200,00 руб."]
["ООО Посейдон\"","Подвоз","обслуживание тахографов, мониторинг \"Посейдон\"",{"$f":"IFERROR(VLOOKUP(Реестр_tb[[#This Row],[Подкатегория]],IF({1,0},Данные_tb[ЕД],Данные_tb[доп. код.]),2,0),\" \")","v":18},{"$f":"IFERROR(VLOOKUP(Реестр_tb[[#This Row],[ДОПЫ]],IF({1,0},Данные_tb[доп. код.],Данные_tb[Источник]),2,0),\" \")","v":20},"Нет","август",null,5,5600,null,null,null,null,{"$f":"IF(Реестр_tb[[#This Row],[Срок оплаты (дней)]]=\"\",\"\",WORKDAY(Реестр_tb[[#This Row],[входящий (дата)]],Реестр_tb[[#This Row],[Срок оплаты (дней)]]+1,Выходные_tb[Выходные]))","v":""},null,{"$f":"IF(AND(Реестр_tb[[#This Row],[Оплачен]]=\"Да\",Реестр_tb[[#This Row],[Факт. дата оплаты]]<=Реестр_tb[[#This Row],[Плановая дата оплаты]]),\"Оплачено вовремя\",IF(AND(Реестр_tb[[#This Row],[Оплачен]]=\"Да\",Реестр_tb[[#This Row],[Факт. дата оплаты]]>Реестр_tb[[#This Row],[Плановая дата оплаты]]),\"Просрочено\",IF(AND(Реестр_tb[[#This Row],[Оплачен]]=\"Нет\",Реестр_tb[[#This Row],[Факт. дата оплаты]]=\"\",Реестр_tb[[#This Row],[Плановая дата оплаты]]<$AB$1),\"Просрочено\",IF(Реестр_tb[[#This Row],[Плановая дата оплаты]]=$AB$1,\"Сегодня\",IF(Реестр_tb[[#This Row],[Плановая дата оплаты]]<=$AB$1+7,\"В течении недели\",\"Через неделю и более\")))))","v":"Через неделю и более"},"Полный расчет",null,"Договор № 001-МН-2022 от 10.01.2022 г. на сумму 67 200,00 руб."]
["ООО Посейдон\"","Подвоз","обслуживание тахографов, мониторинг \"Посейдон\"",{"$f":"IFERROR(VLOOKUP(Реестр_tb[[#This Row],[Подкатегория]],IF({1,0},Данные_tb[ЕД],Данные_tb[доп. код.]),2,0),\" \")","v":18},{"$f":"IFERROR(VLOOKUP(Реестр_tb[[#This Row],[ДОПЫ]],IF({1,0},Данные_tb[доп. код.],Данные_tb[Источник]),2,0),\" \")","v":20},"Нет","сентябрь",null,5,5600,null,null,null,null,{"$f":"IF(Реестр_tb[[#This Row],[Срок оплаты (дней)]]=\"\",\"\",WORKDAY(Реестр_tb[[#This Row],[входящий (дата)]],Реестр_tb[[#This Row],[Срок оплаты (дней)]]+1,Выходные_tb[Выходные]))","v":""},null,{"$f":"IF(AND(Реестр_tb[[#This Row],[Оплачен]]=\"Да\",Реестр_tb[[#This Row],[Факт. дата оплаты]]<=Реестр_tb[[#This Row],[Плановая дата оплаты]]),\"Оплачено вовремя\",IF(AND(Реестр_tb[[#This Row],[Оплачен]]=\"Да\",Реестр_tb[[#This Row],[Факт. дата оплаты]]>Реестр_tb[[#This Row],[Плановая дата оплаты]]),\"Просрочено\",IF(AND(Реестр_tb[[#This Row],[Оплачен]]=\"Нет\",Реестр_tb[[#This Row],[Факт. дата оплаты]]=\"\",Реестр_tb[[#This Row],[Плановая дата оплаты]]<$AB$1),\"Просрочено\",IF(Реестр_tb[[#This Row],[Плановая дата оплаты]]=$AB$1,\"Сегодня\",IF(Реестр_tb[[#This Row],[Плановая дата оплаты]]<=$AB$1+7,\"В течении недели\",\"Через неделю и более\")))))","v":"Через неделю и более"},"Полный расчет",null,"Договор № 001-МН-2022 от 10.01.2022 г. на сумму 67 200,00 руб."]
["ООО Посейдон\"","Подвоз","обслуживание тахографов, мониторинг \"Посейдон\"",{"$f":"IFERROR(VLOOKUP(Реестр_tb[[#This Row],[Подкатегория]],IF({1,0},Данные_tb[ЕД],Данные_tb[доп. код.]),2,0),\" \")","v":18},{"$f":"IFERROR(VLOOKUP(Реестр_tb[[#This Row],[ДОПЫ]],IF({1,0},Данные_tb[доп. код.],Данные_tb[Источник]),2,0),\" \")","v":20},"Нет","октябрь",null,5,5600,null,null,null,null,{"$f":"IF(Реестр_tb[[#This Row],[Срок оплаты (дней)]]=\"\",\"\",WORKDAY(Реестр_tb[[#This Row],[входящий (дата)]],Реестр_tb[[#This Row],[Срок оплаты (дней)]]+1,Выходные_tb[Выходные]))","v":""},null,{"$f":"IF(AND(Реестр_tb[[#This Row],[Оплачен]]=\"Да\",Реестр_tb[[#This Row],[Факт. дата оплаты]]<=Реестр_tb[[#This Row],[Плановая дата оплаты]]),\"Оплачено вовремя\",IF(AND(Реестр_tb[[#This Row],[Оплачен]]=\"Да\",Реестр_tb[[#This Row],[Факт. дата оплаты]]>Реестр_tb[[#This Row],[Плановая дата оплаты]]),\"Просрочено\",IF(AND(Реестр_tb[[#This Row],[Оплачен]]=\"Нет\",Реестр_tb[[#This Row],[Факт. дата оплаты]]=\"\",Реестр_tb[[#This Row],[Плановая дата оплаты]]<$AB$1),\"Просрочено\",IF(Реестр_tb[[#This Row],[Плановая дата оплаты]]=$AB$1,\"Сегодня\",IF(Реестр_tb[[#This Row],[Плановая дата оплаты]]<=$AB$1+7,\"В течении недели\",\"Через неделю и более\")))))","v":"Через неделю и более"},"Полный расчет",null,"Договор № 001-МН-2022 от 10.01.2022 г. на сумму 67 200,00 руб."]
["ООО Посейдон\"","Подвоз","обслуживание тахографов, мониторинг \"Посейдон\"",{"$f":"IFERROR(VLOOKUP(Реестр_tb[[#This Row],[Подкатегория]],IF({1,0},Данные_tb[ЕД],Данные_tb[доп. код.]),2,0),\" \")","v":18},{"$f":"IFERROR(VLOOKUP(Реестр_tb[[#This Row],[ДОПЫ]],IF({1,0},Данные_tb[доп. код.],Данные_tb[Источник]),2,0),\" \")","v":20},"Нет","ноябрь",null,5,5600,null,null,null,null,{"$f":"IF(Реестр_tb[[#This Row],[Срок оплаты (дней)]]=\"\",\"\",WORKDAY(Реестр_tb[[#This Row],[входящий (дата)]],Реестр_tb[[#This Row],[Срок оплаты (дней)]]+1,Выходные_tb[Выходные]))","v":""},null,{"$f":"IF(AND(Реестр_tb[[#This Row],[Оплачен]]=\"Да\",Реестр_tb[[#This Row],[Факт. дата оплаты]]<=Реестр_tb[[#This Row],[Плановая дата оплаты]]),\"Оплачено вовремя\",IF(AND(Реестр_tb[[#This Row],[Оплачен]]=\"Да\",Реестр_tb[[#This Row],[Факт. дата оплаты]]>Реестр_tb[[#This Row],[Плановая дата оплаты]]),\"Просрочено\",IF(AND(Реестр_tb[[#This Row],[Оплачен]]=\"Нет\",Реестр_tb[[#This Row],[Факт. дата оплаты]]=\"\",Реестр_tb[[#This Row],[Плановая дата оплаты]]<$AB$1),\"Просрочено\",IF(Реестр_tb[[#This Row],[Плановая дата оплаты]]=$AB$1,\"Сегодня\",IF(Реестр_tb[[#This Row],[Плановая дата оплаты]]<=$AB$1+7,\"В течении недели\",\"Через неделю и более\")))))","v":"Через неделю и более"},"Полный расчет",null,"Договор № 001-МН-2022 от 10.01.2022 г. на сумму 67 200,00 руб."]
["ООО Посейдон\"","Подвоз","обслуживание тахографов, мониторинг \"Посейдон\"",{"$f":"IFERROR(VLOOKUP(Реестр_tb[[#This Row],[Подкатегория]],IF({1,0},Данные_tb[ЕД],Данные_tb[доп. код.]),2,0),\" \")","v":18},{"$f":"IFERROR(VLOOKUP(Реестр_tb[[#This Row],[ДОПЫ]],IF({1,0},Данные_tb[доп. код.],Данные_tb[Источник]),2,0),\" \")","v":20},"Нет","декабрь",null,5,5600,null,null,null,null,{"$f":"IF(Реестр_tb[[#This Row],[Срок оплаты (дней)]]=\"\",\"\",WORKDAY(Реестр_tb[[#This Row],[входящий (дата)]],Реестр_tb[[#This Row],[Срок оплаты (дней)]]+1,Выходные_tb[Выходные]))","v":""},null,{"$f":"IF(AND(Реестр_tb[[#This Row],[Оплачен]]=\"Да\",Реестр_tb[[#This Row],[Факт. дата оплаты]]<=Реестр_tb[[#This Row],[Плановая дата оплаты]]),\"Оплачено вовремя\",IF(AND(Реестр_tb[[#This Row],[Оплачен]]=\"Да\",Реестр_tb[[#This Row],[Факт. дата оплаты]]>Реестр_tb[[#This Row],[Плановая дата оплаты]]),\"Просрочено\",IF(AND(Реестр_tb[[#This Row],[Оплачен]]=\"Нет\",Реестр_tb[[#This Row],[Факт. дата оплаты]]=\"\",Реестр_tb[[#This Row],[Плановая дата оплаты]]<$AB$1),\"Просрочено\",IF(Реестр_tb[[#This Row],[Плановая дата оплаты]]=$AB$1,\"Сегодня\",IF(Реестр_tb[[#This Row],[Плановая дата оплаты]]<=$AB$1+7,\"В течении недели\",\"Через неделю и более\")))))","v":"Через неделю и более"},"Полный расчет",null,"Договор № 001-МН-2022 от 10.01.2022 г. на сумму 67 200,00 руб."]
["АО «Управление по обращению с отходами»","Муниципальное задание","вывоз, утилизация ТБО",{"$f":"IFERROR(VLOOKUP(Реестр_tb[[#This Row],[Подкатегория]],IF({1,0},Данные_tb[ЕД],Данные_tb[доп. код.]),2,0),\" \")","v":4},{"$f":"IFERROR(VLOOKUP(Реестр_tb[[#This Row],[ДОПЫ]],IF({1,0},Данные_tb[доп. код.],Данные_tb[Источник]),2,0),\" \")","v":20},"Нет","январь",null,5,31562.39,null,null,null,null,{"$f":"IF(Реестр_tb[[#This Row],[Срок оплаты (дней)]]=\"\",\"\",WORKDAY(Реестр_tb[[#This Row],[входящий (дата)]],Реестр_tb[[#This Row],[Срок оплаты (дней)]]+1,Выходные_tb[Выходные]))","v":""},null,{"$f":"IF(AND(Реестр_tb[[#This Row],[Оплачен]]=\"Да\",Реестр_tb[[#This Row],[Факт. дата оплаты]]<=Реестр_tb[[#This Row],[Плановая дата оплаты]]),\"Оплачено вовремя\",IF(AND(Реестр_tb[[#This Row],[Оплачен]]=\"Да\",Реестр_tb[[#This Row],[Факт. дата оплаты]]>Реестр_tb[[#This Row],[Плановая дата оплаты]]),\"Просрочено\",IF(AND(Реестр_tb[[#This Row],[Оплачен]]=\"Нет\",Реестр_tb[[#This Row],[Факт. дата оплаты]]=\"\",Реестр_tb[[#This Row],[Плановая дата оплаты]]<$AB$1),\"Просрочено\",IF(Реестр_tb[[#This Row],[Плановая дата оплаты]]=$AB$1,\"Сегодня\",IF(Реестр_tb[[#This Row],[Плановая дата оплаты]]<=$AB$1+7,\"В течении недели\",\"Через неделю и более\")))))","v":"Через неделю и более"},"Полный расчет",null,"Договор № 2-17/22/ЮЛ от 10.01.2022 г. на сумму 466 748,58 руб."]
["АО «Управление по обращению с отходами»","Муниципальное задание","вывоз, утилизация ТБО",{"$f":"IFERROR(VLOOKUP(Реестр_tb[[#This Row],[Подкатегория]],IF({1,0},Данные_tb[ЕД],Данные_tb[доп. код.]),2,0),\" \")","v":4},{"$f":"IFERROR(VLOOKUP(Реестр_tb[[#This Row],[ДОПЫ]],IF({1,0},Данные_tb[доп. код.],Данные_tb[Источник]),2,0),\" \")","v":20},"Нет","февраль",null,5,31562.39,null,null,null,null,{"$f":"IF(Реестр_tb[[#This Row],[Срок оплаты (дней)]]=\"\",\"\",WORKDAY(Реестр_tb[[#This Row],[входящий (дата)]],Реестр_tb[[#This Row],[Срок оплаты (дней)]]+1,Выходные_tb[Выходные]))","v":""},null,{"$f":"IF(AND(Реестр_tb[[#This Row],[Оплачен]]=\"Да\",Реестр_tb[[#This Row],[Факт. дата оплаты]]<=Реестр_tb[[#This Row],[Плановая дата оплаты]]),\"Оплачено вовремя\",IF(AND(Реестр_tb[[#This Row],[Оплачен]]=\"Да\",Реестр_tb[[#This Row],[Факт. дата оплаты]]>Реестр_tb[[#This Row],[Плановая дата оплаты]]),\"Просрочено\",IF(AND(Реестр_tb[[#This Row],[Оплачен]]=\"Нет\",Реестр_tb[[#This Row],[Факт. дата оплаты]]=\"\",Реестр_tb[[#This Row],[Плановая дата оплаты]]<$AB$1),\"Просрочено\",IF(Реестр_tb[[#This Row],[Плановая дата оплаты]]=$AB$1,\"Сегодня\",IF(Реестр_tb[[#This Row],[Плановая дата оплаты]]<=$AB$1+7,\"В течении недели\",\"Через неделю и более\")))))","v":"Через неделю и более"},"Полный расчет",null,"Договор № 2-17/22/ЮЛ от 10.01.2022 г. на сумму 466 748,58 руб."]
["АО «Управление по обращению с отходами»","Муниципальное задание","вывоз, утилизация ТБО",{"$f":"IFERROR(VLOOKUP(Реестр_tb[[#This Row],[Подкатегория]],IF({1,0},Данные_tb[ЕД],Данные_tb[доп. код.]),2,0),\" \")","v":4},{"$f":"IFERROR(VLOOKUP(Реестр_tb[[#This Row],[ДОПЫ]],IF({1,0},Данные_tb[доп. код.],Данные_tb[Источник]),2,0),\" \")","v":20},"Нет","март",null,5,31562.39,null,null,null,null,{"$f":"IF(Реестр_tb[[#This Row],[Срок оплаты (дней)]]=\"\",\"\",WORKDAY(Реестр_tb[[#This Row],[входящий (дата)]],Реестр_tb[[#This Row],[Срок оплаты (дней)]]+1,Выходные_tb[Выходные]))","v":""},null,{"$f":"IF(AND(Реестр_tb[[#This Row],[Оплачен]]=\"Да\",Реестр_tb[[#This Row],[Факт. дата оплаты]]<=Реестр_tb[[#This Row],[Плановая дата оплаты]]),\"Оплачено вовремя\",IF(AND(Реестр_tb[[#This Row],[Оплачен]]=\"Да\",Реестр_tb[[#This Row],[Факт. дата оплаты]]>Реестр_tb[[#This Row],[Плановая дата оплаты]]),\"Просрочено\",IF(AND(Реестр_tb[[#This Row],[Оплачен]]=\"Нет\",Реестр_tb[[#This Row],[Факт. дата оплаты]]=\"\",Реестр_tb[[#This Row],[Плановая дата оплаты]]<$AB$1),\"Просрочено\",IF(Реестр_tb[[#This Row],[Плановая дата оплаты]]=$AB$1,\"Сегодня\",IF(Реестр_tb[[#This Row],[Плановая дата оплаты]]<=$AB$1+7,\"В течении недели\",\"Через неделю и более\")))))","v":"Через неделю и более"},"Полный расчет",null,"Договор № 2-17/22/ЮЛ от 10.01.2022 г. на сумму 466 748,58 руб."]
["АО «Управление по обращению с отходами»","Муниципальное задание","вывоз, утилизация ТБО",{"$f":"IFERROR(VLOOKUP(Реестр_tb[[#This Row],[Подкатегория]],IF({1,0},Данные_tb[ЕД],Данные_tb[доп. код.]),2,0),\" \")","v":4},{"$f":"IFERROR(VLOOKUP(Реестр_tb[[#This Row],[ДОПЫ]],IF({1,0},Данные_tb[доп. код.],Данные_tb[Источник]),2,0),\" \")","v":20},"Нет","апрель",null,5,31562.39,null,null,null,null,{"$f":"IF(Реестр_tb[[#This Row],[Срок оплаты (дней)]]=\"\",\"\",WORKDAY(Реестр_tb[[#This Row],[входящий (дата)]],Реестр_tb[[#This Row],[Срок оплаты (дней)]]+1,Выходные_tb[Выходные]))","v":""},null,{"$f":"IF(AND(Реестр_tb[[#This Row],[Оплачен]]=\"Да\",Реестр_tb[[#This Row],[Факт. дата оплаты]]<=Реестр_tb[[#This Row],[Плановая дата оплаты]]),\"Оплачено вовремя\",IF(AND(Реестр_tb[[#This Row],[Оплачен]]=\"Да\",Реестр_tb[[#This Row],[Факт. дата оплаты]]>Реестр_tb[[#This Row],[Плановая дата оплаты]]),\"Просрочено\",IF(AND(Реестр_tb[[#This Row],[Оплачен]]=\"Нет\",Реестр_tb[[#This Row],[Факт. дата оплаты]]=\"\",Реестр_tb[[#This Row],[Плановая дата оплаты]]<$AB$1),\"Просрочено\",IF(Реестр_tb[[#This Row],[Плановая дата оплаты]]=$AB$1,\"Сегодня\",IF(Реестр_tb[[#This Row],[Плановая дата оплаты]]<=$AB$1+7,\"В течении недели\",\"Через неделю и более\")))))","v":"Через неделю и более"},"Полный расчет",null,"Договор № 2-17/22/ЮЛ от 10.01.2022 г. на сумму 466 748,58 руб."]
["АО «Управление по обращению с отходами»","Муниципальное задание","вывоз, утилизация ТБО",{"$f":"IFERROR(VLOOKUP(Реестр_tb[[#This Row],[Подкатегория]],IF({1,0},Данные_tb[ЕД],Данные_tb[доп. код.]),2,0),\" \")","v":4},{"$f":"IFERROR(VLOOKUP(Реестр_tb[[#This Row],[ДОПЫ]],IF({1,0},Данные_tb[доп. код.],Данные_tb[Источник]),2,0),\" \")","v":20},"Нет","май",null,5,31562.39,null,null,null,null,{"$f":"IF(Реестр_tb[[#This Row],[Срок оплаты (дней)]]=\"\",\"\",WORKDAY(Реестр_tb[[#This Row],[входящий (дата)]],Реестр_tb[[#This Row],[Срок оплаты (дней)]]+1,Выходные_tb[Выходные]))","v":""},null,{"$f":"IF(AND(Реестр_tb[[#This Row],[Оплачен]]=\"Да\",Реестр_tb[[#This Row],[Факт. дата оплаты]]<=Реестр_tb[[#This Row],[Плановая дата оплаты]]),\"Оплачено вовремя\",IF(AND(Реестр_tb[[#This Row],[Оплачен]]=\"Да\",Реестр_tb[[#This Row],[Факт. дата оплаты]]>Реестр_tb[[#This Row],[Плановая дата оплаты]]),\"Просрочено\",IF(AND(Реестр_tb[[#This Row],[Оплачен]]=\"Нет\",Реестр_tb[[#This Row],[Факт. дата оплаты]]=\"\",Реестр_tb[[#This Row],[Плановая дата оплаты]]<$AB$1),\"Просрочено\",IF(Реестр_tb[[#This Row],[Плановая дата оплаты]]=$AB$1,\"Сегодня\",IF(Реестр_tb[[#This Row],[Плановая дата оплаты]]<=$AB$1+7,\"В течении недели\",\"Через неделю и более\")))))","v":"Через неделю и более"},"Полный расчет",null,"Договор № 2-17/22/ЮЛ от 10.01.2022 г. на сумму 466 748,58 руб."]
["АО «Управление по обращению с отходами»","Муниципальное задание","вывоз, утилизация ТБО",{"$f":"IFERROR(VLOOKUP(Реестр_tb[[#This Row],[Подкатегория]],IF({1,0},Данные_tb[ЕД],Данные_tb[доп. код.]),2,0),\" \")","v":4},{"$f":"IFERROR(VLOOKUP(Реестр_tb[[#This Row],[ДОПЫ]],IF({1,0},Данные_tb[доп. код.],Данные_tb[Источник]),2,0),\" \")","v":20},"Нет","июнь",null,5,31562.39,null,null,null,null,{"$f":"IF(Реестр_tb[[#This Row],[Срок оплаты (дней)]]=\"\",\"\",WORKDAY(Реестр_tb[[#This Row],[входящий (дата)]],Реестр_tb[[#This Row],[Срок оплаты (дней)]]+1,Выходные_tb[Выходные]))","v":""},null,{"$f":"IF(AND(Реестр_tb[[#This Row],[Оплачен]]=\"Да\",Реестр_tb[[#This Row],[Факт. дата оплаты]]<=Реестр_tb[[#This Row],[Плановая дата оплаты]]),\"Оплачено вовремя\",IF(AND(Реестр_tb[[#This Row],[Оплачен]]=\"Да\",Реестр_tb[[#This Row],[Факт. дата оплаты]]>Реестр_tb[[#This Row],[Плановая дата оплаты]]),\"Просрочено\",IF(AND(Реестр_tb[[#This Row],[Оплачен]]=\"Нет\",Реестр_tb[[#This Row],[Факт. дата оплаты]]=\"\",Реестр_tb[[#This Row],[Плановая дата оплаты]]<$AB$1),\"Просрочено\",IF(Реестр_tb[[#This Row],[Плановая дата оплаты]]=$AB$1,\"Сегодня\",IF(Реестр_tb[[#This Row],[Плановая дата оплаты]]<=$AB$1+7,\"В течении недели\",\"Через неделю и более\")))))","v":"Через неделю и более"},"Полный расчет",null,"Договор № 2-17/22/ЮЛ от 10.01.2022 г. на сумму 466 748,58 руб."]
["АО «Управление по обращению с отходами»","Муниципальное задание","вывоз, утилизация ТБО",{"$f":"IFERROR(VLOOKUP(Реестр_tb[[#This Row],[Подкатегория]],IF({1,0},Данные_tb[ЕД],Данные_tb[доп. код.]),2,0),\" \")","v":4},{"$f":"IFERROR(VLOOKUP(Реестр_tb[[#This Row],[ДОПЫ]],IF({1,0},Данные_tb[доп. код.],Данные_tb[Источник]),2,0),\" \")","v":20},"Нет","июль",null,5,46229.04,null,null,null,null,{"$f":"IF(Реестр_tb[[#This Row],[Срок оплаты (дней)]]=\"\",\"\",WORKDAY(Реестр_tb[[#This Row],[входящий (дата)]],Реестр_tb[[#This Row],[Срок оплаты (дней)]]+1,Выходные_tb[Выходные]))","v":""},null,{"$f":"IF(AND(Реестр_tb[[#This Row],[Оплачен]]=\"Да\",Реестр_tb[[#This Row],[Факт. дата оплаты]]<=Реестр_tb[[#This Row],[Плановая дата оплаты]]),\"Оплачено вовремя\",IF(AND(Реестр_tb[[#This Row],[Оплачен]]=\"Да\",Реестр_tb[[#This Row],[Факт. дата оплаты]]>Реестр_tb[[#This Row],[Плановая дата оплаты]]),\"Просрочено\",IF(AND(Реестр_tb[[#This Row],[Оплачен]]=\"Нет\",Реестр_tb[[#This Row],[Факт. дата оплаты]]=\"\",Реестр_tb[[#This Row],[Плановая дата оплаты]]<$AB$1),\"Просрочено\",IF(Реестр_tb[[#This Row],[Плановая дата оплаты]]=$AB$1,\"Сегодня\",IF(Реестр_tb[[#This Row],[Плановая дата оплаты]]<=$AB$1+7,\"В течении недели\",\"Через неделю и более\")))))","v":"Через неделю и более"},"Полный расчет",null,"Договор № 2-17/22/ЮЛ от 10.01.2022 г. на сумму 466 748,58 руб."]
["АО «Управление по обращению с отходами»","Муниципальное задание","вывоз, утилизация ТБО",{"$f":"IFERROR(VLOOKUP(Реестр_tb[[#This Row],[Подкатегория]],IF({1,0},Данные_tb[ЕД],Данные_tb[доп. код.]),2,0),\" \")","v":4},{"$f":"IFERROR(VLOOKUP(Реестр_tb[[#This Row],[ДОПЫ]],IF({1,0},Данные_tb[доп. код.],Данные_tb[Источник]),2,0),\" \")","v":20},"Нет","август",null,5,46229.04,null,null,null,null,{"$f":"IF(Реестр_tb[[#This Row],[Срок оплаты (дней)]]=\"\",\"\",WORKDAY(Реестр_tb[[#This Row],[входящий (дата)]],Реестр_tb[[#This Row],[Срок оплаты (дней)]]+1,Выходные_tb[Выходные]))","v":""},null,{"$f":"IF(AND(Реестр_tb[[#This Row],[Оплачен]]=\"Да\",Реестр_tb[[#This Row],[Факт. дата оплаты]]<=Реестр_tb[[#This Row],[Плановая дата оплаты]]),\"Оплачено вовремя\",IF(AND(Реестр_tb[[#This Row],[Оплачен]]=\"Да\",Реестр_tb[[#This Row],[Факт. дата оплаты]]>Реестр_tb[[#This Row],[Плановая дата оплаты]]),\"Просрочено\",IF(AND(Реестр_tb[[#This Row],[Оплачен]]=\"Нет\",Реестр_tb[[#This Row],[Факт. дата оплаты]]=\"\",Реестр_tb[[#This Row],[Плановая дата оплаты]]<$AB$1),\"Просрочено\",IF(Реестр_tb[[#This Row],[Плановая дата оплаты]]=$AB$1,\"Сегодня\",IF(Реестр_tb[[#This Row],[Плановая дата оплаты]]<=$AB$1+7,\"В течении недели\",\"Через неделю и более\")))))","v":"Через неделю и более"},"Полный расчет",null,"Договор № 2-17/22/ЮЛ от 10.01.2022 г. на сумму 466 748,58 руб."]
["АО «Управление по обращению с отходами»","Муниципальное задание","вывоз, утилизация ТБО",{"$f":"IFERROR(VLOOKUP(Реестр_tb[[#This Row],[Подкатегория]],IF({1,0},Данные_tb[ЕД],Данные_tb[доп. код.]),2,0),\" \")","v":4},{"$f":"IFERROR(VLOOKUP(Реестр_tb[[#This Row],[ДОПЫ]],IF({1,0},Данные_tb[доп. код.],Данные_tb[Источник]),2,0),\" \")","v":20},"Нет","сентябрь",null,5,46229.04,null,null,null,null,{"$f":"IF(Реестр_tb[[#This Row],[Срок оплаты (дней)]]=\"\",\"\",WORKDAY(Реестр_tb[[#This Row],[входящий (дата)]],Реестр_tb[[#This Row],[Срок оплаты (дней)]]+1,Выходные_tb[Выходные]))","v":""},null,{"$f":"IF(AND(Реестр_tb[[#This Row],[Оплачен]]=\"Да\",Реестр_tb[[#This Row],[Факт. дата оплаты]]<=Реестр_tb[[#This Row],[Плановая дата оплаты]]),\"Оплачено вовремя\",IF(AND(Реестр_tb[[#This Row],[Оплачен]]=\"Да\",Реестр_tb[[#This Row],[Факт. дата оплаты]]>Реестр_tb[[#This Row],[Плановая дата оплаты]]),\"Просрочено\",IF(AND(Реестр_tb[[#This Row],[Оплачен]]=\"Нет\",Реестр_tb[[#This Row],[Факт. дата оплаты]]=\"\",Реестр_tb[[#This Row],[Плановая дата оплаты]]<$AB$1),\"Просрочено\",IF(Реестр_tb[[#This Row],[Плановая дата оплаты]]=$AB$1,\"Сегодня\",IF(Реестр_tb[[#This Row],[Плановая дата оплаты]]<=$AB$1+7,\"В течении недели\",\"Через неделю и более\")))))","v":"Через неделю и более"},"Полный расчет",null,"Договор № 2-17/22/ЮЛ от 10.01.2022 г. на сумму 466 748,58 руб."]
["АО «Управление по обращению с отходами»","Муниципальное задание","вывоз, утилизация ТБО",{"$f":"IFERROR(VLOOKUP(Реестр_tb[[#This Row],[Подкатегория]],IF({1,0},Данные_tb[ЕД],Данные_tb[доп. код.]),2,0),\" \")","v":4},{"$f":"IFERROR(VLOOKUP(Реестр_tb[[#This Row],[ДОПЫ]],IF({1,0},Данные_tb[доп. код.],Данные_tb[Источник]),2,0),\" \")","v":20},"Нет","октябрь",null,5,46229.04,null,null,null,null,{"$f":"IF(Реестр_tb[[#This Row],[Срок оплаты (дней)]]=\"\",\"\",WORKDAY(Реестр_tb[[#This Row],[входящий (дата)]],Реестр_tb[[#This Row],[Срок оплаты (дней)]]+1,Выходные_tb[Выходные]))","v":""},null,{"$f":"IF(AND(Реестр_tb[[#This Row],[Оплачен]]=\"Да\",Реестр_tb[[#This Row],[Факт. дата оплаты]]<=Реестр_tb[[#This Row],[Плановая дата оплаты]]),\"Оплачено вовремя\",IF(AND(Реестр_tb[[#This Row],[Оплачен]]=\"Да\",Реестр_tb[[#This Row],[Факт. дата оплаты]]>Реестр_tb[[#This Row],[Плановая дата оплаты]]),\"Просрочено\",IF(AND(Реестр_tb[[#This Row],[Оплачен]]=\"Нет\",Реестр_tb[[#This Row],[Факт. дата оплаты]]=\"\",Реестр_tb[[#This Row],[Плановая дата оплаты]]<$AB$1),\"Просрочено\",IF(Реестр_tb[[#This Row],[Плановая дата оплаты]]=$AB$1,\"Сегодня\",IF(Реестр_tb[[#This Row],[Плановая дата оплаты]]<=$AB$1+7,\"В течении недели\",\"Через неделю и более\")))))","v":"Через неделю и более"},"Полный расчет",null,"Договор № 2-17/22/ЮЛ от 10.01.2022 г. на сумму 466 748,58 руб."]
["АО «Управление по обращению с отходами»","Муниципальное задание","вывоз, утилизация ТБО",{"$f":"IFERROR(VLOOKUP(Реестр_tb[[#This Row],[Подкатегория]],IF({1,0},Данные_tb[ЕД],Данные_tb[доп. код.]),2,0),\" \")","v":4},{"$f":"IFERROR(VLOOKUP(Реестр_tb[[#This Row],[ДОПЫ]],IF({1,0},Данные_tb[доп. код.],Данные_tb[Источник]),2,0),\" \")","v":20},"Нет","ноябрь",null,5,46229.04,null,null,null,null,{"$f":"IF(Реестр_tb[[#This Row],[Срок оплаты (дней)]]=\"\",\"\",WORKDAY(Реестр_tb[[#This Row],[входящий (дата)]],Реестр_tb[[#This Row],[Срок оплаты (дней)]]+1,Выходные_tb[Выходные]))","v":""},null,{"$f":"IF(AND(Реестр_tb[[#This Row],[Оплачен]]=\"Да\",Реестр_tb[[#This Row],[Факт. дата оплаты]]<=Реестр_tb[[#This Row],[Плановая дата оплаты]]),\"Оплачено вовремя\",IF(AND(Реестр_tb[[#This Row],[Оплачен]]=\"Да\",Реестр_tb[[#This Row],[Факт. дата оплаты]]>Реестр_tb[[#This Row],[Плановая дата оплаты]]),\"Просрочено\",IF(AND(Реестр_tb[[#This Row],[Оплачен]]=\"Нет\",Реестр_tb[[#This Row],[Факт. дата оплаты]]=\"\",Реестр_tb[[#This Row],[Плановая дата оплаты]]<$AB$1),\"Просрочено\",IF(Реестр_tb[[#This Row],[Плановая дата оплаты]]=$AB$1,\"Сегодня\",IF(Реестр_tb[[#This Row],[Плановая дата оплаты]]<=$AB$1+7,\"В течении недели\",\"Через неделю и более\")))))","v":"Через неделю и более"},"Полный расчет",null,"Договор № 2-17/22/ЮЛ от 10.01.2022 г. на сумму 466 748,58 руб."]
["АО «Управление по обращению с отходами»","Муниципальное задание","вывоз, утилизация ТБО",{"$f":"IFERROR(VLOOKUP(Реестр_tb[[#This Row],[Подкатегория]],IF({1,0},Данные_tb[ЕД],Данные_tb[доп. код.]),2,0),\" \")","v":4},{"$f":"IFERROR(VLOOKUP(Реестр_tb[[#This Row],[ДОПЫ]],IF({1,0},Данные_tb[доп. код.],Данные_tb[Источник]),2,0),\" \")","v":20},"Нет","декабрь",null,5,46229.04,null,null,null,null,{"$f":"IF(Реестр_tb[[#This Row],[Срок оплаты (дней)]]=\"\",\"\",WORKDAY(Реестр_tb[[#This Row],[входящий (дата)]],Реестр_tb[[#This Row],[Срок оплаты (дней)]]+1,Выходные_tb[Выходные]))","v":""},null,{"$f":"IF(AND(Реестр_tb[[#This Row],[Оплачен]]=\"Да\",Реестр_tb[[#This Row],[Факт. дата оплаты]]<=Реестр_tb[[#This Row],[Плановая дата оплаты]]),\"Оплачено вовремя\",IF(AND(Реестр_tb[[#This Row],[Оплачен]]=\"Да\",Реестр_tb[[#This Row],[Факт. дата оплаты]]>Реестр_tb[[#This Row],[Плановая дата оплаты]]),\"Просрочено\",IF(AND(Реестр_tb[[#This Row],[Оплачен]]=\"Нет\",Реестр_tb[[#This Row],[Факт. дата оплаты]]=\"\",Реестр_tb[[#This Row],[Плановая дата оплаты]]<$AB$1),\"Просрочено\",IF(Реестр_tb[[#This Row],[Плановая дата оплаты]]=$AB$1,\"Сегодня\",IF(Реестр_tb[[#This Row],[Плановая дата оплаты]]<=$AB$1+7,\"В течении недели\",\"Через неделю и более\")))))","v":"Через неделю и более"},"Полный расчет",null,"Договор № 2-17/22/ЮЛ от 10.01.2022 г. на сумму 466 748,58 руб."]
["ИП Баранникова Т.Д.","Муниципальное задание","хоз.материалы, инвентарь, канц.элект. товары",{"$f":"IFERROR(VLOOKUP(Реестр_tb[[#This Row],[Подкатегория]],IF({1,0},Данные_tb[ЕД],Данные_tb[доп. код.]),2,0),\" \")","v":4},{"$f":"IFERROR(VLOOKUP(Реестр_tb[[#This Row],[ДОПЫ]],IF({1,0},Данные_tb[доп. код.],Данные_tb[Источник]),2,0),\" \")","v":20},"Нет",null,"скатерть",4,2000,null,"02.02.22",15,"Акта",{"$f":"IF(Реестр_tb[[#This Row],[Срок оплаты (дней)]]=\"\",\"\",WORKDAY(Реестр_tb[[#This Row],[входящий (дата)]],Реестр_tb[[#This Row],[Срок оплаты (дней)]]+1,Выходные_tb[Выходные]))","v":"2022-02-24"},null,{"$f":"IF(AND(Реестр_tb[[#This Row],[Оплачен]]=\"Да\",Реестр_tb[[#This Row],[Факт. дата оплаты]]<=Реестр_tb[[#This Row],[Плановая дата оплаты]]),\"Оплачено вовремя\",IF(AND(Реестр_tb[[#This Row],[Оплачен]]=\"Да\",Реестр_tb[[#This Row],[Факт. дата оплаты]]>Реестр_tb[[#This Row],[Плановая дата оплаты]]),\"Просрочено\",IF(AND(Реестр_tb[[#This Row],[Оплачен]]=\"Нет\",Реестр_tb[[#This Row],[Факт. дата оплаты]]=\"\",Реестр_tb[[#This Row],[Плановая дата оплаты]]<$AB$1),\"Просрочено\",IF(Реестр_tb[[#This Row],[Плановая дата оплаты]]=$AB$1,\"Сегодня\",IF(Реестр_tb[[#This Row],[Плановая дата оплаты]]<=$AB$1+7,\"В течении недели\",\"Через неделю и более\")))))","v":"Через неделю и более"},"Полный расчет",null,"Без договора"]
["ИП Привалов И.И.","Муниципальное задание","хоз.материалы, инвентарь, канц.элект. товары",{"$f":"IFERROR(VLOOKUP(Реестр_tb[[#This Row],[Подкатегория]],IF({1,0},Данные_tb[ЕД],Данные_tb[доп. код.]),2,0),\" \")","v":4},{"$f":"IFERROR(VLOOKUP(Реестр_tb[[#This Row],[ДОПЫ]],IF({1,0},Данные_tb[доп. код.],Данные_tb[Источник]),2,0),\" \")","v":20},"Нет",null,"хозы",null,17617,null,"02.02.22",15,"Акта",{"$f":"IF(Реестр_tb[[#This Row],[Срок оплаты (дней)]]=\"\",\"\",WORKDAY(Реестр_tb[[#This Row],[входящий (дата)]],Реестр_tb[[#This Row],[Срок оплаты (дней)]]+1,Выходные_tb[Выходные]))","v":"2022-02-24"},null,{"$f":"IF(AND(Реестр_tb[[#This Row],[Оплачен]]=\"Да\",Реестр_tb[[#This Row],[Факт. дата оплаты]]<=Реестр_tb[[#This Row],[Плановая дата оплаты]]),\"Оплачено вовремя\",IF(AND(Реестр_tb[[#This Row],[Оплачен]]=\"Да\",Реестр_tb[[#This Row],[Факт. дата оплаты]]>Реестр_tb[[#This Row],[Плановая дата оплаты]]),\"Просрочено\",IF(AND(Реестр_tb[[#This Row],[Оплачен]]=\"Нет\",Реестр_tb[[#This Row],[Факт. дата оплаты]]=\"\",Реестр_tb[[#This Row],[Плановая дата оплаты]]<$AB$1),\"Просрочено\",IF(Реестр_tb[[#This Row],[Плановая дата оплаты]]=$AB$1,\"Сегодня\",IF(Реестр_tb[[#This Row],[Плановая дата оплаты]]<=$AB$1+7,\"В течении недели\",\"Через неделю и более\")))))","v":"Через неделю и более"},"Полный расчет",null,"Без договора"]

{"sheet":"Данные","index":1,"n_rows":93,"n_cols":14,"rows_kept":93,"cut":false,"hidden":false,"merged":[]}
["Категория","ЕД","доп. код.","Источник","в том числе аукцион, командировки, штрафы, стипендии уч-ся и т.п.","Выделено","Израсходовано","Остаток",null,null,"Сурудо от 10.01","4","5","аукцион и т.п."]
["учебные расходы","учебные расходы (основные)","0202","20",null,1809903.25,{"$f":"SUMIF(Реестр!$C:$C,Данные_tb[[#This Row],[ЕД]],Реестр!$J:$J)","v":0},{"$f":"Данные_tb[[#This Row],[Выделено]]-Данные_tb[[#This Row],[Израсходовано]]","v":1809903.25},null,null,"Выделено",5000000,25000000]
["учебные расходы","учебные расходы (расходные)","0202","20",null,1809903.25,{"$f":"SUMIF(Реестр!$C:$C,Данные_tb[[#This Row],[ЕД]],Реестр!$J:$J)","v":2000},{"$f":"Данные_tb[[#This Row],[Выделено]]-Данные_tb[[#This Row],[Израсходовано]]","v":1807903.25},null,null,"Израсходовано",{"$f":"SUMIF(Реестр!$I:$I,Остатки_tb[[#Headers],[4]],Реестр!$J:$J)","v":210478.72},{"$f":"SUMIF(Реестр!$I:$I,Остатки_tb[[#Headers],[5]],Реестр!$J:$J)","v":3144225.8400000017},{"$f":"SUMIF(Реестр!$I:$I,Остатки_tb[[#Headers],[аукцион и т.п.]],Реестр!$J:$J)","v":8982850.8300000001}]
["учебные расходы (допобразование)","учебные расходы (допобразование)","0202","20",null,316700,{"$f":"SUMIF(Реестр!$C:$C,Данные_tb[[#This Row],[ЕД]],Реестр!$J:$J)","v":0},{"$f":"Данные_tb[[#This Row],[Выделено]]-Данные_tb[[#This Row],[Израсходовано]]","v":316700},null,null,"Остаток",{"$f":"L2-L3","v":4789521.28},{"$f":"M2-M3","v":21855774.159999996}]
["приобретение оборудования (лицензии, ПО)","6 рециркуляторов","М0036",21,null,150756,{"$f":"SUMIF(Реестр!$C:$C,Данные_tb[[#This Row],[ЕД]],Реестр!$J:$J)","v":0},{"$f":"Данные_tb[[#This Row],[Выделено]]-Данные_tb[[#This Row],[Израсходовано]]","v":150756}]
["приобретение оборудования (лицензии, ПО)","4 дозатора","М0036",21,null,29508,{"$f":"SUMIF(Реестр!$C:$C,Данные_tb[[#This Row],[ЕД]],Реестр!$J:$J)","v":0},{"$f":"Данные_tb[[#This Row],[Выделено]]-Данные_tb[[#This Row],[Израсходовано]]","v":29508}]
["приобретение оборудования (лицензии, ПО)","ПК (сист.блок, монитор, мышь, клавиатура, колонки, ПО офисное, операц.система)*10 шт","М0036",21,null,null,{"$f":"SUMIF(Реестр!$C:$C,Данные_tb[[#This Row],[ЕД]],Реестр!$J:$J)","v":0},{"$f":"Данные_tb[[#This Row],[Выделено]]-Данные_tb[[#This Row],[Израсходовано]]","v":0}]
["приобретение оборудования (лицензии, ПО)","ИБП-3шт. По 10тыс., ИБП для сервера - 50 тыс-1 шт.","М0036",21,null,null,{"$f":"SUMIF(Реестр!$C:$C,Данные_tb[[#This Row],[ЕД]],Реестр!$J:$J)","v":0},{"$f":"Данные_tb[[#This Row],[Выделено]]-Данные_tb[[#This Row],[Израсходовано]]","v":0}]
["приобретение оборудования (лицензии, ПО)","аппарат котлетный, тестоделитель, хлеборезка, 2 холодильника, стол для тестоделителя, стол к п/м машине, конвектомат","М0036",21,null,1168716,{"$f":"SUMIF(Реестр!$C:$C,Данные_tb[[#This Row],[ЕД]],Реестр!$J:$J)","v":0},{"$f":"Данные_tb[[#This Row],[Выделено]]-Данные_tb[[#This Row],[Израсходовано]]","v":1168716}]
["приобретение оборудования (лицензии, ПО)","строительный пылесос","М0036",21,null,null,{"$f":"SUMIF(Реестр!$C:$C,Данные_tb[[#This Row],[ЕД]],Реестр!$J:$J)","v":0},{"$f":"Данные_tb[[#This Row],[Выделено]]-Данные_tb[[#This Row],[Израсходовано]]","v":0}]
["приобретение оборудования (лицензии, ПО)","тележка платформенная для бережной транспортировки грузов- 2 шт., тележка для перевозки грузов-1 шт по 15 тыс.","М0036",21,null,null,{"$f":"SUMIF(Реестр!$C:$C,Данные_tb[[#This Row],[ЕД]],Реестр!$J:$J)","v":0},{"$f":"Данные_tb[[#This Row],[Выделено]]-Данные_tb[[#This Row],[Израсходовано]]","v":0}]
["приобретение оборудования (лицензии, ПО)","приобретение программного обеспечения, эл.сис-ма образования","М0036",21,null,null,{"$f":"SUMIF(Реестр!$C:$C,Данные_tb[[#This Row],[ЕД]],Реестр!$J:$J)","v":0},{"$f":"Данные_tb[[#This Row],[Выделено]]-Данные_tb[[#This Row],[Израсходовано]]","v":0}]
["приобретение оборудования (лицензии, ПО)","Продление домена ukshkola.ru на 1 год по тарифу Базовый","Без допа",20,null,null,{"$f":"SUMIF(Реестр!$C:$C,Данные_tb[[#This Row],[ЕД]],Реестр!$J:$J)","v":0},{"$f":"Данные_tb[[#This Row],[Выделено]]-Данные_tb[[#This Row],[Израсходовано]]","v":0}]
["охрана аукцион, ППБ, предписания","физическая охрана ","М0026",21,1747334.91,1747334.91,{"$f":"SUMIF(Реестр!$C:$C,Данные_tb[[#This Row],[ЕД]],Реестр!$J:$J)","v":1747334.91},{"$f":"Данные_tb[[#This Row],[Выделено]]-Данные_tb[[#This Row],[Израсходовано]]","v":0}]
["Доступная среда","доступная среда (областной бюджет)","Д63020",21,null,147900,{"$f":"SUMIF(Реестр!$C:$C,Данные_tb[[#This Row],[ЕД]],Реестр!$J:$J)","v":0},{"$f":"Данные_tb[[#This Row],[Выделено]]-Данные_tb[[#This Row],[Израсходовано]]","v":147900}]
["Доступная среда","доступная среда (местный бюджет) - софинансирование","М63020",21,null,1493.94,{"$f":"SUMIF(Реестр!$C:$C,Данные_tb[[#This Row],[ЕД]],Реестр!$J:$J)","v":0},{"$f":"Данные_tb[[#This Row],[Выделено]]-Данные_tb[[#This Row],[Израсходовано]]","v":1493.94}]
["Доступная среда","доступная среда (местный бюджет) ","М0034",20,null,null,{"$f":"SUMIF(Реестр!$C:$C,Данные_tb[[#This Row],[ЕД]],Реестр!$J:$J)","v":0},{"$f":"Данные_tb[[#This Row],[Выделено]]-Данные_tb[[#This Row],[Израсходовано]]","v":0}]
["Молодежный бюджет","молодежный бюджет (областной бюджет)","Д63330",21,600000,2500000,{"$f":"SUMIF(Реестр!$C:$C,Данные_tb[[#This Row],[ЕД]],Реестр!$J:$J)","v":0},{"$f":"Данные_tb[[#This Row],[Выделено]]-Данные_tb[[#This Row],[Израсходовано]]","v":2500000}]
["Молодежный бюджет","Молодежный бюджет (местный бюджет) - софинансирование","М63330",21,6000,25252.52,{"$f":"SUMIF(Реестр!$C:$C,Данные_tb[[#This Row],[ЕД]],Реестр!$J:$J)","v":0},{"$f":"Данные_tb[[#This Row],[Выделено]]-Данные_tb[[#This Row],[Израсходовано]]","v":25252.52}]
["Текущий ремонт ","текущий ремонт:  1418000 - школа, 100000 - баскетбольная площадка и футбольное поле, 100000 - установка кранов на батареи, 100000 - ликвидация последствий циклонов ","М0035",21,null,959000,{"$f":"SUMIF(Реестр!$C:$C,Данные_tb[[#This Row],[ЕД]],Реестр!$J:$J)","v":0},{"$f":"Данные_tb[[#This Row],[Выделено]]-Данные_tb[[#This Row],[Израсходовано]]","v":959000}]
["Текущий ремонт ","материалы на текущий ремонт","М0035",21,null,759000,{"$f":"SUMIF(Реестр!$C:$C,Данные_tb[[#This Row],[ЕД]],Реестр!$J:$J)","v":0},{"$f":"Данные_tb[[#This Row],[Выделено]]-Данные_tb[[#This Row],[Израсходовано]]","v":759000}]
["Капитальный ремонт ","капитальный ремонт (местный бюджет)","М0027",20,null,0,{"$f":"SUMIF(Реестр!$C:$C,Данные_tb[[#This Row],[ЕД]],Реестр!$J:$J)","v":0},{"$f":"Данные_tb[[#This Row],[Выделено]]-Данные_tb[[#This Row],[Израсходовано]]","v":0}]
["Капитальный ремонт ","капитальный ремонт (областной бюджет)","Д0027",21,null,0,{"$f":"SUMIF(Реестр!$C:$C,Данные_tb[[#This Row],[ЕД]],Реестр!$J:$J)","v":0},{"$f":"Данные_tb[[#This Row],[Выделено]]-Данные_tb[[#This Row],[Израсходовано]]","v":0}]
["Коммунальные услуги","электроэнергия",23,20,2151240,2151240,{"$f":"SUMIF(Реестр!$C:$C,Данные_tb[[#This Row],[ЕД]],Реестр!$J:$J)","v":1970202},{"$f":"Данные_tb[[#This Row],[Выделено]]-Данные_tb[[#This Row],[Израсходовано]]","v":181038}]
["Коммунальные услуги","вода",23,20,756652.46,756652.46,{"$f":"SUMIF(Реестр!$C:$C,Данные_tb[[#This Row],[ЕД]],Реестр!$J:$J)","v":1681914},{"$f":"Данные_tb[[#This Row],[Выделено]]-Данные_tb[[#This Row],[Израсходовано]]","v":-925261.54}]
["Коммунальные услуги","теплоснабжение",23,20,6971982.9699999997,6971982.9699999997,{"$f":"SUMIF(Реестр!$C:$C,Данные_tb[[#This Row],[ЕД]],Реестр!$J:$J)","v":1826058},{"$f":"Данные_tb[[#This Row],[Выделено]]-Данные_tb[[#This Row],[Израсходовано]]","v":5145924.97}]
["питание (местный бюджет)","питание 1-4 классы","М0025",20,null,1620000,{"$f":"SUMIF(Реестр!$C:$C,Данные_tb[[#This Row],[ЕД]],Реестр!$J:$J)","v":63330.8},{"$f":"Данные_tb[[#This Row],[Выделено]]-Данные_tb[[#This Row],[Израсходовано]]","v":1556669.2}]
["питание (местный бюджет)","питание 5-11 кл.малоимущ.","М0025",20,null,null,{"$f":"SUMIF(Реестр!$C:$C,Данные_tb[[#This Row],[ЕД]],Реестр!$J:$J)","v":0},{"$f":"Данные_tb[[#This Row],[Выделено]]-Данные_tb[[#This Row],[Израсходовано]]","v":0}]
["питание (местный бюджет)","питание 5-11 кл.опекаемые","М19014",20,null,288000,{"$f":"SUMIF(Реестр!$C:$C,Данные_tb[[#This Row],[ЕД]],Реестр!$J:$J)","v":0},{"$f":"Данные_tb[[#This Row],[Выделено]]-Данные_tb[[#This Row],[Израсходовано]]","v":288000}]
["питание (местный бюджет)","молоко опека","М19017",20,null,79200,{"$f":"SUMIF(Реестр!$C:$C,Данные_tb[[#This Row],[ЕД]],Реестр!$J:$J)","v":55649.53},{"$f":"Данные_tb[[#This Row],[Выделено]]-Данные_tb[[#This Row],[Израсходовано]]","v":23550.47}]
["питание (внебюджет)","5-11, сотрудники",2,20,null,null,{"$f":"SUMIF(Реестр!$C:$C,Данные_tb[[#This Row],[ЕД]],Реестр!$J:$J)","v":254615.86},{"$f":"Данные_tb[[#This Row],[Выделено]]-Данные_tb[[#This Row],[Израсходовано]]","v":-254615.86}]
["питание (федеральный бюджет)","питание (федеральный бюджет)","22-53040-00000",20,null,5642760,{"$f":"SUMIF(Реестр!$C:$C,Данные_tb[[#This Row],[ЕД]],Реестр!$J:$J)","v":392034.87},{"$f":"Данные_tb[[#This Row],[Выделено]]-Данные_tb[[#This Row],[Израсходовано]]","v":5250725.13}]
["питание (областной бюджет) (молоко, 5-11,многодетные, ОВЗ)","питание 1-4 кл, 5-11 кл.малоимущ","Д62190",20,90990,1539658.08,{"$f":"SUMIF(Реестр!$C:$C,Данные_tb[[#This Row],[ЕД]],Реестр!$J:$J)","v":218696.49000000002},{"$f":"Данные_tb[[#This Row],[Выделено]]-Данные_tb[[#This Row],[Израсходовано]]","v":1320961.5900000001}]
["питание (областной бюджет) (молоко, 5-11,многодетные, ОВЗ)","молоко","Д62190",20,1757341.92,1757341.92,{"$f":"SUMIF(Реестр!$C:$C,Данные_tb[[#This Row],[ЕД]],Реестр!$J:$J)","v":1757341.92},{"$f":"Данные_tb[[#This Row],[Выделено]]-Данные_tb[[#This Row],[Израсходовано]]","v":0}]
["Лагерь ","питание детей в лагере (2 смены)","0707","21",null,952978.95,{"$f":"SUMIF(Реестр!$C:$C,Данные_tb[[#This Row],[ЕД]],Реестр!$J:$J)","v":0},{"$f":"Данные_tb[[#This Row],[Выделено]]-Данные_tb[[#This Row],[Израсходовано]]","v":952978.95}]
["Лагерь ","хоз.материалы лагерь (2 смены)","0707","21",null,null,{"$f":"SUMIF(Реестр!$C:$C,Данные_tb[[#This Row],[ЕД]],Реестр!$J:$J)","v":0},{"$f":"Данные_tb[[#This Row],[Выделено]]-Данные_tb[[#This Row],[Израсходовано]]","v":0}]
["Лагерь ","медосмотр работников в лагере","0707","21",null,null,{"$f":"SUMIF(Реестр!$C:$C,Данные_tb[[#This Row],[ЕД]],Реестр!$J:$J)","v":0},{"$f":"Данные_tb[[#This Row],[Выделено]]-Данные_tb[[#This Row],[Израсходовано]]","v":0}]
["Лагерь ","голограммы (лагерь)","0707","21",null,null,{"$f":"SUMIF(Реестр!$C:$C,Данные_tb[[#This Row],[ЕД]],Реестр!$J:$J)","v":0},{"$f":"Данные_tb[[#This Row],[Выделено]]-Данные_tb[[#This Row],[Израсходовано]]","v":0}]
["Лагерь ","медосмотр водителей (лагерь)","0707","21",null,null,{"$f":"SUMIF(Реестр!$C:$C,Данные_tb[[#This Row],[ЕД]],Реестр!$J:$J)","v":0},{"$f":"Данные_tb[[#This Row],[Выделено]]-Данные_tb[[#This Row],[Израсходовано]]","v":0}]
["Лагерь ","топливо (лагерь)","0707","21",null,null,{"$f":"SUMIF(Реестр!$C:$C,Данные_tb[[#This Row],[ЕД]],Реестр!$J:$J)","v":0},{"$f":"Данные_tb[[#This Row],[Выделено]]-Данные_tb[[#This Row],[Израсходовано]]","v":0}]
["Лагерь ","рото- норо- (лагерь)","0707","21",null,null,{"$f":"SUMIF(Реестр!$C:$C,Данные_tb[[#This Row],[ЕД]],Реестр!$J:$J)","v":0},{"$f":"Данные_tb[[#This Row],[Выделено]]-Данные_tb[[#This Row],[Израсходовано]]","v":0}]
["Подвоз","топливо",18,20,null,5500000,{"$f":"SUMIF(Реестр!$C:$C,Данные_tb[[#This Row],[ЕД]],Реестр!$J:$J)","v":0},{"$f":"Данные_tb[[#This Row],[Выделено]]-Данные_tb[[#This Row],[Израсходовано]]","v":5500000}]
["Подвоз","автомасла",18,20,null,-2773720,{"$f":"SUMIF(Реестр!$C:$C,Данные_tb[[#This Row],[ЕД]],Реестр!$J:$J)","v":0},{"$f":"Данные_tb[[#This Row],[Выделено]]-Данные_tb[[#This Row],[Израсходовано]]","v":-2773720}]
["Подвоз","запчасти",18,20,null,1763720,{"$f":"SUMIF(Реестр!$C:$C,Данные_tb[[#This Row],[ЕД]],Реестр!$J:$J)","v":12490},{"$f":"Данные_tb[[#This Row],[Выделено]]-Данные_tb[[#This Row],[Израсходовано]]","v":1751230}]
["Подвоз","спецодежда (гараж)",18,20,null,100000,{"$f":"SUMIF(Реестр!$C:$C,Данные_tb[[#This Row],[ЕД]],Реестр!$J:$J)","v":0},{"$f":"Данные_tb[[#This Row],[Выделено]]-Данные_tb[[#This Row],[Израсходовано]]","v":100000}]
["Подвоз","мед.осмотр водителей",18,20,null,1200000,{"$f":"SUMIF(Реестр!$C:$C,Данные_tb[[#This Row],[ЕД]],Реестр!$J:$J)","v":0},{"$f":"Данные_tb[[#This Row],[Выделено]]-Данные_tb[[#This Row],[Израсходовано]]","v":1200000}]
["Подвоз","техосмотр",18,20,null,40000,{"$f":"SUMIF(Реестр!$C:$C,Данные_tb[[#This Row],[ЕД]],Реестр!$J:$J)","v":0},{"$f":"Данные_tb[[#This Row],[Выделено]]-Данные_tb[[#This Row],[Израсходовано]]","v":40000}]
["Подвоз","автострахование",18,20,null,150000,{"$f":"SUMIF(Реестр!$C:$C,Данные_tb[[#This Row],[ЕД]],Реестр!$J:$J)","v":9462.74},{"$f":"Данные_tb[[#This Row],[Выделено]]-Данные_tb[[#This Row],[Израсходовано]]","v":140537.26}]
["Подвоз","обслуживание тахографов, мониторинг \"Посейдон\"",18,20,null,220000,{"$f":"SUMIF(Реестр!$C:$C,Данные_tb[[#This Row],[ЕД]],Реестр!$J:$J)","v":67200},{"$f":"Данные_tb[[#This Row],[Выделено]]-Данные_tb[[#This Row],[Израсходовано]]","v":152800}]
["Подвоз","услуги автотранспорта (морская перевозка автобуса на техомотр)",18,20,null,null,{"$f":"SUMIF(Реестр!$C:$C,Данные_tb[[#This Row],[ЕД]],Реестр!$J:$J)","v":34700},{"$f":"Данные_tb[[#This Row],[Выделено]]-Данные_tb[[#This Row],[Израсходовано]]","v":-34700}]
["Подвоз","оснащение видеонаблюдением автобусов",18,20,1300000,1300000,{"$f":"SUMIF(Реестр!$C:$C,Данные_tb[[#This Row],[ЕД]],Реестр!$J:$J)","v":0},{"$f":"Данные_tb[[#This Row],[Выделено]]-Данные_tb[[#This Row],[Израсходовано]]","v":1300000}]
["Муниципальное задание","командировочные (проезд, проживание, суточные)",4,20,150000,150000,{"$f":"SUMIF(Реестр!$C:$C,Данные_tb[[#This Row],[ЕД]],Реестр!$J:$J)","v":0},{"$f":"Данные_tb[[#This Row],[Выделено]]-Данные_tb[[#This Row],[Израсходовано]]","v":150000}]
["Муниципальное задание","почтовые",4,20,null,null,{"$f":"SUMIF(Реестр!$C:$C,Данные_tb[[#This Row],[ЕД]],Реестр!$J:$J)","v":0},{"$f":"Данные_tb[[#This Row],[Выделено]]-Данные_tb[[#This Row],[Израсходовано]]","v":0}]
["Муниципальное задание","услуги связи",4,20,null,250000,{"$f":"SUMIF(Реестр!$C:$C,Данные_tb[[#This Row],[ЕД]],Реестр!$J:$J)","v":70798.570000000007},{"$f":"Данные_tb[[#This Row],[Выделено]]-Данные_tb[[#This Row],[Израсходовано]]","v":179201.43}]
["Муниципальное задание","почтовые",4,20,null,null,{"$f":"SUMIF(Реестр!$C:$C,Данные_tb[[#This Row],[ЕД]],Реестр!$J:$J)","v":0},{"$f":"Данные_tb[[#This Row],[Выделено]]-Данные_tb[[#This Row],[Израсходовано]]","v":0}]
["Муниципальное задание","уборка и вывоз снега",4,20,null,120000,{"$f":"SUMIF(Реестр!$C:$C,Данные_tb[[#This Row],[ЕД]],Реестр!$J:$J)","v":0},{"$f":"Данные_tb[[#This Row],[Выделено]]-Данные_tb[[#This Row],[Израсходовано]]","v":120000}]
["Муниципальное задание","услуги автотранспорта (доставка товаров до школы (автобусы на техосмотр провести по допу 18 - выделены по этой статье))",4,20,null,1810000,{"$f":"SUMIF(Реестр!$C:$C,Данные_tb[[#This Row],[ЕД]],Реестр!$J:$J)","v":0},{"$f":"Данные_tb[[#This Row],[Выделено]]-Данные_tb[[#This Row],[Израсходовано]]","v":1810000}]
["Муниципальное задание","промывка и опресовка системы",4,20,null,450000,{"$f":"SUMIF(Реестр!$C:$C,Данные_tb[[#This Row],[ЕД]],Реестр!$J:$J)","v":0},{"$f":"Данные_tb[[#This Row],[Выделено]]-Данные_tb[[#This Row],[Израсходовано]]","v":450000}]
["Муниципальное задание","поверка приборов ",4,20,null,50000,{"$f":"SUMIF(Реестр!$C:$C,Данные_tb[[#This Row],[ЕД]],Реестр!$J:$J)","v":0},{"$f":"Данные_tb[[#This Row],[Выделено]]-Данные_tb[[#This Row],[Израсходовано]]","v":50000}]
["Муниципальное задание","замер сопротивления изоляции",4,20,null,400000,{"$f":"SUMIF(Реестр!$C:$C,Данные_tb[[#This Row],[ЕД]],Реестр!$J:$J)","v":0},{"$f":"Данные_tb[[#This Row],[Выделено]]-Данные_tb[[#This Row],[Израсходовано]]","v":400000}]
["Муниципальное задание","вывоз, утилизация ТБО",4,20,null,415534.95,{"$f":"SUMIF(Реестр!$C:$C,Данные_tb[[#This Row],[ЕД]],Реестр!$J:$J)","v":466748.57999999996},{"$f":"Данные_tb[[#This Row],[Выделено]]-Данные_tb[[#This Row],[Израсходовано]]","v":-51213.629999999946}]
["Муниципальное задание","дератизация, рото-норо диагностика, пробы воды и т.п.",4,20,null,90000,{"$f":"SUMIF(Реестр!$C:$C,Данные_tb[[#This Row],[ЕД]],Реестр!$J:$J)","v":0},{"$f":"Данные_tb[[#This Row],[Выделено]]-Данные_tb[[#This Row],[Израсходовано]]","v":90000}]
["Муниципальное задание","обслуживание тревожной кнопки",4,20,null,401541.84,{"$f":"SUMIF(Реестр!$C:$C,Данные_tb[[#This Row],[ЕД]],Реестр!$J:$J)","v":42000},{"$f":"Данные_tb[[#This Row],[Выделено]]-Данные_tb[[#This Row],[Израсходовано]]","v":359541.84}]
["Муниципальное задание","обслуживание пожарной сигнализации ",4,20,null,300000,{"$f":"SUMIF(Реестр!$C:$C,Данные_tb[[#This Row],[ЕД]],Реестр!$J:$J)","v":300000},{"$f":"Данные_tb[[#This Row],[Выделено]]-Данные_tb[[#This Row],[Израсходовано]]","v":0}]
["Муниципальное задание","мониторинг системы пожарной безопасности (Координата)",4,20,null,36000,{"$f":"SUMIF(Реестр!$C:$C,Данные_tb[[#This Row],[ЕД]],Реестр!$J:$J)","v":30000},{"$f":"Данные_tb[[#This Row],[Выделено]]-Данные_tb[[#This Row],[Израсходовано]]","v":6000}]
["Муниципальное задание","обслуживание системы видеонаблюдения",4,20,null,240000,{"$f":"SUMIF(Реестр!$C:$C,Данные_tb[[#This Row],[ЕД]],Реестр!$J:$J)","v":216000},{"$f":"Данные_tb[[#This Row],[Выделено]]-Данные_tb[[#This Row],[Израсходовано]]","v":24000}]
["Муниципальное задание","услуги по подписке",4,20,null,370000,{"$f":"SUMIF(Реестр!$C:$C,Данные_tb[[#This Row],[ЕД]],Реестр!$J:$J)","v":0},{"$f":"Данные_tb[[#This Row],[Выделено]]-Данные_tb[[#This Row],[Израсходовано]]","v":370000}]
["Муниципальное задание","обновление справочно-информационных баз (Консультант)",4,20,null,146740,{"$f":"SUMIF(Реестр!$C:$C,Данные_tb[[#This Row],[ЕД]],Реестр!$J:$J)","v":97533.72},{"$f":"Данные_tb[[#This Row],[Выделено]]-Данные_tb[[#This Row],[Израсходовано]]","v":49206.28}]
["Муниципальное задание","обслуживание сайта (МЦФР, ГрамотаДел, продление доменного имени)",4,20,null,101000,{"$f":"SUMIF(Реестр!$C:$C,Данные_tb[[#This Row],[ЕД]],Реестр!$J:$J)","v":0},{"$f":"Данные_tb[[#This Row],[Выделено]]-Данные_tb[[#This Row],[Израсходовано]]","v":101000}]
["Муниципальное задание","СОУТ",4,20,null,230000,{"$f":"SUMIF(Реестр!$C:$C,Данные_tb[[#This Row],[ЕД]],Реестр!$J:$J)","v":0},{"$f":"Данные_tb[[#This Row],[Выделено]]-Данные_tb[[#This Row],[Израсходовано]]","v":230000}]
["Муниципальное задание","экология ЦЛАТИ (ИП Николаева)",4,20,null,23000,{"$f":"SUMIF(Реестр!$C:$C,Данные_tb[[#This Row],[ЕД]],Реестр!$J:$J)","v":23000},{"$f":"Данные_tb[[#This Row],[Выделено]]-Данные_tb[[#This Row],[Израсходовано]]","v":0}]
["Муниципальное задание","объявления",4,20,null,10000,{"$f":"SUMIF(Реестр!$C:$C,Данные_tb[[#This Row],[ЕД]],Реестр!$J:$J)","v":0},{"$f":"Данные_tb[[#This Row],[Выделено]]-Данные_tb[[#This Row],[Израсходовано]]","v":10000}]
["Муниципальное задание","восстановление кабельной линии в 2021 году",4,20,null,367497.6,{"$f":"SUMIF(Реестр!$C:$C,Данные_tb[[#This Row],[ЕД]],Реестр!$J:$J)","v":367497.6},{"$f":"Данные_tb[[#This Row],[Выделено]]-Данные_tb[[#This Row],[Израсходовано]]","v":0}]
["Муниципальное задание","снегоуборщик ",4,20,null,151020,{"$f":"SUMIF(Реестр!$C:$C,Данные_tb[[#This Row],[ЕД]],Реестр!$J:$J)","v":151020},{"$f":"Данные_tb[[#This Row],[Выделено]]-Данные_tb[[#This Row],[Израсходовано]]","v":0}]
["Муниципальное задание","повышение квалификации",4,20,null,1372502.4,{"$f":"SUMIF(Реестр!$C:$C,Данные_tb[[#This Row],[ЕД]],Реестр!$J:$J)","v":0},{"$f":"Данные_tb[[#This Row],[Выделено]]-Данные_tb[[#This Row],[Израсходовано]]","v":1372502.4}]
["Муниципальное задание","утилизация ООО \"ЭкоСтарТехнолоджи\"",4,20,null,250000,{"$f":"SUMIF(Реестр!$C:$C,Данные_tb[[#This Row],[ЕД]],Реестр!$J:$J)","v":0},{"$f":"Данные_tb[[#This Row],[Выделено]]-Данные_tb[[#This Row],[Израсходовано]]","v":250000}]
["Муниципальное задание","мед.осмотр работников",4,20,null,885000,{"$f":"SUMIF(Реестр!$C:$C,Данные_tb[[#This Row],[ЕД]],Реестр!$J:$J)","v":0},{"$f":"Данные_tb[[#This Row],[Выделено]]-Данные_tb[[#This Row],[Израсходовано]]","v":885000}]
["Муниципальное задание","Учетно-бланочная и бланочная продукция (аттестаты, меню)",4,20,null,70000,{"$f":"SUMIF(Реестр!$C:$C,Данные_tb[[#This Row],[ЕД]],Реестр!$J:$J)","v":2110},{"$f":"Данные_tb[[#This Row],[Выделено]]-Данные_tb[[#This Row],[Израсходовано]]","v":67890}]
["Муниципальное задание","батареи для ИБП",4,20,null,100000,{"$f":"SUMIF(Реестр!$C:$C,Данные_tb[[#This Row],[ЕД]],Реестр!$J:$J)","v":0},{"$f":"Данные_tb[[#This Row],[Выделено]]-Данные_tb[[#This Row],[Израсходовано]]","v":100000}]
["Муниципальное задание"," картриджи для принтеров и ксерокса",4,20,null,400000,{"$f":"SUMIF(Реестр!$C:$C,Данные_tb[[#This Row],[ЕД]],Реестр!$J:$J)","v":0},{"$f":"Данные_tb[[#This Row],[Выделено]]-Данные_tb[[#This Row],[Израсходовано]]","v":400000}]
["Муниципальное задание","медикаменты",4,20,null,70000,{"$f":"SUMIF(Реестр!$C:$C,Данные_tb[[#This Row],[ЕД]],Реестр!$J:$J)","v":0},{"$f":"Данные_tb[[#This Row],[Выделено]]-Данные_tb[[#This Row],[Израсходовано]]","v":70000}]
["Муниципальное задание","хоз.материалы, инвентарь, канц.элект. товары",4,20,null,1056000,{"$f":"SUMIF(Реестр!$C:$C,Данные_tb[[#This Row],[ЕД]],Реестр!$J:$J)","v":103347},{"$f":"Данные_tb[[#This Row],[Выделено]]-Данные_tb[[#This Row],[Израсходовано]]","v":952653}]
["Муниципальное задание","Гигиеническое обучение сотрудников (голограммы)",4,20,null,null,{"$f":"SUMIF(Реестр!$C:$C,Данные_tb[[#This Row],[ЕД]],Реестр!$J:$J)","v":0},{"$f":"Данные_tb[[#This Row],[Выделено]]-Данные_tb[[#This Row],[Израсходовано]]","v":0}]
["Муниципальное задание","Дез.средства, маски и т.п.",4,20,null,null,{"$f":"SUMIF(Реестр!$C:$C,Данные_tb[[#This Row],[ЕД]],Реестр!$J:$J)","v":0},{"$f":"Данные_tb[[#This Row],[Выделено]]-Данные_tb[[#This Row],[Израсходовано]]","v":0}]
["Муниципальное задание","мониторинг тенических средств охраны (Росгвардия)",4,20,null,62020.800000000003,{"$f":"SUMIF(Реестр!$C:$C,Данные_tb[[#This Row],[ЕД]],Реестр!$J:$J)","v":62020.80000000001},{"$f":"Данные_tb[[#This Row],[Выделено]]-Данные_tb[[#This Row],[Израсходовано]]","v":0}]
["Муниципальное задание","покос (топливо, расходный материал)",4,20,null,null,{"$f":"SUMIF(Реестр!$C:$C,Данные_tb[[#This Row],[ЕД]],Реестр!$J:$J)","v":0},{"$f":"Данные_tb[[#This Row],[Выделено]]-Данные_tb[[#This Row],[Израсходовано]]","v":0}]
["Муниципальное задание","уборка снега (топливо, расходный материал)",4,20,null,null,{"$f":"SUMIF(Реестр!$C:$C,Данные_tb[[#This Row],[ЕД]],Реестр!$J:$J)","v":0},{"$f":"Данные_tb[[#This Row],[Выделено]]-Данные_tb[[#This Row],[Израсходовано]]","v":0}]
["Муниципальное задание","Предоставление права использования программы для ЭВМ \"Школьная БИБЛИОТЕКА (учебники)\"",4,20,null,null,{"$f":"SUMIF(Реестр!$C:$C,Данные_tb[[#This Row],[ЕД]],Реестр!$J:$J)","v":0},{"$f":"Данные_tb[[#This Row],[Выделено]]-Данные_tb[[#This Row],[Израсходовано]]","v":0}]
["Муниципальное задание","противопожарные мероприятия (уст.против. дверей, пандусов, замена огнетуш, приобр. табличек, изгот.планов эвакуации)",4,20,null,null,{"$f":"SUMIF(Реестр!$C:$C,Данные_tb[[#This Row],[ЕД]],Реестр!$J:$J)","v":0},{"$f":"Данные_tb[[#This Row],[Выделено]]-Данные_tb[[#This Row],[Израсходовано]]","v":0}]
["Муниципальное задание","Олимпиады",4,20,null,null,{"$f":"SUMIF(Реестр!$C:$C,Данные_tb[[#This Row],[ЕД]],Реестр!$J:$J)","v":6050},{"$f":"Данные_tb[[#This Row],[Выделено]]-Данные_tb[[#This Row],[Израсходовано]]","v":-6050}]
["Муниципальное задание","спецодежда (школа)",4,20,null,null,{"$f":"SUMIF(Реестр!$C:$C,Данные_tb[[#This Row],[ЕД]],Реестр!$J:$J)","v":0},{"$f":"Данные_tb[[#This Row],[Выделено]]-Данные_tb[[#This Row],[Израсходовано]]","v":0}]
["Муниципальное задание","ТО охранная сигнализация и реагирование (мастерские)",4,20,null,320160,{"$f":"SUMIF(Реестр!$C:$C,Данные_tb[[#This Row],[ЕД]],Реестр!$J:$J)","v":320160},{"$f":"Данные_tb[[#This Row],[Выделено]]-Данные_tb[[#This Row],[Израсходовано]]","v":0}]
["Спонсорские","Спонсорские",2,20,null,null,{"$f":"SUMIF(Реестр!$C:$C,Данные_tb[[#This Row],[ЕД]],Реестр!$J:$J)","v":3855},{"$f":"Данные_tb[[#This Row],[Выделено]]-Данные_tb[[#This Row],[Израсходовано]]","v":-3855}]

{"sheet":"Сводная","index":2,"n_rows":10,"n_cols":11,"rows_kept":10,"cut":false,"hidden":false,"merged":[]}
["Названия строк","Сумма по полю Сумма",null,null,null,null,null,"Сурудо от 10.01","4","5","аукцион и т.п."]
["Питание (областной бюджет) (молоко, 5-11,многодетные, ОВЗ)",1757341.92,null,null,null,null,null,"Выделено",5000000,25000000]
["молоко",1757341.92,null,null,null,null,null,"Израсходовано",{"$f":"SUMIF(Реестр!$I:$I,Остатки_tb6[[#Headers],[4]],Реестр!$J:$J)","v":210478.72},{"$f":"SUMIF(Реестр!$I:$I,Остатки_tb6[[#Headers],[5]],Реестр!$J:$J)","v":3144225.8400000017},{"$f":"SUMIF(Реестр!$I:$I,Остатки_tb6[[#Headers],[аукцион и т.п.]],Реестр!$J:$J)","v":8982850.8300000001}]
["охрана аукцион, ППБ, предписания",1747334.91,null,null,null,null,null,"Остаток",{"$f":"I2-I3","v":4789521.28},{"$f":"J2-J3","v":21855774.159999996}]
["физическая охрана ",1747334.91]
["Коммунальные услуги",5478174]
["вода",1681914]
["теплоснабжение",1826058]
["электроэнергия",1970202]
["Общий итог",8982850.8300000001]

{"sheet":"Технический","index":3,"n_rows":93,"n_cols":21,"rows_kept":93,"cut":false,"hidden":false,"merged":[]}
[null,"Выходные",null,"Пункт 44 ФЗ",null,"Способ оплаты",null,"С даты подписания (акта/договора) и предоставления документов на оплату",null,"Документы переданые в бухгалтерию",null,"Оплачен",null,"Контрагент",null,"Категории",null,"Основание"]
[null,null,null,4,null,"Полный расчет",null,"Акта",null,"Оригиналы",null,"Да",null,"АО \" СахалинСельхозИнвест\"",null,"Доступная среда",null,"Без договора",null,"Категория","ЕД"]
[null,null,null,5,null,"Аванс",null,"Договора",null,"Копии",null,"Нет",null,"АО \"Мобильные газотурбинные электрические станции\"",null,"Капитальный ремонт ",null,"Договор № 001-МН-2022 от 10.01.2022 г. на сумму 67 200,00 руб.",null,"Доступная среда","доступная среда (местный бюджет) "]
[null,null,null,"аукцион и т.п.",null,"Остаток",null,null,null,null,null,null,null,"ИП Ибрагимов Рустам Ибрагимович",null,"Коммунальные услуги",null,"Договор № 1 от 26.11.2021 г. на сумму 672 303,52 руб.",null,null,"доступная среда (местный бюджет) - софинансирование"]
[null,null,null,null,null,null,null,null,null,null,null,null,null,"ООО \"Кашалот-К\"",null,"Лагерь ",null,"Договор № 2-17/22/ЮЛ от 10.01.2022 г. на сумму 466 748,58 руб.",null,null,"доступная среда (областной бюджет)"]
[null,null,null,null,null,null,null,null,null,null,null,null,null,"ООО \"Координата\"",null,"Молодежный бюджет",null,"Договор № 242838 от 24.01.2022 г.",null,"Капитальный ремонт ","капитальный ремонт (местный бюджет)"]
[null,null,null,null,null,null,null,null,null,null,null,null,null,"ООО \"ОА \"Форт\"",null,"Муниципальное задание",null,"Договор № 265/2021 от 15.12.2021 г.",null,null,"капитальный ремонт (областной бюджет)"]
[null,null,null,null,null,null,null,null,null,null,null,null,null,"ООО \"Фортуна-С\"",null,"охрана аукцион, ППБ, предписания",null,"Договор № 31/2022 от 19.01.2022 г.",null,"Коммунальные услуги","вода"]
[null,null,null,null,null,null,null,null,null,null,null,null,null,"ООО \"Южно-Курильский водоканал\"",null,"питание (местный бюджет)",null,"Договор № 579-М-КТС-GSM от ххх на сумму 62 020,80 руб. (БО на сумму 62 020,80 руб.)",null,null,"теплоснабжение"]
[null,null,null,null,null,null,null,null,null,null,null,null,null,"ООО «Региональный Центр Консультант»",null,"питание (областной бюджет) (молоко, 5-11,многодетные, ОВЗ)",null,"Договор № 60199 от 24.01.2022 г. на сумму 6050,00 руб.",null,null,"электроэнергия"]
[null,null,null,null,null,null,null,null,null,null,null,null,null,"ПАО \"Ростелеком\"",null,"питание (федеральный бюджет)",null,"Договор № 7 от 22.12.2021 г. на сумму 4 588 650,74 руб.",null,"Лагерь ","голограммы (лагерь)"]
[null,null,null,null,null,null,null,null,null,null,null,null,null,"ФГКУ «ОВО ВНГ России по Сахалинской области»",null,"питание (внебюджет)",null,"Договор № 8/2022 от ххх на сумму 23000,00 руб. (БО на сумму 23 000,00 руб.)",null,null,"медосмотр водителей (лагерь)"]
[null,null,null,null,null,null,null,null,null,null,null,null,null,"ИП Николаева Ольга Ваильевна",null,"Подвоз",null,"Договор № Р18.035/СП от ххх на сумму 97 533,72 руб. (БО на сумму 97 533,72 руб.)",null,null,"медосмотр работников в лагере"]
[null,null,null,null,null,null,null,null,null,null,null,null,null,"ООО \"Коралл\"",null,"приобретение оборудования (лицензии, ПО)",null,"Договор № ТО-5-22 от ххх на сумму 216 000,00 руб. (БО на сумму 216 000,00 руб.)",null,null,"питание детей в лагере (2 смены)"]
[null,null,null,null,null,null,null,null,null,null,null,null,null,"АО \"Молочный комбинат \"Южно-Сахалинский\"",null,"Спонсорские",null,"Контракт № 008-22 от 30.11.2021 г. на сумму 1 400 222,40 руб.",null,null,"рото- норо- (лагерь)"]
[null,null,null,null,null,null,null,null,null,null,null,null,null,"ПАО \"САК \"Энергогарант\"",null,"Текущий ремонт ",null,"Контракт № 1/2022 от 22.11.2021 г. на сумму 1 747 334,91 руб.",null,null,"топливо (лагерь)"]
[null,null,null,null,null,null,null,null,null,null,null,null,null,"МУП\" Южно-Курильский Докер\"",null,"учебные расходы",null,"Контракт № 17/2022 от 19.01.2022 г.",null,null,"хоз.материалы лагерь (2 смены)"]
[null,null,null,null,null,null,null,null,null,null,null,null,null,"ООО\"Эскада\"",null,"учебные расходы (допобразование)",null,"Контракт № 2/2022 от 06.12.2021 г. на сумму 1 757 341,92 руб.",null,"Молодежный бюджет","Молодежный бюджет (местный бюджет) - софинансирование"]
[null,null,null,null,null,null,null,null,null,null,null,null,null,"ИП Ткачев",null,null,null,"Контракт № 4 от ххх на сумму 320 160,00 руб. (БО на сумму 320 160,00 руб.)",null,null,"молодежный бюджет (областной бюджет)"]
[null,null,null,null,null,null,null,null,null,null,null,null,null,"ООО\"Рубеж -Комплект\"",null,null,null,"Контракт № 571 от ххх на сумму 42 000,00 руб. (БО на сумму 42 000,00 руб.)",null,"Муниципальное задание"," картриджи для принтеров и ксерокса"]
[null,null,null,null,null,null,null,null,null,null,null,null,null,"ООО \"Сахалин-Логистика\"",null,null,null,"Контракт № 765000027209 о т ххх на сумму 80 000,00 руб. (БО на сумму 80 000,00 руб.)",null,null,"батареи для ИБП"]
[null,null,null,null,null,null,null,null,null,null,null,null,null,"ИП Мамалыга М.Л.",null,null,null,"Контракт № 85/22 от ххх на сумму 30 000,00 рублей (БО на сумму 30 000,00 руб.)",null,null,"восстановление кабельной линии в 2021 году"]
[null,null,null,null,null,null,null,null,null,null,null,null,null,"ОАО Киржачская типография\"",null,null,null,"Контракт № ТО-5-22 от ххх на сумму 300 000,00 руб. (БО на сумму 300 000 руб.)",null,null,"вывоз, утилизация ТБО"]
[null,null,null,null,null,null,null,null,null,null,null,null,null,"ИП Поречина О.А.",null,null,null,"Контракт б/н от 10.01.2022 г. на сумму 135805,00 руб.",null,null,"Гигиеническое обучение сотрудников (голограммы)"]
[null,null,null,null,null,null,null,null,null,null,null,null,null,"ИП Гребенкин И.А.",null,null,null,"Контракт б/н от 10.01.2022 г. на сумму 201852,40 руб.",null,null,"Дез.средства, маски и т.п."]
[null,null,null,null,null,null,null,null,null,null,null,null,null,"ООО Посейдон\"",null,null,null,"Контракт б/н от 16.12.2021 г. на сумму  170437,45 руб.",null,null,"дератизация, рото-норо диагностика, пробы воды и т.п."]
[null,null,null,null,null,null,null,null,null,null,null,null,null,"АО «Управление по обращению с отходами»",null,null,null,"Контракт б/н от 17.01.2022 г. на сумму  77550,00 руб.",null,null,"замер сопротивления изоляции"]
[null,null,null,null,null,null,null,null,null,null,null,null,null,"ИП Баранникова Т.Д.",null,null,null,"Контракт б/н от 17.01.2022 г. на сумму 83420,00 руб.",null,null,"командировочные (проезд, проживание, суточные)"]
[null,null,null,null,null,null,null,null,null,null,null,null,null,"ИП Привалов И.И.",null,null,null,"Контракт б/н от 19.01.2022 г. на сумму  14004,10 руб.",null,null,"мед.осмотр работников"]
[null,null,null,null,null,null,null,null,null,null,null,null,null,null,null,null,null,"Контракт б/н от 19.01.2022 г. на сумму  16177,03руб.",null,null,"медикаменты"]
[null,null,null,null,null,null,null,null,null,null,null,null,null,null,null,null,null,"Контракт б/н от 20.01.2022 г. на сумму  121395,77 руб.",null,null,"мониторинг системы пожарной безопасности (Координата)"]
[null,null,null,null,null,null,null,null,null,null,null,null,null,null,null,null,null,"Контракт б/н от 20.01.2022 г. на сумму  14710,80 руб.",null,null,"мониторинг тенических средств охраны (Росгвардия)"]
[null,null,null,null,null,null,null,null,null,null,null,null,null,null,null,null,null,"Контракт от 17.01.2022 г.на сумму 37410,00 руб.",null,null,"обновление справочно-информационных баз (Консультант)"]
[null,null,null,null,null,null,null,null,null,null,null,null,null,null,null,null,null,"Контракт от 17.01.2022 г.на сумму 75025,00 руб.",null,null,"обслуживание пожарной сигнализации "]
[null,null,null,null,null,null,null,null,null,null,null,null,null,null,null,null,null,null,null,null,"обслуживание сайта (МЦФР, ГрамотаДел, продление доменного имени)"]
[null,null,null,null,null,null,null,null,null,null,null,null,null,null,null,null,null,null,null,null,"обслуживание системы видеонаблюдения"]
[null,null,null,null,null,null,null,null,null,null,null,null,null,null,null,null,null,null,null,null,"обслуживание тревожной кнопки"]
[null,null,null,null,null,null,null,null,null,null,null,null,null,null,null,null,null,null,null,null,"объявления"]
[null,null,null,null,null,null,null,null,null,null,null,null,null,null,null,null,null,null,null,null,"Олимпиады"]
[null,null,null,null,null,null,null,null,null,null,null,null,null,null,null,null,null,null,null,null,"поверка приборов "]
[null,null,null,null,null,null,null,null,null,null,null,null,null,null,null,null,null,null,null,null,"повышение квалификации"]
[null,null,null,null,null,null,null,null,null,null,null,null,null,null,null,null,null,null,null,null,"покос (топливо, расходный материал)"]
[null,null,null,null,null,null,null,null,null,null,null,null,null,null,null,null,null,null,null,null,"почтовые"]
[null,null,null,null,null,null,null,null,null,null,null,null,null,null,null,null,null,null,null,null,"Предоставление права использования программы для ЭВМ \"Школьная БИБЛИОТЕКА (учебники)\""]
[null,null,null,null,null,null,null,null,null,null,null,null,null,null,null,null,null,null,null,null,"промывка и опресовка системы"]
[null,null,null,null,null,null,null,null,null,null,null,null,null,null,null,null,null,null,null,null,"противопожарные мероприятия (уст.против. дверей, пандусов, замена огнетуш, приобр. табличек, изгот.планов эвакуации)"]
[null,null,null,null,null,null,null,null,null,null,null,null,null,null,null,null,null,null,null,null,"снегоуборщик "]
[null,null,null,null,null,null,null,null,null,null,null,null,null,null,null,null,null,null,null,null,"СОУТ"]
[null,null,null,null,null,null,null,null,null,null,null,null,null,null,null,null,null,null,null,null,"спецодежда (школа)"]
[null,null,null,null,null,null,null,null,null,null,null,null,null,null,null,null,null,null,null,null,"ТО охранная сигнализация и реагирование (мастерские)"]
[null,null,null,null,null,null,null,null,null,null,null,null,null,null,null,null,null,null,null,null,"уборка и вывоз снега"]
[null,null,null,null,null,null,null,null,null,null,null,null,null,null,null,null,null,null,null,null,"уборка снега (топливо, расходный материал)"]
[null,null,null,null,null,null,null,null,null,null,null,null,null,null,null,null,null,null,null,null,"услуги автотранспорта (доставка товаров до школы (автобусы на техосмотр провести по допу 18 - выделены по этой статье))"]
[null,null,null,null,null,null,null,null,null,null,null,null,null,null,null,null,null,null,null,null,"услуги по подписке"]
[null,null,null,null,null,null,null,null,null,null,null,null,null,null,null,null,null,null,null,null,"услуги связи"]
[null,null,null,null,null,null,null,null,null,null,null,null,null,null,null,null,null,null,null,null,"утилизация ООО \"ЭкоСтарТехнолоджи\""]
[null,null,null,null,null,null,null,null,null,null,null,null,null,null,null,null,null,null,null,null,"Учетно-бланочная и бланочная продукция (аттестаты, меню)"]
[null,null,null,null,null,null,null,null,null,null,null,null,null,null,null,null,null,null,null,null,"хоз.материалы, инвентарь, канц.элект. товары"]
[null,null,null,null,null,null,null,null,null,null,null,null,null,null,null,null,null,null,null,null,"экология ЦЛАТИ (ИП Николаева)"]
[null,null,null,null,null,null,null,null,null,null,null,null,null,null,null,null,null,null,null,"охрана аукцион, ППБ, предписания","физическая охрана "]
[null,null,null,null,null,null,null,null,null,null,null,null,null,null,null,null,null,null,null,"питание (внебюджет)","5-11, сотрудники"]
[null,null,null,null,null,null,null,null,null,null,null,null,null,null,null,null,null,null,null,"питание (местный бюджет)","молоко опека"]
[null,null,null,null,null,null,null,null,null,null,null,null,null,null,null,null,null,null,null,null,"питание 1-4 классы"]
[null,null,null,null,null,null,null,null,null,null,null,null,null,null,null,null,null,null,null,null,"питание 5-11 кл.малоимущ."]
[null,null,null,null,null,null,null,null,null,null,null,null,null,null,null,null,null,null,null,null,"питание 5-11 кл.опекаемые"]
[null,null,null,null,null,null,null,null,null,null,null,null,null,null,null,null,null,null,null,"питание (областной бюджет) (молоко, 5-11,многодетные, ОВЗ)","молоко"]
[null,null,null,null,null,null,null,null,null,null,null,null,null,null,null,null,null,null,null,null,"питание 1-4 кл, 5-11 кл.малоимущ"]
[null,null,null,null,null,null,null,null,null,null,null,null,null,null,null,null,null,null,null,"питание (федеральный бюджет)","питание (федеральный бюджет)"]
[null,null,null,null,null,null,null,null,null,null,null,null,null,null,null,null,null,null,null,"Подвоз","автомасла"]
[null,null,null,null,null,null,null,null,null,null,null,null,null,null,null,null,null,null,null,null,"автострахование"]
[null,null,null,null,null,null,null,null,null,null,null,null,null,null,null,null,null,null,null,null,"запчасти"]
[null,null,null,null,null,null,null,null,null,null,null,null,null,null,null,null,null,null,null,null,"мед.осмотр водителей"]
[null,null,null,null,null,null,null,null,null,null,null,null,null,null,null,null,null,null,null,null,"обслуживание тахографов, мониторинг \"Посейдон\""]
[null,null,null,null,null,null,null,null,null,null,null,null,null,null,null,null,null,null,null,null,"оснащение видеонаблюдением автобусов"]
[null,null,null,null,null,null,null,null,null,null,null,null,null,null,null,null,null,null,null,null,"спецодежда (гараж)"]
[null,null,null,null,null,null,null,null,null,null,null,null,null,null,null,null,null,null,null,null,"техосмотр"]
[null,null,null,null,null,null,null,null,null,null,null,null,null,null,null,null,null,null,null,null,"топливо"]
[null,null,null,null,null,null,null,null,null,null,null,null,null,null,null,null,null,null,null,null,"услуги автотранспорта (морская перевозка автобуса на техомотр)"]
[null,null,null,null,null,null,null,null,null,null,null,null,null,null,null,null,null,null,null,"приобретение оборудования (лицензии, ПО)","4 дозатора"]
[null,null,null,null,null,null,null,null,null,null,null,null,null,null,null,null,null,null,null,null,"6 рециркуляторов"]
[null,null,null,null,null,null,null,null,null,null,null,null,null,null,null,null,null,null,null,null,"аппарат котлетный, тестоделитель, хлеборезка, 2 холодильника, стол для тестоделителя, стол к п/м машине, конвектомат"]
[null,null,null,null,null,null,null,null,null,null,null,null,null,null,null,null,null,null,null,null,"ИБП-3шт. По 10тыс., ИБП для сервера - 50 тыс-1 шт."]
[null,null,null,null,null,null,null,null,null,null,null,null,null,null,null,null,null,null,null,null,"ПК (сист.блок, монитор, мышь, клавиатура, колонки, ПО офисное, операц.система)*10 шт"]
[null,null,null,null,null,null,null,null,null,null,null,null,null,null,null,null,null,null,null,null,"приобретение программного обеспечения, эл.сис-ма образования"]
[null,null,null,null,null,null,null,null,null,null,null,null,null,null,null,null,null,null,null,null,"Продление домена ukshkola.ru на 1 год по тарифу Базовый"]
[null,null,null,null,null,null,null,null,null,null,null,null,null,null,null,null,null,null,null,null,"строительный пылесос"]
[null,null,null,null,null,null,null,null,null,null,null,null,null,null,null,null,null,null,null,null,"тележка платформенная для бережной транспортировки грузов- 2 шт., тележка для перевозки грузов-1 шт по 15 тыс."]
[null,null,null,null,null,null,null,null,null,null,null,null,null,null,null,null,null,null,null,"Спонсорские","Спонсорские"]
[null,null,null,null,null,null,null,null,null,null,null,null,null,null,null,null,null,null,null,"Текущий ремонт ","материалы на текущий ремонт"]
[null,null,null,null,null,null,null,null,null,null,null,null,null,null,null,null,null,null,null,null,"текущий ремонт:  1418000 - школа, 100000 - баскетбольная площадка и футбольное поле, 100000 - установка кранов на батареи, 100000 - ликвидация последствий циклонов "]
[null,null,null,null,null,null,null,null,null,null,null,null,null,null,null,null,null,null,null,"учебные расходы","учебные расходы (основные)"]
[null,null,null,null,null,null,null,null,null,null,null,null,null,null,null,null,null,null,null,null,"учебные расходы (расходные)"]
[null,null,null,null,null,null,null,null,null,null,null,null,null,null,null,null,null,null,null,"учебные расходы (допобразование)","учебные расходы (допобразование)"]